Workbook

Sheet Preface and Contents
E2: 2019 Annual Technology Baseline (ATB)
E4: NREL annually documents a realistic and timely set of input assumptions (e.g., technology cost, fuel costs), and a diverse set of potential futures (standard scenarios) to inform electric sector analysis in the United States. The products of this work, including assessments of current and projected technology cost and performance for both renewable and conventional electricity generation technologies, as well as market projections of more than a dozen scenarios produced with NREL's Regional Energy Deployment Systems (ReEDS) model, are applied consistently in NREL's analyses throughout the following year. This annual process is supported by the Office of Strategic Programs of the U.S. Department of Energy’s Office of Energy Efficiency and Renewable Energy (EERE). The specific products from this effort including the following:
E6: * An Annual Technology Baseline (ATB) workbook documenting detailed cost and performance data (both current and projected) for both renewable and conventional technologies.
E7: * An ATB web application describing each of the technologies and providing additional context for their treatment in the workbook.
E8: * A Standard Scenarios Annual Report describing the identified scenarios, associated assumptions (including technology cost and performance assumptions from the ATB)
E10: These products can be accessed at atb.nrel.gov.
E12: New to this Edition
E14: Two options representing market conditions for project financing: - R&D - based on macro-economic indicators from AEO (2019) for the year 2017 as a source for debt rates and return on equity rates. Includes dynamic effects of R&D on technology cost, technology performance, and financial performance. Excludes economic dynamics such as background changes to inflation, interest, and return on equity. Excludes policies such as tax credits and tariffs. Financing presented as a time series. - R&D + Market – based on macro-economic indicators from AEO (2019) as a source for debt rates and return on equity rates. Includes dynamics from R&D Only case. Adds in economic dynamics and policies. (3% carbon risk adder is applied to WAAC of coal non-CCS technologies)
E16: Contents
E17: Financial Definitions
E18: Wind: Land-based
E19: Wind: Offshore
E20: Solar: PV: Utility
E21: Solar: PV: Commercial
E22: Solar: PV: Residential
E23: Solar: CSP
E24: Geothermal
E25: Hydropower
E26: Natural Gas
E27: Coal
E28: Nuclear
E29: Biopower
E30: Summary (for Tableau)
E31: Recommended Citation
E32: NREL (National Renewable Energy Laboratory). 2019. 2019 Annual Technology Baseline. Golden, CO: National Renewable Energy Laboratory.
E34: Online
B35: atb.nrel.gov | E35: 2019 Annual Technology Baseline (ATB)
E38: Contact
E39: atb.nrel.gov/electricity/contact
E41: DISCLAIMER AGREEMENT
E42: These detailed electricity generation technology cost and performance data ("Data") are provided by the National Renewable Energy Laboratory ("NREL"), which is operated by the Alliance for Sustainable Energy LLC ("Alliance") for the U.S. Department of Energy (the "DOE").
E44: It is recognized that disclosure of these Data are provided under the following conditions and warnings: (1) these Data have been prepared for reference purposes only; (2) these Data consist of forecasts, estimates, or assumptions made on a best-efforts basis, based upon expectations of current and future conditions at the time they were developed; and (3) these Data were prepared with existing information and are subject to change without notice.
E46: The user understands that DOE/NREL/ALLIANCE are not obligated to provide the user with any support, consulting, training or assistance of any kind with regard to the use of the Data or to provide the user with any updates, revisions or new versions thereof. DOE, NREL, and ALLIANCE do not guarantee or endorse any results generated by use of the Data, and user is entirely responsible for the results and any reliance on the results or the Data in general.
E48: USER AGREES TO INDEMNIFY DOE/NREL/ALLIANCE AND ITS SUBSIDIARIES, AFFILIATES, OFFICERS, AGENTS, AND EMPLOYEES AGAINST ANY CLAIM OR DEMAND, INCLUDING REASONABLE ATTORNEYS' FEES, RELATED TO USER’S USE OF THE DATA. THE DATA ARE PROVIDED BY DOE/NREL/ALLIANCE "AS IS," AND ANY EXPRESS OR IMPLIED WARRANTIES, INCLUDING BUT NOT LIMITED TO THE IMPLIED WARRANTIES OF MERCHANTABILITY AND FITNESS FOR A PARTICULAR PURPOSE ARE DISCLAIMED. IN NO EVENT SHALL DOE/NREL/ALLIANCE BE LIABLE FOR ANY SPECIAL, INDIRECT OR CONSEQUENTIAL DAMAGES OR ANY DAMAGES WHATSOEVER, INCLUDING BUT NOT LIMITED TO CLAIMS ASSOCIATED WITH THE LOSS OF DATA OR PROFITS, THAT MAY RESULT FROM AN ACTION IN CONTRACT, NEGLIGENCE OR OTHER TORTIOUS CLAIM THAT ARISES OUT OF OR IN CONNECTION WITH THE ACCESS, USE OR PERFORMANCE OF THE DATA.

Sheet Financial Definitions
B2: Electricity Generation Technology LCOE equation for Standard Scenarios – ReEDS Model Inputs and Annual Technology Baseline presentation of technology assumptions.
B3: Note: Costs associated with a given year are for systems that come online in that year. For example, the overnight capital cost (OCC) for a technology in 2020 represents the OCC of a system that begins commercial operation in 2020. The capacity factor for a technology in 2020 represents the expected annualized lifetime energy production for a system that begins commercial operation in 2020.
B5: Levelized Cost of Energy ($/MWh) | C5: LCOE = ((FCR * CAPEX + FOM)*1000/(CF * 8760)) + VOM + Fuel
C6: LCOE = ((CRF * ProFinFactor * ConFinFactor * (OCC * CapRegMult + GCC) + FOM) * 1000 / (CF * 8760)) + VOM + Fuel
B8: Fixed Charge Rate | C8: FCR = CRF * ProFinFactor | D8: Amount of revenue per dollar of investment required that must be collected annually from customers to pay the carrying charges on that investment.
B10: CAPEX | C10: CAPEX = ConFinFActor * (OCC * CapRegMult + GCC) | D10: Capital expenditures required to achieve commercial operation of the generation plant
B12: Capital Recovery Factor | C12: CRF = WACC / (1 - (1 / (1 + WACC)^t)) note: WACC real | D12: *ReEDS uses: CRF = (WACC - 1) / (1 - (1 / WACC)^t)
C13: WACC = ((1+((1-DF)*((1+RROE)*(1+i)-1)) + (DF*((1+IR)*(1+i)-1)*(1-TR))) / (1+i)) - 1 | D13: but uses a WACC that is equal to 1 + the WACC rate, and returns a CRF that is 1+CRF
C14: DF = debt fraction | D14: *ReEDS uses: WACC = (1 + ((1 - DF)*(RROE*i - 1)) + (DF*(IR*i - 1)*(1-TR))) / i
C15: RROE = rate of return on equity (real) = 10.24% | D15: but uses RROE, i, and IR that are equal to 1 + the rates, and returns a WACC that is 1+WACC
C16: i = inflation rate = 2.5%
C17: IR = interest rate (real) = 5.4%
B19: Project Finance factor | C19: ProFinFactor = (1 - TR * PVD) / (1 - TR)
C20: TR = combined state/federal tax rate
C21: PVD = present value of depreciation = summation from y=1 to y=M+1 of (FDy * fy)
C22: M = # years in MACRS depreciation schedule
C23: FDy = fraction of capital depreciated in year y
C24: fy = depreciation factor in year y | D24: fy = 1/dy
C25: d = nominal discount rate (8.9%) | D25: d = WACC * i
C26: i = inflation rate
B28: Construction Finance Factor | C28: ConFinFactor = summation from y=0 to y=C-1 of (FCy * AIy)
C29: FCy = fraction of capital spent in year y
C30: AIy =1 + (1 - TR) * ((1 + IDC)(year+0.5) - 1) | D30: *ReEDS uses: AIy =1 + (1 - TR) * (IDC(year+0.5) - 1)
C31: IDC = interest during construction | D31: but uses an IDC that is equal to 1 + the interest rate
C32: y = year index, starting at 0
C33: C = construction duration (years)
B35: Overnight Capital Cost | C35: OCC = input in $/kW
B37: Capital Regional Multiplier | C37: CapRegMult = 1 for ATB | D37: CapRegMult = 1 for ATB
B39: Grid Connection Costs | C39: GCC = GF + OnSpurCost + Off SpurCost
C40: GF | D40: grid feature = 0 for ATB
C41: OnSpurCost | D41: Onshore Spur Line Costs = 0 for ATB
C42: Off SpurCost | D42: Offshore (underwater) Spur Line Costs
B44: Fixed Operating Expenses | C44: FOM = input in $/kW
B46: * 1000 | C46: conversion factor from $/kW inputs to $/MWh output
B48: Capacity Factor | C48: CF = input as %
B50: * 8760 | C50: conversion factor for hours per year
B52: Variable Operating Expenses | C52: VOM = input in $/MWh
B54: Fuel | C54: Fuel = input in $/MWh
B56: Overnight LCOE | C56: =((OCC*CRF*(1-TR*PVD))/(8760*CF*(1-TR))+FOM/(8760*CF))*1000)+VOM | D56: This is similar to the LCOE used in the TCDB (Transparent Cost database)
B58: Definitions:
B59: AI | C59: Accumulated Interest | D59: Accumulated interest is a function of the interest during construction and the tax rate.
B60: C | C60: Construction Duration | D60: Number of years in construction period
B61: CapRegMult | C61: Capital Regional Multiplier | D61: Capital cost multipliers to account for regional variations that affect plant costs, e.g. labor rates, etc. Separate multipliers are applied to land-based and offshore wind plants, PV, CSP, coal, gas, nuclear, etc. No multipliers for geothermal or hydropower due to site specific nature of plant cost estimates.
B62: CF | C62: Capacity Factor (%) | D62: Generally defined as the ratio of actual annual output to output at rated capacity for an entire year.
B63: ConFinFactor | C63: Construction Finance Factor | D63: Portion of all-in capital cost associated with construction period financing. ConFinFactor is a function of C, FC, and IDC.
B64: CRF | C64: Capital Recovery Factor | D64: The ratio of a constant annuity to the present value of receiving that annuity for a given length of time. (Default in ReEDS is 8.89% real); CRF is a function of WACC and t.
B65: d | C65: nominal discount rate (8.9%) | D65: The discount rate is a function of the WACC and inflation.
B66: DF | C66: Debt Fraction | D66: Fraction of capital financed with debt. 1-DF is assumed financed with equity. (50% for all technologies in ReEDS)
B67: EMRP | C67: Expected Market Risk Premium | D67: The market risk premium is the difference between the expected return on a market portfolio and the risk-free rate.
B68: f | C68: Depreciation Factor | D68: The depreciation factor is a function of the discount rate.
B69: FC | C69: Capital Fraction | D69: Fraction of capital spent in each year of construction, 1 to C.
B70: FD | C70: Depreciation Fraction | D70: Fraction of capital depreciated in each year, 1 to M.
B71: FOM | C71: Fixed Operation and Maintenance Expenses ($/MW-year) | D71: Annual expenditures to operate and maintain equipment that are not incurred on a per-unit-energy basis.
B72: Fuel | C72: fuel cost ($/MWh) | D72: Fuel costs are converted to $/MWh from various units.
B73: GCC | C73: Grid Connection Costs | D73: Distance-based costs of spur lines over land, offshore wind plant export cable costs and construction-period transit costs
B74: GF | C74: Grid Feature | D74: Point of interconnection at the high voltage transmission network, including substation, transmission lines, load center, or BA center. (Default in ReEDS is $0/kW for substation and load center and $14/kW for others)
B75: i | C75: Inflation Rate | D75: Assumed inflation rate based on historical data. (2.5% in ReEDS)
B76: ICC | C76: Installed Capital Cost ($/MW) | D76: Total capital expenditure to achieve commercial operation up to the plant gate. This intermediate value is used only in presentation of technology cost assumptions with historic market data. It is not required to calculate LCOE.
B77: IDC | C77: Interest During Construction | D77: Interest rate for financing project during construction period.
B78: IR | C78: Interest Rate (real) | D78: Assumed interest rate on debt. (5.4% for all technologies in ReEDS, 8% nominal)
B79: M | C79: Depreciation period (years) | D79: Number of years in MACRS depreciation schedule.
B80: OCC | C80: Overnight Capital Cost ($/MW) | D80: Capital expenditures excluding construction period financing. Includes onsite electrical equipment (e.g., switchyard), a nominal-distance spur line (<1 mi), and necessary upgrades at a transmission substation.
B81: OffDist | C81: Offshore Distance | D81: Total offshore distance covered by the offshore export cables
B82: OffSpurCost | C82: Offshore (underwater) Spur Line Costs | D82: Cost for offshore (underwater) export cables from the offshore wind plant to land; OffSpurCost is a function of OffDist and OffDistFactor.
B83: OffDistFactor | C83: Offshore Distance Factor | D83: Incremental capital expenditure for offshore wind plant export cable length between landfall and offshore wind plant site.
B84: OnDist | C84: Onshore Distance | D84: Total onshore distance covered by the onshore transmission spur lines
B85: OnRegTransMult | C85: Onshore Regional Transmission Multiplier | D85: Transmission cost multipliers to account for regional variations that affect onshore transmission line costs, e.g. labor rates, terrain, siting, etc.
B86: OnSpurCost | C86: Onshore Spur Line Costs | D86: Cost for onshore transmission lines from the plant gate to the grid feature; OnSpurCost is a function of OnDist, OnTransCost, and OnRegTransMult.
B87: OnTransCost | C87: Onshore Transmission Costs (for spur line) | D87: Base onshore transmission line costs (Default in ReEDS is $3922/MW-mile)
B88: ProFinFactor | C88: Project Finance factor | D88: Technology-specific financial multiplier to account for any applicable differences in depreciation schedule, and tax policies. ProFinFactor is a function of TR, WACC, i, M, and FD
B89: PVD | C89: Present Value of Depreciation | D89: PVD is a function of FD, f and y.
B90: RROE | C90: Rate of Return on Equity (real) | D90: Assumed rate of return on the share of assets financed with equity. (10% for all technologies in ReEDS, 13% nominal)
B91: t | C91: Economic Lifetime (years) | D91: Length of time for paying off assets (20 years for all technologies in ReEDS)
B92: TR | C92: Tax Rate | D92: Combined state and federal tax rate (40%)
B93: VOM | C93: Variable Operation and Maintenance Expenses ($/MWh) | D93: Operating and maintenance costs incurred on a per-unit-energy basis.
B94: WACC | C94: Weighted Average Cost of Capital (real) | D94: The average expected rate that is paid to finance assets. (Default in ReEDS is 6.2% real); WACC is a function of DF, RROE, IR, i, and TR.
B95: y | C95: year index, starting at 0
B97: Notes:
B98: CapRegMult = 1 | C98: ATB assumes that all plants represent typical equipment costs and do not include regionally specific labor or material cost increments.
B99: GCC = 0 | C99: ATB assumes that base plant cost includes small spur line to connect with grid for all technologies in overnight capital cost. An exception is made for offshore wind plants where the export cable and construction-period transit costs based on a 30 km distance from shore are represented in GCC. Specific transmission lines based on geographically determined distances between ReEDS regions and existing transmission features for wind and solar are not included in ATB.
B100: Inputs in ATB are in $/kW, in ReEDS they are $/MW

Sheet Offshore Wind
A1: Offshore Wind Inputs | L1: https://atb.nrel.gov/electricity/2019/index.html?t=ow
T3: Inputs
J4: Take me to: | T4: Calculated
B10: X | G10: Current Costs
H12: Techno-Economic Cost and Performance Parameters | J12: Net Capacity Factor (%) | K12: TRG 1 - Offshore Fixed | L12: =L248 -> 0.4501172602 | O12: Basis Year: | Q12: 2017
K13: TRG 2 - Offshore Fixed | L13: =L251 -> 0.4388377365
K14: TRG 3 - Offshore Fixed | L14: =L254 -> 0.4377410843 | O14: Offshore Wind Techno-Resource Groups (TRG)
K15: TRG 4 - Offshore Fixed | L15: =L257 -> 0.4063266026 | O15: TRG | Q15: Weighted Water Depth (m) | R15: Weighted Distance Site to Cable Landfall (km) | S15: Weighted Average CAPEX ($/kW) | T15: Weighted Average OPEX ($/kW/yr) | U15: Weighted Average Net CF (%) | V15: Potential Wind Plant Capacity (GW) | W15: Potential Wind Plant Energy (TWh)
K16: TRG 5 - Offshore Fixed | L16: =L260 -> 0.2972724945 | O16: Fixed-Bottom | P16: TRG 1 | Q16: 18.4029682 | R16: 26.99583657 | S16: 3360.905653 | T16: 105.4375404 | U16: =L248 -> 0.4501172602 | V16: 12.49126972 | W16: 48.52452621
K17: TRG 6 - Offshore Floating | L17: =L263 -> 0.5192918713 | P17: TRG 2 | Q17: 21.74717763 | R17: 29.19507856 | S17: 3475.059708 | T17: 105.9457516 | U17: =L251 -> 0.4388377365 | V17: 24.98253944 | W17: 94.15286983
K18: TRG 7 - Offshore Floating | L18: =L266 -> 0.5094382733 | P18: TRG 3 | Q18: 24.38214338 | R18: 32.64194544 | S18: 3659.711481 | T18: 108.7897388 | U18: =L254 -> 0.4377410843 | V18: 49.96507889 | W18: 182.0082662
K19: TRG 8 - Offshore Floating | L19: =L269 -> 0.4934720564 | P19: TRG 4 | Q19: 29.15242366 | R19: 56.55008752 | S19: 4001.214257 | T19: 111.9409152 | U19: =L257 -> 0.4063266026 | V19: 320 | W19: 1131.291118
K20: TRG 9 - Offshore Floating | L20: =L272 -> 0.4889117827 | P20: TRG 5 | Q20: 30.63847386 | R20: 65.00800547 | S20: 4633.061327 | T20: 107.3209328 | U20: =L260 -> 0.2972724945 | V20: 320 | W20: 1023.32834
K21: TRG 10 - Offshore Floating | L21: =L275 -> 0.471816518 | O21: Floating | P21: TRG 6 | Q21: 144.2714643 | R21: 37.99239903 | S21: 4602.402191 | T21: 76.98541129 | U21: =L263 -> 0.5192918713 | V21: 12.49126972 | W21: 54.99282088
K22: TRG 11 - Offshore Floating | L22: =L278 -> 0.4278992766 | P22: TRG 7 | Q22: 159.117291 | R22: 45.27749158 | S22: 4661.312875 | T22: 77.62079838 | U22: =L266 -> 0.5094382733 | V22: 24.98253944 | W22: 107.6368838
K23: TRG 12 - Offshore Floating | L23: =L281 -> 0.3635880076 | P23: TRG 8 | Q23: 156.5643167 | R23: 45.75740301 | S23: 4709.781829 | T23: 78.46600886 | U23: =L269 -> 0.4934720564 | V23: 49.96507889 | W23: 212.3111635
K24: TRG 13 - Offshore Floating | L24: =L284 -> 0.3367506915 | P24: TRG 9 | Q24: 147.7341045 | R24: 64.48617989 | S24: 4936.017489 | T24: 83.70818452 | U24: =L272 -> 0.4889117827 | V24: 99.93015778 | W24: 413.9412981
K25: TRG 14 - Offshore Floating | L25: =L287 -> 0.3025928909 | P25: TRG 10 | Q25: 107.1359784 | R25: 101.4394401 | S25: 5209.308567 | T25: 90.5068514 | U25: =L275 -> 0.471816518 | V25: 199.8603156 | W25: 780.8058478
K26: TRG 15 - Offshore Floating | L26: =L290 -> 0.2794865163 | P26: TRG 11 | Q26: 374.9653144 | R26: 116.1238415 | S26: 5319.990493 | T26: 98.29014742 | U26: =L278 -> 0.4278992766 | V26: 199.8603156 | W26: 726.8045418
P27: TRG 12 | Q27: 467.1984329 | R27: 116.2316805 | S27: 5330.803313 | T27: 96.91741308 | U27: =L281 -> 0.3635880076 | V27: 199.8603156 | W27: 651.0194693
J28: Annual Energy Production (kWh/kW) | K28: TRG 1 - Offshore Fixed | L28: =(L12)*8760 -> 3943.027199 | P28: TRG 13 | Q28: 663.3804356 | R28: 166.2897068 | S28: 5784.87284 | T28: 91.68959376 | U28: =L284 -> 0.3367506915 | V28: 199.8603156 | W28: 614.5910627
K29: TRG 2 - Offshore Fixed | L29: 3844.218572 | P29: TRG 14 | Q29: 431.6365408 | R29: 147.2033929 | S29: 6145.378267 | T29: 87.49481686 | U29: =L287 -> 0.3025928909 | V29: 199.8603156 | W29: 565.6306895
K30: TRG 3 - Offshore Fixed | L30: 3834.611899 | P30: TRG 15 | Q30: 468.3915775 | R30: 132.6378173 | S30: 6599.168778 | T30: 83.4588037 | U30: =L290 -> 0.2794865163 | V30: 143.3997764 | W30: 390.2620324
K31: TRG 4 - Offshore Fixed | L31: 3559.421039 | O31: Total | V31: 2057.509288 | W31: 6997.30093
K32: TRG 5 - Offshore Fixed | L32: 2604.107052
K33: TRG 6 - Offshore Floating | L33: 4548.996793
K34: TRG 7 - Offshore Floating | L34: 4462.679275 | O34: Financial Assumptions (2016):
K35: TRG 8 - Offshore Floating | L35: 4322.815214 | O35: Inflation Rate | S35: =L577 -> 0.025
K36: TRG 9 - Offshore Floating | L36: 4282.867216 | O36: Capital Recovery Period (Years) | S36: 30
K37: TRG 10 - Offshore Floating | L37: 4133.112697 | O37: Interest Rate Nominal - Mid | S37: =L579 -> 0.0373
K38: TRG 11 - Offshore Floating | L38: 3748.397663 | O38: Calculated Interest Rate Real - Mid | S38: =L582 -> 0.012
K39: TRG 12 - Offshore Floating | L39: 3185.030947 | O39: Interest During Construction - Nominal | S39: =L584 -> 0.0373
K40: TRG 13 - Offshore Floating | L40: 2949.936057 | O40: Rate of Return on Equity Nominal - Mid | S40: =L586 -> 0.1303
K41: TRG 14 - Offshore Floating | L41: 2650.713724 | O41: Calculated Rate of Return on Equity Real - Mid | S41: =L589 -> 0.1027317073
K42: TRG 15 - Offshore Floating | L42: 2448.301883 | O42: Debt Fraction - Mid | S42: =L592 -> 0.6
O43: Tax Rate (Federal and State) | S43: =L594 -> 0.2574
J44: CAPEX ($/kW) | K44: TRG 1 - Offshore Fixed | L44: =$S$47 * (L76 + L142) -> 3759.307405 | O44: WACC Nominal - Mid | S44: =L596 -> 0.068739388
K45: TRG 2 - Offshore Fixed | L45: =$S$47 * (L77 + L143) -> 3805.997221 | O45: WACC Real - Mid | S45: =L599 -> 0.04267257366
K46: TRG 3 - Offshore Fixed | L46: 3845.540455 | O46: Depreciation Period | S46: 5
K47: TRG 4 - Offshore Fixed | L47: 4134.596268 | O47: Construction Finance Factor | S47: =SUMPRODUCT(P56:P58,Q56:Q58) -> 1.036501819
K48: TRG 5 - Offshore Fixed | L48: 4704.9239 | O48: Present Value of Depreciation | S48: =SUMPRODUCT(O76:T76,O78:T78) -> 0.8341571761
K49: TRG 6 - Offshore Floating | L49: 5406.270059 | O49: Project Finance Factor | S49: =(1 - S43 * S48) / (1 - S43) -> 1.057484437
K50: TRG 7 - Offshore Floating | L50: 5672.871438 | O50: Capital Recovery Factor (CRF) Nominal - Mid | S50: =L602 -> 0.07956832284
K51: TRG 8 - Offshore Floating | L51: 5771.078485 | O51: Capital Recovery Factor (CRF) Real - Mid | S51: =L605 -> 0.05972123469
K52: TRG 9 - Offshore Floating | L52: 5858.773869
K53: TRG 10 - Offshore Floating | L53: 6235.993313 | O53: Construction Duration yrs | Q53: 3
K54: TRG 11 - Offshore Floating | L54: 6527.582834 | O54: Year | P54: Capital | Q54: Accumulated
K55: TRG 12 - Offshore Floating | L55: 6343.743387 | O55: Index | P55: Fraction | Q55: Interest
K56: TRG 13 - Offshore Floating | L56: 6482.520661 | O56: 0 | P56: 0.4 | Q56: =1+(1-S43)*((1+S39)^(O56+0.5)-1) -> 1.013722697
K57: TRG 14 - Offshore Floating | L57: 6969.684418 | O57: 1 | P57: 0.4 | Q57: =1+(1-S43)*((1+S39)^(O57+0.5)-1) -> 1.041933534
K58: TRG 15 - Offshore Floating | L58: 7427.051147 | O58: 2 | P58: 0.2 | Q58: =1+(1-S43)*((1+S39)^(O58+0.5)-1) -> 1.071196635
J60: Construction Financing Cost ($/kW) | K60: TRG 1 - Offshore Fixed | L60: =(L76+L142)*($S$47-1) -> 132.3891167
K61: TRG 2 - Offshore Fixed | L61: 134.033362
K62: TRG 3 - Offshore Fixed | L62: 135.4259307
K63: TRG 4 - Offshore Fixed | L63: 145.6054238
K64: TRG 5 - Offshore Fixed | L64: 165.690286
K65: TRG 6 - Offshore Floating | L65: 190.3891437
K66: TRG 7 - Offshore Floating | L66: 199.7778734
K67: TRG 8 - Offshore Floating | L67: 203.2363679
K68: TRG 9 - Offshore Floating | L68: 206.32468
K69: TRG 10 - Offshore Floating | L69: 219.6089751
K70: TRG 11 - Offshore Floating | L70: 229.8776962
K71: TRG 12 - Offshore Floating | L71: 223.4035403
K72: TRG 13 - Offshore Floating | L72: 228.2907705
K73: TRG 14 - Offshore Floating | L73: 245.446904
K74: TRG 15 - Offshore Floating | L74: 261.5536946
N75: MACRS yr | O75: 1 | P75: 2 | Q75: 3 | R75: 4 | S75: 5 | T75: 6
J76: Overnight Capital Cost (OCC) ($/kW) | K76: TRG 1 - Offshore Fixed | L76: 3018.614006 | N76: Depreciation | O76: 0.2 | P76: 0.32 | Q76: 0.192 | R76: 0.1152 | S76: 0.1152 | T76: 0.0576
K77: TRG 2 - Offshore Fixed | L77: 3027.247244 | N77: Fraction
K78: TRG 3 - Offshore Fixed | L78: 3009.417133 | N78: Depreciation | O78: =1/((1+S45)*(1+S35))^O75 -> 0.9356818053 | P78: =1/((1+S45)*(1+S35))^P75 -> 0.8755004408 | Q78: =1/((1+S45)*(1+S35))^Q75 -> 0.8191898331 | R78: =1/((1+S45)*(1+S35))^R75 -> 0.7665010219 | S78: =1/((1+S45)*(1+S35))^S75 -> 0.71720106 | T78: =1/((1+S45)*(1+S35))^T75 -> 0.6710719826
K79: TRG 4 - Offshore Fixed | L79: 3110.571963 | N79: Factor
K80: TRG 5 - Offshore Fixed | L80: 3362.698742
K81: TRG 6 - Offshore Floating | L81: 4355.078121
K82: TRG 7 - Offshore Floating | L82: 4449.274215
K83: TRG 8 - Offshore Floating | L83: 4454.510667
K84: TRG 9 - Offshore Floating | L84: 4510.143447
K85: TRG 10 - Offshore Floating | L85: 4671.275417
K86: TRG 11 - Offshore Floating | L86: 4772.611273
K87: TRG 12 - Offshore Floating | L87: 4682.855705
K88: TRG 13 - Offshore Floating | L88: 4621.527867
K89: TRG 14 - Offshore Floating | L89: 4867.844513
K90: TRG 15 - Offshore Floating | L90: 5104.067441
J92: Fixed Operation and Maintenance Expenses ($/kW-year) | K92: TRG 1 - Offshore Fixed | L92: 128.2726896
K93: TRG 2 - Offshore Fixed | L93: 130.2682403
K94: TRG 3 - Offshore Fixed | L94: 133.634152
K95: TRG 4 - Offshore Fixed | L95: 138.1642914
K96: TRG 5 - Offshore Fixed | L96: 146.1121262
K97: TRG 6 - Offshore Floating | L97: 98.14160656
K98: TRG 7 - Offshore Floating | L98: 101.5556556
K99: TRG 8 - Offshore Floating | L99: 101.9274256
K100: TRG 9 - Offshore Floating | L100: 104.7767952
K101: TRG 10 - Offshore Floating | L101: 113.7037615
K102: TRG 11 - Offshore Floating | L102: 123.8660214
K103: TRG 12 - Offshore Floating | L103: 127.995367
K104: TRG 13 - Offshore Floating | L104: 126.1549684
K105: TRG 14 - Offshore Floating | L105: 128.1529723
K106: TRG 15 - Offshore Floating | L106: 126.9459972
J108: Variable Operation and Maintenance Expenses ($/MWh) | K108: TRG 1 - Offshore Fixed | L108: =L530 -> 0
K109: TRG 2 - Offshore Fixed | L109: 0
K110: TRG 3 - Offshore Fixed | L110: 0
K111: TRG 4 - Offshore Fixed | L111: 0
K112: TRG 5 - Offshore Fixed | L112: 0
K113: TRG 6 - Offshore Floating | L113: 0
K114: TRG 7 - Offshore Floating | L114: 0
K115: TRG 8 - Offshore Floating | L115: 0
K116: TRG 9 - Offshore Floating | L116: 0
K117: TRG 10 - Offshore Floating | L117: 0
K118: TRG 11 - Offshore Floating | L118: 0
K119: TRG 12 - Offshore Floating | L119: 0
K120: TRG 13 - Offshore Floating | L120: 0
K121: TRG 14 - Offshore Floating | L121: 0
K122: TRG 15 - Offshore Floating | L122: 0
H125: Finance | J125: Weighted Average Cost of Capital (WACC) (Nominal) (%) | K125: TRG 1 - Offshore Fixed | L125: =L611 -> 0.068739388
K126: TRG 2 - Offshore Fixed | L126: =L614 -> 0.068739388
K127: TRG 3 - Offshore Fixed | L127: =L617 -> 0.068739388
K128: TRG 4 - Offshore Fixed | L128: =L620 -> 0.068739388
K129: TRG 5 - Offshore Fixed | L129: =L623 -> 0.068739388
K130: TRG 6 - Offshore Floating | L130: =L626 -> 0.068739388
K131: TRG 7 - Offshore Floating | L131: =L629 -> 0.068739388
K132: TRG 8 - Offshore Floating | L132: =L632 -> 0.068739388
K133: TRG 9 - Offshore Floating | L133: =L635 -> 0.068739388
K134: TRG 10 - Offshore Floating | L134: =L638 -> 0.068739388
K135: TRG 11 - Offshore Floating | L135: =L641 -> 0.068739388
K136: TRG 12 - Offshore Floating | L136: =L644 -> 0.068739388
K137: TRG 13 - Offshore Floating | L137: =L647 -> 0.068739388
K138: TRG 14 - Offshore Floating | L138: =L650 -> 0.068739388
K139: TRG 15 - Offshore Floating | L139: =L653 -> 0.068739388
H142: Grid Connection Costs | J142: Grid Connection Costs (GCC) ($/kW) | K142: TRG 1 - Offshore Fixed | L142: =L158+L174+L190 -> 608.304282
K143: TRG 2 - Offshore Fixed | L143: =L159+L175+L191 -> 644.7166155
K144: TRG 3 - Offshore Fixed | L144: 700.6973911
K145: TRG 4 - Offshore Fixed | L145: 878.418881
K146: TRG 5 - Offshore Fixed | L146: 1176.534872
K147: TRG 6 - Offshore Floating | L147: 860.8027942
K148: TRG 7 - Offshore Floating | L148: 1023.819349
K149: TRG 8 - Offshore Floating | L149: 1113.331449
K150: TRG 9 - Offshore Floating | L150: 1142.305742
K151: TRG 10 - Offshore Floating | L151: 1345.108921
K152: TRG 11 - Offshore Floating | L152: 1525.093865
K153: TRG 12 - Offshore Floating | L153: 1437.484142
K154: TRG 13 - Offshore Floating | L154: 1632.702023
K155: TRG 14 - Offshore Floating | L155: 1856.393001
K156: TRG 15 - Offshore Floating | L156: 2061.430012
J158: Grid Feature Costs ($/kW) | K158: TRG 1 - Offshore Fixed | L158: 0
K159: TRG 2 - Offshore Fixed | L159: 0
K160: TRG 3 - Offshore Fixed | L160: 0
K161: TRG 4 - Offshore Fixed | L161: 0
K162: TRG 5 - Offshore Fixed | L162: 0
K163: TRG 6 - Offshore Floating | L163: 0
K164: TRG 7 - Offshore Floating | L164: 0
K165: TRG 8 - Offshore Floating | L165: 0
K166: TRG 9 - Offshore Floating | L166: 0
K167: TRG 10 - Offshore Floating | L167: 0
K168: TRG 11 - Offshore Floating | L168: 0
K169: TRG 12 - Offshore Floating | L169: 0
K170: TRG 13 - Offshore Floating | L170: 0
K171: TRG 14 - Offshore Floating | L171: 0
K172: TRG 15 - Offshore Floating | L172: 0
J174: Onshore Spur Line Costs ($/kW) | K174: TRG 1 - Offshore Fixed | L174: 0
K175: TRG 2 - Offshore Fixed | L175: 0
K176: TRG 3 - Offshore Fixed | L176: 0
K177: TRG 4 - Offshore Fixed | L177: 0
K178: TRG 5 - Offshore Fixed | L178: 0
K179: TRG 6 - Offshore Floating | L179: 0
K180: TRG 7 - Offshore Floating | L180: 0
K181: TRG 8 - Offshore Floating | L181: 0
K182: TRG 9 - Offshore Floating | L182: 0
K183: TRG 10 - Offshore Floating | L183: 0
K184: TRG 11 - Offshore Floating | L184: 0
K185: TRG 12 - Offshore Floating | L185: 0
K186: TRG 13 - Offshore Floating | L186: 0
K187: TRG 14 - Offshore Floating | L187: 0
K188: TRG 15 - Offshore Floating | L188: 0
J190: Offshore Spur Line Costs ($/kW) | K190: TRG 1 - Offshore Fixed | L190: 608.304282
K191: TRG 2 - Offshore Fixed | L191: 644.7166155
K192: TRG 3 - Offshore Fixed | L192: 700.6973911
K193: TRG 4 - Offshore Fixed | L193: 878.418881
K194: TRG 5 - Offshore Fixed | L194: 1176.534872
K195: TRG 6 - Offshore Floating | L195: 860.8027942
K196: TRG 7 - Offshore Floating | L196: 1023.819349
K197: TRG 8 - Offshore Floating | L197: 1113.331449
K198: TRG 9 - Offshore Floating | L198: 1142.305742
K199: TRG 10 - Offshore Floating | L199: 1345.108921
K200: TRG 11 - Offshore Floating | L200: 1525.093865
K201: TRG 12 - Offshore Floating | L201: 1437.484142
K202: TRG 13 - Offshore Floating | L202: 1632.702023
K203: TRG 14 - Offshore Floating | L203: 1856.393001
K204: TRG 15 - Offshore Floating | L204: 2061.430012
H208: LCOE | J208: Levelized Cost of Energy ($/MWh) | K208: TRG 1 - Offshore Fixed | L208: =(($S$51 * $S$49 * $S$47 * (L76 * 1 + L142) +L92) * 1000 / (L12 * 8760)) + L108 + 0 -> 92.74321719
K209: TRG 2 - Offshore Fixed | L209: 96.41315477
K210: TRG 3 - Offshore Fixed | L210: 98.18372397
K211: TRG 4 - Offshore Fixed | L211: 112.1760314
K212: TRG 5 - Offshore Fixed | L212: 170.2112014
K213: TRG 6 - Offshore Floating | L213: 96.63024603
K214: TRG 7 - Offshore Floating | L214: 103.0371481
K215: TRG 8 - Offshore Floating | L215: 107.8916603
K216: TRG 9 - Offshore Floating | L216: 110.8564414
K217: TRG 10 - Offshore Floating | L217: 122.796895
K218: TRG 11 - Offshore Floating | L218: 143.0239903
K219: TRG 12 - Offshore Floating | L219: 165.9732348
K220: TRG 13 - Offshore Floating | L220: 181.5476195
... 606 more rows

Sheet Land-Based Wind
A1: Land-Based Wind Inputs | L1: https://atb.nrel.gov/electricity/2019/index.html?t=lw
T3: Inputs
J4: Take me to: | T4: Calculated
B10: X | G10: Current Costs
H12: Techno-Economic Cost and Performance Parameters | J12: Net Capacity Factor (%) | K12: TRG 1 | L12: =L167 -> 0.475953 | O12: Basis Year: | Q12: 2017
K13: TRG 2 | L13: =L170 -> 0.453351
K14: TRG 3 | L14: =L173 -> 0.441328 | O14: Land-Based Wind Techno-Resource Groups (TRG)
K15: TRG 4 | L15: =L176 -> 0.426592 | O15: Techno-Resource Group (TRG) | P15: Wind Speed Range (m/s) | Q15: Weighted Average Wind Speed (m/s) | R15: Potential Wind Plant Capacity (GW)
K16: TRG 5 | L16: =L179 -> 0.397774
K17: TRG 6 | L17: =L182 -> 0.352123 | O17: TRG1 | P17: 8.2 - 13.5 | Q17: 8.74395513 | R17: 99.795
K18: TRG 7 | L18: =L185 -> 0.2917 | O18: TRG2 | P18: 8.0 - 10.9 | Q18: 8.352409416 | R18: 200.08998
K19: TRG 8 | L19: =L188 -> 0.227978 | O19: TRG3 | P19: 7.7 - 11.1 | Q19: 8.157716613 | R19: 400.00164
K20: TRG 9 | L20: =L191 -> 0.165713 | O20: TRG4 | P20: 7.5 - 13.1 | Q20: 7.929743215 | R20: 800.10894
K21: TRG 10 | L21: =L194 -> 0.100738 | O21: TRG5 | P21: 6.9 - 11.1 | Q21: 7.512173639 | R21: 1599.68424
O22: TRG6 | P22: 6.1 - 9.4 | Q22: 6.909267637 | R22: 1600.20318
J23: Annual Energy Production (kWh/kW) | K23: TRG 1 | L23: =(L12)*8760 -> 4169.34828 | O23: TRG7 | P23: 5.4 - 8.3 | Q23: 6.18657122 | R23: 1600.07226
K24: TRG 2 | L24: =(L13)*8760 -> 3971.35476 | O24: TRG8 | P24: 4.7 - 6.9 | Q24: 5.476750039 | R24: 1600.03692
K25: TRG 3 | L25: 3866.03328 | O25: TRG9 | P25: 4.0 - 6.0 | Q25: 4.792356022 | R25: 1599.63966
K26: TRG 4 | L26: 3736.94592 | O26: TRG10 | P26: 1.0 - 5.3 | Q26: 4.017447322 | R26: 1147.51176
K27: TRG 5 | L27: 3484.50024 | O27: Total | R27: =ROUNDUP(10647.14358,0) -> 10648
K28: TRG 6 | L28: 3084.59748
K29: TRG 7 | L29: 2555.292 | O29: Financial Assumptions (2016)
K30: TRG 8 | L30: 1997.08728 | O30: Inflation Rate | S30: =M389 -> 0.025
K31: TRG 9 | L31: 1451.64588 | O31: Capital Recovery Period (Years) | S31: 30
K32: TRG 10 | L32: 882.46488 | O32: Interest Rate Nominal - Mid | S32: =M391 -> 0.05110751
O33: Calculated Interest Rate Real - Mid | S33: =M394 -> 0.02547074146
J34: CAPEX ($/kW) | K34: TRG 1 | L34: =$S$42 * (L56 + L102) -> 1623.213397 | O34: Interest During Construction - Nominal | S34: =S32 -> 0.05110751
K35: TRG 2 | L35: =$S$42 * (L57 + L103) -> 1623.213397 | O35: Rate of Return on Equity Nominal - Mid | S35: =M398 -> 0.10305106
K36: TRG 3 | L36: =$S$42 * (L58 + L104) -> 1623.213397 | O36: Calculated Rate of Return on Equity Real - Mid | S36: =M401 -> 0.07614737561
K37: TRG 4 | L37: 1623.213397 | O37: Debt Fraction - Mid | S37: =M404 -> 0.4
K38: TRG 5 | L38: 1623.213397 | O38: Tax Rate (Federal and State) | S38: =M406 -> 0.2574
K39: TRG 6 | L39: 1623.213397 | O39: WACC Nominal - Mid | S39: =M408 -> 0.07701161077
K40: TRG 7 | L40: 1623.213397 | O40: WACC Real - Mid | S40: =M411 -> 0.0507430349
K41: TRG 8 | L41: 1623.213397 | O41: Depreciation Period | S41: 5
K42: TRG 9 | L42: 1623.213397 | O42: Construction Finance Factor | S42: =SUMPRODUCT(P51:P53,Q51:Q53) -> 1.03061168
K43: TRG 10 | L43: 1623.213397 | O43: Present Value of Depreciation | S43: =SUMPRODUCT(O56:T56,O58:T58) -> 0.8172824585
O44: Project Finance Factor | S44: =(1 - S38 * S43) / (1 - S38) -> 1.063333551
J45: Construction Financing Cost ($/kW) | K45: TRG 1 | L45: =(L56+L102)*($S$42-1) -> 48.21339662 | O45: Capital Recovery Factor (CRF) Nominal - Mid | S45: =M414 -> 0.08633503659
K46: TRG 2 | L46: =(L57+L103)*($S$42-1) -> 48.21339662 | O46: Capital Recovery Factor (CRF) Real - Mid | S46: =M417 -> 0.06560345629
K47: TRG 3 | L47: =(L58+L104)*($S$42-1) -> 48.21339662
K48: TRG 4 | L48: 48.21339662 | O48: Construction Duration yrs | Q48: 3
K49: TRG 5 | L49: 48.21339662 | O49: Year | P49: Capital | Q49: Accumulated
K50: TRG 6 | L50: 48.21339662 | O50: Index | P50: Fraction | Q50: Interest
K51: TRG 7 | L51: 48.21339662 | O51: 0 | P51: 0.8 | Q51: =1+(1-S38)*((1+S34)^(O51+0.5)-1) -> 1.018739766
K52: TRG 8 | L52: 48.21339662 | O52: 1 | P52: 0.1 | Q52: =1+(1-S38)*((1+S34)^(O52+0.5)-1) -> 1.057649946
K53: TRG 9 | L53: 48.21339662 | O53: 2 | P53: 0.1 | Q53: =1+(1-S38)*((1+S34)^(O53+0.5)-1) -> 1.098548728
K54: TRG 10 | L54: 48.21339662
N55: MACRS yr | O55: 1 | P55: 2 | Q55: 3 | R55: 4 | S55: 5 | T55: 6
J56: Overnight Capital Cost (OCC) ($/kW) | K56: TRG 1 | L56: =L295 -> 1575 | N56: Depreciation | O56: 0.2 | P56: 0.32 | Q56: 0.192 | R56: 0.1152 | S56: 0.1152 | T56: 0.0576
K57: TRG 2 | L57: =L298 -> 1575 | N57: Fraction
K58: TRG 3 | L58: =L301 -> 1575 | N58: Depreciation | O58: =1/((1+S40)*(1+S30))^O55 -> 0.928495097 | P58: =1/((1+S40)*(1+S30))^P55 -> 0.8621031451 | Q58: =1/((1+S40)*(1+S30))^Q55 -> 0.8004585434 | R58: =1/((1+S40)*(1+S30))^R55 -> 0.7432218328 | S58: =1/((1+S40)*(1+S30))^S55 -> 0.6900778278 | T58: =1/((1+S40)*(1+S30))^T55 -> 0.6407338796
K59: TRG 4 | L59: =L304 -> 1575 | N59: Factor
K60: TRG 5 | L60: =L307 -> 1575
K61: TRG 6 | L61: =L310 -> 1575
K62: TRG 7 | L62: =L313 -> 1575
K63: TRG 8 | L63: =L316 -> 1575
K64: TRG 9 | L64: =L319 -> 1575
K65: TRG 10 | L65: =L322 -> 1575
J67: Fixed Operation and Maintenance Expenses ($/kW-year) | K67: TRG 1 | L67: =L327 -> 43.56
K68: TRG 2 | L68: =L330 -> 43.56
K69: TRG 3 | L69: =L333 -> 43.56
K70: TRG 4 | L70: =L336 -> 43.56
K71: TRG 5 | L71: =L339 -> 43.56
K72: TRG 6 | L72: =L342 -> 43.56
K73: TRG 7 | L73: =L345 -> 43.56
K74: TRG 8 | L74: =L348 -> 43.56
K75: TRG 9 | L75: =L351 -> 43.56
K76: TRG 10 | L76: =L354 -> 43.56
J78: Variable Operation and Maintenance Expenses ($/MWh) | K78: TRG 1 | L78: =L359 -> 0
K79: TRG 2 | L79: =L362 -> 0
K80: TRG 3 | L80: =L365 -> 0
K81: TRG 4 | L81: =L368 -> 0
K82: TRG 5 | L82: =L371 -> 0
K83: TRG 6 | L83: =L374 -> 0
K84: TRG 7 | L84: =L377 -> 0
K85: TRG 8 | L85: =L380 -> 0
K86: TRG 9 | L86: =L383 -> 0
K87: TRG 10 | L87: =L386 -> 0
H90: Finance | J90: Weighted Average Cost of Capital (WACC) (Nominal) (%) | K90: TRG 1 | L90: =L423 -> 0.06711669838
K91: TRG 2 | L91: =L426 -> 0.06711669838
K92: TRG 3 | L92: =L429 -> 0.06711669838
K93: TRG 4 | L93: =L432 -> 0.06711669838
K94: TRG 5 | L94: =L435 -> 0.06711669838
K95: TRG 6 | L95: =L438 -> 0.06711669838
K96: TRG 7 | L96: =L441 -> 0.06711669838
K97: TRG 8 | L97: =L444 -> 0.06711669838
K98: TRG 9 | L98: =L447 -> 0.06711669838
K99: TRG 10 | L99: =L450 -> 0.06711669838
H102: Grid Connection Costs | J102: Grid Connection Costs (GCC) ($/kW) | K102: TRG 1 | L102: =L113+L124 -> 0
K103: TRG 2 | L103: =L114+L125 -> 0
K104: TRG 3 | L104: 0
K105: TRG 4 | L105: 0
K106: TRG 5 | L106: 0
K107: TRG 6 | L107: 0
K108: TRG 7 | L108: 0
K109: TRG 8 | L109: 0
K110: TRG 9 | L110: 0
K111: TRG 10 | L111: 0
J113: Grid Feature Costs ($/kW) | K113: TRG 1 | L113: 0
K114: TRG 2 | L114: 0
K115: TRG 3 | L115: 0
K116: TRG 4 | L116: 0
K117: TRG 5 | L117: 0
K118: TRG 6 | L118: 0
K119: TRG 7 | L119: 0
K120: TRG 8 | L120: 0
K121: TRG 9 | L121: 0
K122: TRG 10 | L122: 0
J124: Onshore Spur Line Costs ($/kW) | K124: TRG 1 | L124: 0
K125: TRG 2 | L125: 0
K126: TRG 3 | L126: 0
K127: TRG 4 | L127: 0
K128: TRG 5 | L128: 0
K129: TRG 6 | L129: 0
K130: TRG 7 | L130: 0
K131: TRG 8 | L131: 0
K132: TRG 9 | L132: 0
K133: TRG 10 | L133: 0
H136: LCOE | J136: Levelized Cost of Energy ($/MWh) | K136: TRG 1 | L136: =L489 -> 16.61901634
K137: TRG 2 | L137: =L492 -> 18.39489483
K138: TRG 3 | L138: =L495 -> 19.41367811
K139: TRG 4 | L139: =L498 -> 20.74067666
K140: TRG 5 | L140: =L501 -> 23.61992921
K141: TRG 6 | L141: =L504 -> 29.14559396
K142: TRG 7 | L142: =L507 -> 39.11883887
K143: TRG 8 | L143: =L510 -> 55.36403849
K144: TRG 9 | L144: =L513 -> 83.30616766
K145: TRG 10 | L145: =L516 -> 149.2936269
J147: Overnight Levelized Cost of Energy ($/MWh) | K147: TRG 1 | L147: =(((L56*$S$46*(1-$S$38*$S$43))/(8760*L12*(1-$S$38))+L67/(8760*L12))*1000)+L78 -> 36.79937502 | M147: * this is similar to the LCOE used in the TCDB (Transparent Cost Database)
K148: TRG 2 | L148: 38.63402295
K149: TRG 3 | L149: 39.686521
K150: TRG 4 | L150: 41.05743413
K151: TRG 5 | L151: 44.03197026
K152: TRG 6 | L152: 49.74049675
K153: TRG 7 | L153: 60.04378793
K154: TRG 8 | L154: 76.82659265
K155: TRG 9 | L155: 105.6934154
K156: TRG 10 | L156: 173.8646086
H159: ***Note: For future projections, low, mid, and high refer to the resulting low, mid, and high LCOE projections.
J161: High
D162: X | G162: Future Projections
L163: Basis Year
L164: 2017 | M164: 2018 | N164: 2019 | O164: 2020 | P164: 2021 | Q164: 2022 | R164: 2023 | S164: 2024 | T164: 2025 | U164: 2026 | V164: 2027 | W164: 2028 | X164: 2029 | Y164: 2030 | Z164: 2031 | AA164: 2032 | AB164: 2033 | AC164: 2034 | AD164: 2035 | AE164: 2036 | AF164: 2037 | AG164: 2038 | AH164: 2039 | AI164: 2040 | AJ164: 2041 | AK164: 2042 | AL164: 2043 | AM164: 2044 | AN164: 2045 | AO164: 2046 | AP164: 2047 | AQ164: 2048 | AR164: 2049 | AS164: 2050
H165: Techno-Economic Cost and Performance Parameters | J165: Net Capacity Factor (%) | K165: TRG 1 - Low | L165: 0.475953 | M165: 0.4884766923 | N165: 0.5010003846 | O165: 0.5135240769 | P165: 0.5260477692 | Q165: 0.5385714615 | R165: 0.5510951538 | S165: 0.5636188462 | T165: 0.5761425385 | U165: 0.5886662308 | V165: 0.6011899231 | W165: 0.6137136154 | X165: 0.6262373077 | Y165: 0.638761 | Z165: 0.639399761 | AA165: 0.640038522 | AB165: 0.640677283 | AC165: 0.641316044 | AD165: 0.641954805 | AE165: 0.642593566 | AF165: 0.643232327 | AG165: 0.643871088 | AH165: 0.644509849 | AI165: 0.64514861 | AJ165: 0.645787371 | AK165: 0.646426132 | AL165: 0.647064893 | AM165: 0.647703654 | AN165: 0.648342415 | AO165: 0.648981176 | AP165: 0.649619937 | AQ165: 0.650258698 | AR165: 0.650897459 | AS165: 0.65153622
K166: TRG 1 - Mid | L166: 0.475953 | M166: 0.480962 | N166: 0.485971 | O166: 0.49098 | P166: 0.495989 | Q166: 0.500998 | R166: 0.506007 | S166: 0.511016 | T166: 0.516025 | U166: 0.521034 | V166: 0.526043 | W166: 0.531052 | X166: 0.536061 | Y166: 0.54107 | Z166: 0.541340535 | AA166: 0.54161107 | AB166: 0.541881605 | AC166: 0.54215214 | AD166: 0.542422675 | AE166: 0.54269321 | AF166: 0.542963745 | AG166: 0.54323428 | AH166: 0.543504815 | AI166: 0.54377535 | AJ166: 0.544045885 | AK166: 0.54431642 | AL166: 0.544586955 | AM166: 0.54485749 | AN166: 0.545128025 | AO166: 0.54539856 | AP166: 0.545669095 | AQ166: 0.54593963 | AR166: 0.546210165 | AS166: 0.5464807
K167: TRG 1 - Constant | L167: 0.475953 | M167: 0.475953 | N167: 0.475953 | O167: 0.475953 | P167: 0.475953 | Q167: 0.475953 | R167: 0.475953 | S167: 0.475953 | T167: 0.475953 | U167: 0.475953 | V167: 0.475953 | W167: 0.475953 | X167: 0.475953 | Y167: 0.475953 | Z167: 0.475953 | AA167: 0.475953 | AB167: 0.475953 | AC167: 0.475953 | AD167: 0.475953 | AE167: 0.475953 | AF167: 0.475953 | AG167: 0.475953 | AH167: 0.475953 | AI167: 0.475953 | AJ167: 0.475953 | AK167: 0.475953 | AL167: 0.475953 | AM167: 0.475953 | AN167: 0.475953 | AO167: 0.475953 | AP167: 0.475953 | AQ167: 0.475953 | AR167: 0.475953 | AS167: 0.475953
K168: TRG 2 - Low | L168: 0.453351 | M168: 0.4662174615 | N168: 0.4790839231 | O168: 0.4919503846 | P168: 0.5048168462 | Q168: 0.5176833077 | R168: 0.5305497692 | S168: 0.5434162308 | T168: 0.5562826923 | U168: 0.5691491538 | V168: 0.5820156154 | W168: 0.5948820769 | X168: 0.6077485385 | Y168: 0.620615 | Z168: 0.6215459225 | AA168: 0.622476845 | AB168: 0.6234077675 | AC168: 0.62433869 | AD168: 0.6252696125 | AE168: 0.626200535 | AF168: 0.6271314575 | AG168: 0.62806238 | AH168: 0.6289933025 | AI168: 0.629924225 | AJ168: 0.6308551475 | AK168: 0.63178607 | AL168: 0.6327169925 | AM168: 0.633647915 | AN168: 0.6345788375 | AO168: 0.63550976 | AP168: 0.6364406825 | AQ168: 0.637371605 | AR168: 0.6383025275 | AS168: 0.63923345
K169: TRG 2 - Mid | L169: 0.453351 | M169: 0.4583857692 | N169: 0.4634205385 | O169: 0.4684553077 | P169: 0.4734900769 | Q169: 0.4785248462 | R169: 0.4835596154 | S169: 0.4885943846 | T169: 0.4936291538 | U169: 0.4986639231 | V169: 0.5036986923 | W169: 0.5087334615 | X169: 0.5137682308 | Y169: 0.518803 | Z169: 0.5191921023 | AA169: 0.5195812045 | AB169: 0.5199703067 | AC169: 0.520359409 | AD169: 0.5207485112 | AE169: 0.5211376135 | AF169: 0.5215267157 | AG169: 0.521915818 | AH169: 0.5223049203 | AI169: 0.5226940225 | AJ169: 0.5230831247 | AK169: 0.523472227 | AL169: 0.5238613292 | AM169: 0.5242504315 | AN169: 0.5246395337 | AO169: 0.525028636 | AP169: 0.5254177382 | AQ169: 0.5258068405 | AR169: 0.5261959427 | AS169: 0.526585045
K170: TRG 2 - Constant | L170: 0.453351 | M170: 0.453351 | N170: 0.453351 | O170: 0.453351 | P170: 0.453351 | Q170: 0.453351 | R170: 0.453351 | S170: 0.453351 | T170: 0.453351 | U170: 0.453351 | V170: 0.453351 | W170: 0.453351 | X170: 0.453351 | Y170: 0.453351 | Z170: 0.453351 | AA170: 0.453351 | AB170: 0.453351 | AC170: 0.453351 | AD170: 0.453351 | AE170: 0.453351 | AF170: 0.453351 | AG170: 0.453351 | AH170: 0.453351 | AI170: 0.453351 | AJ170: 0.453351 | AK170: 0.453351 | AL170: 0.453351 | AM170: 0.453351 | AN170: 0.453351 | AO170: 0.453351 | AP170: 0.453351 | AQ170: 0.453351 | AR170: 0.453351 | AS170: 0.453351
K171: TRG 3 - Low | L171: 0.441328 | M171: 0.4543470769 | N171: 0.4673661538 | O171: 0.4803852308 | P171: 0.4934043077 | Q171: 0.5064233846 | R171: 0.5194424615 | S171: 0.5324615385 | T171: 0.5454806154 | U171: 0.5584996923 | V171: 0.5715187692 | W171: 0.5845378462 | X171: 0.5975569231 | Y171: 0.610576 | Z171: 0.611797152 | AA171: 0.613018304 | AB171: 0.614239456 | AC171: 0.615460608 | AD171: 0.61668176 | AE171: 0.617902912 | AF171: 0.619124064 | AG171: 0.620345216 | AH171: 0.621566368 | AI171: 0.62278752 | AJ171: 0.624008672 | AK171: 0.625229824 | AL171: 0.626450976 | AM171: 0.627672128 | AN171: 0.62889328 | AO171: 0.630114432 | AP171: 0.631335584 | AQ171: 0.632556736 | AR171: 0.633777888 | AS171: 0.63499904
K172: TRG 3 - Mid | L172: 0.441328 | M172: 0.4463659231 | N172: 0.4514038462 | O172: 0.4564417692 | P172: 0.4614796923 | Q172: 0.4665176154 | R172: 0.4715555385 | S172: 0.4765934615 | T172: 0.4816313846 | U172: 0.4866693077 | V172: 0.4917072308 | W172: 0.4967451538 | X172: 0.5017830769 | Y172: 0.506821 | Z172: 0.507327821 | AA172: 0.507834642 | AB172: 0.508341463 | AC172: 0.508848284 | AD172: 0.509355105 | AE172: 0.509861926 | AF172: 0.510368747 | AG172: 0.510875568 | AH172: 0.511382389 | AI172: 0.51188921 | AJ172: 0.512396031 | AK172: 0.512902852 | AL172: 0.513409673 | AM172: 0.513916494 | AN172: 0.514423315 | AO172: 0.514930136 | AP172: 0.515436957 | AQ172: 0.515943778 | AR172: 0.516450599 | AS172: 0.51695742
K173: TRG 3 - Constant | L173: 0.441328 | M173: 0.441328 | N173: 0.441328 | O173: 0.441328 | P173: 0.441328 | Q173: 0.441328 | R173: 0.441328 | S173: 0.441328 | T173: 0.441328 | U173: 0.441328 | V173: 0.441328 | W173: 0.441328 | X173: 0.441328 | Y173: 0.441328 | Z173: 0.441328 | AA173: 0.441328 | AB173: 0.441328 | AC173: 0.441328 | AD173: 0.441328 | AE173: 0.441328 | AF173: 0.441328 | AG173: 0.441328 | AH173: 0.441328 | AI173: 0.441328 | AJ173: 0.441328 | AK173: 0.441328 | AL173: 0.441328 | AM173: 0.441328 | AN173: 0.441328 | AO173: 0.441328 | AP173: 0.441328 | AQ173: 0.441328 | AR173: 0.441328 | AS173: 0.441328
K174: TRG 4 - Low | L174: 0.426592 | M174: 0.4397728462 | N174: 0.4529536923 | O174: 0.4661345385 | P174: 0.4793153846 | Q174: 0.4924962308 | R174: 0.5056770769 | S174: 0.5188579231 | T174: 0.5320387692 | U174: 0.5452196154 | V174: 0.5584004615 | W174: 0.5715813077 | X174: 0.5847621538 | Y174: 0.597943 | Z174: 0.5994378575 | AA174: 0.600932715 | AB174: 0.6024275725 | AC174: 0.60392243 | AD174: 0.6054172875 | AE174: 0.606912145 | AF174: 0.6084070025 | AG174: 0.60990186 | AH174: 0.6113967175 | AI174: 0.612891575 | AJ174: 0.6143864325 | AK174: 0.61588129 | AL174: 0.6173761475 | AM174: 0.618871005 | AN174: 0.6203658625 | AO174: 0.62186072 | AP174: 0.6233555775 | AQ174: 0.624850435 | AR174: 0.6263452925 | AS174: 0.62784015
K175: TRG 4 - Mid | L175: 0.426592 | M175: 0.4316248462 | N175: 0.4366576923 | O175: 0.4416905385 | P175: 0.4467233846 | Q175: 0.4517562308 | R175: 0.4567890769 | S175: 0.4618219231 | T175: 0.4668547692 | U175: 0.4718876154 | V175: 0.4769204615 | W175: 0.4819533077 | X175: 0.4869861538 | Y175: 0.492019 | Z175: 0.4926340237 | AA175: 0.4932490475 | AB175: 0.4938640712 | AC175: 0.494479095 | AD175: 0.4950941187 | AE175: 0.4957091425 | AF175: 0.4963241662 | AG175: 0.49693919 | AH175: 0.4975542137 | AI175: 0.4981692375 | AJ175: 0.4987842612 | AK175: 0.499399285 | AL175: 0.5000143087 | AM175: 0.5006293325 | AN175: 0.5012443562 | AO175: 0.50185938 | AP175: 0.5024744037 | AQ175: 0.5030894275 | AR175: 0.5037044512 | AS175: 0.504319475
K176: TRG 4 - Constant | L176: 0.426592 | M176: 0.426592 | N176: 0.426592 | O176: 0.426592 | P176: 0.426592 | Q176: 0.426592 | R176: 0.426592 | S176: 0.426592 | T176: 0.426592 | U176: 0.426592 | V176: 0.426592 | W176: 0.426592 | X176: 0.426592 | Y176: 0.426592 | Z176: 0.426592 | AA176: 0.426592 | AB176: 0.426592 | AC176: 0.426592 | AD176: 0.426592 | AE176: 0.426592 | AF176: 0.426592 | AG176: 0.426592 | AH176: 0.426592 | AI176: 0.426592 | AJ176: 0.426592 | AK176: 0.426592 | AL176: 0.426592 | AM176: 0.426592 | AN176: 0.426592 | AO176: 0.426592 | AP176: 0.426592 | AQ176: 0.426592 | AR176: 0.426592 | AS176: 0.426592
K177: TRG 5 - Low | L177: 0.397774 | M177: 0.4111976154 | N177: 0.4246212308 | O177: 0.4380448462 | P177: 0.4514684615 | Q177: 0.4648920769 | R177: 0.4783156923 | S177: 0.4917393077 | T177: 0.5051629231 | U177: 0.5185865385 | V177: 0.5320101538 | W177: 0.5454337692 | X177: 0.5588573846 | Y177: 0.572281 | Z177: 0.573997843 | AA177: 0.575714686 | AB177: 0.577431529 | AC177: 0.579148372 | AD177: 0.580865215 | AE177: 0.582582058 | AF177: 0.584298901 | AG177: 0.586015744 | AH177: 0.587732587 | AI177: 0.58944943 | AJ177: 0.591166273 | AK177: 0.592883116 | AL177: 0.594599959 | AM177: 0.596316802 | AN177: 0.598033645 | AO177: 0.599750488 | AP177: 0.601467331 | AQ177: 0.603184174 | AR177: 0.604901017 | AS177: 0.60661786
K178: TRG 5 - Mid | L178: 0.397774 | M178: 0.402771 | N178: 0.407768 | O178: 0.412765 | P178: 0.417762 | Q178: 0.422759 | R178: 0.427756 | S178: 0.432753 | T178: 0.43775 | U178: 0.442747 | V178: 0.447744 | W178: 0.452741 | X178: 0.457738 | Y178: 0.462735 | Z178: 0.4634291025 | AA178: 0.464123205 | AB178: 0.4648173075 | AC178: 0.46551141 | AD178: 0.4662055125 | AE178: 0.466899615 | AF178: 0.4675937175 | AG178: 0.46828782 | AH178: 0.4689819225 | AI178: 0.469676025 | AJ178: 0.4703701275 | AK178: 0.47106423 | AL178: 0.4717583325 | AM178: 0.472452435 | AN178: 0.4731465375 | AO178: 0.47384064 | AP178: 0.4745347425 | AQ178: 0.475228845 | AR178: 0.4759229475 | AS178: 0.47661705
K179: TRG 5 - Constant | L179: 0.397774 | M179: 0.397774 | N179: 0.397774 | O179: 0.397774 | P179: 0.397774 | Q179: 0.397774 | R179: 0.397774 | S179: 0.397774 | T179: 0.397774 | U179: 0.397774 | V179: 0.397774 | W179: 0.397774 | X179: 0.397774 | Y179: 0.397774 | Z179: 0.397774 | AA179: 0.397774 | AB179: 0.397774 | AC179: 0.397774 | AD179: 0.397774 | AE179: 0.397774 | AF179: 0.397774 | AG179: 0.397774 | AH179: 0.397774 | AI179: 0.397774 | AJ179: 0.397774 | AK179: 0.397774 | AL179: 0.397774 | AM179: 0.397774 | AN179: 0.397774 | AO179: 0.397774 | AP179: 0.397774 | AQ179: 0.397774 | AR179: 0.397774 | AS179: 0.397774
K180: TRG 6 - Low | L180: 0.352123 | M180: 0.3657445385 | N180: 0.3793660769 | O180: 0.3929876154 | P180: 0.4066091538 | Q180: 0.4202306923 | R180: 0.4338522308 | S180: 0.4474737692 | T180: 0.4610953077 | U180: 0.4747168462 | V180: 0.4883383846 | W180: 0.5019599231 | X180: 0.5155814615 | Y180: 0.529203 | Z180: 0.5310552105 | AA180: 0.532907421 | AB180: 0.5347596315 | AC180: 0.536611842 | AD180: 0.5384640525 | AE180: 0.540316263 | AF180: 0.5421684735 | AG180: 0.544020684 | AH180: 0.5458728945 | AI180: 0.547725105 | AJ180: 0.5495773155 | AK180: 0.551429526 | AL180: 0.5532817365 | AM180: 0.555133947 | AN180: 0.5569861575 | AO180: 0.558838368 | AP180: 0.5606905785 | AQ180: 0.562542789 | AR180: 0.5643949995 | AS180: 0.56624721
K181: TRG 6 - Mid | L181: 0.352123 | M181: 0.3569975385 | N181: 0.3618720769 | O181: 0.3667466154 | P181: 0.3716211538 | Q181: 0.3764956923 | R181: 0.3813702308 | S181: 0.3862447692 | T181: 0.3911193077 | U181: 0.3959938462 | V181: 0.4008683846 | W181: 0.4057429231 | X181: 0.4106174615 | Y181: 0.415492 | Z181: 0.416219111 | AA181: 0.416946222 | AB181: 0.417673333 | AC181: 0.418400444 | AD181: 0.419127555 | AE181: 0.419854666 | AF181: 0.420581777 | AG181: 0.421308888 | AH181: 0.422035999 | AI181: 0.42276311 | AJ181: 0.423490221 | AK181: 0.424217332 | AL181: 0.424944443 | AM181: 0.425671554 | AN181: 0.426398665 | AO181: 0.427125776 | AP181: 0.427852887 | AQ181: 0.428579998 | AR181: 0.429307109 | AS181: 0.43003422
K182: TRG 6 - Constant | L182: 0.352123 | M182: 0.352123 | N182: 0.352123 | O182: 0.352123 | P182: 0.352123 | Q182: 0.352123 | R182: 0.352123 | S182: 0.352123 | T182: 0.352123 | U182: 0.352123 | V182: 0.352123 | W182: 0.352123 | X182: 0.352123 | Y182: 0.352123 | Z182: 0.352123 | AA182: 0.352123 | AB182: 0.352123 | AC182: 0.352123 | AD182: 0.352123 | AE182: 0.352123 | AF182: 0.352123 | AG182: 0.352123 | AH182: 0.352123 | AI182: 0.352123 | AJ182: 0.352123 | AK182: 0.352123 | AL182: 0.352123 | AM182: 0.352123 | AN182: 0.352123 | AO182: 0.352123 | AP182: 0.352123 | AQ182: 0.352123 | AR182: 0.352123 | AS182: 0.352123
K183: TRG 7 - Low | L183: 0.2917 | M183: 0.3052226923 | N183: 0.3187453846 | O183: 0.3322680769 | P183: 0.3457907692 | Q183: 0.3593134615 | R183: 0.3728361538 | S183: 0.3863588462 | T183: 0.3998815385 | U183: 0.4134042308 | V183: 0.4269269231 | W183: 0.4404496154 | X183: 0.4539723077 | Y183: 0.467495 | Z183: 0.46936498 | AA183: 0.47123496 | AB183: 0.47310494 | AC183: 0.47497492 | AD183: 0.4768449 | AE183: 0.47871488 | AF183: 0.48058486 | AG183: 0.48245484 | AH183: 0.48432482 | AI183: 0.4861948 | AJ183: 0.48806478 | AK183: 0.48993476 | AL183: 0.49180474 | AM183: 0.49367472 | AN183: 0.4955447 | AO183: 0.49741468 | AP183: 0.49928466 | AQ183: 0.50115464 | AR183: 0.50302462 | AS183: 0.5048946
K184: TRG 7 - Mid | L184: 0.2917 | M184: 0.2962889231 | N184: 0.3008778462 | O184: 0.3054667692 | P184: 0.3100556923 | Q184: 0.3146446154 | R184: 0.3192335385 | S184: 0.3238224615 | T184: 0.3284113846 | U184: 0.3330003077 | V184: 0.3375892308 | W184: 0.3421781538 | X184: 0.3467670769 | Y184: 0.351356 | Z184: 0.352058712 | AA184: 0.352761424 | AB184: 0.353464136 | AC184: 0.354166848 | AD184: 0.35486956 | AE184: 0.355572272 | AF184: 0.356274984 | AG184: 0.356977696 | AH184: 0.357680408 | AI184: 0.35838312 | AJ184: 0.359085832 | AK184: 0.359788544 | AL184: 0.360491256 | AM184: 0.361193968 | AN184: 0.36189668 | AO184: 0.362599392 | AP184: 0.363302104 | AQ184: 0.364004816 | AR184: 0.364707528 | AS184: 0.36541024
K185: TRG 7 - Constant | L185: 0.2917 | M185: 0.2917 | N185: 0.2917 | O185: 0.2917 | P185: 0.2917 | Q185: 0.2917 | R185: 0.2917 | S185: 0.2917 | T185: 0.2917 | U185: 0.2917 | V185: 0.2917 | W185: 0.2917 | X185: 0.2917 | Y185: 0.2917 | Z185: 0.2917 | AA185: 0.2917 | AB185: 0.2917 | AC185: 0.2917 | AD185: 0.2917 | AE185: 0.2917 | AF185: 0.2917 | AG185: 0.2917 | AH185: 0.2917 | AI185: 0.2917 | AJ185: 0.2917 | AK185: 0.2917 | AL185: 0.2917 | AM185: 0.2917 | AN185: 0.2917 | AO185: 0.2917 | AP185: 0.2917 | AQ185: 0.2917 | AR185: 0.2917 | AS185: 0.2917
K186: TRG 8 - Low | L186: 0.227978 | M186: 0.2383953846 | N186: 0.2488127692 | O186: 0.2592301538 | P186: 0.2696475385 | Q186: 0.2800649231 | R186: 0.2904823077 | S186: 0.3008996923 | T186: 0.3113170769 | U186: 0.3217344615 | V186: 0.3321518462 | W186: 0.3425692308 | X186: 0.3529866154 | Y186: 0.363404 | Z186: 0.365039318 | AA186: 0.366674636 | AB186: 0.368309954 | AC186: 0.369945272 | AD186: 0.37158059 | AE186: 0.373215908 | AF186: 0.374851226 | AG186: 0.376486544 | AH186: 0.378121862 | AI186: 0.37975718 | AJ186: 0.381392498 | AK186: 0.383027816 | AL186: 0.384663134 | AM186: 0.386298452 | AN186: 0.38793377 | AO186: 0.389569088 | AP186: 0.391204406 | AQ186: 0.392839724 | AR186: 0.394475042 | AS186: 0.39611036
K187: TRG 8 - Mid | L187: 0.227978 | M187: 0.2320926923 | N187: 0.2362073846 | O187: 0.2403220769 | P187: 0.2444367692 | Q187: 0.2485514615 | R187: 0.2526661538 | S187: 0.2567808462 | T187: 0.2608955385 | U187: 0.2650102308 | V187: 0.2691249231 | W187: 0.2732396154 | X187: 0.2773543077 | Y187: 0.281469 | Z187: 0.2821023053 | AA187: 0.2827356105 | AB187: 0.2833689158 | AC187: 0.284002221 | AD187: 0.2846355262 | AE187: 0.2852688315 | AF187: 0.2859021368 | AG187: 0.286535442 | AH187: 0.2871687473 | AI187: 0.2878020525 | AJ187: 0.2884353578 | AK187: 0.289068663 | AL187: 0.2897019682 | AM187: 0.2903352735 | AN187: 0.2909685788 | AO187: 0.291601884 | AP187: 0.2922351893 | AQ187: 0.2928684945 | AR187: 0.2935017998 | AS187: 0.294135105
K188: TRG 8 - Constant | L188: 0.227978 | M188: 0.227978 | N188: 0.227978 | O188: 0.227978 | P188: 0.227978 | Q188: 0.227978 | R188: 0.227978 | S188: 0.227978 | T188: 0.227978 | U188: 0.227978 | V188: 0.227978 | W188: 0.227978 | X188: 0.227978 | Y188: 0.227978 | Z188: 0.227978 | AA188: 0.227978 | AB188: 0.227978 | AC188: 0.227978 | AD188: 0.227978 | AE188: 0.227978 | AF188: 0.227978 | AG188: 0.227978 | AH188: 0.227978 | AI188: 0.227978 | AJ188: 0.227978 | AK188: 0.227978 | AL188: 0.227978 | AM188: 0.227978 | AN188: 0.227978 | AO188: 0.227978 | AP188: 0.227978 | AQ188: 0.227978 | AR188: 0.227978 | AS188: 0.227978
K189: TRG 9 - Low | L189: 0.165713 | M189: 0.1752754615 | N189: 0.1848379231 | O189: 0.1944003846 | P189: 0.2039628462 | Q189: 0.2135253077 | R189: 0.2230877692 | S189: 0.2326502308 | T189: 0.2422126923 | U189: 0.2517751538 | V189: 0.2613376154 | W189: 0.2709000769 | X189: 0.2804625385 | Y189: 0.290025 | Z189: 0.291475125 | AA189: 0.29292525 | AB189: 0.294375375 | AC189: 0.2958255 | AD189: 0.297275625 | AE189: 0.29872575 | AF189: 0.300175875 | AG189: 0.301626 | AH189: 0.303076125 | AI189: 0.30452625 | AJ189: 0.305976375 | AK189: 0.3074265 | AL189: 0.308876625 | AM189: 0.31032675 | AN189: 0.311776875 | AO189: 0.313227 | AP189: 0.314677125 | AQ189: 0.31612725 | AR189: 0.317577375 | AS189: 0.3190275
K190: TRG 9 - Mid | L190: 0.165713 | M190: 0.1691503846 | N190: 0.1725877692 | O190: 0.1760251538 | P190: 0.1794625385 | Q190: 0.1828999231 | R190: 0.1863373077 | S190: 0.1897746923 | T190: 0.1932120769 | U190: 0.1966494615 | V190: 0.2000868462 | W190: 0.2035242308 | X190: 0.2069616154 | Y190: 0.210399 | Z190: 0.2109249975 | AA190: 0.211450995 | AB190: 0.2119769925 | AC190: 0.21250299 | AD190: 0.2130289875 | AE190: 0.213554985 | AF190: 0.2140809825 | AG190: 0.21460698 | AH190: 0.2151329775 | AI190: 0.215658975 | AJ190: 0.2161849725 | AK190: 0.21671097 | AL190: 0.2172369675 | AM190: 0.217762965 | AN190: 0.2182889625 | AO190: 0.21881496 | AP190: 0.2193409575 | AQ190: 0.219866955 | AR190: 0.2203929525 | AS190: 0.22091895
K191: TRG 9 - Constant | L191: 0.165713 | M191: 0.165713 | N191: 0.165713 | O191: 0.165713 | P191: 0.165713 | Q191: 0.165713 | R191: 0.165713 | S191: 0.165713 | T191: 0.165713 | U191: 0.165713 | V191: 0.165713 | W191: 0.165713 | X191: 0.165713 | Y191: 0.165713 | Z191: 0.165713 | AA191: 0.165713 | AB191: 0.165713 | AC191: 0.165713 | AD191: 0.165713 | AE191: 0.165713 | AF191: 0.165713 | AG191: 0.165713 | AH191: 0.165713 | AI191: 0.165713 | AJ191: 0.165713 | AK191: 0.165713 | AL191: 0.165713 | AM191: 0.165713 | AN191: 0.165713 | AO191: 0.165713 | AP191: 0.165713 | AQ191: 0.165713 | AR191: 0.165713 | AS191: 0.165713
K192: TRG 10 - Low | L192: 0.100738 | M192: 0.1096742308 | N192: 0.1186104615 | O192: 0.1275466923 | P192: 0.1364829231 | Q192: 0.1454191538 | R192: 0.1543553846 | S192: 0.1632916154 | T192: 0.1722278462 | U192: 0.1811640769 | V192: 0.1901003077 | W192: 0.1990365385 | X192: 0.2079727692 | Y192: 0.216909 | Z192: 0.2181019995 | AA192: 0.219294999 | AB192: 0.2204879985 | AC192: 0.221680998 | AD192: 0.2228739975 | AE192: 0.224066997 | AF192: 0.2252599965 | AG192: 0.226452996 | AH192: 0.2276459955 | AI192: 0.228838995 | AJ192: 0.2300319945 | AK192: 0.231224994 | AL192: 0.2324179935 | AM192: 0.233610993 | AN192: 0.2348039925 | AO192: 0.235996992 | AP192: 0.2371899915 | AQ192: 0.238382991 | AR192: 0.2395759905 | AS192: 0.24076899
K193: TRG 10 - Mid | L193: 0.100738 | M193: 0.1031704615 | N193: 0.1056029231 | O193: 0.1080353846 | P193: 0.1104678462 | Q193: 0.1129003077 | R193: 0.1153327692 | S193: 0.1177652308 | T193: 0.1201976923 | U193: 0.1226301538 | V193: 0.1250626154 | W193: 0.1274950769 | X193: 0.1299275385 | Y193: 0.13236 | Z193: 0.13272399 | AA193: 0.13308798 | AB193: 0.13345197 | AC193: 0.13381596 | AD193: 0.13417995 | AE193: 0.13454394 | AF193: 0.13490793 | AG193: 0.13527192 | AH193: 0.13563591 | AI193: 0.1359999 | AJ193: 0.13636389 | AK193: 0.13672788 | AL193: 0.13709187 | AM193: 0.13745586 | AN193: 0.13781985 | AO193: 0.13818384 | AP193: 0.13854783 | AQ193: 0.13891182 | AR193: 0.13927581 | AS193: 0.1396398
K194: TRG 10 - Constant | L194: 0.100738 | M194: 0.100738 | N194: 0.100738 | O194: 0.100738 | P194: 0.100738 | Q194: 0.100738 | R194: 0.100738 | S194: 0.100738 | T194: 0.100738 | U194: 0.100738 | V194: 0.100738 | W194: 0.100738 | X194: 0.100738 | Y194: 0.100738 | Z194: 0.100738 | AA194: 0.100738 | AB194: 0.100738 | AC194: 0.100738 | AD194: 0.100738 | AE194: 0.100738 | AF194: 0.100738 | AG194: 0.100738 | AH194: 0.100738 | AI194: 0.100738 | AJ194: 0.100738 | AK194: 0.100738 | AL194: 0.100738 | AM194: 0.100738 | AN194: 0.100738 | AO194: 0.100738 | AP194: 0.100738 | AQ194: 0.100738 | AR194: 0.100738 | AS194: 0.100738
L196: 2017 | M196: 2018 | N196: 2019 | O196: 2020 | P196: 2021 | Q196: 2022 | R196: 2023 | S196: 2024 | T196: 2025 | U196: 2026 | V196: 2027 | W196: 2028 | X196: 2029 | Y196: 2030 | Z196: 2031 | AA196: 2032 | AB196: 2033 | AC196: 2034 | AD196: 2035 | AE196: 2036 | AF196: 2037 | AG196: 2038 | AH196: 2039 | AI196: 2040 | AJ196: 2041 | AK196: 2042 | AL196: 2043 | AM196: 2044 | AN196: 2045 | AO196: 2046 | AP196: 2047 | AQ196: 2048 | AR196: 2049 | AS196: 2050
J197: Annual Energy Production (kWh/kW) | K197: TRG 1 - Low | L197: =(L165)*8760 -> 4169.34828 | M197: 4279.055825 | N197: 4388.763369 | O197: 4498.470914 | P197: 4608.178458 | Q197: 4717.886003 | R197: 4827.593548 | S197: 4937.301092 | T197: 5047.008637 | U197: 5156.716182 | V197: 5266.423726 | W197: 5376.131271 | X197: 5485.838815 | Y197: 5595.54636 | Z197: 5601.141906 | AA197: 5606.737453 | AB197: 5612.332999 | AC197: 5617.928545 | AD197: 5623.524092 | AE197: 5629.119638 | AF197: 5634.715185 | AG197: 5640.310731 | AH197: 5645.906277 | AI197: 5651.501824 | AJ197: 5657.09737 | AK197: 5662.692916 | AL197: 5668.288463 | AM197: 5673.884009 | AN197: 5679.479555 | AO197: 5685.075102 | AP197: 5690.670648 | AQ197: 5696.266194 | AR197: 5701.861741 | AS197: 5707.457287
K198: TRG 1 - Mid | L198: =(L166)*8760 -> 4169.34828 | M198: 4213.22712 | N198: 4257.10596 | O198: 4300.9848 | P198: 4344.86364 | Q198: 4388.74248 | R198: 4432.62132 | S198: 4476.50016 | T198: 4520.379 | U198: 4564.25784 | V198: 4608.13668 | W198: 4652.01552 | X198: 4695.89436 | Y198: 4739.7732 | Z198: 4742.143087 | AA198: 4744.512973 | AB198: 4746.88286 | AC198: 4749.252746 | AD198: 4751.622633 | AE198: 4753.99252 | AF198: 4756.362406 | AG198: 4758.732293 | AH198: 4761.102179 | AI198: 4763.472066 | AJ198: 4765.841953 | AK198: 4768.211839 | AL198: 4770.581726 | AM198: 4772.951612 | AN198: 4775.321499 | AO198: 4777.691386 | AP198: 4780.061272 | AQ198: 4782.431159 | AR198: 4784.801045 | AS198: 4787.170932
K199: TRG 1 - Constant | L199: =(L167)*8760 -> 4169.34828 | M199: 4169.34828 | N199: 4169.34828 | O199: 4169.34828 | P199: 4169.34828 | Q199: 4169.34828 | R199: 4169.34828 | S199: 4169.34828 | T199: 4169.34828 | U199: 4169.34828 | V199: 4169.34828 | W199: 4169.34828 | X199: 4169.34828 | Y199: 4169.34828 | Z199: 4169.34828 | AA199: 4169.34828 | AB199: 4169.34828 | AC199: 4169.34828 | AD199: 4169.34828 | AE199: 4169.34828 | AF199: 4169.34828 | AG199: 4169.34828 | AH199: 4169.34828 | AI199: 4169.34828 | AJ199: 4169.34828 | AK199: 4169.34828 | AL199: 4169.34828 | AM199: 4169.34828 | AN199: 4169.34828 | AO199: 4169.34828 | AP199: 4169.34828 | AQ199: 4169.34828 | AR199: 4169.34828 | AS199: 4169.34828
K200: TRG 2 - Low | L200: =(L168)*8760 -> 3971.35476 | M200: 4084.064963 | N200: 4196.775166 | O200: 4309.485369 | P200: 4422.195572 | Q200: 4534.905775 | R200: 4647.615978 | S200: 4760.326182 | T200: 4873.036385 | U200: 4985.746588 | V200: 5098.456791 | W200: 5211.166994 | X200: 5323.877197 | Y200: 5436.5874 | Z200: 5444.742281 | AA200: 5452.897162 | AB200: 5461.052043 | AC200: 5469.206924 | AD200: 5477.361805 | AE200: 5485.516687 | AF200: 5493.671568 | AG200: 5501.826449 | AH200: 5509.98133 | AI200: 5518.136211 | AJ200: 5526.291092 | AK200: 5534.445973 | AL200: 5542.600854 | AM200: 5550.755735 | AN200: 5558.910617 | AO200: 5567.065498 | AP200: 5575.220379 | AQ200: 5583.37526 | AR200: 5591.530141 | AS200: 5599.685022
K201: TRG 2 - Mid | L201: =(L169)*8760 -> 3971.35476 | M201: 4015.459338 | N201: 4059.563917 | O201: 4103.668495 | P201: 4147.773074 | Q201: 4191.877652 | R201: 4235.982231 | S201: 4280.086809 | T201: 4324.191388 | U201: 4368.295966 | V201: 4412.400545 | W201: 4456.505123 | X201: 4500.609702 | Y201: 4544.71428 | Z201: 4548.122816 | AA201: 4551.531351 | AB201: 4554.939887 | AC201: 4558.348423 | AD201: 4561.756959 | AE201: 4565.165494 | AF201: 4568.57403 | AG201: 4571.982566 | AH201: 4575.391101 | AI201: 4578.799637 | AJ201: 4582.208173 | AK201: 4585.616709 | AL201: 4589.025244 | AM201: 4592.43378 | AN201: 4595.842316 | AO201: 4599.250851 | AP201: 4602.659387 | AQ201: 4606.067923 | AR201: 4609.476458 | AS201: 4612.884994
K202: TRG 2 - Constant | L202: =(L170)*8760 -> 3971.35476 | M202: 3971.35476 | N202: 3971.35476 | O202: 3971.35476 | P202: 3971.35476 | Q202: 3971.35476 | R202: 3971.35476 | S202: 3971.35476 | T202: 3971.35476 | U202: 3971.35476 | V202: 3971.35476 | W202: 3971.35476 | X202: 3971.35476 | Y202: 3971.35476 | Z202: 3971.35476 | AA202: 3971.35476 | AB202: 3971.35476 | AC202: 3971.35476 | AD202: 3971.35476 | AE202: 3971.35476 | AF202: 3971.35476 | AG202: 3971.35476 | AH202: 3971.35476 | AI202: 3971.35476 | AJ202: 3971.35476 | AK202: 3971.35476 | AL202: 3971.35476 | AM202: 3971.35476 | AN202: 3971.35476 | AO202: 3971.35476 | AP202: 3971.35476 | AQ202: 3971.35476 | AR202: 3971.35476 | AS202: 3971.35476
K203: TRG 3 - Low | L203: =(L171)*8760 -> 3866.03328 | M203: 3980.080394 | N203: 4094.127508 | O203: 4208.174622 | P203: 4322.221735 | Q203: 4436.268849 | R203: 4550.315963 | S203: 4664.363077 | T203: 4778.410191 | U203: 4892.457305 | V203: 5006.504418 | W203: 5120.551532 | X203: 5234.598646 | Y203: 5348.64576 | Z203: 5359.343052 | AA203: 5370.040343 | AB203: 5380.737635 | AC203: 5391.434926 | AD203: 5402.132218 | AE203: 5412.829509 | AF203: 5423.526801 | AG203: 5434.224092 | AH203: 5444.921384 | AI203: 5455.618675 | AJ203: 5466.315967 | AK203: 5477.013258 | AL203: 5487.71055 | AM203: 5498.407841 | AN203: 5509.105133 | AO203: 5519.802424 | AP203: 5530.499716 | AQ203: 5541.197007 | AR203: 5551.894299 | AS203: 5562.59159
K204: TRG 3 - Mid | L204: =(L172)*8760 -> 3866.03328 | M204: 3910.165486 | N204: 3954.297692 | O204: 3998.429898 | P204: 4042.562105 | Q204: 4086.694311 | R204: 4130.826517 | S204: 4174.958723 | T204: 4219.090929 | U204: 4263.223135 | V204: 4307.355342 | W204: 4351.487548 | X204: 4395.619754 | Y204: 4439.75196 | Z204: 4444.191712 | AA204: 4448.631464 | AB204: 4453.071216 | AC204: 4457.510968 | AD204: 4461.95072 | AE204: 4466.390472 | AF204: 4470.830224 | AG204: 4475.269976 | AH204: 4479.709728 | AI204: 4484.14948 | AJ204: 4488.589232 | AK204: 4493.028984 | AL204: 4497.468735 | AM204: 4501.908487 | AN204: 4506.348239 | AO204: 4510.787991 | AP204: 4515.227743 | AQ204: 4519.667495 | AR204: 4524.107247 | AS204: 4528.546999
K205: TRG 3 - Constant | L205: =(L173)*8760 -> 3866.03328 | M205: 3866.03328 | N205: 3866.03328 | O205: 3866.03328 | P205: 3866.03328 | Q205: 3866.03328 | R205: 3866.03328 | S205: 3866.03328 | T205: 3866.03328 | U205: 3866.03328 | V205: 3866.03328 | W205: 3866.03328 | X205: 3866.03328 | Y205: 3866.03328 | Z205: 3866.03328 | AA205: 3866.03328 | AB205: 3866.03328 | AC205: 3866.03328 | AD205: 3866.03328 | AE205: 3866.03328 | AF205: 3866.03328 | AG205: 3866.03328 | AH205: 3866.03328 | AI205: 3866.03328 | AJ205: 3866.03328 | AK205: 3866.03328 | AL205: 3866.03328 | AM205: 3866.03328 | AN205: 3866.03328 | AO205: 3866.03328 | AP205: 3866.03328 | AQ205: 3866.03328 | AR205: 3866.03328 | AS205: 3866.03328
K206: TRG 4 - Low | L206: =(L174)*8760 -> 3736.94592 | M206: 3852.410132 | N206: 3967.874345 | O206: 4083.338557 | P206: 4198.802769 | Q206: 4314.266982 | R206: 4429.731194 | S206: 4545.195406 | T206: 4660.659618 | U206: 4776.123831 | V206: 4891.588043 | W206: 5007.052255 | X206: 5122.516468 | Y206: 5237.98068 | Z206: 5251.075632 | AA206: 5264.170583 | AB206: 5277.265535 | AC206: 5290.360487 | AD206: 5303.455439 | AE206: 5316.55039 | AF206: 5329.645342 | AG206: 5342.740294 | AH206: 5355.835245 | AI206: 5368.930197 | AJ206: 5382.025149 | AK206: 5395.1201 | AL206: 5408.215052 | AM206: 5421.310004 | AN206: 5434.404956 | AO206: 5447.499907 | AP206: 5460.594859 | AQ206: 5473.689811 | AR206: 5486.784762 | AS206: 5499.879714
K207: TRG 4 - Mid | L207: =(L175)*8760 -> 3736.94592 | M207: 3781.033652 | N207: 3825.121385 | O207: 3869.209117 | P207: 3913.296849 | Q207: 3957.384582 | R207: 4001.472314 | S207: 4045.560046 | T207: 4089.647778 | U207: 4133.735511 | V207: 4177.823243 | W207: 4221.910975 | X207: 4265.998708 | Y207: 4310.08644 | Z207: 4315.474048 | AA207: 4320.861656 | AB207: 4326.249264 | AC207: 4331.636872 | AD207: 4337.02448 | AE207: 4342.412088 | AF207: 4347.799696 | AG207: 4353.187304 | AH207: 4358.574912 | AI207: 4363.962521 | AJ207: 4369.350129 | AK207: 4374.737737 | AL207: 4380.125345 | AM207: 4385.512953 | AN207: 4390.900561 | AO207: 4396.288169 | AP207: 4401.675777 | AQ207: 4407.063385 | AR207: 4412.450993 | AS207: 4417.838601
K208: TRG 4 - Constant | L208: =(L176)*8760 -> 3736.94592 | M208: 3736.94592 | N208: 3736.94592 | O208: 3736.94592 | P208: 3736.94592 | Q208: 3736.94592 | R208: 3736.94592 | S208: 3736.94592 | T208: 3736.94592 | U208: 3736.94592 | V208: 3736.94592 | W208: 3736.94592 | X208: 3736.94592 | Y208: 3736.94592 | Z208: 3736.94592 | AA208: 3736.94592 | AB208: 3736.94592 | AC208: 3736.94592 | AD208: 3736.94592 | AE208: 3736.94592 | AF208: 3736.94592 | AG208: 3736.94592 | AH208: 3736.94592 | AI208: 3736.94592 | AJ208: 3736.94592 | AK208: 3736.94592 | AL208: 3736.94592 | AM208: 3736.94592 | AN208: 3736.94592 | AO208: 3736.94592 | AP208: 3736.94592 | AQ208: 3736.94592 | AR208: 3736.94592 | AS208: 3736.94592
K209: TRG 5 - Low | L209: =(L177)*8760 -> 3484.50024 | M209: 3602.091111 | N209: 3719.681982 | O209: 3837.272852 | P209: 3954.863723 | Q209: 4072.454594 | R209: 4190.045465 | S209: 4307.636335 | T209: 4425.227206 | U209: 4542.818077 | V209: 4660.408948 | W209: 4777.999818 | X209: 4895.590689 | Y209: 5013.18156 | Z209: 5028.221105 | AA209: 5043.260649 | AB209: 5058.300194 | AC209: 5073.339739 | AD209: 5088.379283 | AE209: 5103.418828 | AF209: 5118.458373 | AG209: 5133.497917 | AH209: 5148.537462 | AI209: 5163.577007 | AJ209: 5178.616551 | AK209: 5193.656096 | AL209: 5208.695641 | AM209: 5223.735186 | AN209: 5238.77473 | AO209: 5253.814275 | AP209: 5268.85382 | AQ209: 5283.893364 | AR209: 5298.932909 | AS209: 5313.972454
K210: TRG 5 - Mid | L210: =(L178)*8760 -> 3484.50024 | M210: 3528.27396 | N210: 3572.04768 | O210: 3615.8214 | P210: 3659.59512 | Q210: 3703.36884 | R210: 3747.14256 | S210: 3790.91628 | T210: 3834.69 | U210: 3878.46372 | V210: 3922.23744 | W210: 3966.01116 | X210: 4009.78488 | Y210: 4053.5586 | Z210: 4059.638938 | AA210: 4065.719276 | AB210: 4071.799614 | AC210: 4077.879952 | AD210: 4083.96029 | AE210: 4090.040627 | AF210: 4096.120965 | AG210: 4102.201303 | AH210: 4108.281641 | AI210: 4114.361979 | AJ210: 4120.442317 | AK210: 4126.522655 | AL210: 4132.602993 | AM210: 4138.683331 | AN210: 4144.763669 | AO210: 4150.844006 | AP210: 4156.924344 | AQ210: 4163.004682 | AR210: 4169.08502 | AS210: 4175.165358
K211: TRG 5 - Constant | L211: =(L179)*8760 -> 3484.50024 | M211: 3484.50024 | N211: 3484.50024 | O211: 3484.50024 | P211: 3484.50024 | Q211: 3484.50024 | R211: 3484.50024 | S211: 3484.50024 | T211: 3484.50024 | U211: 3484.50024 | V211: 3484.50024 | W211: 3484.50024 | X211: 3484.50024 | Y211: 3484.50024 | Z211: 3484.50024 | AA211: 3484.50024 | AB211: 3484.50024 | AC211: 3484.50024 | AD211: 3484.50024 | AE211: 3484.50024 | AF211: 3484.50024 | AG211: 3484.50024 | AH211: 3484.50024 | AI211: 3484.50024 | AJ211: 3484.50024 | AK211: 3484.50024 | AL211: 3484.50024 | AM211: 3484.50024 | AN211: 3484.50024 | AO211: 3484.50024 | AP211: 3484.50024 | AQ211: 3484.50024 | AR211: 3484.50024 | AS211: 3484.50024
K212: TRG 6 - Low | L212: =(L180)*8760 -> 3084.59748 | M212: 3203.922157 | N212: 3323.246834 | O212: 3442.571511 | P212: 3561.896188 | Q212: 3681.220865 | R212: 3800.545542 | S212: 3919.870218 | T212: 4039.194895 | U212: 4158.519572 | V212: 4277.844249 | W212: 4397.168926 | X212: 4516.493603 | Y212: 4635.81828 | Z212: 4652.043644 | AA212: 4668.269008 | AB212: 4684.494372 | AC212: 4700.719736 | AD212: 4716.9451 | AE212: 4733.170464 | AF212: 4749.395828 | AG212: 4765.621192 | AH212: 4781.846556 | AI212: 4798.07192 | AJ212: 4814.297284 | AK212: 4830.522648 | AL212: 4846.748012 | AM212: 4862.973376 | AN212: 4879.19874 | AO212: 4895.424104 | AP212: 4911.649468 | AQ212: 4927.874832 | AR212: 4944.100196 | AS212: 4960.32556
K213: TRG 6 - Mid | L213: =(L181)*8760 -> 3084.59748 | M213: 3127.298437 | N213: 3169.999394 | O213: 3212.700351 | P213: 3255.401308 | Q213: 3298.102265 | R213: 3340.803222 | S213: 3383.504178 | T213: 3426.205135 | U213: 3468.906092 | V213: 3511.607049 | W213: 3554.308006 | X213: 3597.008963 | Y213: 3639.70992 | Z213: 3646.079412 | AA213: 3652.448905 | AB213: 3658.818397 | AC213: 3665.187889 | AD213: 3671.557382 | AE213: 3677.926874 | AF213: 3684.296367 | AG213: 3690.665859 | AH213: 3697.035351 | AI213: 3703.404844 | AJ213: 3709.774336 | AK213: 3716.143828 | AL213: 3722.513321 | AM213: 3728.882813 | AN213: 3735.252305 | AO213: 3741.621798 | AP213: 3747.99129 | AQ213: 3754.360782 | AR213: 3760.730275 | AS213: 3767.099767
K214: TRG 6 - Constant | L214: =(L182)*8760 -> 3084.59748 | M214: 3084.59748 | N214: 3084.59748 | O214: 3084.59748 | P214: 3084.59748 | Q214: 3084.59748 | R214: 3084.59748 | S214: 3084.59748 | T214: 3084.59748 | U214: 3084.59748 | V214: 3084.59748 | W214: 3084.59748 | X214: 3084.59748 | Y214: 3084.59748 | Z214: 3084.59748 | AA214: 3084.59748 | AB214: 3084.59748 | AC214: 3084.59748 | AD214: 3084.59748 | AE214: 3084.59748 | AF214: 3084.59748 | AG214: 3084.59748 | AH214: 3084.59748 | AI214: 3084.59748 | AJ214: 3084.59748 | AK214: 3084.59748 | AL214: 3084.59748 | AM214: 3084.59748 | AN214: 3084.59748 | AO214: 3084.59748 | AP214: 3084.59748 | AQ214: 3084.59748 | AR214: 3084.59748 | AS214: 3084.59748
K215: TRG 7 - Low | L215: =(L183)*8760 -> 2555.292 | M215: 2673.750785 | N215: 2792.209569 | O215: 2910.668354 | P215: 3029.127138 | Q215: 3147.585923 | R215: 3266.044708 | S215: 3384.503492 | T215: 3502.962277 | U215: 3621.421062 | V215: 3739.879846 | W215: 3858.338631 | X215: 3976.797415 | Y215: 4095.2562 | Z215: 4111.637225 | AA215: 4128.01825 | AB215: 4144.399274 | AC215: 4160.780299 | AD215: 4177.161324 | AE215: 4193.542349 | AF215: 4209.923374 | AG215: 4226.304398 | AH215: 4242.685423 | AI215: 4259.066448 | AJ215: 4275.447473 | AK215: 4291.828498 | AL215: 4308.209522 | AM215: 4324.590547 | AN215: 4340.971572 | AO215: 4357.352597 | AP215: 4373.733622 | AQ215: 4390.114646 | AR215: 4406.495671 | AS215: 4422.876696
K216: TRG 7 - Mid | L216: =(L184)*8760 -> 2555.292 | M216: 2595.490966 | N216: 2635.689932 | O216: 2675.888898 | P216: 2716.087865 | Q216: 2756.286831 | R216: 2796.485797 | S216: 2836.684763 | T216: 2876.883729 | U216: 2917.082695 | V216: 2957.281662 | W216: 2997.480628 | X216: 3037.679594 | Y216: 3077.87856 | Z216: 3084.034317 | AA216: 3090.190074 | AB216: 3096.345831 | AC216: 3102.501588 | AD216: 3108.657346 | AE216: 3114.813103 | AF216: 3120.96886 | AG216: 3127.124617 | AH216: 3133.280374 | AI216: 3139.436131 | AJ216: 3145.591888 | AK216: 3151.747645 | AL216: 3157.903403 | AM216: 3164.05916 | AN216: 3170.214917 | AO216: 3176.370674 | AP216: 3182.526431 | AQ216: 3188.682188 | AR216: 3194.837945 | AS216: 3200.993702
K217: TRG 7 - Constant | L217: =(L185)*8760 -> 2555.292 | M217: 2555.292 | N217: 2555.292 | O217: 2555.292 | P217: 2555.292 | Q217: 2555.292 | R217: 2555.292 | S217: 2555.292 | T217: 2555.292 | U217: 2555.292 | V217: 2555.292 | W217: 2555.292 | X217: 2555.292 | Y217: 2555.292 | Z217: 2555.292 | AA217: 2555.292 | AB217: 2555.292 | AC217: 2555.292 | AD217: 2555.292 | AE217: 2555.292 | AF217: 2555.292 | AG217: 2555.292 | AH217: 2555.292 | AI217: 2555.292 | AJ217: 2555.292 | AK217: 2555.292 | AL217: 2555.292 | AM217: 2555.292 | AN217: 2555.292 | AO217: 2555.292 | AP217: 2555.292 | AQ217: 2555.292 | AR217: 2555.292 | AS217: 2555.292
K218: TRG 8 - Low | L218: =(L186)*8760 -> 1997.08728 | M218: 2088.343569 | N218: 2179.599858 | O218: 2270.856148 | P218: 2362.112437 | Q218: 2453.368726 | R218: 2544.625015 | S218: 2635.881305 | T218: 2727.137594 | U218: 2818.393883 | V218: 2909.650172 | W218: 3000.906462 | X218: 3092.162751 | Y218: 3183.41904 | Z218: 3197.744426 | AA218: 3212.069811 | AB218: 3226.395197 | AC218: 3240.720583 | AD218: 3255.045968 | AE218: 3269.371354 | AF218: 3283.69674 | AG218: 3298.022125 | AH218: 3312.347511 | AI218: 3326.672897 | AJ218: 3340.998282 | AK218: 3355.323668 | AL218: 3369.649054 | AM218: 3383.97444 | AN218: 3398.299825 | AO218: 3412.625211 | AP218: 3426.950597 | AQ218: 3441.275982 | AR218: 3455.601368 | AS218: 3469.926754
K219: TRG 8 - Mid | L219: =(L187)*8760 -> 1997.08728 | M219: 2033.131985 | N219: 2069.176689 | O219: 2105.221394 | P219: 2141.266098 | Q219: 2177.310803 | R219: 2213.355508 | S219: 2249.400212 | T219: 2285.444917 | U219: 2321.489622 | V219: 2357.534326 | W219: 2393.579031 | X219: 2429.623735 | Y219: 2465.66844 | Z219: 2471.216194 | AA219: 2476.763948 | AB219: 2482.311702 | AC219: 2487.859456 | AD219: 2493.40721 | AE219: 2498.954964 | AF219: 2504.502718 | AG219: 2510.050472 | AH219: 2515.598226 | AI219: 2521.14598 | AJ219: 2526.693734 | AK219: 2532.241488 | AL219: 2537.789242 | AM219: 2543.336996 | AN219: 2548.88475 | AO219: 2554.432504 | AP219: 2559.980258 | AQ219: 2565.528012 | AR219: 2571.075766 | AS219: 2576.62352
K220: TRG 8 - Constant | L220: =(L188)*8760 -> 1997.08728 | M220: 1997.08728 | N220: 1997.08728 | O220: 1997.08728 | P220: 1997.08728 | Q220: 1997.08728 | R220: 1997.08728 | S220: 1997.08728 | T220: 1997.08728 | U220: 1997.08728 | V220: 1997.08728 | W220: 1997.08728 | X220: 1997.08728 | Y220: 1997.08728 | Z220: 1997.08728 | AA220: 1997.08728 | AB220: 1997.08728 | AC220: 1997.08728 | AD220: 1997.08728 | AE220: 1997.08728 | AF220: 1997.08728 | AG220: 1997.08728 | AH220: 1997.08728 | AI220: 1997.08728 | AJ220: 1997.08728 | AK220: 1997.08728 | AL220: 1997.08728 | AM220: 1997.08728 | AN220: 1997.08728 | AO220: 1997.08728 | AP220: 1997.08728 | AQ220: 1997.08728 | AR220: 1997.08728 | AS220: 1997.08728
K221: TRG 9 - Low | L221: =(L189)*8760 -> 1451.64588 | M221: 1535.413043 | N221: 1619.180206 | O221: 1702.947369 | P221: 1786.714532 | Q221: 1870.481695 | R221: 1954.248858 | S221: 2038.016022 | T221: 2121.783185 | U221: 2205.550348 | V221: 2289.317511 | W221: 2373.084674 | X221: 2456.851837 | Y221: 2540.619 | Z221: 2553.322095 | AA221: 2566.02519 | AB221: 2578.728285 | AC221: 2591.43138 | AD221: 2604.134475 | AE221: 2616.83757 | AF221: 2629.540665 | AG221: 2642.24376 | AH221: 2654.946855 | AI221: 2667.64995 | AJ221: 2680.353045 | AK221: 2693.05614 | AL221: 2705.759235 | AM221: 2718.46233 | AN221: 2731.165425 | AO221: 2743.86852 | AP221: 2756.571615 | AQ221: 2769.27471 | AR221: 2781.977805 | AS221: 2794.6809
K222: TRG 9 - Mid | L222: =(L190)*8760 -> 1451.64588 | M222: 1481.757369 | N222: 1511.868858 | O222: 1541.980348 | P222: 1572.091837 | Q222: 1602.203326 | R222: 1632.314815 | S222: 1662.426305 | T222: 1692.537794 | U222: 1722.649283 | V222: 1752.760772 | W222: 1782.872262 | X222: 1812.983751 | Y222: 1843.09524 | Z222: 1847.702978 | AA222: 1852.310716 | AB222: 1856.918454 | AC222: 1861.526192 | AD222: 1866.13393 | AE222: 1870.741669 | AF222: 1875.349407 | AG222: 1879.957145 | AH222: 1884.564883 | AI222: 1889.172621 | AJ222: 1893.780359 | AK222: 1898.388097 | AL222: 1902.995835 | AM222: 1907.603573 | AN222: 1912.211312 | AO222: 1916.81905 | AP222: 1921.426788 | AQ222: 1926.034526 | AR222: 1930.642264 | AS222: 1935.250002
... 335 more rows

Sheet Solar - Utility PV
A1: Solar Utility PV Inputs | L1: https://atb.nrel.gov/electricity/2019/index.html?t=su
T3: Inputs
J4: Take me to: | T4: Calculated
B10: X | G10: Current Costs
H12: Techno-Economic Cost and Performance Parameters | J12: Net Capacity Factor (%) | K12: Utility PV - Seattle | L12: 0.1492916024 | O12: Basis Year: | Q12: 2017
K13: Utility PV - Chicago | L13: 0.1770462727
K14: Utility PV - Kansas City | L14: 0.1968873903 | O14: Utility Scale Solar Photovoltaic
K15: Utility PV - Los Angeles | L15: 0.2173618549 | O15: Representative plant is Single Axis tracking with capacity of 23 MW
K16: Utility PV - Daggett, CA | L16: 0.2657307953 | O16: Overnight Capital Cost, Capacity Factor, Fixed O&M, and Variable O&M costs
O17: represent $/kW DC; however LCOE reflects $/MWh AC.
J18: Annual Energy Production (kWh/kW) | K18: Utility PV - Seattle | L18: =L12*8760 -> 1307.794437 | O18: Capacity factors chosen here to reflect range across the continental U.S. in ReEDS.
K19: Utility PV - Chicago | L19: =L13*8760 -> 1550.925349
K20: Utility PV - Kansas City | L20: =L14*8760 -> 1724.733539
K21: Utility PV - Los Angeles | L21: =L15*8760 -> 1904.089849
K22: Utility PV - Daggett, CA | L22: =L16*8760 -> 2327.801766
S23: Available
J24: CAPEX ($/kW) | K24: Utility PV - Seattle | L24: =L30+L36 -> 1110.730205 | S24: Capacity
K25: Utility PV - Chicago | L25: =L31+L37 -> 1110.730205 | S25: (GW)
K26: Utility PV - Kansas City | L26: =L32+L38 -> 1110.730205 | S26: 176965
K27: Utility PV - Los Angeles | L27: =L33+L39 -> 1110.730205
K28: Utility PV - Daggett, CA | L28: =L34+L40 -> 1110.730205
O29: Utility PV - Seattle | P29: Utility PV - Seattle | Q29: ATB values reflect annual average capacity factor over life of plant including estimated degradation, starting at 0.75% per year, reducing to 0.3% and 0.5% annual degradation by 2050 for the low- and mid-cases.
J30: Construction Financing Cost ($/kW) | K30: Utility PV - Seattle | L30: =(L36+L62)*($S$48-1) -> 15.0358816 | O30: Utility PV - Chicago | P30: Utility PV - Chicago
K31: Utility PV - Chicago | L31: =(L37+L63)*($S$48-1) -> 15.0358816 | O31: Utility PV - Kansas City | P31: Utility PV - Kansas City
K32: Utility PV - Kansas City | L32: =(L38+L64)*($S$48-1) -> 15.0358816 | O32: Utility PV - Los Angeles | P32: Utility PV - Los Angeles
K33: Utility PV - Los Angeles | L33: =(L39+L65)*($S$48-1) -> 15.0358816 | O33: Utility PV - Daggett, CA | P33: Utility PV - Daggett, CA
K34: Utility PV - Daggett, CA | L34: =(L40+L66)*($S$48-1) -> 15.0358816
O35: Financial Assumptions:
J36: Overnight Capital Cost ($/kW) | K36: Utility PV - Seattle | L36: =$L$168 -> 1095.694323 | O36: Inflation Rate | S36: =L219 -> 0.025
K37: Utility PV - Chicago | L37: =$L$171 -> 1095.694323 | O37: Capital Recovery Period (Years) | S37: 30
K38: Utility PV - Kansas City | L38: =$L$180 -> 1095.694323 | O38: Interest Rate Nominal - Mid | S38: =L221 -> 0.0373
K39: Utility PV - Los Angeles | L39: =$L$180 -> 1095.694323 | O39: Calculated Interest Rate Real - Mid | S39: =L224 -> 0.012
K40: Utility PV - Daggett, CA | L40: =$L$180 -> 1095.694323 | O40: Interest During Construction - Nominal | S40: =L226 -> 0.0373
O41: Rate of Return on Equity Nominal - Mid | S41: =L228 -> 0.0903
J42: Fixed Operation and Maintenance Expenses ($/kW-yr) | K42: Utility PV - Seattle | L42: =L184 -> 19.86721975 | O42: Calculated Rate of Return on Equity Real - Mid | S42: =L231 -> 0.06370731707
K43: Utility PV - Chicago | L43: =L42 -> 19.86721975 | O43: Debt Fraction - Mid | S43: =L235 -> 0.6
K44: Utility PV - Kansas City | L44: =L43 -> 19.86721975 | O44: Tax Rate (Federal and State) | S44: =L236 -> 0.2574
K45: Utility PV - Los Angeles | L45: =L44 -> 19.86721975 | O45: WACC Nominal - Mid | S45: =L238 -> 0.052739388
K46: Utility PV - Daggett, CA | L46: =L45 -> 19.86721975 | O46: WACC Real - Mid | S46: =L241 -> 0.02706281756
O47: Depreciation Period | S47: 5
J48: Variable Operation and Maintenance Expenses ($/MWh) | K48: Utility PV - Seattle | L48: 0 | O48: Construction Finance Factor | S48: =SUMPRODUCT(P67:P69,Q67:Q69) -> 1.013722697
K49: Utility PV - Chicago | L49: 0 | O49: Present Value of Depreciation | S49: =SUMPRODUCT(O74:T74,O76:T76) -> 0.8684887286
K50: Utility PV - Kansas City | L50: 0 | O50: Project Finance Factor | S50: =(1 - S49 * S44) / (1 - S44) -> 1.045584435
K51: Utility PV - Los Angeles | L51: 0 | O51: Capital Recovery Factor (CRF) Nominal - Mid | S51: =L245 -> 0.06709677801
K52: Utility PV - Daggett, CA | L52: 0 | O52: Capital Recovery Factor (CRF) Real - Mid | S52: =L248 -> 0.04910140114
H55: Finance | J55: Weighted Average Cost of Capital (WACC) (Nominal) (%) | K55: Utility PV - Seattle | L55: =$S$45 -> 0.052739388
K56: Utility PV - Chicago | L56: =L55 -> 0.052739388
K57: Utility PV - Kansas City | L57: =L56 -> 0.052739388
K58: Utility PV - Los Angeles | L58: =L57 -> 0.052739388
K59: Utility PV - Daggett, CA | L59: =L58 -> 0.052739388
H62: Grid Connection Costs | J62: Grid Connection Costs (GCC) ($/kW) | K62: Utility PV - Seattle | L62: =L68+L74 -> 0 | O62: Construction Duration yrs | Q62: 1
K63: Utility PV - Chicago | L63: =L69+L75 -> 0 | O63: Year | P63: Capital | Q63: Accumulated
K64: Utility PV - Kansas City | L64: =L70+L76 -> 0 | O64: Index | P64: Fraction | Q64: Interest
K65: Utility PV - Los Angeles | L65: =L71+L77 -> 0
K66: Utility PV - Daggett, CA | L66: =L72+L78 -> 0
O67: 0 | P67: 1 | Q67: =1+(1-S44)*((1+S40)^(O67+0.5)-1) -> 1.013722697
J68: Grid Feature Costs ($/kW) | K68: Utility PV - Seattle | L68: 0 | O68: 1 | P68: 0 | Q68: =1+(1-S44)*((1+S40)^(O68+0.5)-1) -> 1.041933534
K69: Utility PV - Chicago | L69: 0 | O69: 2 | P69: 0 | Q69: =1+(1-S44)*((1+S40)^(O69+0.5)-1) -> 1.071196635
K70: Utility PV - Kansas City | L70: 0
K71: Utility PV - Los Angeles | L71: 0
K72: Utility PV - Daggett, CA | L72: 0
N73: MACRS yr | O73: 1 | P73: 2 | Q73: 3 | R73: 4 | S73: 5 | T73: 6
J74: Onshore Spur Line Costs ($/kW) | K74: Utility PV - Seattle | L74: 0 | N74: Depreciation | O74: 0.2 | P74: 0.32 | Q74: 0.192 | R74: 0.1152 | S74: 0.1152 | T74: 0.0576
K75: Utility PV - Chicago | L75: 0 | N75: Fraction
K76: Utility PV - Kansas City | L76: 0 | N76: Depreciation | O76: =1/((1+S46)*(1+S36))^O73 -> 0.9499027123 | P76: =1/((1+S46)*(1+S36))^P73 -> 0.9023151628 | Q76: =1/((1+S46)*(1+S36))^Q73 -> 0.8571116205 | R76: =1/((1+S46)*(1+S36))^R73 -> 0.8141726531 | S76: =1/((1+S46)*(1+S36))^S73 -> 0.7733848114 | T76: =1/((1+S46)*(1+S36))^T73 -> 0.73464033
K77: Utility PV - Los Angeles | L77: 0
K78: Utility PV - Daggett, CA | L78: 0
N79: Factor
H81: LCOE | J81: Levelized Cost of Energy ($/MWh) | K81: Utility PV - Seattle | L81: =(($S$52 * $S$50 * $S$48 * (L36 * 1 + L62) +L42) * 1000 / (L12 * 8760)) + L48 + 0 -> 58.79496768
K82: Utility PV - Chicago | L82: =(($S$52 * $S$50 * $S$48 * (L37 * 1 + L63) +L43) * 1000 / (L13 * 8760)) + L49 + 0 -> 49.57797079
K83: Utility PV - Kansas City | L83: 44.58180344
K84: Utility PV - Los Angeles | L84: 40.38240721
K85: Utility PV - Daggett, CA | L85: 33.03190708
J87: Overnight Levelized Cost of Energy ($/MWh) | K87: Utility PV - Seattle | L87: =(((L36*$S$60*(1-$S$48*$S$55))/(8760*L12*(1-$S$48))+L42/(8760*L12))*1000)+L48 -> 15.19139338 | M87: * this is similar to the LCOE used in the TCDB (Transparent Cost Database)
K88: Utility PV - Chicago | L88: =(((L37*$S$60*(1-$S$48*$S$55))/(8760*L13*(1-$S$48))+L43/(8760*L13))*1000)+L49 -> 12.80991362
K89: Utility PV - Kansas City | L89: =(((L38*$S$60*(1-$S$48*$S$55))/(8760*L14*(1-$S$48))+L44/(8760*L14))*1000)+L50 -> 11.51900818
K90: Utility PV - Los Angeles | L90: =(((L39*$S$60*(1-$S$48*$S$55))/(8760*L15*(1-$S$48))+L45/(8760*L15))*1000)+L51 -> 10.43397178
K91: Utility PV - Daggett, CA | L91: =(((L40*$S$60*(1-$S$48*$S$55))/(8760*L16*(1-$S$48))+L46/(8760*L16))*1000)+L52 -> 8.534755853
H93: ***Note: For future projections, low, mid, and high refer to the resulting low, mid, and high LCOE projections.
D96: X | G96: Future Projections
L97: Basis Year
L98: 2017 | M98: 2018 | N98: 2019 | O98: 2020 | P98: 2021 | Q98: 2022 | R98: 2023 | S98: 2024 | T98: 2025 | U98: 2026 | V98: 2027 | W98: 2028 | X98: 2029 | Y98: 2030 | Z98: 2031 | AA98: 2032 | AB98: 2033 | AC98: 2034 | AD98: 2035 | AE98: 2036 | AF98: 2037 | AG98: 2038 | AH98: 2039 | AI98: 2040 | AJ98: 2041 | AK98: 2042 | AL98: 2043 | AM98: 2044 | AN98: 2045 | AO98: 2046 | AP98: 2047 | AQ98: 2048 | AR98: 2049 | AS98: 2050
H99: Techno-Economic Cost and Performance Parameters | J99: Net Capacity Factor (%) | K99: Utility PV - Seattle - Low | L99: 0.1492916024 | M99: 0.1495072936 | N99: 0.1497229847 | O99: 0.1499386759 | P99: 0.1501543671 | Q99: 0.1503700583 | R99: 0.1505857495 | S99: 0.1508014407 | T99: 0.1510171319 | U99: 0.1512328231 | V99: 0.1514485142 | W99: 0.1516642054 | X99: 0.1518798966 | Y99: 0.1520955878 | Z99: 0.152311279 | AA99: 0.1525269702 | AB99: 0.1527426614 | AC99: 0.1529583526 | AD99: 0.1531740437 | AE99: 0.1533897349 | AF99: 0.1536054261 | AG99: 0.1538211173 | AH99: 0.1540368085 | AI99: 0.1542524997 | AJ99: 0.1544681909 | AK99: 0.1546838821 | AL99: 0.1548995733 | AM99: 0.1551152644 | AN99: 0.1553309556 | AO99: 0.1555466468 | AP99: 0.155762338 | AQ99: 0.1559780292 | AR99: 0.1561937204 | AS99: 0.1564094116
K100: Utility PV - Seattle - Mid | L100: 0.1492916024 | M100: 0.1493879772 | N100: 0.1494843521 | O100: 0.1495807269 | P100: 0.1496771018 | Q100: 0.1497734766 | R100: 0.1498698515 | S100: 0.1499662264 | T100: 0.1500626012 | U100: 0.1501589761 | V100: 0.1502553509 | W100: 0.1503517258 | X100: 0.1504481006 | Y100: 0.1505444755 | Z100: 0.1506408503 | AA100: 0.1507372252 | AB100: 0.1508336001 | AC100: 0.1509299749 | AD100: 0.1510263498 | AE100: 0.1511227246 | AF100: 0.1512190995 | AG100: 0.1513154743 | AH100: 0.1514118492 | AI100: 0.151508224 | AJ100: 0.1516045989 | AK100: 0.1517009738 | AL100: 0.1517973486 | AM100: 0.1518937235 | AN100: 0.1519900983 | AO100: 0.1520864732 | AP100: 0.152182848 | AQ100: 0.1522792229 | AR100: 0.1523755977 | AS100: 0.1524719726
K101: Utility PV - Seattle - Constant | L101: 0.1492916024 | M101: 0.1492916024 | N101: 0.1492916024 | O101: 0.1492916024 | P101: 0.1492916024 | Q101: 0.1492916024 | R101: 0.1492916024 | S101: 0.1492916024 | T101: 0.1492916024 | U101: 0.1492916024 | V101: 0.1492916024 | W101: 0.1492916024 | X101: 0.1492916024 | Y101: 0.1492916024 | Z101: 0.1492916024 | AA101: 0.1492916024 | AB101: 0.1492916024 | AC101: 0.1492916024 | AD101: 0.1492916024 | AE101: 0.1492916024 | AF101: 0.1492916024 | AG101: 0.1492916024 | AH101: 0.1492916024 | AI101: 0.1492916024 | AJ101: 0.1492916024 | AK101: 0.1492916024 | AL101: 0.1492916024 | AM101: 0.1492916024 | AN101: 0.1492916024 | AO101: 0.1492916024 | AP101: 0.1492916024 | AQ101: 0.1492916024 | AR101: 0.1492916024 | AS101: 0.1492916024
K102: Utility PV - Chicago - Low | L102: 0.1770462727 | M102: 0.1773020629 | N102: 0.177557853 | O102: 0.1778136432 | P102: 0.1780694333 | Q102: 0.1783252234 | R102: 0.1785810136 | S102: 0.1788368037 | T102: 0.1790925939 | U102: 0.179348384 | V102: 0.1796041742 | W102: 0.1798599643 | X102: 0.1801157545 | Y102: 0.1803715446 | Z102: 0.1806273348 | AA102: 0.1808831249 | AB102: 0.1811389151 | AC102: 0.1813947052 | AD102: 0.1816504953 | AE102: 0.1819062855 | AF102: 0.1821620756 | AG102: 0.1824178658 | AH102: 0.1826736559 | AI102: 0.1829294461 | AJ102: 0.1831852362 | AK102: 0.1834410264 | AL102: 0.1836968165 | AM102: 0.1839526067 | AN102: 0.1842083968 | AO102: 0.184464187 | AP102: 0.1847199771 | AQ102: 0.1849757673 | AR102: 0.1852315574 | AS102: 0.1854873475
K103: Utility PV - Chicago - Mid | L103: 0.1770462727 | M103: 0.1771605645 | N103: 0.1772748564 | O103: 0.1773891482 | P103: 0.17750344 | Q103: 0.1776177318 | R103: 0.1777320236 | S103: 0.1778463155 | T103: 0.1779606073 | U103: 0.1780748991 | V103: 0.1781891909 | W103: 0.1783034827 | X103: 0.1784177746 | Y103: 0.1785320664 | Z103: 0.1786463582 | AA103: 0.17876065 | AB103: 0.1788749418 | AC103: 0.1789892337 | AD103: 0.1791035255 | AE103: 0.1792178173 | AF103: 0.1793321091 | AG103: 0.1794464009 | AH103: 0.1795606928 | AI103: 0.1796749846 | AJ103: 0.1797892764 | AK103: 0.1799035682 | AL103: 0.18001786 | AM103: 0.1801321519 | AN103: 0.1802464437 | AO103: 0.1803607355 | AP103: 0.1804750273 | AQ103: 0.1805893191 | AR103: 0.180703611 | AS103: 0.1808179028
K104: Utility PV - Chicago - Constant | L104: 0.1770462727 | M104: 0.1770462727 | N104: 0.1770462727 | O104: 0.1770462727 | P104: 0.1770462727 | Q104: 0.1770462727 | R104: 0.1770462727 | S104: 0.1770462727 | T104: 0.1770462727 | U104: 0.1770462727 | V104: 0.1770462727 | W104: 0.1770462727 | X104: 0.1770462727 | Y104: 0.1770462727 | Z104: 0.1770462727 | AA104: 0.1770462727 | AB104: 0.1770462727 | AC104: 0.1770462727 | AD104: 0.1770462727 | AE104: 0.1770462727 | AF104: 0.1770462727 | AG104: 0.1770462727 | AH104: 0.1770462727 | AI104: 0.1770462727 | AJ104: 0.1770462727 | AK104: 0.1770462727 | AL104: 0.1770462727 | AM104: 0.1770462727 | AN104: 0.1770462727 | AO104: 0.1770462727 | AP104: 0.1770462727 | AQ104: 0.1770462727 | AR104: 0.1770462727 | AS104: 0.1770462727
K105: Utility PV - Kansas City - Low | L105: 0.1968873903 | M105: 0.1971718462 | N105: 0.1974563021 | O105: 0.197740758 | P105: 0.1980252139 | Q105: 0.1983096698 | R105: 0.1985941256 | S105: 0.1988785815 | T105: 0.1991630374 | U105: 0.1994474933 | V105: 0.1997319492 | W105: 0.2000164051 | X105: 0.200300861 | Y105: 0.2005853168 | Z105: 0.2008697727 | AA105: 0.2011542286 | AB105: 0.2014386845 | AC105: 0.2017231404 | AD105: 0.2020075963 | AE105: 0.2022920522 | AF105: 0.2025765081 | AG105: 0.2028609639 | AH105: 0.2031454198 | AI105: 0.2034298757 | AJ105: 0.2037143316 | AK105: 0.2039987875 | AL105: 0.2042832434 | AM105: 0.2045676993 | AN105: 0.2048521551 | AO105: 0.205136611 | AP105: 0.2054210669 | AQ105: 0.2057055228 | AR105: 0.2059899787 | AS105: 0.2062744346
K106: Utility PV - Kansas City - Mid | L106: 0.1968873903 | M106: 0.1970144905 | N106: 0.1971415907 | O106: 0.197268691 | P106: 0.1973957912 | Q106: 0.1975228914 | R106: 0.1976499916 | S106: 0.1977770918 | T106: 0.197904192 | U106: 0.1980312922 | V106: 0.1981583924 | W106: 0.1982854926 | X106: 0.1984125928 | Y106: 0.198539693 | Z106: 0.1986667932 | AA106: 0.1987938935 | AB106: 0.1989209937 | AC106: 0.1990480939 | AD106: 0.1991751941 | AE106: 0.1993022943 | AF106: 0.1994293945 | AG106: 0.1995564947 | AH106: 0.1996835949 | AI106: 0.1998106951 | AJ106: 0.1999377953 | AK106: 0.2000648955 | AL106: 0.2001919957 | AM106: 0.200319096 | AN106: 0.2004461962 | AO106: 0.2005732964 | AP106: 0.2007003966 | AQ106: 0.2008274968 | AR106: 0.200954597 | AS106: 0.2010816972
K107: Utility PV - Kansas City - Constant | L107: 0.1968873903 | M107: 0.1968873903 | N107: 0.1968873903 | O107: 0.1968873903 | P107: 0.1968873903 | Q107: 0.1968873903 | R107: 0.1968873903 | S107: 0.1968873903 | T107: 0.1968873903 | U107: 0.1968873903 | V107: 0.1968873903 | W107: 0.1968873903 | X107: 0.1968873903 | Y107: 0.1968873903 | Z107: 0.1968873903 | AA107: 0.1968873903 | AB107: 0.1968873903 | AC107: 0.1968873903 | AD107: 0.1968873903 | AE107: 0.1968873903 | AF107: 0.1968873903 | AG107: 0.1968873903 | AH107: 0.1968873903 | AI107: 0.1968873903 | AJ107: 0.1968873903 | AK107: 0.1968873903 | AL107: 0.1968873903 | AM107: 0.1968873903 | AN107: 0.1968873903 | AO107: 0.1968873903 | AP107: 0.1968873903 | AQ107: 0.1968873903 | AR107: 0.1968873903 | AS107: 0.1968873903
K108: Utility PV - Los Angeles - Low | L108: 0.2173618549 | M108: 0.2176758915 | N108: 0.2179899282 | O108: 0.2183039649 | P108: 0.2186180015 | Q108: 0.2189320382 | R108: 0.2192460749 | S108: 0.2195601115 | T108: 0.2198741482 | U108: 0.2201881849 | V108: 0.2205022215 | W108: 0.2208162582 | X108: 0.2211302948 | Y108: 0.2214443315 | Z108: 0.2217583682 | AA108: 0.2220724048 | AB108: 0.2223864415 | AC108: 0.2227004782 | AD108: 0.2230145148 | AE108: 0.2233285515 | AF108: 0.2236425881 | AG108: 0.2239566248 | AH108: 0.2242706615 | AI108: 0.2245846981 | AJ108: 0.2248987348 | AK108: 0.2252127715 | AL108: 0.2255268081 | AM108: 0.2258408448 | AN108: 0.2261548814 | AO108: 0.2264689181 | AP108: 0.2267829548 | AQ108: 0.2270969914 | AR108: 0.2274110281 | AS108: 0.2277250648
K109: Utility PV - Los Angeles - Mid | L109: 0.2173618549 | M109: 0.2175021723 | N109: 0.2176424898 | O109: 0.2177828072 | P109: 0.2179231247 | Q109: 0.2180634421 | R109: 0.2182037596 | S109: 0.2183440771 | T109: 0.2184843945 | U109: 0.218624712 | V109: 0.2187650294 | W109: 0.2189053469 | X109: 0.2190456643 | Y109: 0.2191859818 | Z109: 0.2193262992 | AA109: 0.2194666167 | AB109: 0.2196069341 | AC109: 0.2197472516 | AD109: 0.219887569 | AE109: 0.2200278865 | AF109: 0.2201682039 | AG109: 0.2203085214 | AH109: 0.2204488388 | AI109: 0.2205891563 | AJ109: 0.2207294737 | AK109: 0.2208697912 | AL109: 0.2210101087 | AM109: 0.2211504261 | AN109: 0.2212907436 | AO109: 0.221431061 | AP109: 0.2215713785 | AQ109: 0.2217116959 | AR109: 0.2218520134 | AS109: 0.2219923308
K110: Utility PV - Los Angeles - Constant | L110: 0.2173618549 | M110: 0.2173618549 | N110: 0.2173618549 | O110: 0.2173618549 | P110: 0.2173618549 | Q110: 0.2173618549 | R110: 0.2173618549 | S110: 0.2173618549 | T110: 0.2173618549 | U110: 0.2173618549 | V110: 0.2173618549 | W110: 0.2173618549 | X110: 0.2173618549 | Y110: 0.2173618549 | Z110: 0.2173618549 | AA110: 0.2173618549 | AB110: 0.2173618549 | AC110: 0.2173618549 | AD110: 0.2173618549 | AE110: 0.2173618549 | AF110: 0.2173618549 | AG110: 0.2173618549 | AH110: 0.2173618549 | AI110: 0.2173618549 | AJ110: 0.2173618549 | AK110: 0.2173618549 | AL110: 0.2173618549 | AM110: 0.2173618549 | AN110: 0.2173618549 | AO110: 0.2173618549 | AP110: 0.2173618549 | AQ110: 0.2173618549 | AR110: 0.2173618549 | AS110: 0.2173618549
K111: Utility PV - Daggett, CA - Low | L111: 0.2657307953 | M111: 0.2661147136 | N111: 0.266498632 | O111: 0.2668825504 | P111: 0.2672664688 | Q111: 0.2676503872 | R111: 0.2680343056 | S111: 0.2684182239 | T111: 0.2688021423 | U111: 0.2691860607 | V111: 0.2695699791 | W111: 0.2699538975 | X111: 0.2703378159 | Y111: 0.2707217343 | Z111: 0.2711056526 | AA111: 0.271489571 | AB111: 0.2718734894 | AC111: 0.2722574078 | AD111: 0.2726413262 | AE111: 0.2730252446 | AF111: 0.2734091629 | AG111: 0.2737930813 | AH111: 0.2741769997 | AI111: 0.2745609181 | AJ111: 0.2749448365 | AK111: 0.2753287549 | AL111: 0.2757126733 | AM111: 0.2760965916 | AN111: 0.27648051 | AO111: 0.2768644284 | AP111: 0.2772483468 | AQ111: 0.2776322652 | AR111: 0.2780161836 | AS111: 0.2784001019
K112: Utility PV - Daggett, CA - Mid | L112: 0.2657307953 | M112: 0.2659023372 | N112: 0.2660738791 | O112: 0.266245421 | P112: 0.2664169629 | Q112: 0.2665885048 | R112: 0.2667600467 | S112: 0.2669315886 | T112: 0.2671031306 | U112: 0.2672746725 | V112: 0.2674462144 | W112: 0.2676177563 | X112: 0.2677892982 | Y112: 0.2679608401 | Z112: 0.268132382 | AA112: 0.2683039239 | AB112: 0.2684754659 | AC112: 0.2686470078 | AD112: 0.2688185497 | AE112: 0.2689900916 | AF112: 0.2691616335 | AG112: 0.2693331754 | AH112: 0.2695047173 | AI112: 0.2696762592 | AJ112: 0.2698478012 | AK112: 0.2700193431 | AL112: 0.270190885 | AM112: 0.2703624269 | AN112: 0.2705339688 | AO112: 0.2707055107 | AP112: 0.2708770526 | AQ112: 0.2710485945 | AR112: 0.2712201365 | AS112: 0.2713916784
K113: Utility PV - Daggett, CA - Constant | L113: 0.2657307953 | M113: 0.2657307953 | N113: 0.2657307953 | O113: 0.2657307953 | P113: 0.2657307953 | Q113: 0.2657307953 | R113: 0.2657307953 | S113: 0.2657307953 | T113: 0.2657307953 | U113: 0.2657307953 | V113: 0.2657307953 | W113: 0.2657307953 | X113: 0.2657307953 | Y113: 0.2657307953 | Z113: 0.2657307953 | AA113: 0.2657307953 | AB113: 0.2657307953 | AC113: 0.2657307953 | AD113: 0.2657307953 | AE113: 0.2657307953 | AF113: 0.2657307953 | AG113: 0.2657307953 | AH113: 0.2657307953 | AI113: 0.2657307953 | AJ113: 0.2657307953 | AK113: 0.2657307953 | AL113: 0.2657307953 | AM113: 0.2657307953 | AN113: 0.2657307953 | AO113: 0.2657307953 | AP113: 0.2657307953 | AQ113: 0.2657307953 | AR113: 0.2657307953 | AS113: 0.2657307953
L115: 2017 | M115: 2018 | N115: 2019 | O115: 2020 | P115: 2021 | Q115: 2022 | R115: 2023 | S115: 2024 | T115: 2025 | U115: 2026 | V115: 2027 | W115: 2028 | X115: 2029 | Y115: 2030 | Z115: 2031 | AA115: 2032 | AB115: 2033 | AC115: 2034 | AD115: 2035 | AE115: 2036 | AF115: 2037 | AG115: 2038 | AH115: 2039 | AI115: 2040 | AJ115: 2041 | AK115: 2042 | AL115: 2043 | AM115: 2044 | AN115: 2045 | AO115: 2046 | AP115: 2047 | AQ115: 2048 | AR115: 2049 | AS115: 2050
J116: Annual Energy Production (kWh/kW) | K116: Utility PV - Seattle - Low | L116: =L99*8760 -> 1307.794437 | M116: 1309.683892 | N116: 1311.573346 | O116: 1313.462801 | P116: 1315.352256 | Q116: 1317.241711 | R116: 1319.131166 | S116: 1321.02062 | T116: 1322.910075 | U116: 1324.79953 | V116: 1326.688985 | W116: 1328.57844 | X116: 1330.467894 | Y116: 1332.357349 | Z116: 1334.246804 | AA116: 1336.136259 | AB116: 1338.025714 | AC116: 1339.915168 | AD116: 1341.804623 | AE116: 1343.694078 | AF116: 1345.583533 | AG116: 1347.472988 | AH116: 1349.362442 | AI116: 1351.251897 | AJ116: 1353.141352 | AK116: 1355.030807 | AL116: 1356.920262 | AM116: 1358.809716 | AN116: 1360.699171 | AO116: 1362.588626 | AP116: 1364.478081 | AQ116: 1366.367536 | AR116: 1368.25699 | AS116: 1370.146445
K117: Utility PV - Seattle - Mid | L117: =L100*8760 -> 1307.794437 | M117: 1308.638681 | N117: 1309.482924 | O117: 1310.327168 | P117: 1311.171412 | Q117: 1312.015655 | R117: 1312.859899 | S117: 1313.704143 | T117: 1314.548387 | U117: 1315.39263 | V117: 1316.236874 | W117: 1317.081118 | X117: 1317.925362 | Y117: 1318.769605 | Z117: 1319.613849 | AA117: 1320.458093 | AB117: 1321.302337 | AC117: 1322.14658 | AD117: 1322.990824 | AE117: 1323.835068 | AF117: 1324.679311 | AG117: 1325.523555 | AH117: 1326.367799 | AI117: 1327.212043 | AJ117: 1328.056286 | AK117: 1328.90053 | AL117: 1329.744774 | AM117: 1330.589018 | AN117: 1331.433261 | AO117: 1332.277505 | AP117: 1333.121749 | AQ117: 1333.965993 | AR117: 1334.810236 | AS117: 1335.65448
K118: Utility PV - Seattle - Constant | L118: =L101*8760 -> 1307.794437 | M118: 1307.794437 | N118: 1307.794437 | O118: 1307.794437 | P118: 1307.794437 | Q118: 1307.794437 | R118: 1307.794437 | S118: 1307.794437 | T118: 1307.794437 | U118: 1307.794437 | V118: 1307.794437 | W118: 1307.794437 | X118: 1307.794437 | Y118: 1307.794437 | Z118: 1307.794437 | AA118: 1307.794437 | AB118: 1307.794437 | AC118: 1307.794437 | AD118: 1307.794437 | AE118: 1307.794437 | AF118: 1307.794437 | AG118: 1307.794437 | AH118: 1307.794437 | AI118: 1307.794437 | AJ118: 1307.794437 | AK118: 1307.794437 | AL118: 1307.794437 | AM118: 1307.794437 | AN118: 1307.794437 | AO118: 1307.794437 | AP118: 1307.794437 | AQ118: 1307.794437 | AR118: 1307.794437 | AS118: 1307.794437
K119: Utility PV - Chicago - Low | L119: =L102*8760 -> 1550.925349 | M119: 1553.166071 | N119: 1555.406792 | O119: 1557.647514 | P119: 1559.888236 | Q119: 1562.128957 | R119: 1564.369679 | S119: 1566.610401 | T119: 1568.851122 | U119: 1571.091844 | V119: 1573.332566 | W119: 1575.573287 | X119: 1577.814009 | Y119: 1580.054731 | Z119: 1582.295453 | AA119: 1584.536174 | AB119: 1586.776896 | AC119: 1589.017618 | AD119: 1591.258339 | AE119: 1593.499061 | AF119: 1595.739783 | AG119: 1597.980504 | AH119: 1600.221226 | AI119: 1602.461948 | AJ119: 1604.702669 | AK119: 1606.943391 | AL119: 1609.184113 | AM119: 1611.424834 | AN119: 1613.665556 | AO119: 1615.906278 | AP119: 1618.146999 | AQ119: 1620.387721 | AR119: 1622.628443 | AS119: 1624.869165
K120: Utility PV - Chicago - Mid | L120: =L103*8760 -> 1550.925349 | M120: 1551.926545 | N120: 1552.927742 | O120: 1553.928938 | P120: 1554.930134 | Q120: 1555.931331 | R120: 1556.932527 | S120: 1557.933723 | T120: 1558.93492 | U120: 1559.936116 | V120: 1560.937312 | W120: 1561.938509 | X120: 1562.939705 | Y120: 1563.940901 | Z120: 1564.942098 | AA120: 1565.943294 | AB120: 1566.94449 | AC120: 1567.945687 | AD120: 1568.946883 | AE120: 1569.948079 | AF120: 1570.949276 | AG120: 1571.950472 | AH120: 1572.951669 | AI120: 1573.952865 | AJ120: 1574.954061 | AK120: 1575.955258 | AL120: 1576.956454 | AM120: 1577.95765 | AN120: 1578.958847 | AO120: 1579.960043 | AP120: 1580.961239 | AQ120: 1581.962436 | AR120: 1582.963632 | AS120: 1583.964828
K121: Utility PV - Chicago - Constant | L121: =L104*8760 -> 1550.925349 | M121: 1550.925349 | N121: 1550.925349 | O121: 1550.925349 | P121: 1550.925349 | Q121: 1550.925349 | R121: 1550.925349 | S121: 1550.925349 | T121: 1550.925349 | U121: 1550.925349 | V121: 1550.925349 | W121: 1550.925349 | X121: 1550.925349 | Y121: 1550.925349 | Z121: 1550.925349 | AA121: 1550.925349 | AB121: 1550.925349 | AC121: 1550.925349 | AD121: 1550.925349 | AE121: 1550.925349 | AF121: 1550.925349 | AG121: 1550.925349 | AH121: 1550.925349 | AI121: 1550.925349 | AJ121: 1550.925349 | AK121: 1550.925349 | AL121: 1550.925349 | AM121: 1550.925349 | AN121: 1550.925349 | AO121: 1550.925349 | AP121: 1550.925349 | AQ121: 1550.925349 | AR121: 1550.925349 | AS121: 1550.925349
K122: Utility PV - Kansas City - Low | L122: =L105*8760 -> 1724.733539 | M122: 1727.225373 | N122: 1729.717206 | O122: 1732.20904 | P122: 1734.700874 | Q122: 1737.192707 | R122: 1739.684541 | S122: 1742.176374 | T122: 1744.668208 | U122: 1747.160041 | V122: 1749.651875 | W122: 1752.143708 | X122: 1754.635542 | Y122: 1757.127376 | Z122: 1759.619209 | AA122: 1762.111043 | AB122: 1764.602876 | AC122: 1767.09471 | AD122: 1769.586543 | AE122: 1772.078377 | AF122: 1774.570211 | AG122: 1777.062044 | AH122: 1779.553878 | AI122: 1782.045711 | AJ122: 1784.537545 | AK122: 1787.029378 | AL122: 1789.521212 | AM122: 1792.013045 | AN122: 1794.504879 | AO122: 1796.996713 | AP122: 1799.488546 | AQ122: 1801.98038 | AR122: 1804.472213 | AS122: 1806.964047
K123: Utility PV - Kansas City - Mid | L123: =L106*8760 -> 1724.733539 | M123: 1725.846937 | N123: 1726.960335 | O123: 1728.073733 | P123: 1729.187131 | Q123: 1730.300528 | R123: 1731.413926 | S123: 1732.527324 | T123: 1733.640722 | U123: 1734.75412 | V123: 1735.867518 | W123: 1736.980915 | X123: 1738.094313 | Y123: 1739.207711 | Z123: 1740.321109 | AA123: 1741.434507 | AB123: 1742.547904 | AC123: 1743.661302 | AD123: 1744.7747 | AE123: 1745.888098 | AF123: 1747.001496 | AG123: 1748.114894 | AH123: 1749.228291 | AI123: 1750.341689 | AJ123: 1751.455087 | AK123: 1752.568485 | AL123: 1753.681883 | AM123: 1754.795281 | AN123: 1755.908678 | AO123: 1757.022076 | AP123: 1758.135474 | AQ123: 1759.248872 | AR123: 1760.36227 | AS123: 1761.475668
K124: Utility PV - Kansas City - Constant | L124: =L107*8760 -> 1724.733539 | M124: 1724.733539 | N124: 1724.733539 | O124: 1724.733539 | P124: 1724.733539 | Q124: 1724.733539 | R124: 1724.733539 | S124: 1724.733539 | T124: 1724.733539 | U124: 1724.733539 | V124: 1724.733539 | W124: 1724.733539 | X124: 1724.733539 | Y124: 1724.733539 | Z124: 1724.733539 | AA124: 1724.733539 | AB124: 1724.733539 | AC124: 1724.733539 | AD124: 1724.733539 | AE124: 1724.733539 | AF124: 1724.733539 | AG124: 1724.733539 | AH124: 1724.733539 | AI124: 1724.733539 | AJ124: 1724.733539 | AK124: 1724.733539 | AL124: 1724.733539 | AM124: 1724.733539 | AN124: 1724.733539 | AO124: 1724.733539 | AP124: 1724.733539 | AQ124: 1724.733539 | AR124: 1724.733539 | AS124: 1724.733539
K125: Utility PV - Los Angeles - Low | L125: =L108*8760 -> 1904.089849 | M125: 1906.84081 | N125: 1909.591771 | O125: 1912.342732 | P125: 1915.093693 | Q125: 1917.844655 | R125: 1920.595616 | S125: 1923.346577 | T125: 1926.097538 | U125: 1928.848499 | V125: 1931.59946 | W125: 1934.350422 | X125: 1937.101383 | Y125: 1939.852344 | Z125: 1942.603305 | AA125: 1945.354266 | AB125: 1948.105227 | AC125: 1950.856189 | AD125: 1953.60715 | AE125: 1956.358111 | AF125: 1959.109072 | AG125: 1961.860033 | AH125: 1964.610994 | AI125: 1967.361956 | AJ125: 1970.112917 | AK125: 1972.863878 | AL125: 1975.614839 | AM125: 1978.3658 | AN125: 1981.116761 | AO125: 1983.867723 | AP125: 1986.618684 | AQ125: 1989.369645 | AR125: 1992.120606 | AS125: 1994.871567
K126: Utility PV - Los Angeles - Mid | L126: =L109*8760 -> 1904.089849 | M126: 1905.31903 | N126: 1906.548211 | O126: 1907.777391 | P126: 1909.006572 | Q126: 1910.235753 | R126: 1911.464934 | S126: 1912.694115 | T126: 1913.923296 | U126: 1915.152477 | V126: 1916.381658 | W126: 1917.610839 | X126: 1918.840019 | Y126: 1920.0692 | Z126: 1921.298381 | AA126: 1922.527562 | AB126: 1923.756743 | AC126: 1924.985924 | AD126: 1926.215105 | AE126: 1927.444286 | AF126: 1928.673466 | AG126: 1929.902647 | AH126: 1931.131828 | AI126: 1932.361009 | AJ126: 1933.59019 | AK126: 1934.819371 | AL126: 1936.048552 | AM126: 1937.277733 | AN126: 1938.506914 | AO126: 1939.736094 | AP126: 1940.965275 | AQ126: 1942.194456 | AR126: 1943.423637 | AS126: 1944.652818
K127: Utility PV - Los Angeles - Constant | L127: =L110*8760 -> 1904.089849 | M127: 1904.089849 | N127: 1904.089849 | O127: 1904.089849 | P127: 1904.089849 | Q127: 1904.089849 | R127: 1904.089849 | S127: 1904.089849 | T127: 1904.089849 | U127: 1904.089849 | V127: 1904.089849 | W127: 1904.089849 | X127: 1904.089849 | Y127: 1904.089849 | Z127: 1904.089849 | AA127: 1904.089849 | AB127: 1904.089849 | AC127: 1904.089849 | AD127: 1904.089849 | AE127: 1904.089849 | AF127: 1904.089849 | AG127: 1904.089849 | AH127: 1904.089849 | AI127: 1904.089849 | AJ127: 1904.089849 | AK127: 1904.089849 | AL127: 1904.089849 | AM127: 1904.089849 | AN127: 1904.089849 | AO127: 1904.089849 | AP127: 1904.089849 | AQ127: 1904.089849 | AR127: 1904.089849 | AS127: 1904.089849
K128: Utility PV - Daggett, CA - Low | L128: =L111*8760 -> 2327.801766 | M128: 2331.164891 | N128: 2334.528017 | O128: 2337.891142 | P128: 2341.254267 | Q128: 2344.617392 | R128: 2347.980517 | S128: 2351.343642 | T128: 2354.706767 | U128: 2358.069892 | V128: 2361.433017 | W128: 2364.796142 | X128: 2368.159267 | Y128: 2371.522392 | Z128: 2374.885517 | AA128: 2378.248642 | AB128: 2381.611767 | AC128: 2384.974892 | AD128: 2388.338017 | AE128: 2391.701142 | AF128: 2395.064267 | AG128: 2398.427392 | AH128: 2401.790518 | AI128: 2405.153643 | AJ128: 2408.516768 | AK128: 2411.879893 | AL128: 2415.243018 | AM128: 2418.606143 | AN128: 2421.969268 | AO128: 2425.332393 | AP128: 2428.695518 | AQ128: 2432.058643 | AR128: 2435.421768 | AS128: 2438.784893
K129: Utility PV - Daggett, CA - Mid | L129: =L112*8760 -> 2327.801766 | M129: 2329.304474 | N129: 2330.807181 | O129: 2332.309888 | P129: 2333.812595 | Q129: 2335.315302 | R129: 2336.818009 | S129: 2338.320716 | T129: 2339.823424 | U129: 2341.326131 | V129: 2342.828838 | W129: 2344.331545 | X129: 2345.834252 | Y129: 2347.336959 | Z129: 2348.839667 | AA129: 2350.342374 | AB129: 2351.845081 | AC129: 2353.347788 | AD129: 2354.850495 | AE129: 2356.353202 | AF129: 2357.855909 | AG129: 2359.358617 | AH129: 2360.861324 | AI129: 2362.364031 | AJ129: 2363.866738 | AK129: 2365.369445 | AL129: 2366.872152 | AM129: 2368.37486 | AN129: 2369.877567 | AO129: 2371.380274 | AP129: 2372.882981 | AQ129: 2374.385688 | AR129: 2375.888395 | AS129: 2377.391102
K130: Utility PV - Daggett, CA - Constant | L130: =L113*8760 -> 2327.801766 | M130: 2327.801766 | N130: 2327.801766 | O130: 2327.801766 | P130: 2327.801766 | Q130: 2327.801766 | R130: 2327.801766 | S130: 2327.801766 | T130: 2327.801766 | U130: 2327.801766 | V130: 2327.801766 | W130: 2327.801766 | X130: 2327.801766 | Y130: 2327.801766 | Z130: 2327.801766 | AA130: 2327.801766 | AB130: 2327.801766 | AC130: 2327.801766 | AD130: 2327.801766 | AE130: 2327.801766 | AF130: 2327.801766 | AG130: 2327.801766 | AH130: 2327.801766 | AI130: 2327.801766 | AJ130: 2327.801766 | AK130: 2327.801766 | AL130: 2327.801766 | AM130: 2327.801766 | AN130: 2327.801766 | AO130: 2327.801766 | AP130: 2327.801766 | AQ130: 2327.801766 | AR130: 2327.801766 | AS130: 2327.801766
L132: 2017 | M132: 2018 | N132: 2019 | O132: 2020 | P132: 2021 | Q132: 2022 | R132: 2023 | S132: 2024 | T132: 2025 | U132: 2026 | V132: 2027 | W132: 2028 | X132: 2029 | Y132: 2030 | Z132: 2031 | AA132: 2032 | AB132: 2033 | AC132: 2034 | AD132: 2035 | AE132: 2036 | AF132: 2037 | AG132: 2038 | AH132: 2039 | AI132: 2040 | AJ132: 2041 | AK132: 2042 | AL132: 2043 | AM132: 2044 | AN132: 2045 | AO132: 2046 | AP132: 2047 | AQ132: 2048 | AR132: 2049 | AS132: 2050
J133: CAPEX ($/kW) | K133: Utility PV - Seattle - Low | L133: =L150+L167 -> 1110.730205 | M133: 1114.755147 | N133: 961.6048144 | O133: 902.22647 | P133: 868.4702602 | Q133: 834.7140504 | R133: 800.9578406 | S133: 767.2016308 | T133: 733.445421 | U133: 699.6892112 | V133: 665.9330014 | W133: 632.1767916 | X133: 598.4205818 | Y133: 564.664372 | Z133: 548.5146793 | AA133: 532.3649866 | AB133: 516.2152939 | AC133: 500.0656012 | AD133: 483.9159085 | AE133: 471.661899 | AF133: 459.4078895 | AG133: 447.15388 | AH133: 434.8998705 | AI133: 422.645861 | AJ133: 415.2131427 | AK133: 407.7804244 | AL133: 400.3477061 | AM133: 392.9149878 | AN133: 385.4822695 | AO133: 379.5794155 | AP133: 373.6765615 | AQ133: 367.7737075 | AR133: 361.8708536 | AS133: 355.9679996
K134: Utility PV - Seattle - Mid | L134: =L151+L168 -> 1110.730205 | M134: 1114.755147 | N134: 1095.136341 | O134: 1074.546059 | P134: 1054.271605 | Q134: 1032.870793 | R134: 1011.46998 | S134: 990.0691678 | T134: 968.6683553 | U134: 947.2675428 | V134: 925.8667303 | W134: 904.4659178 | X134: 883.0651053 | Y134: 861.6642928 | Z134: 852.1114388 | AA134: 842.5585848 | AB134: 833.0057308 | AC134: 823.4528768 | AD134: 813.9000227 | AE134: 804.3471687 | AF134: 794.7943147 | AG134: 785.2414607 | AH134: 775.6886067 | AI134: 766.1357527 | AJ134: 757.8532041 | AK134: 749.5706554 | AL134: 741.2881067 | AM134: 733.005558 | AN134: 724.7230093 | AO134: 716.4404607 | AP134: 708.157912 | AQ134: 699.8753633 | AR134: 691.5928146 | AS134: 683.310266
K135: Utility PV - Seattle - Constant | L135: =L152+L169 -> 1110.730205 | M135: 1114.755147 | N135: 1114.755147 | O135: 1114.755147 | P135: 1114.755147 | Q135: 1114.755147 | R135: 1114.755147 | S135: 1114.755147 | T135: 1114.755147 | U135: 1114.755147 | V135: 1114.755147 | W135: 1114.755147 | X135: 1114.755147 | Y135: 1114.755147 | Z135: 1114.755147 | AA135: 1114.755147 | AB135: 1114.755147 | AC135: 1114.755147 | AD135: 1114.755147 | AE135: 1114.755147 | AF135: 1114.755147 | AG135: 1114.755147 | AH135: 1114.755147 | AI135: 1114.755147 | AJ135: 1114.755147 | AK135: 1114.755147 | AL135: 1114.755147 | AM135: 1114.755147 | AN135: 1114.755147 | AO135: 1114.755147 | AP135: 1114.755147 | AQ135: 1114.755147 | AR135: 1114.755147 | AS135: 1114.755147
K136: Utility PV - Chicago - Low | L136: =L153+L170 -> 1110.730205 | M136: 1114.755147 | N136: 961.6048144 | O136: 902.22647 | P136: 868.4702602 | Q136: 834.7140504 | R136: 800.9578406 | S136: 767.2016308 | T136: 733.445421 | U136: 699.6892112 | V136: 665.9330014 | W136: 632.1767916 | X136: 598.4205818 | Y136: 564.664372 | Z136: 548.5146793 | AA136: 532.3649866 | AB136: 516.2152939 | AC136: 500.0656012 | AD136: 483.9159085 | AE136: 471.661899 | AF136: 459.4078895 | AG136: 447.15388 | AH136: 434.8998705 | AI136: 422.645861 | AJ136: 415.2131427 | AK136: 407.7804244 | AL136: 400.3477061 | AM136: 392.9149878 | AN136: 385.4822695 | AO136: 379.5794155 | AP136: 373.6765615 | AQ136: 367.7737075 | AR136: 361.8708536 | AS136: 355.9679996
K137: Utility PV - Chicago - Mid | L137: =L154+L171 -> 1110.730205 | M137: 1114.755147 | N137: 1095.136341 | O137: 1074.546059 | P137: 1054.271605 | Q137: 1032.870793 | R137: 1011.46998 | S137: 990.0691678 | T137: 968.6683553 | U137: 947.2675428 | V137: 925.8667303 | W137: 904.4659178 | X137: 883.0651053 | Y137: 861.6642928 | Z137: 852.1114388 | AA137: 842.5585848 | AB137: 833.0057308 | AC137: 823.4528768 | AD137: 813.9000227 | AE137: 804.3471687 | AF137: 794.7943147 | AG137: 785.2414607 | AH137: 775.6886067 | AI137: 766.1357527 | AJ137: 757.8532041 | AK137: 749.5706554 | AL137: 741.2881067 | AM137: 733.005558 | AN137: 724.7230093 | AO137: 716.4404607 | AP137: 708.157912 | AQ137: 699.8753633 | AR137: 691.5928146 | AS137: 683.310266
K138: Utility PV - Chicago - Constant | L138: =L155+L172 -> 1110.730205 | M138: 1114.755147 | N138: 1114.755147 | O138: 1114.755147 | P138: 1114.755147 | Q138: 1114.755147 | R138: 1114.755147 | S138: 1114.755147 | T138: 1114.755147 | U138: 1114.755147 | V138: 1114.755147 | W138: 1114.755147 | X138: 1114.755147 | Y138: 1114.755147 | Z138: 1114.755147 | AA138: 1114.755147 | AB138: 1114.755147 | AC138: 1114.755147 | AD138: 1114.755147 | AE138: 1114.755147 | AF138: 1114.755147 | AG138: 1114.755147 | AH138: 1114.755147 | AI138: 1114.755147 | AJ138: 1114.755147 | AK138: 1114.755147 | AL138: 1114.755147 | AM138: 1114.755147 | AN138: 1114.755147 | AO138: 1114.755147 | AP138: 1114.755147 | AQ138: 1114.755147 | AR138: 1114.755147 | AS138: 1114.755147
K139: Utility PV - Kansas City - Low | L139: =L156+L173 -> 1110.730205 | M139: 1114.755147 | N139: 961.6048144 | O139: 902.22647 | P139: 868.4702602 | Q139: 834.7140504 | R139: 800.9578406 | S139: 767.2016308 | T139: 733.445421 | U139: 699.6892112 | V139: 665.9330014 | W139: 632.1767916 | X139: 598.4205818 | Y139: 564.664372 | Z139: 548.5146793 | AA139: 532.3649866 | AB139: 516.2152939 | AC139: 500.0656012 | AD139: 483.9159085 | AE139: 471.661899 | AF139: 459.4078895 | AG139: 447.15388 | AH139: 434.8998705 | AI139: 422.645861 | AJ139: 415.2131427 | AK139: 407.7804244 | AL139: 400.3477061 | AM139: 392.9149878 | AN139: 385.4822695 | AO139: 379.5794155 | AP139: 373.6765615 | AQ139: 367.7737075 | AR139: 361.8708536 | AS139: 355.9679996
K140: Utility PV - Kansas City - Mid | L140: =L157+L174 -> 1110.730205 | M140: 1114.755147 | N140: 1095.136341 | O140: 1074.546059 | P140: 1054.271605 | Q140: 1032.870793 | R140: 1011.46998 | S140: 990.0691678 | T140: 968.6683553 | U140: 947.2675428 | V140: 925.8667303 | W140: 904.4659178 | X140: 883.0651053 | Y140: 861.6642928 | Z140: 852.1114388 | AA140: 842.5585848 | AB140: 833.0057308 | AC140: 823.4528768 | AD140: 813.9000227 | AE140: 804.3471687 | AF140: 794.7943147 | AG140: 785.2414607 | AH140: 775.6886067 | AI140: 766.1357527 | AJ140: 757.8532041 | AK140: 749.5706554 | AL140: 741.2881067 | AM140: 733.005558 | AN140: 724.7230093 | AO140: 716.4404607 | AP140: 708.157912 | AQ140: 699.8753633 | AR140: 691.5928146 | AS140: 683.310266
K141: Utility PV - Kansas City - Constant | L141: =L158+L175 -> 1110.730205 | M141: 1114.755147 | N141: 1114.755147 | O141: 1114.755147 | P141: 1114.755147 | Q141: 1114.755147 | R141: 1114.755147 | S141: 1114.755147 | T141: 1114.755147 | U141: 1114.755147 | V141: 1114.755147 | W141: 1114.755147 | X141: 1114.755147 | Y141: 1114.755147 | Z141: 1114.755147 | AA141: 1114.755147 | AB141: 1114.755147 | AC141: 1114.755147 | AD141: 1114.755147 | AE141: 1114.755147 | AF141: 1114.755147 | AG141: 1114.755147 | AH141: 1114.755147 | AI141: 1114.755147 | AJ141: 1114.755147 | AK141: 1114.755147 | AL141: 1114.755147 | AM141: 1114.755147 | AN141: 1114.755147 | AO141: 1114.755147 | AP141: 1114.755147 | AQ141: 1114.755147 | AR141: 1114.755147 | AS141: 1114.755147
K142: Utility PV - Los Angeles - Low | L142: =L159+L176 -> 1110.730205 | M142: 1114.755147 | N142: 961.6048144 | O142: 902.22647 | P142: 868.4702602 | Q142: 834.7140504 | R142: 800.9578406 | S142: 767.2016308 | T142: 733.445421 | U142: 699.6892112 | V142: 665.9330014 | W142: 632.1767916 | X142: 598.4205818 | Y142: 564.664372 | Z142: 548.5146793 | AA142: 532.3649866 | AB142: 516.2152939 | AC142: 500.0656012 | AD142: 483.9159085 | AE142: 471.661899 | AF142: 459.4078895 | AG142: 447.15388 | AH142: 434.8998705 | AI142: 422.645861 | AJ142: 415.2131427 | AK142: 407.7804244 | AL142: 400.3477061 | AM142: 392.9149878 | AN142: 385.4822695 | AO142: 379.5794155 | AP142: 373.6765615 | AQ142: 367.7737075 | AR142: 361.8708536 | AS142: 355.9679996
K143: Utility PV - Los Angeles - Mid | L143: =L160+L177 -> 1110.730205 | M143: 1114.755147 | N143: 1095.136341 | O143: 1074.546059 | P143: 1054.271605 | Q143: 1032.870793 | R143: 1011.46998 | S143: 990.0691678 | T143: 968.6683553 | U143: 947.2675428 | V143: 925.8667303 | W143: 904.4659178 | X143: 883.0651053 | Y143: 861.6642928 | Z143: 852.1114388 | AA143: 842.5585848 | AB143: 833.0057308 | AC143: 823.4528768 | AD143: 813.9000227 | AE143: 804.3471687 | AF143: 794.7943147 | AG143: 785.2414607 | AH143: 775.6886067 | AI143: 766.1357527 | AJ143: 757.8532041 | AK143: 749.5706554 | AL143: 741.2881067 | AM143: 733.005558 | AN143: 724.7230093 | AO143: 716.4404607 | AP143: 708.157912 | AQ143: 699.8753633 | AR143: 691.5928146 | AS143: 683.310266
K144: Utility PV - Los Angeles - Constant | L144: =L161+L178 -> 1110.730205 | M144: 1114.755147 | N144: 1114.755147 | O144: 1114.755147 | P144: 1114.755147 | Q144: 1114.755147 | R144: 1114.755147 | S144: 1114.755147 | T144: 1114.755147 | U144: 1114.755147 | V144: 1114.755147 | W144: 1114.755147 | X144: 1114.755147 | Y144: 1114.755147 | Z144: 1114.755147 | AA144: 1114.755147 | AB144: 1114.755147 | AC144: 1114.755147 | AD144: 1114.755147 | AE144: 1114.755147 | AF144: 1114.755147 | AG144: 1114.755147 | AH144: 1114.755147 | AI144: 1114.755147 | AJ144: 1114.755147 | AK144: 1114.755147 | AL144: 1114.755147 | AM144: 1114.755147 | AN144: 1114.755147 | AO144: 1114.755147 | AP144: 1114.755147 | AQ144: 1114.755147 | AR144: 1114.755147 | AS144: 1114.755147
K145: Utility PV - Daggett, CA - Low | L145: =L162+L179 -> 1110.730205 | M145: 1114.755147 | N145: 961.6048144 | O145: 902.22647 | P145: 868.4702602 | Q145: 834.7140504 | R145: 800.9578406 | S145: 767.2016308 | T145: 733.445421 | U145: 699.6892112 | V145: 665.9330014 | W145: 632.1767916 | X145: 598.4205818 | Y145: 564.664372 | Z145: 548.5146793 | AA145: 532.3649866 | AB145: 516.2152939 | AC145: 500.0656012 | AD145: 483.9159085 | AE145: 471.661899 | AF145: 459.4078895 | AG145: 447.15388 | AH145: 434.8998705 | AI145: 422.645861 | AJ145: 415.2131427 | AK145: 407.7804244 | AL145: 400.3477061 | AM145: 392.9149878 | AN145: 385.4822695 | AO145: 379.5794155 | AP145: 373.6765615 | AQ145: 367.7737075 | AR145: 361.8708536 | AS145: 355.9679996
K146: Utility PV - Daggett, CA - Mid | L146: =L163+L180 -> 1110.730205 | M146: 1114.755147 | N146: 1095.136341 | O146: 1074.546059 | P146: 1054.271605 | Q146: 1032.870793 | R146: 1011.46998 | S146: 990.0691678 | T146: 968.6683553 | U146: 947.2675428 | V146: 925.8667303 | W146: 904.4659178 | X146: 883.0651053 | Y146: 861.6642928 | Z146: 852.1114388 | AA146: 842.5585848 | AB146: 833.0057308 | AC146: 823.4528768 | AD146: 813.9000227 | AE146: 804.3471687 | AF146: 794.7943147 | AG146: 785.2414607 | AH146: 775.6886067 | AI146: 766.1357527 | AJ146: 757.8532041 | AK146: 749.5706554 | AL146: 741.2881067 | AM146: 733.005558 | AN146: 724.7230093 | AO146: 716.4404607 | AP146: 708.157912 | AQ146: 699.8753633 | AR146: 691.5928146 | AS146: 683.310266
K147: Utility PV - Daggett, CA - Constant | L147: =L164+L181 -> 1110.730205 | M147: 1114.755147 | N147: 1114.755147 | O147: 1114.755147 | P147: 1114.755147 | Q147: 1114.755147 | R147: 1114.755147 | S147: 1114.755147 | T147: 1114.755147 | U147: 1114.755147 | V147: 1114.755147 | W147: 1114.755147 | X147: 1114.755147 | Y147: 1114.755147 | Z147: 1114.755147 | AA147: 1114.755147 | AB147: 1114.755147 | AC147: 1114.755147 | AD147: 1114.755147 | AE147: 1114.755147 | AF147: 1114.755147 | AG147: 1114.755147 | AH147: 1114.755147 | AI147: 1114.755147 | AJ147: 1114.755147 | AK147: 1114.755147 | AL147: 1114.755147 | AM147: 1114.755147 | AN147: 1114.755147 | AO147: 1114.755147 | AP147: 1114.755147 | AQ147: 1114.755147 | AR147: 1114.755147 | AS147: 1114.755147
L149: 2017 | M149: 2018 | N149: 2019 | O149: 2020 | P149: 2021 | Q149: 2022 | R149: 2023 | S149: 2024 | T149: 2025 | U149: 2026 | V149: 2027 | W149: 2028 | X149: 2029 | Y149: 2030 | Z149: 2031 | AA149: 2032 | AB149: 2033 | AC149: 2034 | AD149: 2035 | AE149: 2036 | AF149: 2037 | AG149: 2038 | AH149: 2039 | AI149: 2040 | AJ149: 2041 | AK149: 2042 | AL149: 2043 | AM149: 2044 | AN149: 2045 | AO149: 2046 | AP149: 2047 | AQ149: 2048 | AR149: 2049 | AS149: 2050
J150: Construction Financing Cost ($/kW) | K150: Utility PV - Seattle - Low | L150: =($S$48-1)*(L167+L269) -> 15.0358816 | M150: 15.09036698 | N150: 13.01718102 | O150: 12.21338028 | P150: 11.75642469 | Q150: 11.2994691 | R150: 10.84251352 | S150: 10.38555793 | T150: 9.928602341 | U150: 9.471646753 | V150: 9.014691165 | W150: 8.557735577 | X150: 8.100779989 | Y150: 7.643824401 | Z150: 7.425207074 | AA150: 7.206589748 | AB150: 6.987972422 | AC150: 6.769355096 | AD150: 6.550737769 | AE150: 6.38485605 | AF150: 6.218974331 | AG150: 6.053092612 | AH150: 5.887210893 | AI150: 5.721329174 | AJ150: 5.620712956 | AK150: 5.520096738 | AL150: 5.41948052 | AM150: 5.318864302 | AN150: 5.218248084 | AO150: 5.138341538 | AP150: 5.058434993 | AQ150: 4.978528448 | AR150: 4.898621902 | AS150: 4.818715357
K151: Utility PV - Seattle - Mid | L151: =($S$48-1)*(L168+L270) -> 15.0358816 | M151: 15.09036698 | N151: 14.8247885 | O151: 14.54605921 | P151: 14.27160526 | Q151: 13.98190387 | R151: 13.69220248 | S151: 13.40250109 | T151: 13.1127997 | U151: 12.82309831 | V151: 12.53339693 | W151: 12.24369554 | X151: 11.95399415 | Y151: 11.66429276 | Z151: 11.5349764 | AA151: 11.40566005 | AB151: 11.27634369 | AC151: 11.14702734 | AD151: 11.01771098 | AE151: 10.88839463 | AF151: 10.75907827 | AG151: 10.62976192 | AH151: 10.50044556 | AI151: 10.37112921 | AJ151: 10.25900889 | AK151: 10.14688858 | AL151: 10.03476826 | AM151: 9.922647944 | AN151: 9.810527628 | AO151: 9.698407313 | AP151: 9.586286997 | AQ151: 9.474166681 | AR151: 9.362046365 | AS151: 9.24992605
K152: Utility PV - Seattle - Constant | L152: =($S$48-1)*(L169+L271) -> 15.0358816 | M152: 15.09036698 | N152: 15.09036698 | O152: 15.09036698 | P152: 15.09036698 | Q152: 15.09036698 | R152: 15.09036698 | S152: 15.09036698 | T152: 15.09036698 | U152: 15.09036698 | V152: 15.09036698 | W152: 15.09036698 | X152: 15.09036698 | Y152: 15.09036698 | Z152: 15.09036698 | AA152: 15.09036698 | AB152: 15.09036698 | AC152: 15.09036698 | AD152: 15.09036698 | AE152: 15.09036698 | AF152: 15.09036698 | AG152: 15.09036698 | AH152: 15.09036698 | AI152: 15.09036698 | AJ152: 15.09036698 | AK152: 15.09036698 | AL152: 15.09036698 | AM152: 15.09036698 | AN152: 15.09036698 | AO152: 15.09036698 | AP152: 15.09036698 | AQ152: 15.09036698 | AR152: 15.09036698 | AS152: 15.09036698
K153: Utility PV - Chicago - Low | L153: =($S$48-1)*(L170+L272) -> 15.0358816 | M153: 15.09036698 | N153: 13.01718102 | O153: 12.21338028 | P153: 11.75642469 | Q153: 11.2994691 | R153: 10.84251352 | S153: 10.38555793 | T153: 9.928602341 | U153: 9.471646753 | V153: 9.014691165 | W153: 8.557735577 | X153: 8.100779989 | Y153: 7.643824401 | Z153: 7.425207074 | AA153: 7.206589748 | AB153: 6.987972422 | AC153: 6.769355096 | AD153: 6.550737769 | AE153: 6.38485605 | AF153: 6.218974331 | AG153: 6.053092612 | AH153: 5.887210893 | AI153: 5.721329174 | AJ153: 5.620712956 | AK153: 5.520096738 | AL153: 5.41948052 | AM153: 5.318864302 | AN153: 5.218248084 | AO153: 5.138341538 | AP153: 5.058434993 | AQ153: 4.978528448 | AR153: 4.898621902 | AS153: 4.818715357
K154: Utility PV - Chicago - Mid | L154: =($S$48-1)*(L171+L273) -> 15.0358816 | M154: 15.09036698 | N154: 14.8247885 | O154: 14.54605921 | P154: 14.27160526 | Q154: 13.98190387 | R154: 13.69220248 | S154: 13.40250109 | T154: 13.1127997 | U154: 12.82309831 | V154: 12.53339693 | W154: 12.24369554 | X154: 11.95399415 | Y154: 11.66429276 | Z154: 11.5349764 | AA154: 11.40566005 | AB154: 11.27634369 | AC154: 11.14702734 | AD154: 11.01771098 | AE154: 10.88839463 | AF154: 10.75907827 | AG154: 10.62976192 | AH154: 10.50044556 | AI154: 10.37112921 | AJ154: 10.25900889 | AK154: 10.14688858 | AL154: 10.03476826 | AM154: 9.922647944 | AN154: 9.810527628 | AO154: 9.698407313 | AP154: 9.586286997 | AQ154: 9.474166681 | AR154: 9.362046365 | AS154: 9.24992605
K155: Utility PV - Chicago - Constant | L155: =($S$48-1)*(L172+L274) -> 15.0358816 | M155: 15.09036698 | N155: 15.09036698 | O155: 15.09036698 | P155: 15.09036698 | Q155: 15.09036698 | R155: 15.09036698 | S155: 15.09036698 | T155: 15.09036698 | U155: 15.09036698 | V155: 15.09036698 | W155: 15.09036698 | X155: 15.09036698 | Y155: 15.09036698 | Z155: 15.09036698 | AA155: 15.09036698 | AB155: 15.09036698 | AC155: 15.09036698 | AD155: 15.09036698 | AE155: 15.09036698 | AF155: 15.09036698 | AG155: 15.09036698 | AH155: 15.09036698 | AI155: 15.09036698 | AJ155: 15.09036698 | AK155: 15.09036698 | AL155: 15.09036698 | AM155: 15.09036698 | AN155: 15.09036698 | AO155: 15.09036698 | AP155: 15.09036698 | AQ155: 15.09036698 | AR155: 15.09036698 | AS155: 15.09036698
K156: Utility PV - Kansas City - Low | L156: =($S$48-1)*(L173+L275) -> 15.0358816 | M156: 15.09036698 | N156: 13.01718102 | O156: 12.21338028 | P156: 11.75642469 | Q156: 11.2994691 | R156: 10.84251352 | S156: 10.38555793 | T156: 9.928602341 | U156: 9.471646753 | V156: 9.014691165 | W156: 8.557735577 | X156: 8.100779989 | Y156: 7.643824401 | Z156: 7.425207074 | AA156: 7.206589748 | AB156: 6.987972422 | AC156: 6.769355096 | AD156: 6.550737769 | AE156: 6.38485605 | AF156: 6.218974331 | AG156: 6.053092612 | AH156: 5.887210893 | AI156: 5.721329174 | AJ156: 5.620712956 | AK156: 5.520096738 | AL156: 5.41948052 | AM156: 5.318864302 | AN156: 5.218248084 | AO156: 5.138341538 | AP156: 5.058434993 | AQ156: 4.978528448 | AR156: 4.898621902 | AS156: 4.818715357
K157: Utility PV - Kansas City - Mid | L157: =($S$48-1)*(L174+L276) -> 15.0358816 | M157: 15.09036698 | N157: 14.8247885 | O157: 14.54605921 | P157: 14.27160526 | Q157: 13.98190387 | R157: 13.69220248 | S157: 13.40250109 | T157: 13.1127997 | U157: 12.82309831 | V157: 12.53339693 | W157: 12.24369554 | X157: 11.95399415 | Y157: 11.66429276 | Z157: 11.5349764 | AA157: 11.40566005 | AB157: 11.27634369 | AC157: 11.14702734 | AD157: 11.01771098 | AE157: 10.88839463 | AF157: 10.75907827 | AG157: 10.62976192 | AH157: 10.50044556 | AI157: 10.37112921 | AJ157: 10.25900889 | AK157: 10.14688858 | AL157: 10.03476826 | AM157: 9.922647944 | AN157: 9.810527628 | AO157: 9.698407313 | AP157: 9.586286997 | AQ157: 9.474166681 | AR157: 9.362046365 | AS157: 9.24992605
K158: Utility PV - Kansas City - Constant | L158: =($S$48-1)*(L175+L277) -> 15.0358816 | M158: 15.09036698 | N158: 15.09036698 | O158: 15.09036698 | P158: 15.09036698 | Q158: 15.09036698 | R158: 15.09036698 | S158: 15.09036698 | T158: 15.09036698 | U158: 15.09036698 | V158: 15.09036698 | W158: 15.09036698 | X158: 15.09036698 | Y158: 15.09036698 | Z158: 15.09036698 | AA158: 15.09036698 | AB158: 15.09036698 | AC158: 15.09036698 | AD158: 15.09036698 | AE158: 15.09036698 | AF158: 15.09036698 | AG158: 15.09036698 | AH158: 15.09036698 | AI158: 15.09036698 | AJ158: 15.09036698 | AK158: 15.09036698 | AL158: 15.09036698 | AM158: 15.09036698 | AN158: 15.09036698 | AO158: 15.09036698 | AP158: 15.09036698 | AQ158: 15.09036698 | AR158: 15.09036698 | AS158: 15.09036698
K159: Utility PV - Los Angeles - Low | L159: =($S$48-1)*(L176+L278) -> 15.0358816 | M159: 15.09036698 | N159: 13.01718102 | O159: 12.21338028 | P159: 11.75642469 | Q159: 11.2994691 | R159: 10.84251352 | S159: 10.38555793 | T159: 9.928602341 | U159: 9.471646753 | V159: 9.014691165 | W159: 8.557735577 | X159: 8.100779989 | Y159: 7.643824401 | Z159: 7.425207074 | AA159: 7.206589748 | AB159: 6.987972422 | AC159: 6.769355096 | AD159: 6.550737769 | AE159: 6.38485605 | AF159: 6.218974331 | AG159: 6.053092612 | AH159: 5.887210893 | AI159: 5.721329174 | AJ159: 5.620712956 | AK159: 5.520096738 | AL159: 5.41948052 | AM159: 5.318864302 | AN159: 5.218248084 | AO159: 5.138341538 | AP159: 5.058434993 | AQ159: 4.978528448 | AR159: 4.898621902 | AS159: 4.818715357
K160: Utility PV - Los Angeles - Mid | L160: =($S$48-1)*(L177+L279) -> 15.0358816 | M160: 15.09036698 | N160: 14.8247885 | O160: 14.54605921 | P160: 14.27160526 | Q160: 13.98190387 | R160: 13.69220248 | S160: 13.40250109 | T160: 13.1127997 | U160: 12.82309831 | V160: 12.53339693 | W160: 12.24369554 | X160: 11.95399415 | Y160: 11.66429276 | Z160: 11.5349764 | AA160: 11.40566005 | AB160: 11.27634369 | AC160: 11.14702734 | AD160: 11.01771098 | AE160: 10.88839463 | AF160: 10.75907827 | AG160: 10.62976192 | AH160: 10.50044556 | AI160: 10.37112921 | AJ160: 10.25900889 | AK160: 10.14688858 | AL160: 10.03476826 | AM160: 9.922647944 | AN160: 9.810527628 | AO160: 9.698407313 | AP160: 9.586286997 | AQ160: 9.474166681 | AR160: 9.362046365 | AS160: 9.24992605
K161: Utility PV - Los Angeles - Constant | L161: =($S$48-1)*(L178+L280) -> 15.0358816 | M161: 15.09036698 | N161: 15.09036698 | O161: 15.09036698 | P161: 15.09036698 | Q161: 15.09036698 | R161: 15.09036698 | S161: 15.09036698 | T161: 15.09036698 | U161: 15.09036698 | V161: 15.09036698 | W161: 15.09036698 | X161: 15.09036698 | Y161: 15.09036698 | Z161: 15.09036698 | AA161: 15.09036698 | AB161: 15.09036698 | AC161: 15.09036698 | AD161: 15.09036698 | AE161: 15.09036698 | AF161: 15.09036698 | AG161: 15.09036698 | AH161: 15.09036698 | AI161: 15.09036698 | AJ161: 15.09036698 | AK161: 15.09036698 | AL161: 15.09036698 | AM161: 15.09036698 | AN161: 15.09036698 | AO161: 15.09036698 | AP161: 15.09036698 | AQ161: 15.09036698 | AR161: 15.09036698 | AS161: 15.09036698
K162: Utility PV - Daggett, CA - Low | L162: =($S$48-1)*(L179+L281) -> 15.0358816 | M162: 15.09036698 | N162: 13.01718102 | O162: 12.21338028 | P162: 11.75642469 | Q162: 11.2994691 | R162: 10.84251352 | S162: 10.38555793 | T162: 9.928602341 | U162: 9.471646753 | V162: 9.014691165 | W162: 8.557735577 | X162: 8.100779989 | Y162: 7.643824401 | Z162: 7.425207074 | AA162: 7.206589748 | AB162: 6.987972422 | AC162: 6.769355096 | AD162: 6.550737769 | AE162: 6.38485605 | AF162: 6.218974331 | AG162: 6.053092612 | AH162: 5.887210893 | AI162: 5.721329174 | AJ162: 5.620712956 | AK162: 5.520096738 | AL162: 5.41948052 | AM162: 5.318864302 | AN162: 5.218248084 | AO162: 5.138341538 | AP162: 5.058434993 | AQ162: 4.978528448 | AR162: 4.898621902 | AS162: 4.818715357
K163: Utility PV - Daggett, CA - Mid | L163: =($S$48-1)*(L180+L282) -> 15.0358816 | M163: 15.09036698 | N163: 14.8247885 | O163: 14.54605921 | P163: 14.27160526 | Q163: 13.98190387 | R163: 13.69220248 | S163: 13.40250109 | T163: 13.1127997 | U163: 12.82309831 | V163: 12.53339693 | W163: 12.24369554 | X163: 11.95399415 | Y163: 11.66429276 | Z163: 11.5349764 | AA163: 11.40566005 | AB163: 11.27634369 | AC163: 11.14702734 | AD163: 11.01771098 | AE163: 10.88839463 | AF163: 10.75907827 | AG163: 10.62976192 | AH163: 10.50044556 | AI163: 10.37112921 | AJ163: 10.25900889 | AK163: 10.14688858 | AL163: 10.03476826 | AM163: 9.922647944 | AN163: 9.810527628 | AO163: 9.698407313 | AP163: 9.586286997 | AQ163: 9.474166681 | AR163: 9.362046365 | AS163: 9.24992605
K164: Utility PV - Daggett, CA - Constant | L164: =($S$48-1)*(L181+L283) -> 15.0358816 | M164: 15.09036698 | N164: 15.09036698 | O164: 15.09036698 | P164: 15.09036698 | Q164: 15.09036698 | R164: 15.09036698 | S164: 15.09036698 | T164: 15.09036698 | U164: 15.09036698 | V164: 15.09036698 | W164: 15.09036698 | X164: 15.09036698 | Y164: 15.09036698 | Z164: 15.09036698 | AA164: 15.09036698 | AB164: 15.09036698 | AC164: 15.09036698 | AD164: 15.09036698 | AE164: 15.09036698 | AF164: 15.09036698 | AG164: 15.09036698 | AH164: 15.09036698 | AI164: 15.09036698 | AJ164: 15.09036698 | AK164: 15.09036698 | AL164: 15.09036698 | AM164: 15.09036698 | AN164: 15.09036698 | AO164: 15.09036698 | AP164: 15.09036698 | AQ164: 15.09036698 | AR164: 15.09036698 | AS164: 15.09036698
L166: 2017 | M166: 2018 | N166: 2019 | O166: 2020 | P166: 2021 | Q166: 2022 | R166: 2023 | S166: 2024 | T166: 2025 | U166: 2026 | V166: 2027 | W166: 2028 | X166: 2029 | Y166: 2030 | Z166: 2031 | AA166: 2032 | AB166: 2033 | AC166: 2034 | AD166: 2035 | AE166: 2036 | AF166: 2037 | AG166: 2038 | AH166: 2039 | AI166: 2040 | AJ166: 2041 | AK166: 2042 | AL166: 2043 | AM166: 2044 | AN166: 2045 | AO166: 2046 | AP166: 2047 | AQ166: 2048 | AR166: 2049 | AS166: 2050
J167: Overnight Capital Cost ($/kW) | K167: Utility PV - Seattle - Low | L167: 1095.694323 | M167: 1099.66478 | N167: 948.5876334 | O167: 890.0130898 | P167: 856.7138355 | Q167: 823.4145813 | R167: 790.1153271 | S167: 756.8160729 | T167: 723.5168187 | U167: 690.2175645 | V167: 656.9183103 | W167: 623.6190561 | X167: 590.3198018 | Y167: 557.0205476 | Z167: 541.0894722 | AA167: 525.1583968 | AB167: 509.2273215 | AC167: 493.2962461 | AD167: 477.3651707 | AE167: 465.2770429 | AF167: 453.1889152 | AG167: 441.1007874 | AH167: 429.0126596 | AI167: 416.9245319 | AJ167: 409.5924298 | AK167: 402.2603277 | AL167: 394.9282256 | AM167: 387.5961235 | AN167: 380.2640214 | AO167: 374.4410739 | AP167: 368.6181265 | AQ167: 362.7951791 | AR167: 356.9722317 | AS167: 351.1492842
K168: Utility PV - Seattle - Mid | L168: 1095.694323 | M168: 1099.66478 | N168: 1080.311553 | O168: 1060 | P168: 1040 | Q168: 1018.888889 | R168: 997.7777778 | S168: 976.6666667 | T168: 955.5555556 | U168: 934.4444444 | V168: 913.3333333 | W168: 892.2222222 | X168: 871.1111111 | Y168: 850 | Z168: 840.5764624 | AA168: 831.1529247 | AB168: 821.7293871 | AC168: 812.3058494 | AD168: 802.8823118 | AE168: 793.4587741 | AF168: 784.0352365 | AG168: 774.6116988 | AH168: 765.1881612 | AI168: 755.7646235 | AJ168: 747.5941952 | AK168: 739.4237668 | AL168: 731.2533384 | AM168: 723.0829101 | AN168: 714.9124817 | AO168: 706.7420534 | AP168: 698.571625 | AQ168: 690.4011966 | AR168: 682.2307683 | AS168: 674.0603399
K169: Utility PV - Seattle - Constant | L169: 1095.694323 | M169: 1099.66478 | N169: 1099.66478 | O169: 1099.66478 | P169: 1099.66478 | Q169: 1099.66478 | R169: 1099.66478 | S169: 1099.66478 | T169: 1099.66478 | U169: 1099.66478 | V169: 1099.66478 | W169: 1099.66478 | X169: 1099.66478 | Y169: 1099.66478 | Z169: 1099.66478 | AA169: 1099.66478 | AB169: 1099.66478 | AC169: 1099.66478 | AD169: 1099.66478 | AE169: 1099.66478 | AF169: 1099.66478 | AG169: 1099.66478 | AH169: 1099.66478 | AI169: 1099.66478 | AJ169: 1099.66478 | AK169: 1099.66478 | AL169: 1099.66478 | AM169: 1099.66478 | AN169: 1099.66478 | AO169: 1099.66478 | AP169: 1099.66478 | AQ169: 1099.66478 | AR169: 1099.66478 | AS169: 1099.66478
K170: Utility PV - Chicago - Low | L170: =L167 -> 1095.694323 | M170: =M167 -> 1099.66478 | N170: 948.5876334 | O170: 890.0130898 | P170: 856.7138355 | Q170: 823.4145813 | R170: 790.1153271 | S170: 756.8160729 | T170: 723.5168187 | U170: 690.2175645 | V170: 656.9183103 | W170: 623.6190561 | X170: 590.3198018 | Y170: 557.0205476 | Z170: 541.0894722 | AA170: 525.1583968 | AB170: 509.2273215 | AC170: 493.2962461 | AD170: 477.3651707 | AE170: 465.2770429 | AF170: 453.1889152 | AG170: 441.1007874 | AH170: 429.0126596 | AI170: 416.9245319 | AJ170: 409.5924298 | AK170: 402.2603277 | AL170: 394.9282256 | AM170: 387.5961235 | AN170: 380.2640214 | AO170: 374.4410739 | AP170: 368.6181265 | AQ170: 362.7951791 | AR170: 356.9722317 | AS170: 351.1492842
K171: Utility PV - Chicago - Mid | L171: =L168 -> 1095.694323 | M171: 1099.66478 | N171: 1080.311553 | O171: 1060 | P171: 1040 | Q171: 1018.888889 | R171: 997.7777778 | S171: 976.6666667 | T171: 955.5555556 | U171: 934.4444444 | V171: 913.3333333 | W171: 892.2222222 | X171: 871.1111111 | Y171: 850 | Z171: 840.5764624 | AA171: 831.1529247 | AB171: 821.7293871 | AC171: 812.3058494 | AD171: 802.8823118 | AE171: 793.4587741 | AF171: 784.0352365 | AG171: 774.6116988 | AH171: 765.1881612 | AI171: 755.7646235 | AJ171: 747.5941952 | AK171: 739.4237668 | AL171: 731.2533384 | AM171: 723.0829101 | AN171: 714.9124817 | AO171: 706.7420534 | AP171: 698.571625 | AQ171: 690.4011966 | AR171: 682.2307683 | AS171: 674.0603399
K172: Utility PV - Chicago - Constant | L172: =L169 -> 1095.694323 | M172: 1099.66478 | N172: 1099.66478 | O172: 1099.66478 | P172: 1099.66478 | Q172: 1099.66478 | R172: 1099.66478 | S172: 1099.66478 | T172: 1099.66478 | U172: 1099.66478 | V172: 1099.66478 | W172: 1099.66478 | X172: 1099.66478 | Y172: 1099.66478 | Z172: 1099.66478 | AA172: 1099.66478 | AB172: 1099.66478 | AC172: 1099.66478 | AD172: 1099.66478 | AE172: 1099.66478 | AF172: 1099.66478 | AG172: 1099.66478 | AH172: 1099.66478 | AI172: 1099.66478 | AJ172: 1099.66478 | AK172: 1099.66478 | AL172: 1099.66478 | AM172: 1099.66478 | AN172: 1099.66478 | AO172: 1099.66478 | AP172: 1099.66478 | AQ172: 1099.66478 | AR172: 1099.66478 | AS172: 1099.66478
K173: Utility PV - Kansas City - Low | L173: =L170 -> 1095.694323 | M173: 1099.66478 | N173: 948.5876334 | O173: 890.0130898 | P173: 856.7138355 | Q173: 823.4145813 | R173: 790.1153271 | S173: 756.8160729 | T173: 723.5168187 | U173: 690.2175645 | V173: 656.9183103 | W173: 623.6190561 | X173: 590.3198018 | Y173: 557.0205476 | Z173: 541.0894722 | AA173: 525.1583968 | AB173: 509.2273215 | AC173: 493.2962461 | AD173: 477.3651707 | AE173: 465.2770429 | AF173: 453.1889152 | AG173: 441.1007874 | AH173: 429.0126596 | AI173: 416.9245319 | AJ173: 409.5924298 | AK173: 402.2603277 | AL173: 394.9282256 | AM173: 387.5961235 | AN173: 380.2640214 | AO173: 374.4410739 | AP173: 368.6181265 | AQ173: 362.7951791 | AR173: 356.9722317 | AS173: 351.1492842
K174: Utility PV - Kansas City - Mid | L174: =L171 -> 1095.694323 | M174: 1099.66478 | N174: 1080.311553 | O174: 1060 | P174: 1040 | Q174: 1018.888889 | R174: 997.7777778 | S174: 976.6666667 | T174: 955.5555556 | U174: 934.4444444 | V174: 913.3333333 | W174: 892.2222222 | X174: 871.1111111 | Y174: 850 | Z174: 840.5764624 | AA174: 831.1529247 | AB174: 821.7293871 | AC174: 812.3058494 | AD174: 802.8823118 | AE174: 793.4587741 | AF174: 784.0352365 | AG174: 774.6116988 | AH174: 765.1881612 | AI174: 755.7646235 | AJ174: 747.5941952 | AK174: 739.4237668 | AL174: 731.2533384 | AM174: 723.0829101 | AN174: 714.9124817 | AO174: 706.7420534 | AP174: 698.571625 | AQ174: 690.4011966 | AR174: 682.2307683 | AS174: 674.0603399
K175: Utility PV - Kansas City - Constant | L175: =L172 -> 1095.694323 | M175: 1099.66478 | N175: 1099.66478 | O175: 1099.66478 | P175: 1099.66478 | Q175: 1099.66478 | R175: 1099.66478 | S175: 1099.66478 | T175: 1099.66478 | U175: 1099.66478 | V175: 1099.66478 | W175: 1099.66478 | X175: 1099.66478 | Y175: 1099.66478 | Z175: 1099.66478 | AA175: 1099.66478 | AB175: 1099.66478 | AC175: 1099.66478 | AD175: 1099.66478 | AE175: 1099.66478 | AF175: 1099.66478 | AG175: 1099.66478 | AH175: 1099.66478 | AI175: 1099.66478 | AJ175: 1099.66478 | AK175: 1099.66478 | AL175: 1099.66478 | AM175: 1099.66478 | AN175: 1099.66478 | AO175: 1099.66478 | AP175: 1099.66478 | AQ175: 1099.66478 | AR175: 1099.66478 | AS175: 1099.66478
K176: Utility PV - Los Angeles - Low | L176: =L173 -> 1095.694323 | M176: 1099.66478 | N176: 948.5876334 | O176: 890.0130898 | P176: 856.7138355 | Q176: 823.4145813 | R176: 790.1153271 | S176: 756.8160729 | T176: 723.5168187 | U176: 690.2175645 | V176: 656.9183103 | W176: 623.6190561 | X176: 590.3198018 | Y176: 557.0205476 | Z176: 541.0894722 | AA176: 525.1583968 | AB176: 509.2273215 | AC176: 493.2962461 | AD176: 477.3651707 | AE176: 465.2770429 | AF176: 453.1889152 | AG176: 441.1007874 | AH176: 429.0126596 | AI176: 416.9245319 | AJ176: 409.5924298 | AK176: 402.2603277 | AL176: 394.9282256 | AM176: 387.5961235 | AN176: 380.2640214 | AO176: 374.4410739 | AP176: 368.6181265 | AQ176: 362.7951791 | AR176: 356.9722317 | AS176: 351.1492842
K177: Utility PV - Los Angeles - Mid | L177: =L174 -> 1095.694323 | M177: 1099.66478 | N177: 1080.311553 | O177: 1060 | P177: 1040 | Q177: 1018.888889 | R177: 997.7777778 | S177: 976.6666667 | T177: 955.5555556 | U177: 934.4444444 | V177: 913.3333333 | W177: 892.2222222 | X177: 871.1111111 | Y177: 850 | Z177: 840.5764624 | AA177: 831.1529247 | AB177: 821.7293871 | AC177: 812.3058494 | AD177: 802.8823118 | AE177: 793.4587741 | AF177: 784.0352365 | AG177: 774.6116988 | AH177: 765.1881612 | AI177: 755.7646235 | AJ177: 747.5941952 | AK177: 739.4237668 | AL177: 731.2533384 | AM177: 723.0829101 | AN177: 714.9124817 | AO177: 706.7420534 | AP177: 698.571625 | AQ177: 690.4011966 | AR177: 682.2307683 | AS177: 674.0603399
K178: Utility PV - Los Angeles - Constant | L178: =L175 -> 1095.694323 | M178: 1099.66478 | N178: 1099.66478 | O178: 1099.66478 | P178: 1099.66478 | Q178: 1099.66478 | R178: 1099.66478 | S178: 1099.66478 | T178: 1099.66478 | U178: 1099.66478 | V178: 1099.66478 | W178: 1099.66478 | X178: 1099.66478 | Y178: 1099.66478 | Z178: 1099.66478 | AA178: 1099.66478 | AB178: 1099.66478 | AC178: 1099.66478 | AD178: 1099.66478 | AE178: 1099.66478 | AF178: 1099.66478 | AG178: 1099.66478 | AH178: 1099.66478 | AI178: 1099.66478 | AJ178: 1099.66478 | AK178: 1099.66478 | AL178: 1099.66478 | AM178: 1099.66478 | AN178: 1099.66478 | AO178: 1099.66478 | AP178: 1099.66478 | AQ178: 1099.66478 | AR178: 1099.66478 | AS178: 1099.66478
K179: Utility PV - Daggett, CA - Low | L179: =L176 -> 1095.694323 | M179: 1099.66478 | N179: 948.5876334 | O179: 890.0130898 | P179: 856.7138355 | Q179: 823.4145813 | R179: 790.1153271 | S179: 756.8160729 | T179: 723.5168187 | U179: 690.2175645 | V179: 656.9183103 | W179: 623.6190561 | X179: 590.3198018 | Y179: 557.0205476 | Z179: 541.0894722 | AA179: 525.1583968 | AB179: 509.2273215 | AC179: 493.2962461 | AD179: 477.3651707 | AE179: 465.2770429 | AF179: 453.1889152 | AG179: 441.1007874 | AH179: 429.0126596 | AI179: 416.9245319 | AJ179: 409.5924298 | AK179: 402.2603277 | AL179: 394.9282256 | AM179: 387.5961235 | AN179: 380.2640214 | AO179: 374.4410739 | AP179: 368.6181265 | AQ179: 362.7951791 | AR179: 356.9722317 | AS179: 351.1492842
K180: Utility PV - Daggett, CA - Mid | L180: =L177 -> 1095.694323 | M180: 1099.66478 | N180: 1080.311553 | O180: 1060 | P180: 1040 | Q180: 1018.888889 | R180: 997.7777778 | S180: 976.6666667 | T180: 955.5555556 | U180: 934.4444444 | V180: 913.3333333 | W180: 892.2222222 | X180: 871.1111111 | Y180: 850 | Z180: 840.5764624 | AA180: 831.1529247 | AB180: 821.7293871 | AC180: 812.3058494 | AD180: 802.8823118 | AE180: 793.4587741 | AF180: 784.0352365 | AG180: 774.6116988 | AH180: 765.1881612 | AI180: 755.7646235 | AJ180: 747.5941952 | AK180: 739.4237668 | AL180: 731.2533384 | AM180: 723.0829101 | AN180: 714.9124817 | AO180: 706.7420534 | AP180: 698.571625 | AQ180: 690.4011966 | AR180: 682.2307683 | AS180: 674.0603399
K181: Utility PV - Daggett, CA - Constant | L181: =L178 -> 1095.694323 | M181: 1099.66478 | N181: 1099.66478 | O181: 1099.66478 | P181: 1099.66478 | Q181: 1099.66478 | R181: 1099.66478 | S181: 1099.66478 | T181: 1099.66478 | U181: 1099.66478 | V181: 1099.66478 | W181: 1099.66478 | X181: 1099.66478 | Y181: 1099.66478 | Z181: 1099.66478 | AA181: 1099.66478 | AB181: 1099.66478 | AC181: 1099.66478 | AD181: 1099.66478 | AE181: 1099.66478 | AF181: 1099.66478 | AG181: 1099.66478 | AH181: 1099.66478 | AI181: 1099.66478 | AJ181: 1099.66478 | AK181: 1099.66478 | AL181: 1099.66478 | AM181: 1099.66478 | AN181: 1099.66478 | AO181: 1099.66478 | AP181: 1099.66478 | AQ181: 1099.66478 | AR181: 1099.66478 | AS181: 1099.66478
L183: 2017 | M183: 2018 | N183: 2019 | O183: 2020 | P183: 2021 | Q183: 2022 | R183: 2023 | S183: 2024 | T183: 2025 | U183: 2026 | V183: 2027 | W183: 2028 | X183: 2029 | Y183: 2030 | Z183: 2031 | AA183: 2032 | AB183: 2033 | AC183: 2034 | AD183: 2035 | AE183: 2036 | AF183: 2037 | AG183: 2038 | AH183: 2039 | AI183: 2040 | AJ183: 2041 | AK183: 2042 | AL183: 2043 | AM183: 2044 | AN183: 2045 | AO183: 2046 | AP183: 2047 | AQ183: 2048 | AR183: 2049 | AS183: 2050
J184: Fixed Operation and Maintenance Expenses ($/kW-yr) | K184: Utility PV - Seattle - Low | L184: 19.86721975 | M184: 13.8028681 | N184: 11.3830516 | O184: 10.68015708 | P184: 10.28056603 | Q184: 9.880974976 | R184: 9.481383925 | S184: 9.081792875 | T184: 8.682201824 | U184: 8.282610774 | V184: 7.883019723 | W184: 7.483428673 | X184: 7.083837622 | Y184: 6.684246572 | Z184: 6.493073667 | AA184: 6.301900762 | AB184: 6.110727858 | AC184: 5.919554953 | AD184: 5.728382048 | AE184: 5.583324515 | AF184: 5.438266982 | AG184: 5.293209449 | AH184: 5.148151915 | AI184: 5.003094382 | AJ184: 4.915109157 | AK184: 4.827123932 | AL184: 4.739138707 | AM184: 4.651153482 | AN184: 4.563168256 | AO184: 4.493292887 | AP184: 4.423417518 | AQ184: 4.353542149 | AR184: 4.28366678 | AS184: 4.213791411
K185: Utility PV - Seattle - Mid | L185: 19.86721975 | M185: 13.8028681 | N185: 12.96373863 | O185: 12.72 | P185: 12.48 | Q185: 12.22666667 | R185: 11.97333333 | S185: 11.72 | T185: 11.46666667 | U185: 11.21333333 | V185: 10.96 | W185: 10.70666667 | X185: 10.45333333 | Y185: 10.2 | Z185: 10.08691755 | AA185: 9.973835096 | AB185: 9.860752645 | AC185: 9.747670193 | AD185: 9.634587741 | AE185: 9.521505289 | AF185: 9.408422838 | AG185: 9.295340386 | AH185: 9.182257934 | AI185: 9.069175482 | AJ185: 8.971130342 | AK185: 8.873085202 | AL185: 8.775040061 | AM185: 8.676994921 | AN185: 8.578949781 | AO185: 8.48090464 | AP185: 8.3828595 | AQ185: 8.28481436 | AR185: 8.186769219 | AS185: 8.088724079
K186: Utility PV - Seattle - Constant | L186: 19.86721975 | M186: 13.8028681 | N186: 13.8028681 | O186: 13.8028681 | P186: 13.8028681 | Q186: 13.8028681 | R186: 13.8028681 | S186: 13.8028681 | T186: 13.8028681 | U186: 13.8028681 | V186: 13.8028681 | W186: 13.8028681 | X186: 13.8028681 | Y186: 13.8028681 | Z186: 13.8028681 | AA186: 13.8028681 | AB186: 13.8028681 | AC186: 13.8028681 | AD186: 13.8028681 | AE186: 13.8028681 | AF186: 13.8028681 | AG186: 13.8028681 | AH186: 13.8028681 | AI186: 13.8028681 | AJ186: 13.8028681 | AK186: 13.8028681 | AL186: 13.8028681 | AM186: 13.8028681 | AN186: 13.8028681 | AO186: 13.8028681 | AP186: 13.8028681 | AQ186: 13.8028681 | AR186: 13.8028681 | AS186: 13.8028681
K187: Utility PV - Chicago - Low | L187: =L184 -> 19.86721975 | M187: 13.8028681 | N187: 11.3830516 | O187: 10.68015708 | P187: 10.28056603 | Q187: 9.880974976 | R187: 9.481383925 | S187: 9.081792875 | T187: 8.682201824 | U187: 8.282610774 | V187: 7.883019723 | W187: 7.483428673 | X187: 7.083837622 | Y187: 6.684246572 | Z187: 6.493073667 | AA187: 6.301900762 | AB187: 6.110727858 | AC187: 5.919554953 | AD187: 5.728382048 | AE187: 5.583324515 | AF187: 5.438266982 | AG187: 5.293209449 | AH187: 5.148151915 | AI187: 5.003094382 | AJ187: 4.915109157 | AK187: 4.827123932 | AL187: 4.739138707 | AM187: 4.651153482 | AN187: 4.563168256 | AO187: 4.493292887 | AP187: 4.423417518 | AQ187: 4.353542149 | AR187: 4.28366678 | AS187: 4.213791411
K188: Utility PV - Chicago - Mid | L188: =L185 -> 19.86721975 | M188: 13.8028681 | N188: 12.96373863 | O188: 12.72 | P188: 12.48 | Q188: 12.22666667 | R188: 11.97333333 | S188: 11.72 | T188: 11.46666667 | U188: 11.21333333 | V188: 10.96 | W188: 10.70666667 | X188: 10.45333333 | Y188: 10.2 | Z188: 10.08691755 | AA188: 9.973835096 | AB188: 9.860752645 | AC188: 9.747670193 | AD188: 9.634587741 | AE188: 9.521505289 | AF188: 9.408422838 | AG188: 9.295340386 | AH188: 9.182257934 | AI188: 9.069175482 | AJ188: 8.971130342 | AK188: 8.873085202 | AL188: 8.775040061 | AM188: 8.676994921 | AN188: 8.578949781 | AO188: 8.48090464 | AP188: 8.3828595 | AQ188: 8.28481436 | AR188: 8.186769219 | AS188: 8.088724079
K189: Utility PV - Chicago - Constant | L189: =L186 -> 19.86721975 | M189: 13.8028681 | N189: 13.8028681 | O189: 13.8028681 | P189: 13.8028681 | Q189: 13.8028681 | R189: 13.8028681 | S189: 13.8028681 | T189: 13.8028681 | U189: 13.8028681 | V189: 13.8028681 | W189: 13.8028681 | X189: 13.8028681 | Y189: 13.8028681 | Z189: 13.8028681 | AA189: 13.8028681 | AB189: 13.8028681 | AC189: 13.8028681 | AD189: 13.8028681 | AE189: 13.8028681 | AF189: 13.8028681 | AG189: 13.8028681 | AH189: 13.8028681 | AI189: 13.8028681 | AJ189: 13.8028681 | AK189: 13.8028681 | AL189: 13.8028681 | AM189: 13.8028681 | AN189: 13.8028681 | AO189: 13.8028681 | AP189: 13.8028681 | AQ189: 13.8028681 | AR189: 13.8028681 | AS189: 13.8028681
K190: Utility PV - Kansas City - Low | L190: =L187 -> 19.86721975 | M190: 13.8028681 | N190: 11.3830516 | O190: 10.68015708 | P190: 10.28056603 | Q190: 9.880974976 | R190: 9.481383925 | S190: 9.081792875 | T190: 8.682201824 | U190: 8.282610774 | V190: 7.883019723 | W190: 7.483428673 | X190: 7.083837622 | Y190: 6.684246572 | Z190: 6.493073667 | AA190: 6.301900762 | AB190: 6.110727858 | AC190: 5.919554953 | AD190: 5.728382048 | AE190: 5.583324515 | AF190: 5.438266982 | AG190: 5.293209449 | AH190: 5.148151915 | AI190: 5.003094382 | AJ190: 4.915109157 | AK190: 4.827123932 | AL190: 4.739138707 | AM190: 4.651153482 | AN190: 4.563168256 | AO190: 4.493292887 | AP190: 4.423417518 | AQ190: 4.353542149 | AR190: 4.28366678 | AS190: 4.213791411
K191: Utility PV - Kansas City - Mid | L191: =L188 -> 19.86721975 | M191: 13.8028681 | N191: 12.96373863 | O191: 12.72 | P191: 12.48 | Q191: 12.22666667 | R191: 11.97333333 | S191: 11.72 | T191: 11.46666667 | U191: 11.21333333 | V191: 10.96 | W191: 10.70666667 | X191: 10.45333333 | Y191: 10.2 | Z191: 10.08691755 | AA191: 9.973835096 | AB191: 9.860752645 | AC191: 9.747670193 | AD191: 9.634587741 | AE191: 9.521505289 | AF191: 9.408422838 | AG191: 9.295340386 | AH191: 9.182257934 | AI191: 9.069175482 | AJ191: 8.971130342 | AK191: 8.873085202 | AL191: 8.775040061 | AM191: 8.676994921 | AN191: 8.578949781 | AO191: 8.48090464 | AP191: 8.3828595 | AQ191: 8.28481436 | AR191: 8.186769219 | AS191: 8.088724079
K192: Utility PV - Kansas City - Constant | L192: =L189 -> 19.86721975 | M192: 13.8028681 | N192: 13.8028681 | O192: 13.8028681 | P192: 13.8028681 | Q192: 13.8028681 | R192: 13.8028681 | S192: 13.8028681 | T192: 13.8028681 | U192: 13.8028681 | V192: 13.8028681 | W192: 13.8028681 | X192: 13.8028681 | Y192: 13.8028681 | Z192: 13.8028681 | AA192: 13.8028681 | AB192: 13.8028681 | AC192: 13.8028681 | AD192: 13.8028681 | AE192: 13.8028681 | AF192: 13.8028681 | AG192: 13.8028681 | AH192: 13.8028681 | AI192: 13.8028681 | AJ192: 13.8028681 | AK192: 13.8028681 | AL192: 13.8028681 | AM192: 13.8028681 | AN192: 13.8028681 | AO192: 13.8028681 | AP192: 13.8028681 | AQ192: 13.8028681 | AR192: 13.8028681 | AS192: 13.8028681
A193: hi | K193: Utility PV - Los Angeles - Low | L193: =L190 -> 19.86721975 | M193: 13.8028681 | N193: 11.3830516 | O193: 10.68015708 | P193: 10.28056603 | Q193: 9.880974976 | R193: 9.481383925 | S193: 9.081792875 | T193: 8.682201824 | U193: 8.282610774 | V193: 7.883019723 | W193: 7.483428673 | X193: 7.083837622 | Y193: 6.684246572 | Z193: 6.493073667 | AA193: 6.301900762 | AB193: 6.110727858 | AC193: 5.919554953 | AD193: 5.728382048 | AE193: 5.583324515 | AF193: 5.438266982 | AG193: 5.293209449 | AH193: 5.148151915 | AI193: 5.003094382 | AJ193: 4.915109157 | AK193: 4.827123932 | AL193: 4.739138707 | AM193: 4.651153482 | AN193: 4.563168256 | AO193: 4.493292887 | AP193: 4.423417518 | AQ193: 4.353542149 | AR193: 4.28366678 | AS193: 4.213791411
K194: Utility PV - Los Angeles - Mid | L194: =L191 -> 19.86721975 | M194: 13.8028681 | N194: 12.96373863 | O194: 12.72 | P194: 12.48 | Q194: 12.22666667 | R194: 11.97333333 | S194: 11.72 | T194: 11.46666667 | U194: 11.21333333 | V194: 10.96 | W194: 10.70666667 | X194: 10.45333333 | Y194: 10.2 | Z194: 10.08691755 | AA194: 9.973835096 | AB194: 9.860752645 | AC194: 9.747670193 | AD194: 9.634587741 | AE194: 9.521505289 | AF194: 9.408422838 | AG194: 9.295340386 | AH194: 9.182257934 | AI194: 9.069175482 | AJ194: 8.971130342 | AK194: 8.873085202 | AL194: 8.775040061 | AM194: 8.676994921 | AN194: 8.578949781 | AO194: 8.48090464 | AP194: 8.3828595 | AQ194: 8.28481436 | AR194: 8.186769219 | AS194: 8.088724079
K195: Utility PV - Los Angeles - Constant | L195: =L192 -> 19.86721975 | M195: 13.8028681 | N195: 13.8028681 | O195: 13.8028681 | P195: 13.8028681 | Q195: 13.8028681 | R195: 13.8028681 | S195: 13.8028681 | T195: 13.8028681 | U195: 13.8028681 | V195: 13.8028681 | W195: 13.8028681 | X195: 13.8028681 | Y195: 13.8028681 | Z195: 13.8028681 | AA195: 13.8028681 | AB195: 13.8028681 | AC195: 13.8028681 | AD195: 13.8028681 | AE195: 13.8028681 | AF195: 13.8028681 | AG195: 13.8028681 | AH195: 13.8028681 | AI195: 13.8028681 | AJ195: 13.8028681 | AK195: 13.8028681 | AL195: 13.8028681 | AM195: 13.8028681 | AN195: 13.8028681 | AO195: 13.8028681 | AP195: 13.8028681 | AQ195: 13.8028681 | AR195: 13.8028681 | AS195: 13.8028681
K196: Utility PV - Daggett, CA - Low | L196: =L193 -> 19.86721975 | M196: 13.8028681 | N196: 11.3830516 | O196: 10.68015708 | P196: 10.28056603 | Q196: 9.880974976 | R196: 9.481383925 | S196: 9.081792875 | T196: 8.682201824 | U196: 8.282610774 | V196: 7.883019723 | W196: 7.483428673 | X196: 7.083837622 | Y196: 6.684246572 | Z196: 6.493073667 | AA196: 6.301900762 | AB196: 6.110727858 | AC196: 5.919554953 | AD196: 5.728382048 | AE196: 5.583324515 | AF196: 5.438266982 | AG196: 5.293209449 | AH196: 5.148151915 | AI196: 5.003094382 | AJ196: 4.915109157 | AK196: 4.827123932 | AL196: 4.739138707 | AM196: 4.651153482 | AN196: 4.563168256 | AO196: 4.493292887 | AP196: 4.423417518 | AQ196: 4.353542149 | AR196: 4.28366678 | AS196: 4.213791411
K197: Utility PV - Daggett, CA - Mid | L197: =L194 -> 19.86721975 | M197: 13.8028681 | N197: 12.96373863 | O197: 12.72 | P197: 12.48 | Q197: 12.22666667 | R197: 11.97333333 | S197: 11.72 | T197: 11.46666667 | U197: 11.21333333 | V197: 10.96 | W197: 10.70666667 | X197: 10.45333333 | Y197: 10.2 | Z197: 10.08691755 | AA197: 9.973835096 | AB197: 9.860752645 | AC197: 9.747670193 | AD197: 9.634587741 | AE197: 9.521505289 | AF197: 9.408422838 | AG197: 9.295340386 | AH197: 9.182257934 | AI197: 9.069175482 | AJ197: 8.971130342 | AK197: 8.873085202 | AL197: 8.775040061 | AM197: 8.676994921 | AN197: 8.578949781 | AO197: 8.48090464 | AP197: 8.3828595 | AQ197: 8.28481436 | AR197: 8.186769219 | AS197: 8.088724079
K198: Utility PV - Daggett, CA - Constant | L198: =L195 -> 19.86721975 | M198: 13.8028681 | N198: 13.8028681 | O198: 13.8028681 | P198: 13.8028681 | Q198: 13.8028681 | R198: 13.8028681 | S198: 13.8028681 | T198: 13.8028681 | U198: 13.8028681 | V198: 13.8028681 | W198: 13.8028681 | X198: 13.8028681 | Y198: 13.8028681 | Z198: 13.8028681 | AA198: 13.8028681 | AB198: 13.8028681 | AC198: 13.8028681 | AD198: 13.8028681 | AE198: 13.8028681 | AF198: 13.8028681 | AG198: 13.8028681 | AH198: 13.8028681 | AI198: 13.8028681 | AJ198: 13.8028681 | AK198: 13.8028681 | AL198: 13.8028681 | AM198: 13.8028681 | AN198: 13.8028681 | AO198: 13.8028681 | AP198: 13.8028681 | AQ198: 13.8028681 | AR198: 13.8028681 | AS198: 13.8028681
L200: 2017 | M200: 2018 | N200: 2019 | O200: 2020 | P200: 2021 | Q200: 2022 | R200: 2023 | S200: 2024 | T200: 2025 | U200: 2026 | V200: 2027 | W200: 2028 | X200: 2029 | Y200: 2030 | Z200: 2031 | AA200: 2032 | AB200: 2033 | AC200: 2034 | AD200: 2035 | AE200: 2036 | AF200: 2037 | AG200: 2038 | AH200: 2039 | AI200: 2040 | AJ200: 2041 | AK200: 2042 | AL200: 2043 | AM200: 2044 | AN200: 2045 | AO200: 2046 | AP200: 2047 | AQ200: 2048 | AR200: 2049 | AS200: 2050
J201: Variable Operation and Maintenance Expenses ($/MWh) | K201: Utility PV - Seattle - Low | L201: 0 | M201: 0 | N201: 0 | O201: 0 | P201: 0 | Q201: 0 | R201: 0 | S201: 0 | T201: 0 | U201: 0 | V201: 0 | W201: 0 | X201: 0 | Y201: 0 | Z201: 0 | AA201: 0 | AB201: 0 | AC201: 0 | AD201: 0 | AE201: 0 | AF201: 0 | AG201: 0 | AH201: 0 | AI201: 0 | AJ201: 0 | AK201: 0 | AL201: 0 | AM201: 0 | AN201: 0 | AO201: 0 | AP201: 0 | AQ201: 0 | AR201: 0 | AS201: 0
K202: Utility PV - Seattle - Mid | L202: 0 | M202: 0 | N202: 0 | O202: 0 | P202: 0 | Q202: 0 | R202: 0 | S202: 0 | T202: 0 | U202: 0 | V202: 0 | W202: 0 | X202: 0 | Y202: 0 | Z202: 0 | AA202: 0 | AB202: 0 | AC202: 0 | AD202: 0 | AE202: 0 | AF202: 0 | AG202: 0 | AH202: 0 | AI202: 0 | AJ202: 0 | AK202: 0 | AL202: 0 | AM202: 0 | AN202: 0 | AO202: 0 | AP202: 0 | AQ202: 0 | AR202: 0 | AS202: 0
K203: Utility PV - Seattle - Constant | L203: 0 | M203: 0 | N203: 0 | O203: 0 | P203: 0 | Q203: 0 | R203: 0 | S203: 0 | T203: 0 | U203: 0 | V203: 0 | W203: 0 | X203: 0 | Y203: 0 | Z203: 0 | AA203: 0 | AB203: 0 | AC203: 0 | AD203: 0 | AE203: 0 | AF203: 0 | AG203: 0 | AH203: 0 | AI203: 0 | AJ203: 0 | AK203: 0 | AL203: 0 | AM203: 0 | AN203: 0 | AO203: 0 | AP203: 0 | AQ203: 0 | AR203: 0 | AS203: 0
K204: Utility PV - Chicago - Low | L204: 0 | M204: 0 | N204: 0 | O204: 0 | P204: 0 | Q204: 0 | R204: 0 | S204: 0 | T204: 0 | U204: 0 | V204: 0 | W204: 0 | X204: 0 | Y204: 0 | Z204: 0 | AA204: 0 | AB204: 0 | AC204: 0 | AD204: 0 | AE204: 0 | AF204: 0 | AG204: 0 | AH204: 0 | AI204: 0 | AJ204: 0 | AK204: 0 | AL204: 0 | AM204: 0 | AN204: 0 | AO204: 0 | AP204: 0 | AQ204: 0 | AR204: 0 | AS204: 0
K205: Utility PV - Chicago - Mid | L205: 0 | M205: 0 | N205: 0 | O205: 0 | P205: 0 | Q205: 0 | R205: 0 | S205: 0 | T205: 0 | U205: 0 | V205: 0 | W205: 0 | X205: 0 | Y205: 0 | Z205: 0 | AA205: 0 | AB205: 0 | AC205: 0 | AD205: 0 | AE205: 0 | AF205: 0 | AG205: 0 | AH205: 0 | AI205: 0 | AJ205: 0 | AK205: 0 | AL205: 0 | AM205: 0 | AN205: 0 | AO205: 0 | AP205: 0 | AQ205: 0 | AR205: 0 | AS205: 0
K206: Utility PV - Chicago - Constant | L206: 0 | M206: 0 | N206: 0 | O206: 0 | P206: 0 | Q206: 0 | R206: 0 | S206: 0 | T206: 0 | U206: 0 | V206: 0 | W206: 0 | X206: 0 | Y206: 0 | Z206: 0 | AA206: 0 | AB206: 0 | AC206: 0 | AD206: 0 | AE206: 0 | AF206: 0 | AG206: 0 | AH206: 0 | AI206: 0 | AJ206: 0 | AK206: 0 | AL206: 0 | AM206: 0 | AN206: 0 | AO206: 0 | AP206: 0 | AQ206: 0 | AR206: 0 | AS206: 0
K207: Utility PV - Kansas City - Low | L207: 0 | M207: 0 | N207: 0 | O207: 0 | P207: 0 | Q207: 0 | R207: 0 | S207: 0 | T207: 0 | U207: 0 | V207: 0 | W207: 0 | X207: 0 | Y207: 0 | Z207: 0 | AA207: 0 | AB207: 0 | AC207: 0 | AD207: 0 | AE207: 0 | AF207: 0 | AG207: 0 | AH207: 0 | AI207: 0 | AJ207: 0 | AK207: 0 | AL207: 0 | AM207: 0 | AN207: 0 | AO207: 0 | AP207: 0 | AQ207: 0 | AR207: 0 | AS207: 0
K208: Utility PV - Kansas City - Mid | L208: 0 | M208: 0 | N208: 0 | O208: 0 | P208: 0 | Q208: 0 | R208: 0 | S208: 0 | T208: 0 | U208: 0 | V208: 0 | W208: 0 | X208: 0 | Y208: 0 | Z208: 0 | AA208: 0 | AB208: 0 | AC208: 0 | AD208: 0 | AE208: 0 | AF208: 0 | AG208: 0 | AH208: 0 | AI208: 0 | AJ208: 0 | AK208: 0 | AL208: 0 | AM208: 0 | AN208: 0 | AO208: 0 | AP208: 0 | AQ208: 0 | AR208: 0 | AS208: 0
K209: Utility PV - Kansas City - Constant | L209: 0 | M209: 0 | N209: 0 | O209: 0 | P209: 0 | Q209: 0 | R209: 0 | S209: 0 | T209: 0 | U209: 0 | V209: 0 | W209: 0 | X209: 0 | Y209: 0 | Z209: 0 | AA209: 0 | AB209: 0 | AC209: 0 | AD209: 0 | AE209: 0 | AF209: 0 | AG209: 0 | AH209: 0 | AI209: 0 | AJ209: 0 | AK209: 0 | AL209: 0 | AM209: 0 | AN209: 0 | AO209: 0 | AP209: 0 | AQ209: 0 | AR209: 0 | AS209: 0
K210: Utility PV - Los Angeles - Low | L210: 0 | M210: 0 | N210: 0 | O210: 0 | P210: 0 | Q210: 0 | R210: 0 | S210: 0 | T210: 0 | U210: 0 | V210: 0 | W210: 0 | X210: 0 | Y210: 0 | Z210: 0 | AA210: 0 | AB210: 0 | AC210: 0 | AD210: 0 | AE210: 0 | AF210: 0 | AG210: 0 | AH210: 0 | AI210: 0 | AJ210: 0 | AK210: 0 | AL210: 0 | AM210: 0 | AN210: 0 | AO210: 0 | AP210: 0 | AQ210: 0 | AR210: 0 | AS210: 0
K211: Utility PV - Los Angeles - Mid | L211: 0 | M211: 0 | N211: 0 | O211: 0 | P211: 0 | Q211: 0 | R211: 0 | S211: 0 | T211: 0 | U211: 0 | V211: 0 | W211: 0 | X211: 0 | Y211: 0 | Z211: 0 | AA211: 0 | AB211: 0 | AC211: 0 | AD211: 0 | AE211: 0 | AF211: 0 | AG211: 0 | AH211: 0 | AI211: 0 | AJ211: 0 | AK211: 0 | AL211: 0 | AM211: 0 | AN211: 0 | AO211: 0 | AP211: 0 | AQ211: 0 | AR211: 0 | AS211: 0
K212: Utility PV - Los Angeles - Constant | L212: 0 | M212: 0 | N212: 0 | O212: 0 | P212: 0 | Q212: 0 | R212: 0 | S212: 0 | T212: 0 | U212: 0 | V212: 0 | W212: 0 | X212: 0 | Y212: 0 | Z212: 0 | AA212: 0 | AB212: 0 | AC212: 0 | AD212: 0 | AE212: 0 | AF212: 0 | AG212: 0 | AH212: 0 | AI212: 0 | AJ212: 0 | AK212: 0 | AL212: 0 | AM212: 0 | AN212: 0 | AO212: 0 | AP212: 0 | AQ212: 0 | AR212: 0 | AS212: 0
K213: Utility PV - Daggett, CA - Low | L213: 0 | M213: 0 | N213: 0 | O213: 0 | P213: 0 | Q213: 0 | R213: 0 | S213: 0 | T213: 0 | U213: 0 | V213: 0 | W213: 0 | X213: 0 | Y213: 0 | Z213: 0 | AA213: 0 | AB213: 0 | AC213: 0 | AD213: 0 | AE213: 0 | AF213: 0 | AG213: 0 | AH213: 0 | AI213: 0 | AJ213: 0 | AK213: 0 | AL213: 0 | AM213: 0 | AN213: 0 | AO213: 0 | AP213: 0 | AQ213: 0 | AR213: 0 | AS213: 0
K214: Utility PV - Daggett, CA - Mid | L214: 0 | M214: 0 | N214: 0 | O214: 0 | P214: 0 | Q214: 0 | R214: 0 | S214: 0 | T214: 0 | U214: 0 | V214: 0 | W214: 0 | X214: 0 | Y214: 0 | Z214: 0 | AA214: 0 | AB214: 0 | AC214: 0 | AD214: 0 | AE214: 0 | AF214: 0 | AG214: 0 | AH214: 0 | AI214: 0 | AJ214: 0 | AK214: 0 | AL214: 0 | AM214: 0 | AN214: 0 | AO214: 0 | AP214: 0 | AQ214: 0 | AR214: 0 | AS214: 0
K215: Utility PV - Daggett, CA - Constant | L215: 0 | M215: 0 | N215: 0 | O215: 0 | P215: 0 | Q215: 0 | R215: 0 | S215: 0 | T215: 0 | U215: 0 | V215: 0 | W215: 0 | X215: 0 | Y215: 0 | Z215: 0 | AA215: 0 | AB215: 0 | AC215: 0 | AD215: 0 | AE215: 0 | AF215: 0 | AG215: 0 | AH215: 0 | AI215: 0 | AJ215: 0 | AK215: 0 | AL215: 0 | AM215: 0 | AN215: 0 | AO215: 0 | AP215: 0 | AQ215: 0 | AR215: 0 | AS215: 0
H218: Finance | L218: 2017 | M218: 2018 | N218: 2019 | O218: 2020 | P218: 2021 | Q218: 2022 | R218: 2023 | S218: 2024 | T218: 2025 | U218: 2026 | V218: 2027 | W218: 2028 | X218: 2029 | Y218: 2030 | Z218: 2031 | AA218: 2032 | AB218: 2033 | AC218: 2034 | AD218: 2035 | AE218: 2036 | AF218: 2037 | AG218: 2038 | AH218: 2039 | AI218: 2040 | AJ218: 2041 | AK218: 2042 | AL218: 2043 | AM218: 2044 | AN218: 2045 | AO218: 2046 | AP218: 2047 | AQ218: 2048 | AR218: 2049 | AS218: 2050
J219: Assumptions | K219: Inflation Rate | L219: ='WACC Calc'!F394 -> 0.025 | M219: ='WACC Calc'!G394 -> 0.025 | N219: ='WACC Calc'!H394 -> 0.025 | O219: ='WACC Calc'!I394 -> 0.025 | P219: ='WACC Calc'!J394 -> 0.025 | Q219: ='WACC Calc'!K394 -> 0.025 | R219: ='WACC Calc'!L394 -> 0.025 | S219: ='WACC Calc'!M394 -> 0.025 | T219: ='WACC Calc'!N394 -> 0.025 | U219: ='WACC Calc'!O394 -> 0.025 | V219: ='WACC Calc'!P394 -> 0.025 | W219: ='WACC Calc'!Q394 -> 0.025 | X219: ='WACC Calc'!R394 -> 0.025 | Y219: ='WACC Calc'!S394 -> 0.025 | Z219: ='WACC Calc'!T394 -> 0.025 | AA219: ='WACC Calc'!U394 -> 0.025 | AB219: ='WACC Calc'!V394 -> 0.025 | AC219: ='WACC Calc'!W394 -> 0.025 | AD219: ='WACC Calc'!X394 -> 0.025 | AE219: ='WACC Calc'!Y394 -> 0.025 | AF219: ='WACC Calc'!Z394 -> 0.025 | AG219: ='WACC Calc'!AA394 -> 0.025 | AH219: ='WACC Calc'!AB394 -> 0.025 | AI219: ='WACC Calc'!AC394 -> 0.025 | AJ219: ='WACC Calc'!AD394 -> 0.025 | AK219: ='WACC Calc'!AE394 -> 0.025 | AL219: ='WACC Calc'!AF394 -> 0.025 | AM219: ='WACC Calc'!AG394 -> 0.025 | AN219: ='WACC Calc'!AH394 -> 0.025 | AO219: ='WACC Calc'!AI394 -> 0.025 | AP219: ='WACC Calc'!AJ394 -> 0.025 | AQ219: ='WACC Calc'!AK394 -> 0.025 | AR219: ='WACC Calc'!AL394 -> 0.025 | AS219: ='WACC Calc'!AM394 -> 0.025
K220: Interest Rate Nominal - Low | L220: ='WACC Calc'!F395 -> 0.0373 | M220: ='WACC Calc'!G395 -> 0.0373 | N220: ='WACC Calc'!H395 -> 0.0373 | O220: ='WACC Calc'!I395 -> 0.0373 | P220: ='WACC Calc'!J395 -> 0.0373 | Q220: ='WACC Calc'!K395 -> 0.0373 | R220: ='WACC Calc'!L395 -> 0.0373 | S220: ='WACC Calc'!M395 -> 0.0373 | T220: ='WACC Calc'!N395 -> 0.0373 | U220: ='WACC Calc'!O395 -> 0.0373 | V220: ='WACC Calc'!P395 -> 0.0373 | W220: ='WACC Calc'!Q395 -> 0.0373 | X220: ='WACC Calc'!R395 -> 0.0373 | Y220: ='WACC Calc'!S395 -> 0.0373 | Z220: ='WACC Calc'!T395 -> 0.0373 | AA220: ='WACC Calc'!U395 -> 0.0373 | AB220: ='WACC Calc'!V395 -> 0.0373 | AC220: ='WACC Calc'!W395 -> 0.0373 | AD220: ='WACC Calc'!X395 -> 0.0373 | AE220: ='WACC Calc'!Y395 -> 0.0373 | AF220: ='WACC Calc'!Z395 -> 0.0373 | AG220: ='WACC Calc'!AA395 -> 0.0373 | AH220: ='WACC Calc'!AB395 -> 0.0373 | AI220: ='WACC Calc'!AC395 -> 0.0373 | AJ220: ='WACC Calc'!AD395 -> 0.0373 | AK220: ='WACC Calc'!AE395 -> 0.0373 | AL220: ='WACC Calc'!AF395 -> 0.0373 | AM220: ='WACC Calc'!AG395 -> 0.0373 | AN220: ='WACC Calc'!AH395 -> 0.0373 | AO220: ='WACC Calc'!AI395 -> 0.0373 | AP220: ='WACC Calc'!AJ395 -> 0.0373 | AQ220: ='WACC Calc'!AK395 -> 0.0373 | AR220: ='WACC Calc'!AL395 -> 0.0373 | AS220: ='WACC Calc'!AM395 -> 0.0373
K221: Interest Rate Nominal - Mid | L221: ='WACC Calc'!F396 -> 0.0373 | M221: ='WACC Calc'!G396 -> 0.0373 | N221: ='WACC Calc'!H396 -> 0.0373 | O221: ='WACC Calc'!I396 -> 0.0373 | P221: ='WACC Calc'!J396 -> 0.0373 | Q221: ='WACC Calc'!K396 -> 0.0373 | R221: ='WACC Calc'!L396 -> 0.0373 | S221: ='WACC Calc'!M396 -> 0.0373 | T221: ='WACC Calc'!N396 -> 0.0373 | U221: ='WACC Calc'!O396 -> 0.0373 | V221: ='WACC Calc'!P396 -> 0.0373 | W221: ='WACC Calc'!Q396 -> 0.0373 | X221: ='WACC Calc'!R396 -> 0.0373 | Y221: ='WACC Calc'!S396 -> 0.0373 | Z221: ='WACC Calc'!T396 -> 0.0373 | AA221: ='WACC Calc'!U396 -> 0.0373 | AB221: ='WACC Calc'!V396 -> 0.0373 | AC221: ='WACC Calc'!W396 -> 0.0373 | AD221: ='WACC Calc'!X396 -> 0.0373 | AE221: ='WACC Calc'!Y396 -> 0.0373 | AF221: ='WACC Calc'!Z396 -> 0.0373 | AG221: ='WACC Calc'!AA396 -> 0.0373 | AH221: ='WACC Calc'!AB396 -> 0.0373 | AI221: ='WACC Calc'!AC396 -> 0.0373 | AJ221: ='WACC Calc'!AD396 -> 0.0373 | AK221: ='WACC Calc'!AE396 -> 0.0373 | AL221: ='WACC Calc'!AF396 -> 0.0373 | AM221: ='WACC Calc'!AG396 -> 0.0373 | AN221: ='WACC Calc'!AH396 -> 0.0373 | AO221: ='WACC Calc'!AI396 -> 0.0373 | AP221: ='WACC Calc'!AJ396 -> 0.0373 | AQ221: ='WACC Calc'!AK396 -> 0.0373 | AR221: ='WACC Calc'!AL396 -> 0.0373 | AS221: ='WACC Calc'!AM396 -> 0.0373
K222: Interest Rate Nominal - Constant | L222: ='WACC Calc'!F397 -> 0.0373 | M222: ='WACC Calc'!G397 -> 0.0373 | N222: ='WACC Calc'!H397 -> 0.0373 | O222: ='WACC Calc'!I397 -> 0.0373 | P222: ='WACC Calc'!J397 -> 0.0373 | Q222: ='WACC Calc'!K397 -> 0.0373 | R222: ='WACC Calc'!L397 -> 0.0373 | S222: ='WACC Calc'!M397 -> 0.0373 | T222: ='WACC Calc'!N397 -> 0.0373 | U222: ='WACC Calc'!O397 -> 0.0373 | V222: ='WACC Calc'!P397 -> 0.0373 | W222: ='WACC Calc'!Q397 -> 0.0373 | X222: ='WACC Calc'!R397 -> 0.0373 | Y222: ='WACC Calc'!S397 -> 0.0373 | Z222: ='WACC Calc'!T397 -> 0.0373 | AA222: ='WACC Calc'!U397 -> 0.0373 | AB222: ='WACC Calc'!V397 -> 0.0373 | AC222: ='WACC Calc'!W397 -> 0.0373 | AD222: ='WACC Calc'!X397 -> 0.0373 | AE222: ='WACC Calc'!Y397 -> 0.0373 | AF222: ='WACC Calc'!Z397 -> 0.0373 | AG222: ='WACC Calc'!AA397 -> 0.0373 | AH222: ='WACC Calc'!AB397 -> 0.0373 | AI222: ='WACC Calc'!AC397 -> 0.0373 | AJ222: ='WACC Calc'!AD397 -> 0.0373 | AK222: ='WACC Calc'!AE397 -> 0.0373 | AL222: ='WACC Calc'!AF397 -> 0.0373 | AM222: ='WACC Calc'!AG397 -> 0.0373 | AN222: ='WACC Calc'!AH397 -> 0.0373 | AO222: ='WACC Calc'!AI397 -> 0.0373 | AP222: ='WACC Calc'!AJ397 -> 0.0373 | AQ222: ='WACC Calc'!AK397 -> 0.0373 | AR222: ='WACC Calc'!AL397 -> 0.0373 | AS222: ='WACC Calc'!AM397 -> 0.0373
K223: Calculated Interest Rate Real - Low | L223: ='WACC Calc'!F398 -> 0.012 | M223: ='WACC Calc'!G398 -> 0.012 | N223: ='WACC Calc'!H398 -> 0.012 | O223: ='WACC Calc'!I398 -> 0.012 | P223: ='WACC Calc'!J398 -> 0.012 | Q223: ='WACC Calc'!K398 -> 0.012 | R223: ='WACC Calc'!L398 -> 0.012 | S223: ='WACC Calc'!M398 -> 0.012 | T223: ='WACC Calc'!N398 -> 0.012 | U223: ='WACC Calc'!O398 -> 0.012 | V223: ='WACC Calc'!P398 -> 0.012 | W223: ='WACC Calc'!Q398 -> 0.012 | X223: ='WACC Calc'!R398 -> 0.012 | Y223: ='WACC Calc'!S398 -> 0.012 | Z223: ='WACC Calc'!T398 -> 0.012 | AA223: ='WACC Calc'!U398 -> 0.012 | AB223: ='WACC Calc'!V398 -> 0.012 | AC223: ='WACC Calc'!W398 -> 0.012 | AD223: ='WACC Calc'!X398 -> 0.012 | AE223: ='WACC Calc'!Y398 -> 0.012 | AF223: ='WACC Calc'!Z398 -> 0.012 | AG223: ='WACC Calc'!AA398 -> 0.012 | AH223: ='WACC Calc'!AB398 -> 0.012 | AI223: ='WACC Calc'!AC398 -> 0.012 | AJ223: ='WACC Calc'!AD398 -> 0.012 | AK223: ='WACC Calc'!AE398 -> 0.012 | AL223: ='WACC Calc'!AF398 -> 0.012 | AM223: ='WACC Calc'!AG398 -> 0.012 | AN223: ='WACC Calc'!AH398 -> 0.012 | AO223: ='WACC Calc'!AI398 -> 0.012 | AP223: ='WACC Calc'!AJ398 -> 0.012 | AQ223: ='WACC Calc'!AK398 -> 0.012 | AR223: ='WACC Calc'!AL398 -> 0.012 | AS223: ='WACC Calc'!AM398 -> 0.012
K224: Calculated Interest Rate Real - Mid | L224: ='WACC Calc'!F399 -> 0.012 | M224: ='WACC Calc'!G399 -> 0.012 | N224: ='WACC Calc'!H399 -> 0.012 | O224: ='WACC Calc'!I399 -> 0.012 | P224: ='WACC Calc'!J399 -> 0.012 | Q224: ='WACC Calc'!K399 -> 0.012 | R224: ='WACC Calc'!L399 -> 0.012 | S224: ='WACC Calc'!M399 -> 0.012 | T224: ='WACC Calc'!N399 -> 0.012 | U224: ='WACC Calc'!O399 -> 0.012 | V224: ='WACC Calc'!P399 -> 0.012 | W224: ='WACC Calc'!Q399 -> 0.012 | X224: ='WACC Calc'!R399 -> 0.012 | Y224: ='WACC Calc'!S399 -> 0.012 | Z224: ='WACC Calc'!T399 -> 0.012 | AA224: ='WACC Calc'!U399 -> 0.012 | AB224: ='WACC Calc'!V399 -> 0.012 | AC224: ='WACC Calc'!W399 -> 0.012 | AD224: ='WACC Calc'!X399 -> 0.012 | AE224: ='WACC Calc'!Y399 -> 0.012 | AF224: ='WACC Calc'!Z399 -> 0.012 | AG224: ='WACC Calc'!AA399 -> 0.012 | AH224: ='WACC Calc'!AB399 -> 0.012 | AI224: ='WACC Calc'!AC399 -> 0.012 | AJ224: ='WACC Calc'!AD399 -> 0.012 | AK224: ='WACC Calc'!AE399 -> 0.012 | AL224: ='WACC Calc'!AF399 -> 0.012 | AM224: ='WACC Calc'!AG399 -> 0.012 | AN224: ='WACC Calc'!AH399 -> 0.012 | AO224: ='WACC Calc'!AI399 -> 0.012 | AP224: ='WACC Calc'!AJ399 -> 0.012 | AQ224: ='WACC Calc'!AK399 -> 0.012 | AR224: ='WACC Calc'!AL399 -> 0.012 | AS224: ='WACC Calc'!AM399 -> 0.012
... 125 more rows

Sheet Solar - PV Dist. Comm
A1: Solar Distributed Commercial PV Inputs | L1: https://atb.nrel.gov/electricity/2019/index.html?t=sd
T3: Inputs
J4: Take me to: | T4: Calculated
B10: X | G10: Current Costs
H12: Techno-Economic Cost and Performance Parameters | J12: Net Capacity Factor (%) | K12: Comm PV - Seattle | L12: 0.1188759366 | O12: Basis Year: | Q12: 2017
K13: Comm PV - Chicago | L13: 0.1397632495
K14: Comm PV - Kansas City | L14: 0.1520361058 | O14: Commercial Solar Photovoltaic
K15: Comm PV - Los Angeles | L15: 0.1729299868
K16: Comm PV - Daggett, CA | L16: 0.1955371885
O17: Representative Dist. Commercial system is fixed-tilt roof mounted with capacity of 300 kW
J18: Annual Energy Production (kWh/kW) | K18: Comm PV - Seattle | L18: =L12*8760 -> 1041.353205 | O18: Overnight Capital Cost, Capacity Factor, Fixed O&M, and Variable O&M costs
K19: Comm PV - Chicago | L19: =L13*8760 -> 1224.326066 | O19: represent $/kW DC; however LCOE reflects $/MWh AC.
K20: Comm PV - Kansas City | L20: =L14*8760 -> 1331.836287 | O20: Capacity factors chosen here to reflect range across the continental U.S. using NREL PVWATTS
K21: Comm PV - Los Angeles | L21: =L15*8760 -> 1514.866684
K22: Comm PV - Daggett, CA | L22: =L16*8760 -> 1712.905771
S23: Available | T23: Available
J24: CAPEX ($/kW) | K24: Comm PV - Seattle | L24: =$S$54 * (L36 + L62) -> 1857.000226 | S24: Capacity | T24: Generation
K25: Comm PV - Chicago | L25: =$S$54 * (L37 + L63) -> 1857.000226 | S25: (GW) | T25: (GWh)
K26: Comm PV - Kansas City | L26: =$S$54 * (L38 + L64) -> 1857.000226 | S26: 386 | T26: 506000
K27: Comm PV - Los Angeles | L27: =$S$54 * (L39 + L65) -> 1857.000226
K28: Comm PV - Daggett, CA | L28: =$S$54 * (L40 + L66) -> 1857.000226
O29: Commercial PV - 11.4% | Q29: Capacity factor labels based on dSolar minimum, average and maximum first year energy production. ATB values reflect annual average capacity factor over life of plant including estimated degradation of 0.5% per year.
J30: Construction Financing Cost ($/kW) | K30: Comm PV - Seattle | L30: =(L36+L62)*($S$54-1) -> 25.13808971 | O30: Commercial PV - 14.5%
K31: Comm PV - Chicago | L31: =(L37+L63)*($S$54-1) -> 25.13808971 | O31: Commercial PV - 18.7%
K32: Comm PV - Kansas City | L32: =(L38+L64)*($S$54-1) -> 25.13808971
K33: Comm PV - Los Angeles | L33: =(L39+L65)*($S$54-1) -> 25.13808971
K34: Comm PV - Daggett, CA | L34: =(L40+L66)*($S$54-1) -> 25.13808971
O35: Financial Assumptions:
J36: Overnight Capital Cost ($/kW) | K36: Comm PV - Seattle | L36: =$L$152 -> 1831.862136 | O36: Inflation Rate | S36: =L203 -> 0.025
K37: Comm PV - Chicago | L37: =$L$155 -> 1831.862136 | O37: Capital Recovery Period (Years) | S37: 30
K38: Comm PV - Kansas City | L38: =$L$164 -> 1831.862136 | O38: Interest Rate Nominal - Mid | S38: =L205 -> 0.0373
K39: Comm PV - Los Angeles | L39: =$L$164 -> 1831.862136
K40: Comm PV - Daggett, CA | L40: =$L$164 -> 1831.862136
O41: Calculated Interest Rate Real - Mid | S41: =L208 -> 0.012
J42: Fixed Operation and Maintenance Expenses ($/kW/yr) | K42: Comm PV - Seattle | L42: =15+PMT(0.08,30,PV(0.08,15,0,0.12*1000)) -> 18.36025339 | O42: Interest During Construction - Nominal | S42: =L210 -> 0.0373
K43: Comm PV - Chicago | L43: =15+PMT(0.08,30,PV(0.08,15,0,0.12*1000)) -> 18.36025339 | O43: Rate of Return on Equity Nominal - Mid | S43: =L212 -> 0.0903
K44: Comm PV - Kansas City | L44: =15+PMT(0.08,30,PV(0.08,15,0,0.12*1000)) -> 18.36025339 | O44: Calculated Rate of Return on Equity Real - Mid | S44: =L215 -> 0.06370731707
K45: Comm PV - Los Angeles | L45: =15+PMT(0.08,30,PV(0.08,15,0,0.12*1000)) -> 18.36025339
K46: Comm PV - Daggett, CA | L46: =15+PMT(0.08,30,PV(0.08,15,0,0.12*1000)) -> 18.36025339
O47: Debt Fraction - Mid | S47: =L218 -> 0.6
J48: Variable Operation and Maintenance Expenses ($/MWh) | K48: Comm PV - Seattle | L48: 0 | O48: Tax Rate (Federal and State) | S48: =L220 -> 0.2574
K49: Comm PV - Chicago | L49: 0 | O49: WACC Nominal - Mid | S49: =L222 -> 0.052739388
K50: Comm PV - Kansas City | L50: 0 | O50: WACC Real - Mid | S50: =L225 -> 0.02706281756
K51: Comm PV - Los Angeles | L51: 0
K52: Comm PV - Daggett, CA | L52: 0
O53: Depreciation Period | S53: 5
O54: Construction Finance Factor | S54: =SUMPRODUCT(P67:P69,Q67:Q69) -> 1.013722697
H55: Finance | J55: Weighted Average Cost of Capital (WACC) (Nominal) (%) | K55: Comm PV - Seattle | L55: =$S$49 -> 0.052739388 | O55: Present Value of Depreciation | S55: =SUMPRODUCT(O74:T74,O76:T76) -> 0.8684887286
K56: Comm PV - Chicago | L56: =$S$49 -> 0.052739388 | O56: Project Finance Factor | S56: =(1 - S48 * S55) / (1 - S48) -> 1.045584435
K57: Comm PV - Kansas City | L57: =$S$49 -> 0.052739388 | O57: Capital Recovery Factor (CRF) Nominal - Mid | S57: =L228 -> 0.06709677801
K58: Comm PV - Los Angeles | L58: =$S$49 -> 0.052739388
K59: Comm PV - Daggett, CA | L59: =$S$49 -> 0.052739388
O60: Capital Recovery Factor (CRF) Real - Mid | S60: =L231 -> 0.04910140114
H62: Grid Connection Costs | J62: Grid Connection Costs (GCC) ($/kW) | K62: Comm PV - Seattle | L62: =L68+L74 -> 0 | O62: Construction Duration yrs | Q62: 1
K63: Comm PV - Chicago | L63: =L69+L75 -> 0 | O63: Year | P63: Capital | Q63: Accumulated
K64: Comm PV - Kansas City | L64: =L70+L76 -> 0 | O64: Index | P64: Fraction | Q64: Interest
K65: Comm PV - Los Angeles | L65: =L71+L77 -> 0
K66: Comm PV - Daggett, CA | L66: =L72+L78 -> 0
O67: 0 | P67: 1 | Q67: =1+(1-S48)*((1+S42)^(O67+0.5)-1) -> 1.013722697
J68: Grid Feature Costs ($/kW) | K68: Comm PV - Seattle | L68: 0 | O68: 1 | P68: 0 | Q68: =1+(1-S48)*((1+S42)^(O68+0.5)-1) -> 1.041933534
K69: Comm PV - Chicago | L69: 0 | O69: 2 | P69: 0 | Q69: =1+(1-S48)*((1+S42)^(O69+0.5)-1) -> 1.071196635
K70: Comm PV - Kansas City | L70: 0
K71: Comm PV - Los Angeles | L71: 0
K72: Comm PV - Daggett, CA | L72: 0
N73: MACRS yr | O73: 1 | P73: 2 | Q73: 3 | R73: 4 | S73: 5 | T73: 6
J74: Onshore Spur Line Costs ($/kW) | K74: Comm PV - Seattle | L74: 0 | N74: Depreciation | O74: 0.2 | P74: 0.32 | Q74: 0.192 | R74: 0.1152 | S74: 0.1152 | T74: 0.0576
K75: Comm PV - Chicago | L75: 0 | N75: Fraction
K76: Comm PV - Kansas City | L76: 0 | N76: Depreciation | O76: =1/((1+$S$50)*(1+$S$36))^O73 -> 0.9499027123 | P76: 0.9023151628 | Q76: 0.8571116205 | R76: 0.8141726531 | S76: 0.7733848114 | T76: 0.73464033
K77: Comm PV - Los Angeles | L77: 0
K78: Comm PV - Daggett, CA | L78: 0
N79: Factor
H81: LCOE | J81: Levelized Cost of Energy ($/MWh) | K81: Comm PV - Seattle | L81: =(($S$60 * $S$56 * $S$54 * (L36 * 1 + L62) +L42) * 1000 / (L12 * 8760)) + L48 + 0 -> 109.1829502
K82: Comm PV - Chicago | L82: =(($S$60 * $S$56 * $S$54 * (L37 * 1 + L63) +L43) * 1000 / (L13 * 8760)) + L49 + 0 -> 92.86579629
K83: Comm PV - Kansas City | L83: =(($S$60 * $S$56 * $S$54 * (L38 * 1 + L64) +L44) * 1000 / (L14 * 8760)) + L50 + 0 -> 85.36936271
K84: Comm PV - Los Angeles | L84: =(($S$60 * $S$56 * $S$54 * (L39 * 1 + L65) +L45) * 1000 / (L15 * 8760)) + L51 + 0 -> 75.05479936
K85: Comm PV - Daggett, CA | L85: =(($S$60 * $S$56 * $S$54 * (L40 * 1 + L66) +L46) * 1000 / (L16 * 8760)) + L52 + 0 -> 66.3772736
J87: Overnight Levelized Cost of Energy ($/MWh) | K87: Comm PV - Seattle | L87: =(((L36*$S$60*(1-$S$48*$S$55))/(8760*L12*(1-$S$48))+L42/(8760*L12))*1000)+L48 -> 107.9436195
K88: Comm PV - Chicago | L88: =(((L37*$S$60*(1-$S$48*$S$55))/(8760*L13*(1-$S$48))+L43/(8760*L13))*1000)+L49 -> 91.81168086
K89: Comm PV - Kansas City | L89: =(((L38*$S$60*(1-$S$48*$S$55))/(8760*L14*(1-$S$48))+L44/(8760*L14))*1000)+L50 -> 84.40033896
K90: Comm PV - Los Angeles | L90: =(((L39*$S$60*(1-$S$48*$S$55))/(8760*L15*(1-$S$48))+L45/(8760*L15))*1000)+L51 -> 74.20285575
K91: Comm PV - Daggett, CA | L91: =(((L40*$S$60*(1-$S$48*$S$55))/(8760*L16*(1-$S$48))+L46/(8760*L16))*1000)+L52 -> 65.62382819
H94: ***Note: For future projections, low, mid, and high refer to the resulting low, mid, and high LCOE projections.
D97: X | G97: Future Projections
L98: Basis Year
L99: 2017 | M99: 2018 | N99: 2019 | O99: 2020 | P99: 2021 | Q99: 2022 | R99: 2023 | S99: 2024 | T99: 2025 | U99: 2026 | V99: 2027 | W99: 2028 | X99: 2029 | Y99: 2030 | Z99: 2031 | AA99: 2032 | AB99: 2033 | AC99: 2034 | AD99: 2035 | AE99: 2036 | AF99: 2037 | AG99: 2038 | AH99: 2039 | AI99: 2040 | AJ99: 2041 | AK99: 2042 | AL99: 2043 | AM99: 2044 | AN99: 2045 | AO99: 2046 | AP99: 2047 | AQ99: 2048 | AR99: 2049 | AS99: 2050
H100: Techno-Economic Cost and Performance Parameters | J100: Net Capacity Factor (%) | K100: Comm PV - Seattle - Low | L100: 0.1188759366 | M100: 0.1190476843 | N100: 0.119219432 | O100: 0.1193911797 | P100: 0.1195629275 | Q100: 0.1197346752 | R100: 0.1199064229 | S100: 0.1200781706 | T100: 0.1202499183 | U100: 0.120421666 | V100: 0.1205934138 | W100: 0.1207651615 | X100: 0.1209369092 | Y100: 0.1211086569 | Z100: 0.1212804046 | AA100: 0.1214521524 | AB100: 0.1216239001 | AC100: 0.1217956478 | AD100: 0.1219673955 | AE100: 0.1221391432 | AF100: 0.1223108909 | AG100: 0.1224826387 | AH100: 0.1226543864 | AI100: 0.1228261341 | AJ100: 0.1229978818 | AK100: 0.1231696295 | AL100: 0.1233413772 | AM100: 0.123513125 | AN100: 0.1236848727 | AO100: 0.1238566204 | AP100: 0.1240283681 | AQ100: 0.1242001158 | AR100: 0.1243718635 | AS100: 0.1245436113
K101: Comm PV - Seattle - Mid | L101: 0.1188759366 | M101: 0.1189526767 | N101: 0.1190294168 | O101: 0.1191061569 | P101: 0.119182897 | Q101: 0.119259637 | R101: 0.1193363771 | S101: 0.1194131172 | T101: 0.1194898573 | U101: 0.1195665974 | V101: 0.1196433375 | W101: 0.1197200776 | X101: 0.1197968177 | Y101: 0.1198735578 | Z101: 0.1199502979 | AA101: 0.120027038 | AB101: 0.1201037781 | AC101: 0.1201805181 | AD101: 0.1202572582 | AE101: 0.1203339983 | AF101: 0.1204107384 | AG101: 0.1204874785 | AH101: 0.1205642186 | AI101: 0.1206409587 | AJ101: 0.1207176988 | AK101: 0.1207944389 | AL101: 0.120871179 | AM101: 0.1209479191 | AN101: 0.1210246591 | AO101: 0.1211013992 | AP101: 0.1211781393 | AQ101: 0.1212548794 | AR101: 0.1213316195 | AS101: 0.1214083596
K102: Comm PV - Seattle - Constant | L102: 0.1188759366 | M102: 0.1188759366 | N102: 0.1188759366 | O102: 0.1188759366 | P102: 0.1188759366 | Q102: 0.1188759366 | R102: 0.1188759366 | S102: 0.1188759366 | T102: 0.1188759366 | U102: 0.1188759366 | V102: 0.1188759366 | W102: 0.1188759366 | X102: 0.1188759366 | Y102: 0.1188759366 | Z102: 0.1188759366 | AA102: 0.1188759366 | AB102: 0.1188759366 | AC102: 0.1188759366 | AD102: 0.1188759366 | AE102: 0.1188759366 | AF102: 0.1188759366 | AG102: 0.1188759366 | AH102: 0.1188759366 | AI102: 0.1188759366 | AJ102: 0.1188759366 | AK102: 0.1188759366 | AL102: 0.1188759366 | AM102: 0.1188759366 | AN102: 0.1188759366 | AO102: 0.1188759366 | AP102: 0.1188759366 | AQ102: 0.1188759366 | AR102: 0.1188759366 | AS102: 0.1188759366
K103: Comm PV - Chicago - Low | L103: 0.1397632495 | M103: 0.1399651745 | N103: 0.1401670994 | O103: 0.1403690244 | P103: 0.1405709494 | Q103: 0.1407728743 | R103: 0.1409747993 | S103: 0.1411767243 | T103: 0.1413786492 | U103: 0.1415805742 | V103: 0.1417824992 | W103: 0.1419844241 | X103: 0.1421863491 | Y103: 0.142388274 | Z103: 0.142590199 | AA103: 0.142792124 | AB103: 0.1429940489 | AC103: 0.1431959739 | AD103: 0.1433978989 | AE103: 0.1435998238 | AF103: 0.1438017488 | AG103: 0.1440036737 | AH103: 0.1442055987 | AI103: 0.1444075237 | AJ103: 0.1446094486 | AK103: 0.1448113736 | AL103: 0.1450132986 | AM103: 0.1452152235 | AN103: 0.1454171485 | AO103: 0.1456190734 | AP103: 0.1458209984 | AQ103: 0.1460229234 | AR103: 0.1462248483 | AS103: 0.1464267733
K104: Comm PV - Chicago - Mid | L104: 0.1397632495 | M104: 0.1398534734 | N104: 0.1399436972 | O104: 0.1400339211 | P104: 0.1401241449 | Q104: 0.1402143688 | R104: 0.1403045926 | S104: 0.1403948165 | T104: 0.1404850403 | U104: 0.1405752642 | V104: 0.140665488 | W104: 0.1407557119 | X104: 0.1408459357 | Y104: 0.1409361596 | Z104: 0.1410263834 | AA104: 0.1411166073 | AB104: 0.1412068311 | AC104: 0.141297055 | AD104: 0.1413872788 | AE104: 0.1414775026 | AF104: 0.1415677265 | AG104: 0.1416579503 | AH104: 0.1417481742 | AI104: 0.141838398 | AJ104: 0.1419286219 | AK104: 0.1420188457 | AL104: 0.1421090696 | AM104: 0.1421992934 | AN104: 0.1422895173 | AO104: 0.1423797411 | AP104: 0.142469965 | AQ104: 0.1425601888 | AR104: 0.1426504127 | AS104: 0.1427406365
K105: Comm PV - Chicago - Constant | L105: 0.1397632495 | M105: 0.1397632495 | N105: 0.1397632495 | O105: 0.1397632495 | P105: 0.1397632495 | Q105: 0.1397632495 | R105: 0.1397632495 | S105: 0.1397632495 | T105: 0.1397632495 | U105: 0.1397632495 | V105: 0.1397632495 | W105: 0.1397632495 | X105: 0.1397632495 | Y105: 0.1397632495 | Z105: 0.1397632495 | AA105: 0.1397632495 | AB105: 0.1397632495 | AC105: 0.1397632495 | AD105: 0.1397632495 | AE105: 0.1397632495 | AF105: 0.1397632495 | AG105: 0.1397632495 | AH105: 0.1397632495 | AI105: 0.1397632495 | AJ105: 0.1397632495 | AK105: 0.1397632495 | AL105: 0.1397632495 | AM105: 0.1397632495 | AN105: 0.1397632495 | AO105: 0.1397632495 | AP105: 0.1397632495 | AQ105: 0.1397632495 | AR105: 0.1397632495 | AS105: 0.1397632495
K106: Comm PV - Kansas City - Low | L106: 0.1520361058 | M106: 0.1522557621 | N106: 0.1524754185 | O106: 0.1526950748 | P106: 0.1529147312 | Q106: 0.1531343875 | R106: 0.1533540439 | S106: 0.1535737002 | T106: 0.1537933566 | U106: 0.1540130129 | V106: 0.1542326693 | W106: 0.1544523256 | X106: 0.154671982 | Y106: 0.1548916383 | Z106: 0.1551112947 | AA106: 0.155330951 | AB106: 0.1555506074 | AC106: 0.1557702637 | AD106: 0.15598992 | AE106: 0.1562095764 | AF106: 0.1564292327 | AG106: 0.1566488891 | AH106: 0.1568685454 | AI106: 0.1570882018 | AJ106: 0.1573078581 | AK106: 0.1575275145 | AL106: 0.1577471708 | AM106: 0.1579668272 | AN106: 0.1581864835 | AO106: 0.1584061399 | AP106: 0.1586257962 | AQ106: 0.1588454526 | AR106: 0.1590651089 | AS106: 0.1592847653
K107: Comm PV - Kansas City - Mid | L107: 0.1520361058 | M107: 0.1521342523 | N107: 0.1522323989 | O107: 0.1523305455 | P107: 0.152428692 | Q107: 0.1525268386 | R107: 0.1526249852 | S107: 0.1527231317 | T107: 0.1528212783 | U107: 0.1529194248 | V107: 0.1530175714 | W107: 0.153115718 | X107: 0.1532138645 | Y107: 0.1533120111 | Z107: 0.1534101577 | AA107: 0.1535083042 | AB107: 0.1536064508 | AC107: 0.1537045974 | AD107: 0.1538027439 | AE107: 0.1539008905 | AF107: 0.153999037 | AG107: 0.1540971836 | AH107: 0.1541953302 | AI107: 0.1542934767 | AJ107: 0.1543916233 | AK107: 0.1544897699 | AL107: 0.1545879164 | AM107: 0.154686063 | AN107: 0.1547842096 | AO107: 0.1548823561 | AP107: 0.1549805027 | AQ107: 0.1550786492 | AR107: 0.1551767958 | AS107: 0.1552749424
K108: Comm PV - Kansas City - Constant | L108: 0.1520361058 | M108: 0.1520361058 | N108: 0.1520361058 | O108: 0.1520361058 | P108: 0.1520361058 | Q108: 0.1520361058 | R108: 0.1520361058 | S108: 0.1520361058 | T108: 0.1520361058 | U108: 0.1520361058 | V108: 0.1520361058 | W108: 0.1520361058 | X108: 0.1520361058 | Y108: 0.1520361058 | Z108: 0.1520361058 | AA108: 0.1520361058 | AB108: 0.1520361058 | AC108: 0.1520361058 | AD108: 0.1520361058 | AE108: 0.1520361058 | AF108: 0.1520361058 | AG108: 0.1520361058 | AH108: 0.1520361058 | AI108: 0.1520361058 | AJ108: 0.1520361058 | AK108: 0.1520361058 | AL108: 0.1520361058 | AM108: 0.1520361058 | AN108: 0.1520361058 | AO108: 0.1520361058 | AP108: 0.1520361058 | AQ108: 0.1520361058 | AR108: 0.1520361058 | AS108: 0.1520361058
K109: Comm PV - Los Angeles - Low | L109: 0.1729299868 | M109: 0.1731798298 | N109: 0.1734296729 | O109: 0.173679516 | P109: 0.1739293591 | Q109: 0.1741792022 | R109: 0.1744290452 | S109: 0.1746788883 | T109: 0.1749287314 | U109: 0.1751785745 | V109: 0.1754284176 | W109: 0.1756782607 | X109: 0.1759281037 | Y109: 0.1761779468 | Z109: 0.1764277899 | AA109: 0.176677633 | AB109: 0.1769274761 | AC109: 0.1771773192 | AD109: 0.1774271622 | AE109: 0.1776770053 | AF109: 0.1779268484 | AG109: 0.1781766915 | AH109: 0.1784265346 | AI109: 0.1786763777 | AJ109: 0.1789262207 | AK109: 0.1791760638 | AL109: 0.1794259069 | AM109: 0.17967575 | AN109: 0.1799255931 | AO109: 0.1801754362 | AP109: 0.1804252792 | AQ109: 0.1806751223 | AR109: 0.1809249654 | AS109: 0.1811748085
K110: Comm PV - Los Angeles - Mid | L110: 0.1729299868 | M110: 0.1730416213 | N110: 0.1731532559 | O110: 0.1732648904 | P110: 0.173376525 | Q110: 0.1734881596 | R110: 0.1735997941 | S110: 0.1737114287 | T110: 0.1738230632 | U110: 0.1739346978 | V110: 0.1740463324 | W110: 0.1741579669 | X110: 0.1742696015 | Y110: 0.174381236 | Z110: 0.1744928706 | AA110: 0.1746045052 | AB110: 0.1747161397 | AC110: 0.1748277743 | AD110: 0.1749394088 | AE110: 0.1750510434 | AF110: 0.175162678 | AG110: 0.1752743125 | AH110: 0.1753859471 | AI110: 0.1754975817 | AJ110: 0.1756092162 | AK110: 0.1757208508 | AL110: 0.1758324853 | AM110: 0.1759441199 | AN110: 0.1760557545 | AO110: 0.176167389 | AP110: 0.1762790236 | AQ110: 0.1763906581 | AR110: 0.1765022927 | AS110: 0.1766139273
K111: Comm PV - Los Angeles - Constant | L111: 0.1729299868 | M111: 0.1729299868 | N111: 0.1729299868 | O111: 0.1729299868 | P111: 0.1729299868 | Q111: 0.1729299868 | R111: 0.1729299868 | S111: 0.1729299868 | T111: 0.1729299868 | U111: 0.1729299868 | V111: 0.1729299868 | W111: 0.1729299868 | X111: 0.1729299868 | Y111: 0.1729299868 | Z111: 0.1729299868 | AA111: 0.1729299868 | AB111: 0.1729299868 | AC111: 0.1729299868 | AD111: 0.1729299868 | AE111: 0.1729299868 | AF111: 0.1729299868 | AG111: 0.1729299868 | AH111: 0.1729299868 | AI111: 0.1729299868 | AJ111: 0.1729299868 | AK111: 0.1729299868 | AL111: 0.1729299868 | AM111: 0.1729299868 | AN111: 0.1729299868 | AO111: 0.1729299868 | AP111: 0.1729299868 | AQ111: 0.1729299868 | AR111: 0.1729299868 | AS111: 0.1729299868
K112: Comm PV - Daggett, CA - Low | L112: 0.1955371885 | M112: 0.1958196936 | N112: 0.1961021988 | O112: 0.196384704 | P112: 0.1966672091 | Q112: 0.1969497143 | R112: 0.1972322195 | S112: 0.1975147246 | T112: 0.1977972298 | U112: 0.1980797349 | V112: 0.1983622401 | W112: 0.1986447453 | X112: 0.1989272504 | Y112: 0.1992097556 | Z112: 0.1994922608 | AA112: 0.1997747659 | AB112: 0.2000572711 | AC112: 0.2003397762 | AD112: 0.2006222814 | AE112: 0.2009047866 | AF112: 0.2011872917 | AG112: 0.2014697969 | AH112: 0.2017523021 | AI112: 0.2020348072 | AJ112: 0.2023173124 | AK112: 0.2025998175 | AL112: 0.2028823227 | AM112: 0.2031648279 | AN112: 0.203447333 | AO112: 0.2037298382 | AP112: 0.2040123434 | AQ112: 0.2042948485 | AR112: 0.2045773537 | AS112: 0.2048598589
K113: Comm PV - Daggett, CA - Mid | L113: 0.1955371885 | M113: 0.1956634171 | N113: 0.1957896457 | O113: 0.1959158742 | P113: 0.1960421028 | Q113: 0.1961683314 | R113: 0.19629456 | S113: 0.1964207886 | T113: 0.1965470172 | U113: 0.1966732458 | V113: 0.1967994744 | W113: 0.196925703 | X113: 0.1970519315 | Y113: 0.1971781601 | Z113: 0.1973043887 | AA113: 0.1974306173 | AB113: 0.1975568459 | AC113: 0.1976830745 | AD113: 0.1978093031 | AE113: 0.1979355317 | AF113: 0.1980617603 | AG113: 0.1981879888 | AH113: 0.1983142174 | AI113: 0.198440446 | AJ113: 0.1985666746 | AK113: 0.1986929032 | AL113: 0.1988191318 | AM113: 0.1989453604 | AN113: 0.199071589 | AO113: 0.1991978176 | AP113: 0.1993240461 | AQ113: 0.1994502747 | AR113: 0.1995765033 | AS113: 0.1997027319
K114: Comm PV - Daggett, CA - Constant | L114: 0.1955371885 | M114: 0.1955371885 | N114: 0.1955371885 | O114: 0.1955371885 | P114: 0.1955371885 | Q114: 0.1955371885 | R114: 0.1955371885 | S114: 0.1955371885 | T114: 0.1955371885 | U114: 0.1955371885 | V114: 0.1955371885 | W114: 0.1955371885 | X114: 0.1955371885 | Y114: 0.1955371885 | Z114: 0.1955371885 | AA114: 0.1955371885 | AB114: 0.1955371885 | AC114: 0.1955371885 | AD114: 0.1955371885 | AE114: 0.1955371885 | AF114: 0.1955371885 | AG114: 0.1955371885 | AH114: 0.1955371885 | AI114: 0.1955371885 | AJ114: 0.1955371885 | AK114: 0.1955371885 | AL114: 0.1955371885 | AM114: 0.1955371885 | AN114: 0.1955371885 | AO114: 0.1955371885 | AP114: 0.1955371885 | AQ114: 0.1955371885 | AR114: 0.1955371885 | AS114: 0.1955371885
L116: 2017 | M116: 2018 | N116: 2019 | O116: 2020 | P116: 2021 | Q116: 2022 | R116: 2023 | S116: 2024 | T116: 2025 | U116: 2026 | V116: 2027 | W116: 2028 | X116: 2029 | Y116: 2030 | Z116: 2031 | AA116: 2032 | AB116: 2033 | AC116: 2034 | AD116: 2035 | AE116: 2036 | AF116: 2037 | AG116: 2038 | AH116: 2039 | AI116: 2040 | AJ116: 2041 | AK116: 2042 | AL116: 2043 | AM116: 2044 | AN116: 2045 | AO116: 2046 | AP116: 2047 | AQ116: 2048 | AR116: 2049 | AS116: 2050
J117: Annual Energy Production (kWh/kW) | K117: Comm PV - Seattle - Low | L117: =L100*8760 -> 1041.353205 | M117: 1042.857715 | N117: 1044.362225 | O117: 1045.866735 | P117: 1047.371245 | Q117: 1048.875755 | R117: 1050.380265 | S117: 1051.884775 | T117: 1053.389285 | U117: 1054.893795 | V117: 1056.398305 | W117: 1057.902815 | X117: 1059.407325 | Y117: 1060.911835 | Z117: 1062.416345 | AA117: 1063.920855 | AB117: 1065.425365 | AC117: 1066.929875 | AD117: 1068.434385 | AE117: 1069.938895 | AF117: 1071.443405 | AG117: 1072.947915 | AH117: 1074.452425 | AI117: 1075.956935 | AJ117: 1077.461445 | AK117: 1078.965955 | AL117: 1080.470465 | AM117: 1081.974975 | AN117: 1083.479485 | AO117: 1084.983995 | AP117: 1086.488505 | AQ117: 1087.993015 | AR117: 1089.497525 | AS117: 1091.002035
K118: Comm PV - Seattle - Mid | L118: =L101*8760 -> 1041.353205 | M118: 1042.025448 | N118: 1042.697691 | O118: 1043.369934 | P118: 1044.042177 | Q118: 1044.714421 | R118: 1045.386664 | S118: 1046.058907 | T118: 1046.73115 | U118: 1047.403393 | V118: 1048.075637 | W118: 1048.74788 | X118: 1049.420123 | Y118: 1050.092366 | Z118: 1050.764609 | AA118: 1051.436853 | AB118: 1052.109096 | AC118: 1052.781339 | AD118: 1053.453582 | AE118: 1054.125825 | AF118: 1054.798069 | AG118: 1055.470312 | AH118: 1056.142555 | AI118: 1056.814798 | AJ118: 1057.487041 | AK118: 1058.159285 | AL118: 1058.831528 | AM118: 1059.503771 | AN118: 1060.176014 | AO118: 1060.848257 | AP118: 1061.520501 | AQ118: 1062.192744 | AR118: 1062.864987 | AS118: 1063.53723
K119: Comm PV - Seattle - Constant | L119: =L102*8760 -> 1041.353205 | M119: 1041.353205 | N119: 1041.353205 | O119: 1041.353205 | P119: 1041.353205 | Q119: 1041.353205 | R119: 1041.353205 | S119: 1041.353205 | T119: 1041.353205 | U119: 1041.353205 | V119: 1041.353205 | W119: 1041.353205 | X119: 1041.353205 | Y119: 1041.353205 | Z119: 1041.353205 | AA119: 1041.353205 | AB119: 1041.353205 | AC119: 1041.353205 | AD119: 1041.353205 | AE119: 1041.353205 | AF119: 1041.353205 | AG119: 1041.353205 | AH119: 1041.353205 | AI119: 1041.353205 | AJ119: 1041.353205 | AK119: 1041.353205 | AL119: 1041.353205 | AM119: 1041.353205 | AN119: 1041.353205 | AO119: 1041.353205 | AP119: 1041.353205 | AQ119: 1041.353205 | AR119: 1041.353205 | AS119: 1041.353205
K120: Comm PV - Chicago - Low | L120: =L103*8760 -> 1224.326066 | M120: 1226.094928 | N120: 1227.863791 | O120: 1229.632654 | P120: 1231.401517 | Q120: 1233.170379 | R120: 1234.939242 | S120: 1236.708105 | T120: 1238.476967 | U120: 1240.24583 | V120: 1242.014693 | W120: 1243.783555 | X120: 1245.552418 | Y120: 1247.321281 | Z120: 1249.090143 | AA120: 1250.859006 | AB120: 1252.627869 | AC120: 1254.396731 | AD120: 1256.165594 | AE120: 1257.934457 | AF120: 1259.703319 | AG120: 1261.472182 | AH120: 1263.241045 | AI120: 1265.009907 | AJ120: 1266.77877 | AK120: 1268.547633 | AL120: 1270.316495 | AM120: 1272.085358 | AN120: 1273.854221 | AO120: 1275.623083 | AP120: 1277.391946 | AQ120: 1279.160809 | AR120: 1280.929671 | AS120: 1282.698534
K121: Comm PV - Chicago - Mid | L121: =L104*8760 -> 1224.326066 | M121: 1225.116427 | N121: 1225.906788 | O121: 1226.697149 | P121: 1227.487509 | Q121: 1228.27787 | R121: 1229.068231 | S121: 1229.858592 | T121: 1230.648953 | U121: 1231.439314 | V121: 1232.229675 | W121: 1233.020036 | X121: 1233.810397 | Y121: 1234.600758 | Z121: 1235.391119 | AA121: 1236.18148 | AB121: 1236.97184 | AC121: 1237.762201 | AD121: 1238.552562 | AE121: 1239.342923 | AF121: 1240.133284 | AG121: 1240.923645 | AH121: 1241.714006 | AI121: 1242.504367 | AJ121: 1243.294728 | AK121: 1244.085089 | AL121: 1244.87545 | AM121: 1245.665811 | AN121: 1246.456171 | AO121: 1247.246532 | AP121: 1248.036893 | AQ121: 1248.827254 | AR121: 1249.617615 | AS121: 1250.407976
K122: Comm PV - Chicago - Constant | L122: =L105*8760 -> 1224.326066 | M122: 1224.326066 | N122: 1224.326066 | O122: 1224.326066 | P122: 1224.326066 | Q122: 1224.326066 | R122: 1224.326066 | S122: 1224.326066 | T122: 1224.326066 | U122: 1224.326066 | V122: 1224.326066 | W122: 1224.326066 | X122: 1224.326066 | Y122: 1224.326066 | Z122: 1224.326066 | AA122: 1224.326066 | AB122: 1224.326066 | AC122: 1224.326066 | AD122: 1224.326066 | AE122: 1224.326066 | AF122: 1224.326066 | AG122: 1224.326066 | AH122: 1224.326066 | AI122: 1224.326066 | AJ122: 1224.326066 | AK122: 1224.326066 | AL122: 1224.326066 | AM122: 1224.326066 | AN122: 1224.326066 | AO122: 1224.326066 | AP122: 1224.326066 | AQ122: 1224.326066 | AR122: 1224.326066 | AS122: 1224.326066
K123: Comm PV - Kansas City - Low | L123: =L106*8760 -> 1331.836287 | M123: 1333.760476 | N123: 1335.684666 | O123: 1337.608855 | P123: 1339.533045 | Q123: 1341.457235 | R123: 1343.381424 | S123: 1345.305614 | T123: 1347.229804 | U123: 1349.153993 | V123: 1351.078183 | W123: 1353.002372 | X123: 1354.926562 | Y123: 1356.850752 | Z123: 1358.774941 | AA123: 1360.699131 | AB123: 1362.62332 | AC123: 1364.54751 | AD123: 1366.4717 | AE123: 1368.395889 | AF123: 1370.320079 | AG123: 1372.244268 | AH123: 1374.168458 | AI123: 1376.092648 | AJ123: 1378.016837 | AK123: 1379.941027 | AL123: 1381.865217 | AM123: 1383.789406 | AN123: 1385.713596 | AO123: 1387.637785 | AP123: 1389.561975 | AQ123: 1391.486165 | AR123: 1393.410354 | AS123: 1395.334544
K124: Comm PV - Kansas City - Mid | L124: =L107*8760 -> 1331.836287 | M124: 1332.696051 | N124: 1333.555814 | O124: 1334.415578 | P124: 1335.275342 | Q124: 1336.135106 | R124: 1336.99487 | S124: 1337.854634 | T124: 1338.714398 | U124: 1339.574162 | V124: 1340.433926 | W124: 1341.293689 | X124: 1342.153453 | Y124: 1343.013217 | Z124: 1343.872981 | AA124: 1344.732745 | AB124: 1345.592509 | AC124: 1346.452273 | AD124: 1347.312037 | AE124: 1348.171801 | AF124: 1349.031565 | AG124: 1349.891328 | AH124: 1350.751092 | AI124: 1351.610856 | AJ124: 1352.47062 | AK124: 1353.330384 | AL124: 1354.190148 | AM124: 1355.049912 | AN124: 1355.909676 | AO124: 1356.76944 | AP124: 1357.629203 | AQ124: 1358.488967 | AR124: 1359.348731 | AS124: 1360.208495
K125: Comm PV - Kansas City - Constant | L125: =L108*8760 -> 1331.836287 | M125: 1331.836287 | N125: 1331.836287 | O125: 1331.836287 | P125: 1331.836287 | Q125: 1331.836287 | R125: 1331.836287 | S125: 1331.836287 | T125: 1331.836287 | U125: 1331.836287 | V125: 1331.836287 | W125: 1331.836287 | X125: 1331.836287 | Y125: 1331.836287 | Z125: 1331.836287 | AA125: 1331.836287 | AB125: 1331.836287 | AC125: 1331.836287 | AD125: 1331.836287 | AE125: 1331.836287 | AF125: 1331.836287 | AG125: 1331.836287 | AH125: 1331.836287 | AI125: 1331.836287 | AJ125: 1331.836287 | AK125: 1331.836287 | AL125: 1331.836287 | AM125: 1331.836287 | AN125: 1331.836287 | AO125: 1331.836287 | AP125: 1331.836287 | AQ125: 1331.836287 | AR125: 1331.836287 | AS125: 1331.836287
K126: Comm PV - Los Angeles - Low | L126: =L109*8760 -> 1514.866684 | M126: 1517.055309 | N126: 1519.243935 | O126: 1521.43256 | P126: 1523.621186 | Q126: 1525.809811 | R126: 1527.998436 | S126: 1530.187062 | T126: 1532.375687 | U126: 1534.564313 | V126: 1536.752938 | W126: 1538.941563 | X126: 1541.130189 | Y126: 1543.318814 | Z126: 1545.50744 | AA126: 1547.696065 | AB126: 1549.88469 | AC126: 1552.073316 | AD126: 1554.261941 | AE126: 1556.450567 | AF126: 1558.639192 | AG126: 1560.827818 | AH126: 1563.016443 | AI126: 1565.205068 | AJ126: 1567.393694 | AK126: 1569.582319 | AL126: 1571.770945 | AM126: 1573.95957 | AN126: 1576.148195 | AO126: 1578.336821 | AP126: 1580.525446 | AQ126: 1582.714072 | AR126: 1584.902697 | AS126: 1587.091322
K127: Comm PV - Los Angeles - Mid | L127: =L110*8760 -> 1514.866684 | M127: 1515.844603 | N127: 1516.822521 | O127: 1517.80044 | P127: 1518.778359 | Q127: 1519.756278 | R127: 1520.734196 | S127: 1521.712115 | T127: 1522.690034 | U127: 1523.667953 | V127: 1524.645871 | W127: 1525.62379 | X127: 1526.601709 | Y127: 1527.579628 | Z127: 1528.557546 | AA127: 1529.535465 | AB127: 1530.513384 | AC127: 1531.491303 | AD127: 1532.469221 | AE127: 1533.44714 | AF127: 1534.425059 | AG127: 1535.402978 | AH127: 1536.380897 | AI127: 1537.358815 | AJ127: 1538.336734 | AK127: 1539.314653 | AL127: 1540.292572 | AM127: 1541.27049 | AN127: 1542.248409 | AO127: 1543.226328 | AP127: 1544.204247 | AQ127: 1545.182165 | AR127: 1546.160084 | AS127: 1547.138003
K128: Comm PV - Los Angeles - Constant | L128: =L111*8760 -> 1514.866684 | M128: 1514.866684 | N128: 1514.866684 | O128: 1514.866684 | P128: 1514.866684 | Q128: 1514.866684 | R128: 1514.866684 | S128: 1514.866684 | T128: 1514.866684 | U128: 1514.866684 | V128: 1514.866684 | W128: 1514.866684 | X128: 1514.866684 | Y128: 1514.866684 | Z128: 1514.866684 | AA128: 1514.866684 | AB128: 1514.866684 | AC128: 1514.866684 | AD128: 1514.866684 | AE128: 1514.866684 | AF128: 1514.866684 | AG128: 1514.866684 | AH128: 1514.866684 | AI128: 1514.866684 | AJ128: 1514.866684 | AK128: 1514.866684 | AL128: 1514.866684 | AM128: 1514.866684 | AN128: 1514.866684 | AO128: 1514.866684 | AP128: 1514.866684 | AQ128: 1514.866684 | AR128: 1514.866684 | AS128: 1514.866684
K129: Comm PV - Daggett, CA - Low | L129: =L112*8760 -> 1712.905771 | M129: 1715.380516 | N129: 1717.855262 | O129: 1720.330007 | P129: 1722.804752 | Q129: 1725.279497 | R129: 1727.754242 | S129: 1730.228988 | T129: 1732.703733 | U129: 1735.178478 | V129: 1737.653223 | W129: 1740.127969 | X129: 1742.602714 | Y129: 1745.077459 | Z129: 1747.552204 | AA129: 1750.026949 | AB129: 1752.501695 | AC129: 1754.97644 | AD129: 1757.451185 | AE129: 1759.92593 | AF129: 1762.400676 | AG129: 1764.875421 | AH129: 1767.350166 | AI129: 1769.824911 | AJ129: 1772.299657 | AK129: 1774.774402 | AL129: 1777.249147 | AM129: 1779.723892 | AN129: 1782.198637 | AO129: 1784.673383 | AP129: 1787.148128 | AQ129: 1789.622873 | AR129: 1792.097618 | AS129: 1794.572364
K130: Comm PV - Daggett, CA - Mid | L130: =L113*8760 -> 1712.905771 | M130: 1714.011534 | N130: 1715.117296 | O130: 1716.223058 | P130: 1717.328821 | Q130: 1718.434583 | R130: 1719.540346 | S130: 1720.646108 | T130: 1721.751871 | U130: 1722.857633 | V130: 1723.963395 | W130: 1725.069158 | X130: 1726.17492 | Y130: 1727.280683 | Z130: 1728.386445 | AA130: 1729.492208 | AB130: 1730.59797 | AC130: 1731.703733 | AD130: 1732.809495 | AE130: 1733.915257 | AF130: 1735.02102 | AG130: 1736.126782 | AH130: 1737.232545 | AI130: 1738.338307 | AJ130: 1739.44407 | AK130: 1740.549832 | AL130: 1741.655594 | AM130: 1742.761357 | AN130: 1743.867119 | AO130: 1744.972882 | AP130: 1746.078644 | AQ130: 1747.184407 | AR130: 1748.290169 | AS130: 1749.395932
K131: Comm PV - Daggett, CA - Constant | L131: =L114*8760 -> 1712.905771 | M131: 1712.905771 | N131: 1712.905771 | O131: 1712.905771 | P131: 1712.905771 | Q131: 1712.905771 | R131: 1712.905771 | S131: 1712.905771 | T131: 1712.905771 | U131: 1712.905771 | V131: 1712.905771 | W131: 1712.905771 | X131: 1712.905771 | Y131: 1712.905771 | Z131: 1712.905771 | AA131: 1712.905771 | AB131: 1712.905771 | AC131: 1712.905771 | AD131: 1712.905771 | AE131: 1712.905771 | AF131: 1712.905771 | AG131: 1712.905771 | AH131: 1712.905771 | AI131: 1712.905771 | AJ131: 1712.905771 | AK131: 1712.905771 | AL131: 1712.905771 | AM131: 1712.905771 | AN131: 1712.905771 | AO131: 1712.905771 | AP131: 1712.905771 | AQ131: 1712.905771 | AR131: 1712.905771 | AS131: 1712.905771
L133: 2017 | M133: 2018 | N133: 2019 | O133: 2020 | P133: 2021 | Q133: 2022 | R133: 2023 | S133: 2024 | T133: 2025 | U133: 2026 | V133: 2027 | W133: 2028 | X133: 2029 | Y133: 2030 | Z133: 2031 | AA133: 2032 | AB133: 2033 | AC133: 2034 | AD133: 2035 | AE133: 2036 | AF133: 2037 | AG133: 2038 | AH133: 2039 | AI133: 2040 | AJ133: 2041 | AK133: 2042 | AL133: 2043 | AM133: 2044 | AN133: 2045 | AO133: 2046 | AP133: 2047 | AQ133: 2048 | AR133: 2049 | AS133: 2050
J134: CAPEX ($/kW) | K134: Comm PV - Seattle - Low | L134: =$S$54*(L151+L252) -> 1857.000226 | M134: 1810.013773 | N134: 1332.695325 | O134: 1247.906714 | P134: 1122.810649 | Q134: 1084.703355 | R134: 1046.596061 | S134: 1008.488767 | T134: 970.3814733 | U134: 932.2741795 | V134: 894.1668856 | W134: 856.0595918 | X134: 817.952298 | Y134: 779.8450042 | Z134: 760.7635579 | AA134: 741.6821116 | AB134: 722.6006653 | AC134: 703.519219 | AD134: 684.4377727 | AE134: 665.3563264 | AF134: 646.2748801 | AG134: 627.1934337 | AH134: 608.1119874 | AI134: 589.0305411 | AJ134: 583.85479 | AK134: 578.6790388 | AL134: 573.5032877 | AM134: 568.3275365 | AN134: 543.0867863 | AO134: 541.9240349 | AP134: 540.7612836 | AQ134: 539.5985323 | AR134: 538.4357809 | AS134: 537.2730296
K135: Comm PV - Seattle - Mid | L135: =$S$54*(L152+L253) -> 1857.000226 | M135: 1810.013773 | N135: 1722.51361 | O135: 1622.867066 | P135: 1599.877327 | Q135: 1562.907998 | R135: 1525.93867 | S135: 1488.969342 | T135: 1452.000013 | U135: 1415.030685 | V135: 1378.061357 | W135: 1341.092028 | X135: 1304.1227 | Y135: 1267.153372 | Z135: 1255.227634 | AA135: 1243.301895 | AB135: 1231.376157 | AC135: 1219.450419 | AD135: 1207.524681 | AE135: 1195.598943 | AF135: 1183.673204 | AG135: 1171.747466 | AH135: 1159.821728 | AI135: 1147.89599 | AJ135: 1134.478661 | AK135: 1121.061331 | AL135: 1107.644002 | AM135: 1094.226673 | AN135: 1080.809344 | AO135: 1067.392014 | AP135: 1053.974685 | AQ135: 1040.557356 | AR135: 1027.140027 | AS135: 1013.722697
K136: Comm PV - Seattle - Constant | L136: =$S$54*(L153+L254) -> 1857.000226 | M136: 1810.013773 | N136: 1810.013773 | O136: 1810.013773 | P136: 1810.013773 | Q136: 1810.013773 | R136: 1810.013773 | S136: 1810.013773 | T136: 1810.013773 | U136: 1810.013773 | V136: 1810.013773 | W136: 1810.013773 | X136: 1810.013773 | Y136: 1810.013773 | Z136: 1810.013773 | AA136: 1810.013773 | AB136: 1810.013773 | AC136: 1810.013773 | AD136: 1810.013773 | AE136: 1810.013773 | AF136: 1810.013773 | AG136: 1810.013773 | AH136: 1810.013773 | AI136: 1810.013773 | AJ136: 1810.013773 | AK136: 1810.013773 | AL136: 1810.013773 | AM136: 1810.013773 | AN136: 1810.013773 | AO136: 1810.013773 | AP136: 1810.013773 | AQ136: 1810.013773 | AR136: 1810.013773 | AS136: 1810.013773
K137: Comm PV - Chicago - Low | L137: =$S$54*(L154+L255) -> 1857.000226 | M137: 1810.013773 | N137: 1332.695325 | O137: 1247.906714 | P137: 1122.810649 | Q137: 1084.703355 | R137: 1046.596061 | S137: 1008.488767 | T137: 970.3814733 | U137: 932.2741795 | V137: 894.1668856 | W137: 856.0595918 | X137: 817.952298 | Y137: 779.8450042 | Z137: 760.7635579 | AA137: 741.6821116 | AB137: 722.6006653 | AC137: 703.519219 | AD137: 684.4377727 | AE137: 665.3563264 | AF137: 646.2748801 | AG137: 627.1934337 | AH137: 608.1119874 | AI137: 589.0305411 | AJ137: 583.85479 | AK137: 578.6790388 | AL137: 573.5032877 | AM137: 568.3275365 | AN137: 543.0867863 | AO137: 541.9240349 | AP137: 540.7612836 | AQ137: 539.5985323 | AR137: 538.4357809 | AS137: 537.2730296
K138: Comm PV - Chicago - Mid | L138: =$S$54*(L155+L256) -> 1857.000226 | M138: 1810.013773 | N138: 1722.51361 | O138: 1622.867066 | P138: 1599.877327 | Q138: 1562.907998 | R138: 1525.93867 | S138: 1488.969342 | T138: 1452.000013 | U138: 1415.030685 | V138: 1378.061357 | W138: 1341.092028 | X138: 1304.1227 | Y138: 1267.153372 | Z138: 1255.227634 | AA138: 1243.301895 | AB138: 1231.376157 | AC138: 1219.450419 | AD138: 1207.524681 | AE138: 1195.598943 | AF138: 1183.673204 | AG138: 1171.747466 | AH138: 1159.821728 | AI138: 1147.89599 | AJ138: 1134.478661 | AK138: 1121.061331 | AL138: 1107.644002 | AM138: 1094.226673 | AN138: 1080.809344 | AO138: 1067.392014 | AP138: 1053.974685 | AQ138: 1040.557356 | AR138: 1027.140027 | AS138: 1013.722697
K139: Comm PV - Chicago - Constant | L139: =$S$54*(L156+L257) -> 1857.000226 | M139: 1810.013773 | N139: 1810.013773 | O139: 1810.013773 | P139: 1810.013773 | Q139: 1810.013773 | R139: 1810.013773 | S139: 1810.013773 | T139: 1810.013773 | U139: 1810.013773 | V139: 1810.013773 | W139: 1810.013773 | X139: 1810.013773 | Y139: 1810.013773 | Z139: 1810.013773 | AA139: 1810.013773 | AB139: 1810.013773 | AC139: 1810.013773 | AD139: 1810.013773 | AE139: 1810.013773 | AF139: 1810.013773 | AG139: 1810.013773 | AH139: 1810.013773 | AI139: 1810.013773 | AJ139: 1810.013773 | AK139: 1810.013773 | AL139: 1810.013773 | AM139: 1810.013773 | AN139: 1810.013773 | AO139: 1810.013773 | AP139: 1810.013773 | AQ139: 1810.013773 | AR139: 1810.013773 | AS139: 1810.013773
K140: Comm PV - Kansas City - Low | L140: =$S$54*(L157+L258) -> 1857.000226 | M140: 1810.013773 | N140: 1332.695325 | O140: 1247.906714 | P140: 1122.810649 | Q140: 1084.703355 | R140: 1046.596061 | S140: 1008.488767 | T140: 970.3814733 | U140: 932.2741795 | V140: 894.1668856 | W140: 856.0595918 | X140: 817.952298 | Y140: 779.8450042 | Z140: 760.7635579 | AA140: 741.6821116 | AB140: 722.6006653 | AC140: 703.519219 | AD140: 684.4377727 | AE140: 665.3563264 | AF140: 646.2748801 | AG140: 627.1934337 | AH140: 608.1119874 | AI140: 589.0305411 | AJ140: 583.85479 | AK140: 578.6790388 | AL140: 573.5032877 | AM140: 568.3275365 | AN140: 543.0867863 | AO140: 541.9240349 | AP140: 540.7612836 | AQ140: 539.5985323 | AR140: 538.4357809 | AS140: 537.2730296
K141: Comm PV - Kansas City - Mid | L141: =$S$54*(L158+L259) -> 1857.000226 | M141: 1810.013773 | N141: 1722.51361 | O141: 1622.867066 | P141: 1599.877327 | Q141: 1562.907998 | R141: 1525.93867 | S141: 1488.969342 | T141: 1452.000013 | U141: 1415.030685 | V141: 1378.061357 | W141: 1341.092028 | X141: 1304.1227 | Y141: 1267.153372 | Z141: 1255.227634 | AA141: 1243.301895 | AB141: 1231.376157 | AC141: 1219.450419 | AD141: 1207.524681 | AE141: 1195.598943 | AF141: 1183.673204 | AG141: 1171.747466 | AH141: 1159.821728 | AI141: 1147.89599 | AJ141: 1134.478661 | AK141: 1121.061331 | AL141: 1107.644002 | AM141: 1094.226673 | AN141: 1080.809344 | AO141: 1067.392014 | AP141: 1053.974685 | AQ141: 1040.557356 | AR141: 1027.140027 | AS141: 1013.722697
K142: Comm PV - Kansas City - Constant | L142: =$S$54*(L159+L260) -> 1857.000226 | M142: 1810.013773 | N142: 1810.013773 | O142: 1810.013773 | P142: 1810.013773 | Q142: 1810.013773 | R142: 1810.013773 | S142: 1810.013773 | T142: 1810.013773 | U142: 1810.013773 | V142: 1810.013773 | W142: 1810.013773 | X142: 1810.013773 | Y142: 1810.013773 | Z142: 1810.013773 | AA142: 1810.013773 | AB142: 1810.013773 | AC142: 1810.013773 | AD142: 1810.013773 | AE142: 1810.013773 | AF142: 1810.013773 | AG142: 1810.013773 | AH142: 1810.013773 | AI142: 1810.013773 | AJ142: 1810.013773 | AK142: 1810.013773 | AL142: 1810.013773 | AM142: 1810.013773 | AN142: 1810.013773 | AO142: 1810.013773 | AP142: 1810.013773 | AQ142: 1810.013773 | AR142: 1810.013773 | AS142: 1810.013773
K143: Comm PV - Los Angeles - Low | L143: =$S$54*(L160+L261) -> 1857.000226 | M143: 1810.013773 | N143: 1332.695325 | O143: 1247.906714 | P143: 1122.810649 | Q143: 1084.703355 | R143: 1046.596061 | S143: 1008.488767 | T143: 970.3814733 | U143: 932.2741795 | V143: 894.1668856 | W143: 856.0595918 | X143: 817.952298 | Y143: 779.8450042 | Z143: 760.7635579 | AA143: 741.6821116 | AB143: 722.6006653 | AC143: 703.519219 | AD143: 684.4377727 | AE143: 665.3563264 | AF143: 646.2748801 | AG143: 627.1934337 | AH143: 608.1119874 | AI143: 589.0305411 | AJ143: 583.85479 | AK143: 578.6790388 | AL143: 573.5032877 | AM143: 568.3275365 | AN143: 543.0867863 | AO143: 541.9240349 | AP143: 540.7612836 | AQ143: 539.5985323 | AR143: 538.4357809 | AS143: 537.2730296
K144: Comm PV - Los Angeles - Mid | L144: =$S$54*(L161+L262) -> 1857.000226 | M144: 1810.013773 | N144: 1722.51361 | O144: 1622.867066 | P144: 1599.877327 | Q144: 1562.907998 | R144: 1525.93867 | S144: 1488.969342 | T144: 1452.000013 | U144: 1415.030685 | V144: 1378.061357 | W144: 1341.092028 | X144: 1304.1227 | Y144: 1267.153372 | Z144: 1255.227634 | AA144: 1243.301895 | AB144: 1231.376157 | AC144: 1219.450419 | AD144: 1207.524681 | AE144: 1195.598943 | AF144: 1183.673204 | AG144: 1171.747466 | AH144: 1159.821728 | AI144: 1147.89599 | AJ144: 1134.478661 | AK144: 1121.061331 | AL144: 1107.644002 | AM144: 1094.226673 | AN144: 1080.809344 | AO144: 1067.392014 | AP144: 1053.974685 | AQ144: 1040.557356 | AR144: 1027.140027 | AS144: 1013.722697
K145: Comm PV - Los Angeles - Constant | L145: =$S$54*(L162+L263) -> 1857.000226 | M145: 1810.013773 | N145: 1810.013773 | O145: 1810.013773 | P145: 1810.013773 | Q145: 1810.013773 | R145: 1810.013773 | S145: 1810.013773 | T145: 1810.013773 | U145: 1810.013773 | V145: 1810.013773 | W145: 1810.013773 | X145: 1810.013773 | Y145: 1810.013773 | Z145: 1810.013773 | AA145: 1810.013773 | AB145: 1810.013773 | AC145: 1810.013773 | AD145: 1810.013773 | AE145: 1810.013773 | AF145: 1810.013773 | AG145: 1810.013773 | AH145: 1810.013773 | AI145: 1810.013773 | AJ145: 1810.013773 | AK145: 1810.013773 | AL145: 1810.013773 | AM145: 1810.013773 | AN145: 1810.013773 | AO145: 1810.013773 | AP145: 1810.013773 | AQ145: 1810.013773 | AR145: 1810.013773 | AS145: 1810.013773
K146: Comm PV - Daggett, CA - Low | L146: =$S$54*(L163+L264) -> 1857.000226 | M146: 1810.013773 | N146: 1332.695325 | O146: 1247.906714 | P146: 1122.810649 | Q146: 1084.703355 | R146: 1046.596061 | S146: 1008.488767 | T146: 970.3814733 | U146: 932.2741795 | V146: 894.1668856 | W146: 856.0595918 | X146: 817.952298 | Y146: 779.8450042 | Z146: 760.7635579 | AA146: 741.6821116 | AB146: 722.6006653 | AC146: 703.519219 | AD146: 684.4377727 | AE146: 665.3563264 | AF146: 646.2748801 | AG146: 627.1934337 | AH146: 608.1119874 | AI146: 589.0305411 | AJ146: 583.85479 | AK146: 578.6790388 | AL146: 573.5032877 | AM146: 568.3275365 | AN146: 543.0867863 | AO146: 541.9240349 | AP146: 540.7612836 | AQ146: 539.5985323 | AR146: 538.4357809 | AS146: 537.2730296
K147: Comm PV - Daggett, CA - Mid | L147: =$S$54*(L164+L265) -> 1857.000226 | M147: 1810.013773 | N147: 1722.51361 | O147: 1622.867066 | P147: 1599.877327 | Q147: 1562.907998 | R147: 1525.93867 | S147: 1488.969342 | T147: 1452.000013 | U147: 1415.030685 | V147: 1378.061357 | W147: 1341.092028 | X147: 1304.1227 | Y147: 1267.153372 | Z147: 1255.227634 | AA147: 1243.301895 | AB147: 1231.376157 | AC147: 1219.450419 | AD147: 1207.524681 | AE147: 1195.598943 | AF147: 1183.673204 | AG147: 1171.747466 | AH147: 1159.821728 | AI147: 1147.89599 | AJ147: 1134.478661 | AK147: 1121.061331 | AL147: 1107.644002 | AM147: 1094.226673 | AN147: 1080.809344 | AO147: 1067.392014 | AP147: 1053.974685 | AQ147: 1040.557356 | AR147: 1027.140027 | AS147: 1013.722697
K148: Comm PV - Daggett, CA - Constant | L148: =$S$54*(L165+L266) -> 1857.000226 | M148: 1810.013773 | N148: 1810.013773 | O148: 1810.013773 | P148: 1810.013773 | Q148: 1810.013773 | R148: 1810.013773 | S148: 1810.013773 | T148: 1810.013773 | U148: 1810.013773 | V148: 1810.013773 | W148: 1810.013773 | X148: 1810.013773 | Y148: 1810.013773 | Z148: 1810.013773 | AA148: 1810.013773 | AB148: 1810.013773 | AC148: 1810.013773 | AD148: 1810.013773 | AE148: 1810.013773 | AF148: 1810.013773 | AG148: 1810.013773 | AH148: 1810.013773 | AI148: 1810.013773 | AJ148: 1810.013773 | AK148: 1810.013773 | AL148: 1810.013773 | AM148: 1810.013773 | AN148: 1810.013773 | AO148: 1810.013773 | AP148: 1810.013773 | AQ148: 1810.013773 | AR148: 1810.013773 | AS148: 1810.013773
L150: 2017 | M150: 2018 | N150: 2019 | O150: 2020 | P150: 2021 | Q150: 2022 | R150: 2023 | S150: 2024 | T150: 2025 | U150: 2026 | V150: 2027 | W150: 2028 | X150: 2029 | Y150: 2030 | Z150: 2031 | AA150: 2032 | AB150: 2033 | AC150: 2034 | AD150: 2035 | AE150: 2036 | AF150: 2037 | AG150: 2038 | AH150: 2039 | AI150: 2040 | AJ150: 2041 | AK150: 2042 | AL150: 2043 | AM150: 2044 | AN150: 2045 | AO150: 2046 | AP150: 2047 | AQ150: 2048 | AR150: 2049 | AS150: 2050
J151: Overnight Capital Cost ($/kW) | K151: Comm PV - Seattle - Low | L151: 1831.862136 | M151: 1785.511736 | N151: 1314.654716 | O151: 1231.013883 | P151: 1107.611235 | Q151: 1070.019797 | R151: 1032.428359 | S151: 994.8369211 | T151: 957.2454832 | U151: 919.6540453 | V151: 882.0626074 | W151: 844.4711695 | X151: 806.8797317 | Y151: 769.2882938 | Z151: 750.4651517 | AA151: 731.6420097 | AB151: 712.8188677 | AC151: 693.9957257 | AD151: 675.1725836 | AE151: 656.3494416 | AF151: 637.5262996 | AG151: 618.7031576 | AH151: 599.8800155 | AI151: 581.0568735 | AJ151: 575.9511862 | AK151: 570.8454988 | AL151: 565.7398115 | AM151: 560.6341241 | AN151: 535.7350562 | AO151: 534.588045 | AP151: 533.4410337 | AQ151: 532.2940225 | AR151: 531.1470112 | AS151: 530
K152: Comm PV - Seattle - Mid | L152: 1831.862136 | M152: 1785.511736 | N152: 1699.196057 | O152: 1600.898422 | P152: 1578.219893 | Q152: 1541.751016 | R152: 1505.282139 | S152: 1468.813262 | T152: 1432.344385 | U152: 1395.875508 | V152: 1359.406631 | W152: 1322.937754 | X152: 1286.468877 | Y152: 1250 | Z152: 1238.2357 | AA152: 1226.4714 | AB152: 1214.707099 | AC152: 1202.942799 | AD152: 1191.178499 | AE152: 1179.414199 | AF152: 1167.649898 | AG152: 1155.885598 | AH152: 1144.121298 | AI152: 1132.356998 | AJ152: 1119.121298 | AK152: 1105.885598 | AL152: 1092.649898 | AM152: 1079.414199 | AN152: 1066.178499 | AO152: 1052.942799 | AP152: 1039.707099 | AQ152: 1026.4714 | AR152: 1013.2357 | AS152: 1000
K153: Comm PV - Seattle - Constant | L153: 1831.862136 | M153: 1785.511736 | N153: 1785.511736 | O153: 1785.511736 | P153: 1785.511736 | Q153: 1785.511736 | R153: 1785.511736 | S153: 1785.511736 | T153: 1785.511736 | U153: 1785.511736 | V153: 1785.511736 | W153: 1785.511736 | X153: 1785.511736 | Y153: 1785.511736 | Z153: 1785.511736 | AA153: 1785.511736 | AB153: 1785.511736 | AC153: 1785.511736 | AD153: 1785.511736 | AE153: 1785.511736 | AF153: 1785.511736 | AG153: 1785.511736 | AH153: 1785.511736 | AI153: 1785.511736 | AJ153: 1785.511736 | AK153: 1785.511736 | AL153: 1785.511736 | AM153: 1785.511736 | AN153: 1785.511736 | AO153: 1785.511736 | AP153: 1785.511736 | AQ153: 1785.511736 | AR153: 1785.511736 | AS153: 1785.511736
K154: Comm PV - Chicago - Low | L154: =L151 -> 1831.862136 | M154: =M151 -> 1785.511736 | N154: 1314.654716 | O154: 1231.013883 | P154: 1107.611235 | Q154: 1070.019797 | R154: 1032.428359 | S154: 994.8369211 | T154: 957.2454832 | U154: 919.6540453 | V154: 882.0626074 | W154: 844.4711695 | X154: 806.8797317 | Y154: 769.2882938 | Z154: 750.4651517 | AA154: 731.6420097 | AB154: 712.8188677 | AC154: 693.9957257 | AD154: 675.1725836 | AE154: 656.3494416 | AF154: 637.5262996 | AG154: 618.7031576 | AH154: 599.8800155 | AI154: 581.0568735 | AJ154: 575.9511862 | AK154: 570.8454988 | AL154: 565.7398115 | AM154: 560.6341241 | AN154: 535.7350562 | AO154: 534.588045 | AP154: 533.4410337 | AQ154: 532.2940225 | AR154: 531.1470112 | AS154: 530
K155: Comm PV - Chicago - Mid | L155: =L152 -> 1831.862136 | M155: 1785.511736 | N155: 1699.196057 | O155: 1600.898422 | P155: 1578.219893 | Q155: 1541.751016 | R155: 1505.282139 | S155: 1468.813262 | T155: 1432.344385 | U155: 1395.875508 | V155: 1359.406631 | W155: 1322.937754 | X155: 1286.468877 | Y155: 1250 | Z155: 1238.2357 | AA155: 1226.4714 | AB155: 1214.707099 | AC155: 1202.942799 | AD155: 1191.178499 | AE155: 1179.414199 | AF155: 1167.649898 | AG155: 1155.885598 | AH155: 1144.121298 | AI155: 1132.356998 | AJ155: 1119.121298 | AK155: 1105.885598 | AL155: 1092.649898 | AM155: 1079.414199 | AN155: 1066.178499 | AO155: 1052.942799 | AP155: 1039.707099 | AQ155: 1026.4714 | AR155: 1013.2357 | AS155: 1000
K156: Comm PV - Chicago - Constant | L156: =L153 -> 1831.862136 | M156: 1785.511736 | N156: 1785.511736 | O156: 1785.511736 | P156: 1785.511736 | Q156: 1785.511736 | R156: 1785.511736 | S156: 1785.511736 | T156: 1785.511736 | U156: 1785.511736 | V156: 1785.511736 | W156: 1785.511736 | X156: 1785.511736 | Y156: 1785.511736 | Z156: 1785.511736 | AA156: 1785.511736 | AB156: 1785.511736 | AC156: 1785.511736 | AD156: 1785.511736 | AE156: 1785.511736 | AF156: 1785.511736 | AG156: 1785.511736 | AH156: 1785.511736 | AI156: 1785.511736 | AJ156: 1785.511736 | AK156: 1785.511736 | AL156: 1785.511736 | AM156: 1785.511736 | AN156: 1785.511736 | AO156: 1785.511736 | AP156: 1785.511736 | AQ156: 1785.511736 | AR156: 1785.511736 | AS156: 1785.511736
K157: Comm PV - Kansas City - Low | L157: =L154 -> 1831.862136 | M157: 1785.511736 | N157: 1314.654716 | O157: 1231.013883 | P157: 1107.611235 | Q157: 1070.019797 | R157: 1032.428359 | S157: 994.8369211 | T157: 957.2454832 | U157: 919.6540453 | V157: 882.0626074 | W157: 844.4711695 | X157: 806.8797317 | Y157: 769.2882938 | Z157: 750.4651517 | AA157: 731.6420097 | AB157: 712.8188677 | AC157: 693.9957257 | AD157: 675.1725836 | AE157: 656.3494416 | AF157: 637.5262996 | AG157: 618.7031576 | AH157: 599.8800155 | AI157: 581.0568735 | AJ157: 575.9511862 | AK157: 570.8454988 | AL157: 565.7398115 | AM157: 560.6341241 | AN157: 535.7350562 | AO157: 534.588045 | AP157: 533.4410337 | AQ157: 532.2940225 | AR157: 531.1470112 | AS157: 530
K158: Comm PV - Kansas City - Mid | L158: =L155 -> 1831.862136 | M158: 1785.511736 | N158: 1699.196057 | O158: 1600.898422 | P158: 1578.219893 | Q158: 1541.751016 | R158: 1505.282139 | S158: 1468.813262 | T158: 1432.344385 | U158: 1395.875508 | V158: 1359.406631 | W158: 1322.937754 | X158: 1286.468877 | Y158: 1250 | Z158: 1238.2357 | AA158: 1226.4714 | AB158: 1214.707099 | AC158: 1202.942799 | AD158: 1191.178499 | AE158: 1179.414199 | AF158: 1167.649898 | AG158: 1155.885598 | AH158: 1144.121298 | AI158: 1132.356998 | AJ158: 1119.121298 | AK158: 1105.885598 | AL158: 1092.649898 | AM158: 1079.414199 | AN158: 1066.178499 | AO158: 1052.942799 | AP158: 1039.707099 | AQ158: 1026.4714 | AR158: 1013.2357 | AS158: 1000
K159: Comm PV - Kansas City - Constant | L159: =L156 -> 1831.862136 | M159: 1785.511736 | N159: 1785.511736 | O159: 1785.511736 | P159: 1785.511736 | Q159: 1785.511736 | R159: 1785.511736 | S159: 1785.511736 | T159: 1785.511736 | U159: 1785.511736 | V159: 1785.511736 | W159: 1785.511736 | X159: 1785.511736 | Y159: 1785.511736 | Z159: 1785.511736 | AA159: 1785.511736 | AB159: 1785.511736 | AC159: 1785.511736 | AD159: 1785.511736 | AE159: 1785.511736 | AF159: 1785.511736 | AG159: 1785.511736 | AH159: 1785.511736 | AI159: 1785.511736 | AJ159: 1785.511736 | AK159: 1785.511736 | AL159: 1785.511736 | AM159: 1785.511736 | AN159: 1785.511736 | AO159: 1785.511736 | AP159: 1785.511736 | AQ159: 1785.511736 | AR159: 1785.511736 | AS159: 1785.511736
K160: Comm PV - Los Angeles - Low | L160: =L157 -> 1831.862136 | M160: 1785.511736 | N160: 1314.654716 | O160: 1231.013883 | P160: 1107.611235 | Q160: 1070.019797 | R160: 1032.428359 | S160: 994.8369211 | T160: 957.2454832 | U160: 919.6540453 | V160: 882.0626074 | W160: 844.4711695 | X160: 806.8797317 | Y160: 769.2882938 | Z160: 750.4651517 | AA160: 731.6420097 | AB160: 712.8188677 | AC160: 693.9957257 | AD160: 675.1725836 | AE160: 656.3494416 | AF160: 637.5262996 | AG160: 618.7031576 | AH160: 599.8800155 | AI160: 581.0568735 | AJ160: 575.9511862 | AK160: 570.8454988 | AL160: 565.7398115 | AM160: 560.6341241 | AN160: 535.7350562 | AO160: 534.588045 | AP160: 533.4410337 | AQ160: 532.2940225 | AR160: 531.1470112 | AS160: 530
K161: Comm PV - Los Angeles - Mid | L161: =L158 -> 1831.862136 | M161: 1785.511736 | N161: 1699.196057 | O161: 1600.898422 | P161: 1578.219893 | Q161: 1541.751016 | R161: 1505.282139 | S161: 1468.813262 | T161: 1432.344385 | U161: 1395.875508 | V161: 1359.406631 | W161: 1322.937754 | X161: 1286.468877 | Y161: 1250 | Z161: 1238.2357 | AA161: 1226.4714 | AB161: 1214.707099 | AC161: 1202.942799 | AD161: 1191.178499 | AE161: 1179.414199 | AF161: 1167.649898 | AG161: 1155.885598 | AH161: 1144.121298 | AI161: 1132.356998 | AJ161: 1119.121298 | AK161: 1105.885598 | AL161: 1092.649898 | AM161: 1079.414199 | AN161: 1066.178499 | AO161: 1052.942799 | AP161: 1039.707099 | AQ161: 1026.4714 | AR161: 1013.2357 | AS161: 1000
K162: Comm PV - Los Angeles - Constant | L162: =L159 -> 1831.862136 | M162: 1785.511736 | N162: 1785.511736 | O162: 1785.511736 | P162: 1785.511736 | Q162: 1785.511736 | R162: 1785.511736 | S162: 1785.511736 | T162: 1785.511736 | U162: 1785.511736 | V162: 1785.511736 | W162: 1785.511736 | X162: 1785.511736 | Y162: 1785.511736 | Z162: 1785.511736 | AA162: 1785.511736 | AB162: 1785.511736 | AC162: 1785.511736 | AD162: 1785.511736 | AE162: 1785.511736 | AF162: 1785.511736 | AG162: 1785.511736 | AH162: 1785.511736 | AI162: 1785.511736 | AJ162: 1785.511736 | AK162: 1785.511736 | AL162: 1785.511736 | AM162: 1785.511736 | AN162: 1785.511736 | AO162: 1785.511736 | AP162: 1785.511736 | AQ162: 1785.511736 | AR162: 1785.511736 | AS162: 1785.511736
K163: Comm PV - Daggett, CA - Low | L163: =L160 -> 1831.862136 | M163: 1785.511736 | N163: 1314.654716 | O163: 1231.013883 | P163: 1107.611235 | Q163: 1070.019797 | R163: 1032.428359 | S163: 994.8369211 | T163: 957.2454832 | U163: 919.6540453 | V163: 882.0626074 | W163: 844.4711695 | X163: 806.8797317 | Y163: 769.2882938 | Z163: 750.4651517 | AA163: 731.6420097 | AB163: 712.8188677 | AC163: 693.9957257 | AD163: 675.1725836 | AE163: 656.3494416 | AF163: 637.5262996 | AG163: 618.7031576 | AH163: 599.8800155 | AI163: 581.0568735 | AJ163: 575.9511862 | AK163: 570.8454988 | AL163: 565.7398115 | AM163: 560.6341241 | AN163: 535.7350562 | AO163: 534.588045 | AP163: 533.4410337 | AQ163: 532.2940225 | AR163: 531.1470112 | AS163: 530
K164: Comm PV - Daggett, CA - Mid | L164: =L161 -> 1831.862136 | M164: 1785.511736 | N164: 1699.196057 | O164: 1600.898422 | P164: 1578.219893 | Q164: 1541.751016 | R164: 1505.282139 | S164: 1468.813262 | T164: 1432.344385 | U164: 1395.875508 | V164: 1359.406631 | W164: 1322.937754 | X164: 1286.468877 | Y164: 1250 | Z164: 1238.2357 | AA164: 1226.4714 | AB164: 1214.707099 | AC164: 1202.942799 | AD164: 1191.178499 | AE164: 1179.414199 | AF164: 1167.649898 | AG164: 1155.885598 | AH164: 1144.121298 | AI164: 1132.356998 | AJ164: 1119.121298 | AK164: 1105.885598 | AL164: 1092.649898 | AM164: 1079.414199 | AN164: 1066.178499 | AO164: 1052.942799 | AP164: 1039.707099 | AQ164: 1026.4714 | AR164: 1013.2357 | AS164: 1000
K165: Comm PV - Daggett, CA - Constant | L165: =L162 -> 1831.862136 | M165: 1785.511736 | N165: 1785.511736 | O165: 1785.511736 | P165: 1785.511736 | Q165: 1785.511736 | R165: 1785.511736 | S165: 1785.511736 | T165: 1785.511736 | U165: 1785.511736 | V165: 1785.511736 | W165: 1785.511736 | X165: 1785.511736 | Y165: 1785.511736 | Z165: 1785.511736 | AA165: 1785.511736 | AB165: 1785.511736 | AC165: 1785.511736 | AD165: 1785.511736 | AE165: 1785.511736 | AF165: 1785.511736 | AG165: 1785.511736 | AH165: 1785.511736 | AI165: 1785.511736 | AJ165: 1785.511736 | AK165: 1785.511736 | AL165: 1785.511736 | AM165: 1785.511736 | AN165: 1785.511736 | AO165: 1785.511736 | AP165: 1785.511736 | AQ165: 1785.511736 | AR165: 1785.511736 | AS165: 1785.511736
L167: 2017 | M167: 2018 | N167: 2019 | O167: 2020 | P167: 2021 | Q167: 2022 | R167: 2023 | S167: 2024 | T167: 2025 | U167: 2026 | V167: 2027 | W167: 2028 | X167: 2029 | Y167: 2030 | Z167: 2031 | AA167: 2032 | AB167: 2033 | AC167: 2034 | AD167: 2035 | AE167: 2036 | AF167: 2037 | AG167: 2038 | AH167: 2039 | AI167: 2040 | AJ167: 2041 | AK167: 2042 | AL167: 2043 | AM167: 2044 | AN167: 2045 | AO167: 2046 | AP167: 2047 | AQ167: 2048 | AR167: 2049 | AS167: 2050
J168: Fixed Operation and Maintenance Expenses ($/kW-yr) | K168: Comm PV - Seattle - Low | L168: 17.93538039 | M168: 17.1022807 | N168: 13.14654716 | O168: 12.31013883 | P168: 11.07611235 | Q168: 10.70019797 | R168: 10.32428359 | S168: 9.948369211 | T168: 9.572454832 | U168: 9.196540453 | V168: 8.820626074 | W168: 8.444711695 | X168: 8.068797317 | Y168: 7.692882938 | Z168: 7.504651517 | AA168: 7.316420097 | AB168: 7.128188677 | AC168: 6.939957257 | AD168: 6.751725836 | AE168: 6.563494416 | AF168: 6.375262996 | AG168: 6.187031576 | AH168: 5.998800155 | AI168: 5.810568735 | AJ168: 5.759511862 | AK168: 5.708454988 | AL168: 5.657398115 | AM168: 5.606341241 | AN168: 5.357350562 | AO168: 5.34588045 | AP168: 5.334410337 | AQ168: 5.322940225 | AR168: 5.311470112 | AS168: 5.3
K169: Comm PV - Seattle - Mid | L169: 17.93538039 | M169: 17.1022807 | N169: 16.99196057 | O169: 16.00898422 | P169: 15.78219893 | Q169: 15.41751016 | R169: 15.05282139 | S169: 14.68813262 | T169: 14.32344385 | U169: 13.95875508 | V169: 13.59406631 | W169: 13.22937754 | X169: 12.86468877 | Y169: 12.5 | Z169: 12.382357 | AA169: 12.264714 | AB169: 12.14707099 | AC169: 12.02942799 | AD169: 11.91178499 | AE169: 11.79414199 | AF169: 11.67649898 | AG169: 11.55885598 | AH169: 11.44121298 | AI169: 11.32356998 | AJ169: 11.19121298 | AK169: 11.05885598 | AL169: 10.92649898 | AM169: 10.79414199 | AN169: 10.66178499 | AO169: 10.52942799 | AP169: 10.39707099 | AQ169: 10.264714 | AR169: 10.132357 | AS169: 10
K170: Comm PV - Seattle - Constant | L170: 17.93538039 | M170: 17.1022807 | N170: 17.1022807 | O170: 17.1022807 | P170: 17.1022807 | Q170: 17.1022807 | R170: 17.1022807 | S170: 17.1022807 | T170: 17.1022807 | U170: 17.1022807 | V170: 17.1022807 | W170: 17.1022807 | X170: 17.1022807 | Y170: 17.1022807 | Z170: 17.1022807 | AA170: 17.1022807 | AB170: 17.1022807 | AC170: 17.1022807 | AD170: 17.1022807 | AE170: 17.1022807 | AF170: 17.1022807 | AG170: 17.1022807 | AH170: 17.1022807 | AI170: 17.1022807 | AJ170: 17.1022807 | AK170: 17.1022807 | AL170: 17.1022807 | AM170: 17.1022807 | AN170: 17.1022807 | AO170: 17.1022807 | AP170: 17.1022807 | AQ170: 17.1022807 | AR170: 17.1022807 | AS170: 17.1022807
K171: Comm PV - Chicago - Low | L171: =L168 -> 17.93538039 | M171: 17.1022807 | N171: 13.14654716 | O171: 12.31013883 | P171: 11.07611235 | Q171: 10.70019797 | R171: 10.32428359 | S171: 9.948369211 | T171: 9.572454832 | U171: 9.196540453 | V171: 8.820626074 | W171: 8.444711695 | X171: 8.068797317 | Y171: 7.692882938 | Z171: 7.504651517 | AA171: 7.316420097 | AB171: 7.128188677 | AC171: 6.939957257 | AD171: 6.751725836 | AE171: 6.563494416 | AF171: 6.375262996 | AG171: 6.187031576 | AH171: 5.998800155 | AI171: 5.810568735 | AJ171: 5.759511862 | AK171: 5.708454988 | AL171: 5.657398115 | AM171: 5.606341241 | AN171: 5.357350562 | AO171: 5.34588045 | AP171: 5.334410337 | AQ171: 5.322940225 | AR171: 5.311470112 | AS171: 5.3
K172: Comm PV - Chicago - Mid | L172: =L169 -> 17.93538039 | M172: 17.1022807 | N172: 16.99196057 | O172: 16.00898422 | P172: 15.78219893 | Q172: 15.41751016 | R172: 15.05282139 | S172: 14.68813262 | T172: 14.32344385 | U172: 13.95875508 | V172: 13.59406631 | W172: 13.22937754 | X172: 12.86468877 | Y172: 12.5 | Z172: 12.382357 | AA172: 12.264714 | AB172: 12.14707099 | AC172: 12.02942799 | AD172: 11.91178499 | AE172: 11.79414199 | AF172: 11.67649898 | AG172: 11.55885598 | AH172: 11.44121298 | AI172: 11.32356998 | AJ172: 11.19121298 | AK172: 11.05885598 | AL172: 10.92649898 | AM172: 10.79414199 | AN172: 10.66178499 | AO172: 10.52942799 | AP172: 10.39707099 | AQ172: 10.264714 | AR172: 10.132357 | AS172: 10
K173: Comm PV - Chicago - Constant | L173: =L170 -> 17.93538039 | M173: 17.1022807 | N173: 17.1022807 | O173: 17.1022807 | P173: 17.1022807 | Q173: 17.1022807 | R173: 17.1022807 | S173: 17.1022807 | T173: 17.1022807 | U173: 17.1022807 | V173: 17.1022807 | W173: 17.1022807 | X173: 17.1022807 | Y173: 17.1022807 | Z173: 17.1022807 | AA173: 17.1022807 | AB173: 17.1022807 | AC173: 17.1022807 | AD173: 17.1022807 | AE173: 17.1022807 | AF173: 17.1022807 | AG173: 17.1022807 | AH173: 17.1022807 | AI173: 17.1022807 | AJ173: 17.1022807 | AK173: 17.1022807 | AL173: 17.1022807 | AM173: 17.1022807 | AN173: 17.1022807 | AO173: 17.1022807 | AP173: 17.1022807 | AQ173: 17.1022807 | AR173: 17.1022807 | AS173: 17.1022807
K174: Comm PV - Kansas City - Low | L174: =L171 -> 17.93538039 | M174: 17.1022807 | N174: 13.14654716 | O174: 12.31013883 | P174: 11.07611235 | Q174: 10.70019797 | R174: 10.32428359 | S174: 9.948369211 | T174: 9.572454832 | U174: 9.196540453 | V174: 8.820626074 | W174: 8.444711695 | X174: 8.068797317 | Y174: 7.692882938 | Z174: 7.504651517 | AA174: 7.316420097 | AB174: 7.128188677 | AC174: 6.939957257 | AD174: 6.751725836 | AE174: 6.563494416 | AF174: 6.375262996 | AG174: 6.187031576 | AH174: 5.998800155 | AI174: 5.810568735 | AJ174: 5.759511862 | AK174: 5.708454988 | AL174: 5.657398115 | AM174: 5.606341241 | AN174: 5.357350562 | AO174: 5.34588045 | AP174: 5.334410337 | AQ174: 5.322940225 | AR174: 5.311470112 | AS174: 5.3
K175: Comm PV - Kansas City - Mid | L175: =L172 -> 17.93538039 | M175: 17.1022807 | N175: 16.99196057 | O175: 16.00898422 | P175: 15.78219893 | Q175: 15.41751016 | R175: 15.05282139 | S175: 14.68813262 | T175: 14.32344385 | U175: 13.95875508 | V175: 13.59406631 | W175: 13.22937754 | X175: 12.86468877 | Y175: 12.5 | Z175: 12.382357 | AA175: 12.264714 | AB175: 12.14707099 | AC175: 12.02942799 | AD175: 11.91178499 | AE175: 11.79414199 | AF175: 11.67649898 | AG175: 11.55885598 | AH175: 11.44121298 | AI175: 11.32356998 | AJ175: 11.19121298 | AK175: 11.05885598 | AL175: 10.92649898 | AM175: 10.79414199 | AN175: 10.66178499 | AO175: 10.52942799 | AP175: 10.39707099 | AQ175: 10.264714 | AR175: 10.132357 | AS175: 10
K176: Comm PV - Kansas City - Constant | L176: =L173 -> 17.93538039 | M176: 17.1022807 | N176: 17.1022807 | O176: 17.1022807 | P176: 17.1022807 | Q176: 17.1022807 | R176: 17.1022807 | S176: 17.1022807 | T176: 17.1022807 | U176: 17.1022807 | V176: 17.1022807 | W176: 17.1022807 | X176: 17.1022807 | Y176: 17.1022807 | Z176: 17.1022807 | AA176: 17.1022807 | AB176: 17.1022807 | AC176: 17.1022807 | AD176: 17.1022807 | AE176: 17.1022807 | AF176: 17.1022807 | AG176: 17.1022807 | AH176: 17.1022807 | AI176: 17.1022807 | AJ176: 17.1022807 | AK176: 17.1022807 | AL176: 17.1022807 | AM176: 17.1022807 | AN176: 17.1022807 | AO176: 17.1022807 | AP176: 17.1022807 | AQ176: 17.1022807 | AR176: 17.1022807 | AS176: 17.1022807
K177: Comm PV - Los Angeles - Low | L177: =L174 -> 17.93538039 | M177: 17.1022807 | N177: 13.14654716 | O177: 12.31013883 | P177: 11.07611235 | Q177: 10.70019797 | R177: 10.32428359 | S177: 9.948369211 | T177: 9.572454832 | U177: 9.196540453 | V177: 8.820626074 | W177: 8.444711695 | X177: 8.068797317 | Y177: 7.692882938 | Z177: 7.504651517 | AA177: 7.316420097 | AB177: 7.128188677 | AC177: 6.939957257 | AD177: 6.751725836 | AE177: 6.563494416 | AF177: 6.375262996 | AG177: 6.187031576 | AH177: 5.998800155 | AI177: 5.810568735 | AJ177: 5.759511862 | AK177: 5.708454988 | AL177: 5.657398115 | AM177: 5.606341241 | AN177: 5.357350562 | AO177: 5.34588045 | AP177: 5.334410337 | AQ177: 5.322940225 | AR177: 5.311470112 | AS177: 5.3
K178: Comm PV - Los Angeles - Mid | L178: =L175 -> 17.93538039 | M178: 17.1022807 | N178: 16.99196057 | O178: 16.00898422 | P178: 15.78219893 | Q178: 15.41751016 | R178: 15.05282139 | S178: 14.68813262 | T178: 14.32344385 | U178: 13.95875508 | V178: 13.59406631 | W178: 13.22937754 | X178: 12.86468877 | Y178: 12.5 | Z178: 12.382357 | AA178: 12.264714 | AB178: 12.14707099 | AC178: 12.02942799 | AD178: 11.91178499 | AE178: 11.79414199 | AF178: 11.67649898 | AG178: 11.55885598 | AH178: 11.44121298 | AI178: 11.32356998 | AJ178: 11.19121298 | AK178: 11.05885598 | AL178: 10.92649898 | AM178: 10.79414199 | AN178: 10.66178499 | AO178: 10.52942799 | AP178: 10.39707099 | AQ178: 10.264714 | AR178: 10.132357 | AS178: 10
K179: Comm PV - Los Angeles - Constant | L179: =L176 -> 17.93538039 | M179: 17.1022807 | N179: 17.1022807 | O179: 17.1022807 | P179: 17.1022807 | Q179: 17.1022807 | R179: 17.1022807 | S179: 17.1022807 | T179: 17.1022807 | U179: 17.1022807 | V179: 17.1022807 | W179: 17.1022807 | X179: 17.1022807 | Y179: 17.1022807 | Z179: 17.1022807 | AA179: 17.1022807 | AB179: 17.1022807 | AC179: 17.1022807 | AD179: 17.1022807 | AE179: 17.1022807 | AF179: 17.1022807 | AG179: 17.1022807 | AH179: 17.1022807 | AI179: 17.1022807 | AJ179: 17.1022807 | AK179: 17.1022807 | AL179: 17.1022807 | AM179: 17.1022807 | AN179: 17.1022807 | AO179: 17.1022807 | AP179: 17.1022807 | AQ179: 17.1022807 | AR179: 17.1022807 | AS179: 17.1022807
K180: Comm PV - Daggett, CA - Low | L180: =L177 -> 17.93538039 | M180: 17.1022807 | N180: 13.14654716 | O180: 12.31013883 | P180: 11.07611235 | Q180: 10.70019797 | R180: 10.32428359 | S180: 9.948369211 | T180: 9.572454832 | U180: 9.196540453 | V180: 8.820626074 | W180: 8.444711695 | X180: 8.068797317 | Y180: 7.692882938 | Z180: 7.504651517 | AA180: 7.316420097 | AB180: 7.128188677 | AC180: 6.939957257 | AD180: 6.751725836 | AE180: 6.563494416 | AF180: 6.375262996 | AG180: 6.187031576 | AH180: 5.998800155 | AI180: 5.810568735 | AJ180: 5.759511862 | AK180: 5.708454988 | AL180: 5.657398115 | AM180: 5.606341241 | AN180: 5.357350562 | AO180: 5.34588045 | AP180: 5.334410337 | AQ180: 5.322940225 | AR180: 5.311470112 | AS180: 5.3
K181: Comm PV - Daggett, CA - Mid | L181: =L178 -> 17.93538039 | M181: 17.1022807 | N181: 16.99196057 | O181: 16.00898422 | P181: 15.78219893 | Q181: 15.41751016 | R181: 15.05282139 | S181: 14.68813262 | T181: 14.32344385 | U181: 13.95875508 | V181: 13.59406631 | W181: 13.22937754 | X181: 12.86468877 | Y181: 12.5 | Z181: 12.382357 | AA181: 12.264714 | AB181: 12.14707099 | AC181: 12.02942799 | AD181: 11.91178499 | AE181: 11.79414199 | AF181: 11.67649898 | AG181: 11.55885598 | AH181: 11.44121298 | AI181: 11.32356998 | AJ181: 11.19121298 | AK181: 11.05885598 | AL181: 10.92649898 | AM181: 10.79414199 | AN181: 10.66178499 | AO181: 10.52942799 | AP181: 10.39707099 | AQ181: 10.264714 | AR181: 10.132357 | AS181: 10
K182: Comm PV - Daggett, CA - Constant | L182: =L179 -> 17.93538039 | M182: 17.1022807 | N182: 17.1022807 | O182: 17.1022807 | P182: 17.1022807 | Q182: 17.1022807 | R182: 17.1022807 | S182: 17.1022807 | T182: 17.1022807 | U182: 17.1022807 | V182: 17.1022807 | W182: 17.1022807 | X182: 17.1022807 | Y182: 17.1022807 | Z182: 17.1022807 | AA182: 17.1022807 | AB182: 17.1022807 | AC182: 17.1022807 | AD182: 17.1022807 | AE182: 17.1022807 | AF182: 17.1022807 | AG182: 17.1022807 | AH182: 17.1022807 | AI182: 17.1022807 | AJ182: 17.1022807 | AK182: 17.1022807 | AL182: 17.1022807 | AM182: 17.1022807 | AN182: 17.1022807 | AO182: 17.1022807 | AP182: 17.1022807 | AQ182: 17.1022807 | AR182: 17.1022807 | AS182: 17.1022807
L184: 2017 | M184: 2018 | N184: 2019 | O184: 2020 | P184: 2021 | Q184: 2022 | R184: 2023 | S184: 2024 | T184: 2025 | U184: 2026 | V184: 2027 | W184: 2028 | X184: 2029 | Y184: 2030 | Z184: 2031 | AA184: 2032 | AB184: 2033 | AC184: 2034 | AD184: 2035 | AE184: 2036 | AF184: 2037 | AG184: 2038 | AH184: 2039 | AI184: 2040 | AJ184: 2041 | AK184: 2042 | AL184: 2043 | AM184: 2044 | AN184: 2045 | AO184: 2046 | AP184: 2047 | AQ184: 2048 | AR184: 2049 | AS184: 2050
J185: Variable Operation and Maintenance Expenses ($/MWh) | K185: Comm PV - Seattle - Low | L185: 0 | M185: 0 | N185: 0 | O185: 0 | P185: 0 | Q185: 0 | R185: 0 | S185: 0 | T185: 0 | U185: 0 | V185: 0 | W185: 0 | X185: 0 | Y185: 0 | Z185: 0 | AA185: 0 | AB185: 0 | AC185: 0 | AD185: 0 | AE185: 0 | AF185: 0 | AG185: 0 | AH185: 0 | AI185: 0 | AJ185: 0 | AK185: 0 | AL185: 0 | AM185: 0 | AN185: 0 | AO185: 0 | AP185: 0 | AQ185: 0 | AR185: 0 | AS185: 0
K186: Comm PV - Seattle - Mid | L186: 0 | M186: 0 | N186: 0 | O186: 0 | P186: 0 | Q186: 0 | R186: 0 | S186: 0 | T186: 0 | U186: 0 | V186: 0 | W186: 0 | X186: 0 | Y186: 0 | Z186: 0 | AA186: 0 | AB186: 0 | AC186: 0 | AD186: 0 | AE186: 0 | AF186: 0 | AG186: 0 | AH186: 0 | AI186: 0 | AJ186: 0 | AK186: 0 | AL186: 0 | AM186: 0 | AN186: 0 | AO186: 0 | AP186: 0 | AQ186: 0 | AR186: 0 | AS186: 0
K187: Comm PV - Seattle - Constant | L187: 0 | M187: 0 | N187: 0 | O187: 0 | P187: 0 | Q187: 0 | R187: 0 | S187: 0 | T187: 0 | U187: 0 | V187: 0 | W187: 0 | X187: 0 | Y187: 0 | Z187: 0 | AA187: 0 | AB187: 0 | AC187: 0 | AD187: 0 | AE187: 0 | AF187: 0 | AG187: 0 | AH187: 0 | AI187: 0 | AJ187: 0 | AK187: 0 | AL187: 0 | AM187: 0 | AN187: 0 | AO187: 0 | AP187: 0 | AQ187: 0 | AR187: 0 | AS187: 0
K188: Comm PV - Chicago - Low | L188: 0 | M188: 0 | N188: 0 | O188: 0 | P188: 0 | Q188: 0 | R188: 0 | S188: 0 | T188: 0 | U188: 0 | V188: 0 | W188: 0 | X188: 0 | Y188: 0 | Z188: 0 | AA188: 0 | AB188: 0 | AC188: 0 | AD188: 0 | AE188: 0 | AF188: 0 | AG188: 0 | AH188: 0 | AI188: 0 | AJ188: 0 | AK188: 0 | AL188: 0 | AM188: 0 | AN188: 0 | AO188: 0 | AP188: 0 | AQ188: 0 | AR188: 0 | AS188: 0
K189: Comm PV - Chicago - Mid | L189: 0 | M189: 0 | N189: 0 | O189: 0 | P189: 0 | Q189: 0 | R189: 0 | S189: 0 | T189: 0 | U189: 0 | V189: 0 | W189: 0 | X189: 0 | Y189: 0 | Z189: 0 | AA189: 0 | AB189: 0 | AC189: 0 | AD189: 0 | AE189: 0 | AF189: 0 | AG189: 0 | AH189: 0 | AI189: 0 | AJ189: 0 | AK189: 0 | AL189: 0 | AM189: 0 | AN189: 0 | AO189: 0 | AP189: 0 | AQ189: 0 | AR189: 0 | AS189: 0
K190: Comm PV - Chicago - Constant | L190: 0 | M190: 0 | N190: 0 | O190: 0 | P190: 0 | Q190: 0 | R190: 0 | S190: 0 | T190: 0 | U190: 0 | V190: 0 | W190: 0 | X190: 0 | Y190: 0 | Z190: 0 | AA190: 0 | AB190: 0 | AC190: 0 | AD190: 0 | AE190: 0 | AF190: 0 | AG190: 0 | AH190: 0 | AI190: 0 | AJ190: 0 | AK190: 0 | AL190: 0 | AM190: 0 | AN190: 0 | AO190: 0 | AP190: 0 | AQ190: 0 | AR190: 0 | AS190: 0
K191: Comm PV - Kansas City - Low | L191: 0 | M191: 0 | N191: 0 | O191: 0 | P191: 0 | Q191: 0 | R191: 0 | S191: 0 | T191: 0 | U191: 0 | V191: 0 | W191: 0 | X191: 0 | Y191: 0 | Z191: 0 | AA191: 0 | AB191: 0 | AC191: 0 | AD191: 0 | AE191: 0 | AF191: 0 | AG191: 0 | AH191: 0 | AI191: 0 | AJ191: 0 | AK191: 0 | AL191: 0 | AM191: 0 | AN191: 0 | AO191: 0 | AP191: 0 | AQ191: 0 | AR191: 0 | AS191: 0
K192: Comm PV - Kansas City - Mid | L192: 0 | M192: 0 | N192: 0 | O192: 0 | P192: 0 | Q192: 0 | R192: 0 | S192: 0 | T192: 0 | U192: 0 | V192: 0 | W192: 0 | X192: 0 | Y192: 0 | Z192: 0 | AA192: 0 | AB192: 0 | AC192: 0 | AD192: 0 | AE192: 0 | AF192: 0 | AG192: 0 | AH192: 0 | AI192: 0 | AJ192: 0 | AK192: 0 | AL192: 0 | AM192: 0 | AN192: 0 | AO192: 0 | AP192: 0 | AQ192: 0 | AR192: 0 | AS192: 0
K193: Comm PV - Kansas City - Constant | L193: 0 | M193: 0 | N193: 0 | O193: 0 | P193: 0 | Q193: 0 | R193: 0 | S193: 0 | T193: 0 | U193: 0 | V193: 0 | W193: 0 | X193: 0 | Y193: 0 | Z193: 0 | AA193: 0 | AB193: 0 | AC193: 0 | AD193: 0 | AE193: 0 | AF193: 0 | AG193: 0 | AH193: 0 | AI193: 0 | AJ193: 0 | AK193: 0 | AL193: 0 | AM193: 0 | AN193: 0 | AO193: 0 | AP193: 0 | AQ193: 0 | AR193: 0 | AS193: 0
K194: Comm PV - Los Angeles - Low | L194: 0 | M194: 0 | N194: 0 | O194: 0 | P194: 0 | Q194: 0 | R194: 0 | S194: 0 | T194: 0 | U194: 0 | V194: 0 | W194: 0 | X194: 0 | Y194: 0 | Z194: 0 | AA194: 0 | AB194: 0 | AC194: 0 | AD194: 0 | AE194: 0 | AF194: 0 | AG194: 0 | AH194: 0 | AI194: 0 | AJ194: 0 | AK194: 0 | AL194: 0 | AM194: 0 | AN194: 0 | AO194: 0 | AP194: 0 | AQ194: 0 | AR194: 0 | AS194: 0
K195: Comm PV - Los Angeles - Mid | L195: 0 | M195: 0 | N195: 0 | O195: 0 | P195: 0 | Q195: 0 | R195: 0 | S195: 0 | T195: 0 | U195: 0 | V195: 0 | W195: 0 | X195: 0 | Y195: 0 | Z195: 0 | AA195: 0 | AB195: 0 | AC195: 0 | AD195: 0 | AE195: 0 | AF195: 0 | AG195: 0 | AH195: 0 | AI195: 0 | AJ195: 0 | AK195: 0 | AL195: 0 | AM195: 0 | AN195: 0 | AO195: 0 | AP195: 0 | AQ195: 0 | AR195: 0 | AS195: 0
K196: Comm PV - Los Angeles - Constant | L196: 0 | M196: 0 | N196: 0 | O196: 0 | P196: 0 | Q196: 0 | R196: 0 | S196: 0 | T196: 0 | U196: 0 | V196: 0 | W196: 0 | X196: 0 | Y196: 0 | Z196: 0 | AA196: 0 | AB196: 0 | AC196: 0 | AD196: 0 | AE196: 0 | AF196: 0 | AG196: 0 | AH196: 0 | AI196: 0 | AJ196: 0 | AK196: 0 | AL196: 0 | AM196: 0 | AN196: 0 | AO196: 0 | AP196: 0 | AQ196: 0 | AR196: 0 | AS196: 0
K197: Comm PV - Daggett, CA - Low | L197: 0 | M197: 0 | N197: 0 | O197: 0 | P197: 0 | Q197: 0 | R197: 0 | S197: 0 | T197: 0 | U197: 0 | V197: 0 | W197: 0 | X197: 0 | Y197: 0 | Z197: 0 | AA197: 0 | AB197: 0 | AC197: 0 | AD197: 0 | AE197: 0 | AF197: 0 | AG197: 0 | AH197: 0 | AI197: 0 | AJ197: 0 | AK197: 0 | AL197: 0 | AM197: 0 | AN197: 0 | AO197: 0 | AP197: 0 | AQ197: 0 | AR197: 0 | AS197: 0
K198: Comm PV - Daggett, CA - Mid | L198: 0 | M198: 0 | N198: 0 | O198: 0 | P198: 0 | Q198: 0 | R198: 0 | S198: 0 | T198: 0 | U198: 0 | V198: 0 | W198: 0 | X198: 0 | Y198: 0 | Z198: 0 | AA198: 0 | AB198: 0 | AC198: 0 | AD198: 0 | AE198: 0 | AF198: 0 | AG198: 0 | AH198: 0 | AI198: 0 | AJ198: 0 | AK198: 0 | AL198: 0 | AM198: 0 | AN198: 0 | AO198: 0 | AP198: 0 | AQ198: 0 | AR198: 0 | AS198: 0
K199: Comm PV - Daggett, CA - Constant | L199: 0 | M199: 0 | N199: 0 | O199: 0 | P199: 0 | Q199: 0 | R199: 0 | S199: 0 | T199: 0 | U199: 0 | V199: 0 | W199: 0 | X199: 0 | Y199: 0 | Z199: 0 | AA199: 0 | AB199: 0 | AC199: 0 | AD199: 0 | AE199: 0 | AF199: 0 | AG199: 0 | AH199: 0 | AI199: 0 | AJ199: 0 | AK199: 0 | AL199: 0 | AM199: 0 | AN199: 0 | AO199: 0 | AP199: 0 | AQ199: 0 | AR199: 0 | AS199: 0
H202: Finance | L202: 2017 | M202: 2018 | N202: 2019 | O202: 2020 | P202: 2021 | Q202: 2022 | R202: 2023 | S202: 2024 | T202: 2025 | U202: 2026 | V202: 2027 | W202: 2028 | X202: 2029 | Y202: 2030 | Z202: 2031 | AA202: 2032 | AB202: 2033 | AC202: 2034 | AD202: 2035 | AE202: 2036 | AF202: 2037 | AG202: 2038 | AH202: 2039 | AI202: 2040 | AJ202: 2041 | AK202: 2042 | AL202: 2043 | AM202: 2044 | AN202: 2045 | AO202: 2046 | AP202: 2047 | AQ202: 2048 | AR202: 2049 | AS202: 2050
J203: Assumptions | K203: Inflation Rate | L203: ='WACC Calc'!F420 -> 0.025 | M203: ='WACC Calc'!G420 -> 0.025 | N203: ='WACC Calc'!H420 -> 0.025 | O203: ='WACC Calc'!I420 -> 0.025 | P203: ='WACC Calc'!J420 -> 0.025 | Q203: ='WACC Calc'!K420 -> 0.025 | R203: ='WACC Calc'!L420 -> 0.025 | S203: ='WACC Calc'!M420 -> 0.025 | T203: ='WACC Calc'!N420 -> 0.025 | U203: ='WACC Calc'!O420 -> 0.025 | V203: ='WACC Calc'!P420 -> 0.025 | W203: ='WACC Calc'!Q420 -> 0.025 | X203: ='WACC Calc'!R420 -> 0.025 | Y203: ='WACC Calc'!S420 -> 0.025 | Z203: ='WACC Calc'!T420 -> 0.025 | AA203: ='WACC Calc'!U420 -> 0.025 | AB203: ='WACC Calc'!V420 -> 0.025 | AC203: ='WACC Calc'!W420 -> 0.025 | AD203: ='WACC Calc'!X420 -> 0.025 | AE203: ='WACC Calc'!Y420 -> 0.025 | AF203: ='WACC Calc'!Z420 -> 0.025 | AG203: ='WACC Calc'!AA420 -> 0.025 | AH203: ='WACC Calc'!AB420 -> 0.025 | AI203: ='WACC Calc'!AC420 -> 0.025 | AJ203: ='WACC Calc'!AD420 -> 0.025 | AK203: ='WACC Calc'!AE420 -> 0.025 | AL203: ='WACC Calc'!AF420 -> 0.025 | AM203: ='WACC Calc'!AG420 -> 0.025 | AN203: ='WACC Calc'!AH420 -> 0.025 | AO203: ='WACC Calc'!AI420 -> 0.025 | AP203: ='WACC Calc'!AJ420 -> 0.025 | AQ203: ='WACC Calc'!AK420 -> 0.025 | AR203: ='WACC Calc'!AL420 -> 0.025 | AS203: ='WACC Calc'!AM420 -> 0.025
K204: Interest Rate Nominal - Low | L204: ='WACC Calc'!F421 -> 0.0373 | M204: ='WACC Calc'!G421 -> 0.0373 | N204: ='WACC Calc'!H421 -> 0.0373 | O204: ='WACC Calc'!I421 -> 0.0373 | P204: ='WACC Calc'!J421 -> 0.0373 | Q204: ='WACC Calc'!K421 -> 0.0373 | R204: ='WACC Calc'!L421 -> 0.0373 | S204: ='WACC Calc'!M421 -> 0.0373 | T204: ='WACC Calc'!N421 -> 0.0373 | U204: ='WACC Calc'!O421 -> 0.0373 | V204: ='WACC Calc'!P421 -> 0.0373 | W204: ='WACC Calc'!Q421 -> 0.0373 | X204: ='WACC Calc'!R421 -> 0.0373 | Y204: ='WACC Calc'!S421 -> 0.0373 | Z204: ='WACC Calc'!T421 -> 0.0373 | AA204: ='WACC Calc'!U421 -> 0.0373 | AB204: ='WACC Calc'!V421 -> 0.0373 | AC204: ='WACC Calc'!W421 -> 0.0373 | AD204: ='WACC Calc'!X421 -> 0.0373 | AE204: ='WACC Calc'!Y421 -> 0.0373 | AF204: ='WACC Calc'!Z421 -> 0.0373 | AG204: ='WACC Calc'!AA421 -> 0.0373 | AH204: ='WACC Calc'!AB421 -> 0.0373 | AI204: ='WACC Calc'!AC421 -> 0.0373 | AJ204: ='WACC Calc'!AD421 -> 0.0373 | AK204: ='WACC Calc'!AE421 -> 0.0373 | AL204: ='WACC Calc'!AF421 -> 0.0373 | AM204: ='WACC Calc'!AG421 -> 0.0373 | AN204: ='WACC Calc'!AH421 -> 0.0373 | AO204: ='WACC Calc'!AI421 -> 0.0373 | AP204: ='WACC Calc'!AJ421 -> 0.0373 | AQ204: ='WACC Calc'!AK421 -> 0.0373 | AR204: ='WACC Calc'!AL421 -> 0.0373 | AS204: ='WACC Calc'!AM421 -> 0.0373
K205: Interest Rate Nominal - Mid | L205: ='WACC Calc'!F422 -> 0.0373 | M205: ='WACC Calc'!G422 -> 0.0373 | N205: ='WACC Calc'!H422 -> 0.0373 | O205: ='WACC Calc'!I422 -> 0.0373 | P205: ='WACC Calc'!J422 -> 0.0373 | Q205: ='WACC Calc'!K422 -> 0.0373 | R205: ='WACC Calc'!L422 -> 0.0373 | S205: ='WACC Calc'!M422 -> 0.0373 | T205: ='WACC Calc'!N422 -> 0.0373 | U205: ='WACC Calc'!O422 -> 0.0373 | V205: ='WACC Calc'!P422 -> 0.0373 | W205: ='WACC Calc'!Q422 -> 0.0373 | X205: ='WACC Calc'!R422 -> 0.0373 | Y205: ='WACC Calc'!S422 -> 0.0373 | Z205: ='WACC Calc'!T422 -> 0.0373 | AA205: ='WACC Calc'!U422 -> 0.0373 | AB205: ='WACC Calc'!V422 -> 0.0373 | AC205: ='WACC Calc'!W422 -> 0.0373 | AD205: ='WACC Calc'!X422 -> 0.0373 | AE205: ='WACC Calc'!Y422 -> 0.0373 | AF205: ='WACC Calc'!Z422 -> 0.0373 | AG205: ='WACC Calc'!AA422 -> 0.0373 | AH205: ='WACC Calc'!AB422 -> 0.0373 | AI205: ='WACC Calc'!AC422 -> 0.0373 | AJ205: ='WACC Calc'!AD422 -> 0.0373 | AK205: ='WACC Calc'!AE422 -> 0.0373 | AL205: ='WACC Calc'!AF422 -> 0.0373 | AM205: ='WACC Calc'!AG422 -> 0.0373 | AN205: ='WACC Calc'!AH422 -> 0.0373 | AO205: ='WACC Calc'!AI422 -> 0.0373 | AP205: ='WACC Calc'!AJ422 -> 0.0373 | AQ205: ='WACC Calc'!AK422 -> 0.0373 | AR205: ='WACC Calc'!AL422 -> 0.0373 | AS205: ='WACC Calc'!AM422 -> 0.0373
K206: Interest Rate Nominal - Constant | L206: ='WACC Calc'!F423 -> 0.0373 | M206: ='WACC Calc'!G423 -> 0.0373 | N206: ='WACC Calc'!H423 -> 0.0373 | O206: ='WACC Calc'!I423 -> 0.0373 | P206: ='WACC Calc'!J423 -> 0.0373 | Q206: ='WACC Calc'!K423 -> 0.0373 | R206: ='WACC Calc'!L423 -> 0.0373 | S206: ='WACC Calc'!M423 -> 0.0373 | T206: ='WACC Calc'!N423 -> 0.0373 | U206: ='WACC Calc'!O423 -> 0.0373 | V206: ='WACC Calc'!P423 -> 0.0373 | W206: ='WACC Calc'!Q423 -> 0.0373 | X206: ='WACC Calc'!R423 -> 0.0373 | Y206: ='WACC Calc'!S423 -> 0.0373 | Z206: ='WACC Calc'!T423 -> 0.0373 | AA206: ='WACC Calc'!U423 -> 0.0373 | AB206: ='WACC Calc'!V423 -> 0.0373 | AC206: ='WACC Calc'!W423 -> 0.0373 | AD206: ='WACC Calc'!X423 -> 0.0373 | AE206: ='WACC Calc'!Y423 -> 0.0373 | AF206: ='WACC Calc'!Z423 -> 0.0373 | AG206: ='WACC Calc'!AA423 -> 0.0373 | AH206: ='WACC Calc'!AB423 -> 0.0373 | AI206: ='WACC Calc'!AC423 -> 0.0373 | AJ206: ='WACC Calc'!AD423 -> 0.0373 | AK206: ='WACC Calc'!AE423 -> 0.0373 | AL206: ='WACC Calc'!AF423 -> 0.0373 | AM206: ='WACC Calc'!AG423 -> 0.0373 | AN206: ='WACC Calc'!AH423 -> 0.0373 | AO206: ='WACC Calc'!AI423 -> 0.0373 | AP206: ='WACC Calc'!AJ423 -> 0.0373 | AQ206: ='WACC Calc'!AK423 -> 0.0373 | AR206: ='WACC Calc'!AL423 -> 0.0373 | AS206: ='WACC Calc'!AM423 -> 0.0373
K207: Calculated Interest Rate Real - Low | L207: ='WACC Calc'!F424 -> 0.012 | M207: ='WACC Calc'!G424 -> 0.012 | N207: ='WACC Calc'!H424 -> 0.012 | O207: ='WACC Calc'!I424 -> 0.012 | P207: ='WACC Calc'!J424 -> 0.012 | Q207: ='WACC Calc'!K424 -> 0.012 | R207: ='WACC Calc'!L424 -> 0.012 | S207: ='WACC Calc'!M424 -> 0.012 | T207: ='WACC Calc'!N424 -> 0.012 | U207: ='WACC Calc'!O424 -> 0.012 | V207: ='WACC Calc'!P424 -> 0.012 | W207: ='WACC Calc'!Q424 -> 0.012 | X207: ='WACC Calc'!R424 -> 0.012 | Y207: ='WACC Calc'!S424 -> 0.012 | Z207: ='WACC Calc'!T424 -> 0.012 | AA207: ='WACC Calc'!U424 -> 0.012 | AB207: ='WACC Calc'!V424 -> 0.012 | AC207: ='WACC Calc'!W424 -> 0.012 | AD207: ='WACC Calc'!X424 -> 0.012 | AE207: ='WACC Calc'!Y424 -> 0.012 | AF207: ='WACC Calc'!Z424 -> 0.012 | AG207: ='WACC Calc'!AA424 -> 0.012 | AH207: ='WACC Calc'!AB424 -> 0.012 | AI207: ='WACC Calc'!AC424 -> 0.012 | AJ207: ='WACC Calc'!AD424 -> 0.012 | AK207: ='WACC Calc'!AE424 -> 0.012 | AL207: ='WACC Calc'!AF424 -> 0.012 | AM207: ='WACC Calc'!AG424 -> 0.012 | AN207: ='WACC Calc'!AH424 -> 0.012 | AO207: ='WACC Calc'!AI424 -> 0.012 | AP207: ='WACC Calc'!AJ424 -> 0.012 | AQ207: ='WACC Calc'!AK424 -> 0.012 | AR207: ='WACC Calc'!AL424 -> 0.012 | AS207: ='WACC Calc'!AM424 -> 0.012
K208: Calculated Interest Rate Real - Mid | L208: ='WACC Calc'!F425 -> 0.012 | M208: ='WACC Calc'!G425 -> 0.012 | N208: ='WACC Calc'!H425 -> 0.012 | O208: ='WACC Calc'!I425 -> 0.012 | P208: ='WACC Calc'!J425 -> 0.012 | Q208: ='WACC Calc'!K425 -> 0.012 | R208: ='WACC Calc'!L425 -> 0.012 | S208: ='WACC Calc'!M425 -> 0.012 | T208: ='WACC Calc'!N425 -> 0.012 | U208: ='WACC Calc'!O425 -> 0.012 | V208: ='WACC Calc'!P425 -> 0.012 | W208: ='WACC Calc'!Q425 -> 0.012 | X208: ='WACC Calc'!R425 -> 0.012 | Y208: ='WACC Calc'!S425 -> 0.012 | Z208: ='WACC Calc'!T425 -> 0.012 | AA208: ='WACC Calc'!U425 -> 0.012 | AB208: ='WACC Calc'!V425 -> 0.012 | AC208: ='WACC Calc'!W425 -> 0.012 | AD208: ='WACC Calc'!X425 -> 0.012 | AE208: ='WACC Calc'!Y425 -> 0.012 | AF208: ='WACC Calc'!Z425 -> 0.012 | AG208: ='WACC Calc'!AA425 -> 0.012 | AH208: ='WACC Calc'!AB425 -> 0.012 | AI208: ='WACC Calc'!AC425 -> 0.012 | AJ208: ='WACC Calc'!AD425 -> 0.012 | AK208: ='WACC Calc'!AE425 -> 0.012 | AL208: ='WACC Calc'!AF425 -> 0.012 | AM208: ='WACC Calc'!AG425 -> 0.012 | AN208: ='WACC Calc'!AH425 -> 0.012 | AO208: ='WACC Calc'!AI425 -> 0.012 | AP208: ='WACC Calc'!AJ425 -> 0.012 | AQ208: ='WACC Calc'!AK425 -> 0.012 | AR208: ='WACC Calc'!AL425 -> 0.012 | AS208: ='WACC Calc'!AM425 -> 0.012
K209: Calculated Interest Rate Real - Constant | L209: ='WACC Calc'!F426 -> 0.012 | M209: ='WACC Calc'!G426 -> 0.012 | N209: ='WACC Calc'!H426 -> 0.012 | O209: ='WACC Calc'!I426 -> 0.012 | P209: ='WACC Calc'!J426 -> 0.012 | Q209: ='WACC Calc'!K426 -> 0.012 | R209: ='WACC Calc'!L426 -> 0.012 | S209: ='WACC Calc'!M426 -> 0.012 | T209: ='WACC Calc'!N426 -> 0.012 | U209: ='WACC Calc'!O426 -> 0.012 | V209: ='WACC Calc'!P426 -> 0.012 | W209: ='WACC Calc'!Q426 -> 0.012 | X209: ='WACC Calc'!R426 -> 0.012 | Y209: ='WACC Calc'!S426 -> 0.012 | Z209: ='WACC Calc'!T426 -> 0.012 | AA209: ='WACC Calc'!U426 -> 0.012 | AB209: ='WACC Calc'!V426 -> 0.012 | AC209: ='WACC Calc'!W426 -> 0.012 | AD209: ='WACC Calc'!X426 -> 0.012 | AE209: ='WACC Calc'!Y426 -> 0.012 | AF209: ='WACC Calc'!Z426 -> 0.012 | AG209: ='WACC Calc'!AA426 -> 0.012 | AH209: ='WACC Calc'!AB426 -> 0.012 | AI209: ='WACC Calc'!AC426 -> 0.012 | AJ209: ='WACC Calc'!AD426 -> 0.012 | AK209: ='WACC Calc'!AE426 -> 0.012 | AL209: ='WACC Calc'!AF426 -> 0.012 | AM209: ='WACC Calc'!AG426 -> 0.012 | AN209: ='WACC Calc'!AH426 -> 0.012 | AO209: ='WACC Calc'!AI426 -> 0.012 | AP209: ='WACC Calc'!AJ426 -> 0.012 | AQ209: ='WACC Calc'!AK426 -> 0.012 | AR209: ='WACC Calc'!AL426 -> 0.012 | AS209: ='WACC Calc'!AM426 -> 0.012
K210: Interest During Construction - Nominal | L210: ='WACC Calc'!F427 -> 0.0373 | M210: ='WACC Calc'!G427 -> 0.0373 | N210: ='WACC Calc'!H427 -> 0.0373 | O210: ='WACC Calc'!I427 -> 0.0373 | P210: ='WACC Calc'!J427 -> 0.0373 | Q210: ='WACC Calc'!K427 -> 0.0373 | R210: ='WACC Calc'!L427 -> 0.0373 | S210: ='WACC Calc'!M427 -> 0.0373 | T210: ='WACC Calc'!N427 -> 0.0373 | U210: ='WACC Calc'!O427 -> 0.0373 | V210: ='WACC Calc'!P427 -> 0.0373 | W210: ='WACC Calc'!Q427 -> 0.0373 | X210: ='WACC Calc'!R427 -> 0.0373 | Y210: ='WACC Calc'!S427 -> 0.0373 | Z210: ='WACC Calc'!T427 -> 0.0373 | AA210: ='WACC Calc'!U427 -> 0.0373 | AB210: ='WACC Calc'!V427 -> 0.0373 | AC210: ='WACC Calc'!W427 -> 0.0373 | AD210: ='WACC Calc'!X427 -> 0.0373 | AE210: ='WACC Calc'!Y427 -> 0.0373 | AF210: ='WACC Calc'!Z427 -> 0.0373 | AG210: ='WACC Calc'!AA427 -> 0.0373 | AH210: ='WACC Calc'!AB427 -> 0.0373 | AI210: ='WACC Calc'!AC427 -> 0.0373 | AJ210: ='WACC Calc'!AD427 -> 0.0373 | AK210: ='WACC Calc'!AE427 -> 0.0373 | AL210: ='WACC Calc'!AF427 -> 0.0373 | AM210: ='WACC Calc'!AG427 -> 0.0373 | AN210: ='WACC Calc'!AH427 -> 0.0373 | AO210: ='WACC Calc'!AI427 -> 0.0373 | AP210: ='WACC Calc'!AJ427 -> 0.0373 | AQ210: ='WACC Calc'!AK427 -> 0.0373 | AR210: ='WACC Calc'!AL427 -> 0.0373 | AS210: ='WACC Calc'!AM427 -> 0.0373
K211: Rate of Return on Equity Nominal - Low | L211: ='WACC Calc'!F428 -> 0.0903 | M211: ='WACC Calc'!G428 -> 0.0903 | N211: ='WACC Calc'!H428 -> 0.0903 | O211: ='WACC Calc'!I428 -> 0.0903 | P211: ='WACC Calc'!J428 -> 0.0903 | Q211: ='WACC Calc'!K428 -> 0.0903 | R211: ='WACC Calc'!L428 -> 0.0903 | S211: ='WACC Calc'!M428 -> 0.0903 | T211: ='WACC Calc'!N428 -> 0.0903 | U211: ='WACC Calc'!O428 -> 0.0903 | V211: ='WACC Calc'!P428 -> 0.0903 | W211: ='WACC Calc'!Q428 -> 0.0903 | X211: ='WACC Calc'!R428 -> 0.0903 | Y211: ='WACC Calc'!S428 -> 0.0903 | Z211: ='WACC Calc'!T428 -> 0.0903 | AA211: ='WACC Calc'!U428 -> 0.0903 | AB211: ='WACC Calc'!V428 -> 0.0903 | AC211: ='WACC Calc'!W428 -> 0.0903 | AD211: ='WACC Calc'!X428 -> 0.0903 | AE211: ='WACC Calc'!Y428 -> 0.0903 | AF211: ='WACC Calc'!Z428 -> 0.0903 | AG211: ='WACC Calc'!AA428 -> 0.0903 | AH211: ='WACC Calc'!AB428 -> 0.0903 | AI211: ='WACC Calc'!AC428 -> 0.0903 | AJ211: ='WACC Calc'!AD428 -> 0.0903 | AK211: ='WACC Calc'!AE428 -> 0.0903 | AL211: ='WACC Calc'!AF428 -> 0.0903 | AM211: ='WACC Calc'!AG428 -> 0.0903 | AN211: ='WACC Calc'!AH428 -> 0.0903 | AO211: ='WACC Calc'!AI428 -> 0.0903 | AP211: ='WACC Calc'!AJ428 -> 0.0903 | AQ211: ='WACC Calc'!AK428 -> 0.0903 | AR211: ='WACC Calc'!AL428 -> 0.0903 | AS211: ='WACC Calc'!AM428 -> 0.0903
K212: Rate of Return on Equity Nominal - Mid | L212: ='WACC Calc'!F429 -> 0.0903 | M212: ='WACC Calc'!G429 -> 0.0903 | N212: ='WACC Calc'!H429 -> 0.0903 | O212: ='WACC Calc'!I429 -> 0.0903 | P212: ='WACC Calc'!J429 -> 0.0903 | Q212: ='WACC Calc'!K429 -> 0.0903 | R212: ='WACC Calc'!L429 -> 0.0903 | S212: ='WACC Calc'!M429 -> 0.0903 | T212: ='WACC Calc'!N429 -> 0.0903 | U212: ='WACC Calc'!O429 -> 0.0903 | V212: ='WACC Calc'!P429 -> 0.0903 | W212: ='WACC Calc'!Q429 -> 0.0903 | X212: ='WACC Calc'!R429 -> 0.0903 | Y212: ='WACC Calc'!S429 -> 0.0903 | Z212: ='WACC Calc'!T429 -> 0.0903 | AA212: ='WACC Calc'!U429 -> 0.0903 | AB212: ='WACC Calc'!V429 -> 0.0903 | AC212: ='WACC Calc'!W429 -> 0.0903 | AD212: ='WACC Calc'!X429 -> 0.0903 | AE212: ='WACC Calc'!Y429 -> 0.0903 | AF212: ='WACC Calc'!Z429 -> 0.0903 | AG212: ='WACC Calc'!AA429 -> 0.0903 | AH212: ='WACC Calc'!AB429 -> 0.0903 | AI212: ='WACC Calc'!AC429 -> 0.0903 | AJ212: ='WACC Calc'!AD429 -> 0.0903 | AK212: ='WACC Calc'!AE429 -> 0.0903 | AL212: ='WACC Calc'!AF429 -> 0.0903 | AM212: ='WACC Calc'!AG429 -> 0.0903 | AN212: ='WACC Calc'!AH429 -> 0.0903 | AO212: ='WACC Calc'!AI429 -> 0.0903 | AP212: ='WACC Calc'!AJ429 -> 0.0903 | AQ212: ='WACC Calc'!AK429 -> 0.0903 | AR212: ='WACC Calc'!AL429 -> 0.0903 | AS212: ='WACC Calc'!AM429 -> 0.0903
K213: Rate of Return on Equity Nominal - Constant | L213: ='WACC Calc'!F430 -> 0.0903 | M213: ='WACC Calc'!G430 -> 0.0903 | N213: ='WACC Calc'!H430 -> 0.0903 | O213: ='WACC Calc'!I430 -> 0.0903 | P213: ='WACC Calc'!J430 -> 0.0903 | Q213: ='WACC Calc'!K430 -> 0.0903 | R213: ='WACC Calc'!L430 -> 0.0903 | S213: ='WACC Calc'!M430 -> 0.0903 | T213: ='WACC Calc'!N430 -> 0.0903 | U213: ='WACC Calc'!O430 -> 0.0903 | V213: ='WACC Calc'!P430 -> 0.0903 | W213: ='WACC Calc'!Q430 -> 0.0903 | X213: ='WACC Calc'!R430 -> 0.0903 | Y213: ='WACC Calc'!S430 -> 0.0903 | Z213: ='WACC Calc'!T430 -> 0.0903 | AA213: ='WACC Calc'!U430 -> 0.0903 | AB213: ='WACC Calc'!V430 -> 0.0903 | AC213: ='WACC Calc'!W430 -> 0.0903 | AD213: ='WACC Calc'!X430 -> 0.0903 | AE213: ='WACC Calc'!Y430 -> 0.0903 | AF213: ='WACC Calc'!Z430 -> 0.0903 | AG213: ='WACC Calc'!AA430 -> 0.0903 | AH213: ='WACC Calc'!AB430 -> 0.0903 | AI213: ='WACC Calc'!AC430 -> 0.0903 | AJ213: ='WACC Calc'!AD430 -> 0.0903 | AK213: ='WACC Calc'!AE430 -> 0.0903 | AL213: ='WACC Calc'!AF430 -> 0.0903 | AM213: ='WACC Calc'!AG430 -> 0.0903 | AN213: ='WACC Calc'!AH430 -> 0.0903 | AO213: ='WACC Calc'!AI430 -> 0.0903 | AP213: ='WACC Calc'!AJ430 -> 0.0903 | AQ213: ='WACC Calc'!AK430 -> 0.0903 | AR213: ='WACC Calc'!AL430 -> 0.0903 | AS213: ='WACC Calc'!AM430 -> 0.0903
K214: Calculated Rate of Return on Equity Real - Low | L214: ='WACC Calc'!F431 -> 0.06370731707 | M214: ='WACC Calc'!G431 -> 0.06370731707 | N214: ='WACC Calc'!H431 -> 0.06370731707 | O214: ='WACC Calc'!I431 -> 0.06370731707 | P214: ='WACC Calc'!J431 -> 0.06370731707 | Q214: ='WACC Calc'!K431 -> 0.06370731707 | R214: ='WACC Calc'!L431 -> 0.06370731707 | S214: ='WACC Calc'!M431 -> 0.06370731707 | T214: ='WACC Calc'!N431 -> 0.06370731707 | U214: ='WACC Calc'!O431 -> 0.06370731707 | V214: ='WACC Calc'!P431 -> 0.06370731707 | W214: ='WACC Calc'!Q431 -> 0.06370731707 | X214: ='WACC Calc'!R431 -> 0.06370731707 | Y214: ='WACC Calc'!S431 -> 0.06370731707 | Z214: ='WACC Calc'!T431 -> 0.06370731707 | AA214: ='WACC Calc'!U431 -> 0.06370731707 | AB214: ='WACC Calc'!V431 -> 0.06370731707 | AC214: ='WACC Calc'!W431 -> 0.06370731707 | AD214: ='WACC Calc'!X431 -> 0.06370731707 | AE214: ='WACC Calc'!Y431 -> 0.06370731707 | AF214: ='WACC Calc'!Z431 -> 0.06370731707 | AG214: ='WACC Calc'!AA431 -> 0.06370731707 | AH214: ='WACC Calc'!AB431 -> 0.06370731707 | AI214: ='WACC Calc'!AC431 -> 0.06370731707 | AJ214: ='WACC Calc'!AD431 -> 0.06370731707 | AK214: ='WACC Calc'!AE431 -> 0.06370731707 | AL214: ='WACC Calc'!AF431 -> 0.06370731707 | AM214: ='WACC Calc'!AG431 -> 0.06370731707 | AN214: ='WACC Calc'!AH431 -> 0.06370731707 | AO214: ='WACC Calc'!AI431 -> 0.06370731707 | AP214: ='WACC Calc'!AJ431 -> 0.06370731707 | AQ214: ='WACC Calc'!AK431 -> 0.06370731707 | AR214: ='WACC Calc'!AL431 -> 0.06370731707 | AS214: ='WACC Calc'!AM431 -> 0.06370731707
K215: Calculated Rate of Return on Equity Real - Mid | L215: ='WACC Calc'!F432 -> 0.06370731707 | M215: ='WACC Calc'!G432 -> 0.06370731707 | N215: ='WACC Calc'!H432 -> 0.06370731707 | O215: ='WACC Calc'!I432 -> 0.06370731707 | P215: ='WACC Calc'!J432 -> 0.06370731707 | Q215: ='WACC Calc'!K432 -> 0.06370731707 | R215: ='WACC Calc'!L432 -> 0.06370731707 | S215: ='WACC Calc'!M432 -> 0.06370731707 | T215: ='WACC Calc'!N432 -> 0.06370731707 | U215: ='WACC Calc'!O432 -> 0.06370731707 | V215: ='WACC Calc'!P432 -> 0.06370731707 | W215: ='WACC Calc'!Q432 -> 0.06370731707 | X215: ='WACC Calc'!R432 -> 0.06370731707 | Y215: ='WACC Calc'!S432 -> 0.06370731707 | Z215: ='WACC Calc'!T432 -> 0.06370731707 | AA215: ='WACC Calc'!U432 -> 0.06370731707 | AB215: ='WACC Calc'!V432 -> 0.06370731707 | AC215: ='WACC Calc'!W432 -> 0.06370731707 | AD215: ='WACC Calc'!X432 -> 0.06370731707 | AE215: ='WACC Calc'!Y432 -> 0.06370731707 | AF215: ='WACC Calc'!Z432 -> 0.06370731707 | AG215: ='WACC Calc'!AA432 -> 0.06370731707 | AH215: ='WACC Calc'!AB432 -> 0.06370731707 | AI215: ='WACC Calc'!AC432 -> 0.06370731707 | AJ215: ='WACC Calc'!AD432 -> 0.06370731707 | AK215: ='WACC Calc'!AE432 -> 0.06370731707 | AL215: ='WACC Calc'!AF432 -> 0.06370731707 | AM215: ='WACC Calc'!AG432 -> 0.06370731707 | AN215: ='WACC Calc'!AH432 -> 0.06370731707 | AO215: ='WACC Calc'!AI432 -> 0.06370731707 | AP215: ='WACC Calc'!AJ432 -> 0.06370731707 | AQ215: ='WACC Calc'!AK432 -> 0.06370731707 | AR215: ='WACC Calc'!AL432 -> 0.06370731707 | AS215: ='WACC Calc'!AM432 -> 0.06370731707
K216: Calculated Rate of Return on Equity Real - Constant | L216: ='WACC Calc'!F433 -> 0.06370731707 | M216: ='WACC Calc'!G433 -> 0.06370731707 | N216: ='WACC Calc'!H433 -> 0.06370731707 | O216: ='WACC Calc'!I433 -> 0.06370731707 | P216: ='WACC Calc'!J433 -> 0.06370731707 | Q216: ='WACC Calc'!K433 -> 0.06370731707 | R216: ='WACC Calc'!L433 -> 0.06370731707 | S216: ='WACC Calc'!M433 -> 0.06370731707 | T216: ='WACC Calc'!N433 -> 0.06370731707 | U216: ='WACC Calc'!O433 -> 0.06370731707 | V216: ='WACC Calc'!P433 -> 0.06370731707 | W216: ='WACC Calc'!Q433 -> 0.06370731707 | X216: ='WACC Calc'!R433 -> 0.06370731707 | Y216: ='WACC Calc'!S433 -> 0.06370731707 | Z216: ='WACC Calc'!T433 -> 0.06370731707 | AA216: ='WACC Calc'!U433 -> 0.06370731707 | AB216: ='WACC Calc'!V433 -> 0.06370731707 | AC216: ='WACC Calc'!W433 -> 0.06370731707 | AD216: ='WACC Calc'!X433 -> 0.06370731707 | AE216: ='WACC Calc'!Y433 -> 0.06370731707 | AF216: ='WACC Calc'!Z433 -> 0.06370731707 | AG216: ='WACC Calc'!AA433 -> 0.06370731707 | AH216: ='WACC Calc'!AB433 -> 0.06370731707 | AI216: ='WACC Calc'!AC433 -> 0.06370731707 | AJ216: ='WACC Calc'!AD433 -> 0.06370731707 | AK216: ='WACC Calc'!AE433 -> 0.06370731707 | AL216: ='WACC Calc'!AF433 -> 0.06370731707 | AM216: ='WACC Calc'!AG433 -> 0.06370731707 | AN216: ='WACC Calc'!AH433 -> 0.06370731707 | AO216: ='WACC Calc'!AI433 -> 0.06370731707 | AP216: ='WACC Calc'!AJ433 -> 0.06370731707 | AQ216: ='WACC Calc'!AK433 -> 0.06370731707 | AR216: ='WACC Calc'!AL433 -> 0.06370731707 | AS216: ='WACC Calc'!AM433 -> 0.06370731707
K217: Debt Fraction - Low | L217: ='WACC Calc'!F434 -> 0.6 | M217: ='WACC Calc'!G434 -> 0.6076923077 | N217: ='WACC Calc'!H434 -> 0.6153846154 | O217: ='WACC Calc'!I434 -> 0.6230769231 | P217: ='WACC Calc'!J434 -> 0.6307692308 | Q217: ='WACC Calc'!K434 -> 0.6384615385 | R217: ='WACC Calc'!L434 -> 0.6461538462 | S217: ='WACC Calc'!M434 -> 0.6538461538 | T217: ='WACC Calc'!N434 -> 0.6615384615 | U217: ='WACC Calc'!O434 -> 0.6692307692 | V217: ='WACC Calc'!P434 -> 0.6769230769 | W217: ='WACC Calc'!Q434 -> 0.6846153846 | X217: ='WACC Calc'!R434 -> 0.6923076923 | Y217: ='WACC Calc'!S434 -> 0.7 | Z217: ='WACC Calc'!T434 -> 0.7 | AA217: ='WACC Calc'!U434 -> 0.7 | AB217: ='WACC Calc'!V434 -> 0.7 | AC217: ='WACC Calc'!W434 -> 0.7 | AD217: ='WACC Calc'!X434 -> 0.7 | AE217: ='WACC Calc'!Y434 -> 0.7 | AF217: ='WACC Calc'!Z434 -> 0.7 | AG217: ='WACC Calc'!AA434 -> 0.7 | AH217: ='WACC Calc'!AB434 -> 0.7 | AI217: ='WACC Calc'!AC434 -> 0.7 | AJ217: ='WACC Calc'!AD434 -> 0.7 | AK217: ='WACC Calc'!AE434 -> 0.7 | AL217: ='WACC Calc'!AF434 -> 0.7 | AM217: ='WACC Calc'!AG434 -> 0.7 | AN217: ='WACC Calc'!AH434 -> 0.7 | AO217: ='WACC Calc'!AI434 -> 0.7 | AP217: ='WACC Calc'!AJ434 -> 0.7 | AQ217: ='WACC Calc'!AK434 -> 0.7 | AR217: ='WACC Calc'!AL434 -> 0.7 | AS217: ='WACC Calc'!AM434 -> 0.7
K218: Debt Fraction - Mid | L218: ='WACC Calc'!F435 -> 0.6 | M218: ='WACC Calc'!G435 -> 0.6038461538 | N218: ='WACC Calc'!H435 -> 0.6076923077 | O218: ='WACC Calc'!I435 -> 0.6115384615 | P218: ='WACC Calc'!J435 -> 0.6153846154 | Q218: ='WACC Calc'!K435 -> 0.6192307692 | R218: ='WACC Calc'!L435 -> 0.6230769231 | S218: ='WACC Calc'!M435 -> 0.6269230769 | T218: ='WACC Calc'!N435 -> 0.6307692308 | U218: ='WACC Calc'!O435 -> 0.6346153846 | V218: ='WACC Calc'!P435 -> 0.6384615385 | W218: ='WACC Calc'!Q435 -> 0.6423076923 | X218: ='WACC Calc'!R435 -> 0.6461538462 | Y218: ='WACC Calc'!S435 -> 0.65 | Z218: ='WACC Calc'!T435 -> 0.65 | AA218: ='WACC Calc'!U435 -> 0.65 | AB218: ='WACC Calc'!V435 -> 0.65 | AC218: ='WACC Calc'!W435 -> 0.65 | AD218: ='WACC Calc'!X435 -> 0.65 | AE218: ='WACC Calc'!Y435 -> 0.65 | AF218: ='WACC Calc'!Z435 -> 0.65 | AG218: ='WACC Calc'!AA435 -> 0.65 | AH218: ='WACC Calc'!AB435 -> 0.65 | AI218: ='WACC Calc'!AC435 -> 0.65 | AJ218: ='WACC Calc'!AD435 -> 0.65 | AK218: ='WACC Calc'!AE435 -> 0.65 | AL218: ='WACC Calc'!AF435 -> 0.65 | AM218: ='WACC Calc'!AG435 -> 0.65 | AN218: ='WACC Calc'!AH435 -> 0.65 | AO218: ='WACC Calc'!AI435 -> 0.65 | AP218: ='WACC Calc'!AJ435 -> 0.65 | AQ218: ='WACC Calc'!AK435 -> 0.65 | AR218: ='WACC Calc'!AL435 -> 0.65 | AS218: ='WACC Calc'!AM435 -> 0.65
K219: Debt Fraction - Constant | L219: ='WACC Calc'!F436 -> 0.6 | M219: ='WACC Calc'!G436 -> 0.6 | N219: ='WACC Calc'!H436 -> 0.6 | O219: ='WACC Calc'!I436 -> 0.6 | P219: ='WACC Calc'!J436 -> 0.6 | Q219: ='WACC Calc'!K436 -> 0.6 | R219: ='WACC Calc'!L436 -> 0.6 | S219: ='WACC Calc'!M436 -> 0.6 | T219: ='WACC Calc'!N436 -> 0.6 | U219: ='WACC Calc'!O436 -> 0.6 | V219: ='WACC Calc'!P436 -> 0.6 | W219: ='WACC Calc'!Q436 -> 0.6 | X219: ='WACC Calc'!R436 -> 0.6 | Y219: ='WACC Calc'!S436 -> 0.6 | Z219: ='WACC Calc'!T436 -> 0.6 | AA219: ='WACC Calc'!U436 -> 0.6 | AB219: ='WACC Calc'!V436 -> 0.6 | AC219: ='WACC Calc'!W436 -> 0.6 | AD219: ='WACC Calc'!X436 -> 0.6 | AE219: ='WACC Calc'!Y436 -> 0.6 | AF219: ='WACC Calc'!Z436 -> 0.6 | AG219: ='WACC Calc'!AA436 -> 0.6 | AH219: ='WACC Calc'!AB436 -> 0.6 | AI219: ='WACC Calc'!AC436 -> 0.6 | AJ219: ='WACC Calc'!AD436 -> 0.6 | AK219: ='WACC Calc'!AE436 -> 0.6 | AL219: ='WACC Calc'!AF436 -> 0.6 | AM219: ='WACC Calc'!AG436 -> 0.6 | AN219: ='WACC Calc'!AH436 -> 0.6 | AO219: ='WACC Calc'!AI436 -> 0.6 | AP219: ='WACC Calc'!AJ436 -> 0.6 | AQ219: ='WACC Calc'!AK436 -> 0.6 | AR219: ='WACC Calc'!AL436 -> 0.6 | AS219: ='WACC Calc'!AM436 -> 0.6
K220: Tax Rate (Federal and State) | L220: ='WACC Calc'!F437 -> 0.2574 | M220: ='WACC Calc'!G437 -> 0.2574 | N220: ='WACC Calc'!H437 -> 0.2574 | O220: ='WACC Calc'!I437 -> 0.2574 | P220: ='WACC Calc'!J437 -> 0.2574 | Q220: ='WACC Calc'!K437 -> 0.2574 | R220: ='WACC Calc'!L437 -> 0.2574 | S220: ='WACC Calc'!M437 -> 0.2574 | T220: ='WACC Calc'!N437 -> 0.2574 | U220: ='WACC Calc'!O437 -> 0.2574 | V220: ='WACC Calc'!P437 -> 0.2574 | W220: ='WACC Calc'!Q437 -> 0.2574 | X220: ='WACC Calc'!R437 -> 0.2574 | Y220: ='WACC Calc'!S437 -> 0.2574 | Z220: ='WACC Calc'!T437 -> 0.2574 | AA220: ='WACC Calc'!U437 -> 0.2574 | AB220: ='WACC Calc'!V437 -> 0.2574 | AC220: ='WACC Calc'!W437 -> 0.2574 | AD220: ='WACC Calc'!X437 -> 0.2574 | AE220: ='WACC Calc'!Y437 -> 0.2574 | AF220: ='WACC Calc'!Z437 -> 0.2574 | AG220: ='WACC Calc'!AA437 -> 0.2574 | AH220: ='WACC Calc'!AB437 -> 0.2574 | AI220: ='WACC Calc'!AC437 -> 0.2574 | AJ220: ='WACC Calc'!AD437 -> 0.2574 | AK220: ='WACC Calc'!AE437 -> 0.2574 | AL220: ='WACC Calc'!AF437 -> 0.2574 | AM220: ='WACC Calc'!AG437 -> 0.2574 | AN220: ='WACC Calc'!AH437 -> 0.2574 | AO220: ='WACC Calc'!AI437 -> 0.2574 | AP220: ='WACC Calc'!AJ437 -> 0.2574 | AQ220: ='WACC Calc'!AK437 -> 0.2574 | AR220: ='WACC Calc'!AL437 -> 0.2574 | AS220: ='WACC Calc'!AM437 -> 0.2574
K221: WACC Nominal - Low | L221: ='WACC Calc'!F438 -> 0.052739388 | M221: ='WACC Calc'!G438 -> 0.05225784169 | N221: ='WACC Calc'!H438 -> 0.05177629538 | O221: ='WACC Calc'!I438 -> 0.05129474908 | P221: ='WACC Calc'!J438 -> 0.05081320277 | Q221: ='WACC Calc'!K438 -> 0.05033165646 | R221: ='WACC Calc'!L438 -> 0.04985011015 | S221: ='WACC Calc'!M438 -> 0.04936856385 | T221: ='WACC Calc'!N438 -> 0.04888701754 | U221: ='WACC Calc'!O438 -> 0.04840547123 | V221: ='WACC Calc'!P438 -> 0.04792392492 | W221: ='WACC Calc'!Q438 -> 0.04744237862 | X221: ='WACC Calc'!R438 -> 0.04696083231 | Y221: ='WACC Calc'!S438 -> 0.046479286 | Z221: ='WACC Calc'!T438 -> 0.046479286 | AA221: ='WACC Calc'!U438 -> 0.046479286 | AB221: ='WACC Calc'!V438 -> 0.046479286 | AC221: ='WACC Calc'!W438 -> 0.046479286 | AD221: ='WACC Calc'!X438 -> 0.046479286 | AE221: ='WACC Calc'!Y438 -> 0.046479286 | AF221: ='WACC Calc'!Z438 -> 0.046479286 | AG221: ='WACC Calc'!AA438 -> 0.046479286 | AH221: ='WACC Calc'!AB438 -> 0.046479286 | AI221: ='WACC Calc'!AC438 -> 0.046479286 | AJ221: ='WACC Calc'!AD438 -> 0.046479286 | AK221: ='WACC Calc'!AE438 -> 0.046479286 | AL221: ='WACC Calc'!AF438 -> 0.046479286 | AM221: ='WACC Calc'!AG438 -> 0.046479286 | AN221: ='WACC Calc'!AH438 -> 0.046479286 | AO221: ='WACC Calc'!AI438 -> 0.046479286 | AP221: ='WACC Calc'!AJ438 -> 0.046479286 | AQ221: ='WACC Calc'!AK438 -> 0.046479286 | AR221: ='WACC Calc'!AL438 -> 0.046479286 | AS221: ='WACC Calc'!AM438 -> 0.046479286
... 110 more rows

Sheet Solar - PV Dist. Res
A1: Solar Distributed Residential PV Inputs | L1: https://atb.nrel.gov/electricity/2019/index.html?t=sr
T3: Inputs
J4: Take me to: | T4: Calculated
B10: X | G10: Current Costs
H12: Techno-Economic Cost and Performance Parameters | J12: Net Capacity Factor (%) | K12: Res PV - Seattle | L12: 0.1258427529 | O12: Basis Year: | Q12: 2017
K13: Res PV - Chicago | L13: 0.1478635223
K14: Res PV - Kansas City | L14: 0.1620739511 | O14: Residential Solar Photovoltaic
K15: Res PV - Los Angeles | L15: 0.1821083568
K16: Res PV - Daggett, CA | L16: 0.2080802728
O17: Representative Dist. Res system is fixed-tilt roof mounted with capacity of 5 kW
J18: Annual Energy Production (kWh/kW) | K18: Res PV - Seattle | L18: =L12*8760 -> 1102.382516 | O18: Overnight Capital Cost, Capacity Factor, Fixed O&M, and Variable O&M costs
K19: Res PV - Chicago | L19: =L13*8760 -> 1295.284455 | O19: represent $/kW DC; however LCOE reflects $/MWh AC.
K20: Res PV - Kansas City | L20: =L14*8760 -> 1419.767811 | O20: Capacity factors chosen here to reflect range of across the continental U.S. using NREL PVWATTS
K21: Res PV - Los Angeles | L21: =L15*8760 -> 1595.269205
K22: Res PV - Daggett, CA | L22: =L16*8760 -> 1822.783189
S23: Available | T23: Available
J24: CAPEX ($/kW) | K24: Res PV - Seattle | L24: =$S$54 * (L36 + L62) -> 2769.735246 | S24: Capacity | T24: Generation
K25: Res PV - Chicago | L25: =$S$54 * (L37 + L63) -> 2769.735246 | S25: (GW) | T25: (GWh)
K26: Res PV - Kansas City | L26: =$S$54 * (L38 + L64) -> 2769.735246 | S26: 731 | T26: 926000
K27: Res PV - Los Angeles | L27: =$S$54 * (L39 + L65) -> 2769.735246
K28: Res PV - Daggett, CA | L28: =$S$54 * (L40 + L66) -> 2769.735246
O29: Res PV - Seattle | P29: Res PV - Seattle | Q29: ATB values reflect annual average capacity factor over life of plant including estimated degradation, starting at 0.75% per year, reducing to 0.3% and 0.5% annual degradation by 2050 for the low- and mid-cases.
J30: Construction Financing Cost ($/kW) | K30: Res PV - Seattle | L30: =(L36+L62)*($S$54-1) -> 0 | O30: Res PV - Chicago | P30: Res PV - Chicago
K31: Res PV - Chicago | L31: =(L37+L63)*($S$54-1) -> 0 | O31: Res PV - Kansas City | P31: Res PV - Kansas City
K32: Res PV - Kansas City | L32: =(L38+L64)*($S$54-1) -> 0 | O32: Res PV - Los Angeles | P32: Res PV - Los Angeles
K33: Res PV - Los Angeles | L33: =(L39+L65)*($S$54-1) -> 0 | O33: Res PV - Daggett, CA | P33: Res PV - Daggett, CA
K34: Res PV - Daggett, CA | L34: =(L40+L66)*($S$54-1) -> 0
O35: Financial Assumptions:
J36: Overnight Capital Cost ($/kW) | K36: Res PV - Seattle | L36: =$L$155 -> 2769.735246 | O36: Inflation Rate | S36: =L203 -> 0.025
K37: Res PV - Chicago | L37: =$L$155 -> 2769.735246 | O37: Capital Recovery Period (Years) | S37: 30
K38: Res PV - Kansas City | L38: =$L$164 -> 2769.735246 | O38: Interest Rate Nominal - Mid | S38: =L205 -> 0.0373
K39: Res PV - Los Angeles | L39: =$L$164 -> 2769.735246
K40: Res PV - Daggett, CA | L40: =$L$164 -> 2769.735246
O41: Calculated Interest Rate Real - Mid | S41: =L208 -> 0.012
J42: Fixed Operation and Maintenance Expenses ($/kW/yr) | K42: Res PV - Seattle | L42: =20+PMT(0.08,30,PV(0.08,15,0,0.15*1000)) -> 24.20031673 | O42: Interest During Construction - Nominal | S42: =L210 -> 0.0373
K43: Res PV - Chicago | L43: =L42 -> 24.20031673 | O43: Rate of Return on Equity Nominal - Mid | S43: =L212 -> 0.0903
K44: Res PV - Kansas City | L44: =L43 -> 24.20031673 | O44: Calculated Rate of Return on Equity Real - Mid | S44: =L215 -> 0.06370731707
K45: Res PV - Los Angeles | L45: =L44 -> 24.20031673
K46: Res PV - Daggett, CA | L46: =L45 -> 24.20031673
O47: Debt Fraction - Mid | S47: =L218 -> 0.6
J48: Variable Operation and Maintenance Expenses ($/MWh) | K48: Res PV - Seattle | L48: 0 | O48: Tax Rate (Federal and State) | S48: =L220 -> 0.2574
K49: Res PV - Chicago | L49: 0 | O49: WACC Nominal - Mid | S49: =L222 -> 0.052739388
K50: Res PV - Kansas City | L50: 0 | O50: WACC Real - Mid | S50: =L225 -> 0.02706281756
K51: Res PV - Los Angeles | L51: 0
K52: Res PV - Daggett, CA | L52: 0
O53: Depreciation Period | S53: 5
O54: Construction Finance Factor | S54: 1
H55: Finance | J55: Weighted Average Cost of Capital (WACC) (Nominal) (%) | K55: Res PV - Seattle | L55: =$S$49 -> 0.052739388 | O55: Present Value of Depreciation | S55: =SUMPRODUCT(O74:T74,O76:T76) -> 0.8684887286
K56: Res PV - Chicago | L56: =$S$49 -> 0.052739388 | O56: Project Finance Factor | S56: =(1 - S48 * S55) / (1 - S48) -> 1.045584435
K57: Res PV - Kansas City | L57: =$S$49 -> 0.052739388 | O57: Capital Recovery Factor (CRF) Nominal - Mid | S57: =L228 -> 0.06709677801
K58: Res PV - Los Angeles | L58: =$S$49 -> 0.052739388
K59: Res PV - Daggett, CA | L59: =$S$49 -> 0.052739388
O60: Capital Recovery Factor (CRF) Real - Mid | S60: =L231 -> 0.04910140114
H62: Grid Connection Costs | J62: Grid Connection Costs (GCC) ($/kW) | K62: Res PV - Seattle | L62: =L68+L74 -> 0 | O62: Construction Duration yrs | Q62: 0
K63: Res PV - Chicago | L63: =L69+L75 -> 0 | O63: Year | P63: Capital | Q63: Accumulated
K64: Res PV - Kansas City | L64: =L70+L76 -> 0 | O64: Index | P64: Fraction | Q64: Interest
K65: Res PV - Los Angeles | L65: =L71+L77 -> 0
K66: Res PV - Daggett, CA | L66: =L72+L78 -> 0
O67: 0 | P67: 1 | Q67: =1+(1-S48)*((1+S42)^(O67+0.5)-1) -> 1.013722697
J68: Grid Feature Costs ($/kW) | K68: Res PV - Seattle | L68: 0 | O68: 1 | P68: 0 | Q68: =1+(1-S48)*((1+S42)^(O68+0.5)-1) -> 1.041933534
K69: Res PV - Chicago | L69: 0 | O69: 2 | P69: 0 | Q69: =1+(1-S48)*((1+S42)^(O69+0.5)-1) -> 1.071196635
K70: Res PV - Kansas City | L70: 0
K71: Res PV - Los Angeles | L71: 0
K72: Res PV - Daggett, CA | L72: 0
N73: MACRS yr | O73: 1 | P73: 2 | Q73: 3 | R73: 4 | S73: 5 | T73: 6
J74: Onshore Spur Line Costs ($/kW) | K74: Res PV - Seattle | L74: 0 | N74: Depreciation | O74: 0.2 | P74: 0.32 | Q74: 0.192 | R74: 0.1152 | S74: 0.1152 | T74: 0.0576
K75: Res PV - Chicago | L75: 0 | N75: Fraction
K76: Res PV - Kansas City | L76: 0 | N76: Depreciation | O76: =1/((1+$S$50)*(1+$S$36))^O73 -> 0.9499027123 | P76: 0.9023151628 | Q76: 0.8571116205 | R76: 0.8141726531 | S76: 0.7733848114 | T76: 0.73464033
K77: Res PV - Los Angeles | L77: 0
K78: Res PV - Daggett, CA | L78: 0
N79: Factor
H81: LCOE | J81: Levelized Cost of Energy ($/MWh) | K81: Res PV - Seattle | L81: =(($S$60 * $S$56 * $S$54 * (L36 * 1 + L62) +L42) * 1000 / (L12 * 8760)) + L48 + 0 -> 150.9435992
K82: Res PV - Chicago | L82: =(($S$60 * $S$56 * $S$54 * (L37 * 1 + L63) +L43) * 1000 / (L13 * 8760)) + L49 + 0 -> 128.4641254
K83: Res PV - Kansas City | L83: =(($S$60 * $S$56 * $S$54 * (L38 * 1 + L64) +L44) * 1000 / (L14 * 8760)) + L50 + 0 -> 117.2005615
K84: Res PV - Los Angeles | L84: =(($S$60 * $S$56 * $S$54 * (L39 * 1 + L65) +L45) * 1000 / (L15 * 8760)) + L51 + 0 -> 104.3068995
K85: Res PV - Daggett, CA | L85: =(($S$60 * $S$56 * $S$54 * (L40 * 1 + L66) +L46) * 1000 / (L16 * 8760)) + L52 + 0 -> 91.28764497
J87: Overnight Levelized Cost of Energy ($/MWh) | K87: Res PV - Seattle | L87: =(((L36*$S$60*(1-$S$48*$S$55))/(8760*L12*(1-$S$48))+L42/(8760*L12))*1000)+L48 -> 150.9435992
K88: Res PV - Chicago | L88: =(((L37*$S$60*(1-$S$48*$S$55))/(8760*L13*(1-$S$48))+L43/(8760*L13))*1000)+L49 -> 128.4641254
K89: Res PV - Kansas City | L89: =(((L38*$S$60*(1-$S$48*$S$55))/(8760*L14*(1-$S$48))+L44/(8760*L14))*1000)+L50 -> 117.2005615
K90: Res PV - Los Angeles | L90: =(((L39*$S$60*(1-$S$48*$S$55))/(8760*L15*(1-$S$48))+L45/(8760*L15))*1000)+L51 -> 104.3068995
K91: Res PV - Daggett, CA | L91: =(((L40*$S$60*(1-$S$48*$S$55))/(8760*L16*(1-$S$48))+L46/(8760*L16))*1000)+L52 -> 91.28764497
H94: ***Note: For future projections, low, mid, and high refer to the resulting low, mid, and high LCOE projections.
D97: X | G97: Future Projections
L99: 2017 | M99: 2018 | N99: 2019 | O99: 2020 | P99: 2021 | Q99: 2022 | R99: 2023 | S99: 2024 | T99: 2025 | U99: 2026 | V99: 2027 | W99: 2028 | X99: 2029 | Y99: 2030 | Z99: 2031 | AA99: 2032 | AB99: 2033 | AC99: 2034 | AD99: 2035 | AE99: 2036 | AF99: 2037 | AG99: 2038 | AH99: 2039 | AI99: 2040 | AJ99: 2041 | AK99: 2042 | AL99: 2043 | AM99: 2044 | AN99: 2045 | AO99: 2046 | AP99: 2047 | AQ99: 2048 | AR99: 2049 | AS99: 2050
H100: Techno-Economic Cost and Performance Parameters | J100: Net Capacity Factor (%) | K100: Res PV - Seattle - Low | L100: 0.1258427529 | M100: 0.1260245661 | N100: 0.1262063792 | O100: 0.1263881923 | P100: 0.1265700054 | Q100: 0.1267518186 | R100: 0.1269336317 | S100: 0.1271154448 | T100: 0.1272972579 | U100: 0.1274790711 | V100: 0.1276608842 | W100: 0.1278426973 | X100: 0.1280245104 | Y100: 0.1282063236 | Z100: 0.1283881367 | AA100: 0.1285699498 | AB100: 0.1287517629 | AC100: 0.1289335761 | AD100: 0.1291153892 | AE100: 0.1292972023 | AF100: 0.1294790154 | AG100: 0.1296608286 | AH100: 0.1298426417 | AI100: 0.1300244548 | AJ100: 0.1302062679 | AK100: 0.1303880811 | AL100: 0.1305698942 | AM100: 0.1307517073 | AN100: 0.1309335204 | AO100: 0.1311153336 | AP100: 0.1312971467 | AQ100: 0.1314789598 | AR100: 0.1316607729 | AS100: 0.1318425861
K101: Res PV - Seattle - Mid | L101: 0.1258427529 | M101: 0.1259239904 | N101: 0.1260052279 | O101: 0.1260864654 | P101: 0.1261677029 | Q101: 0.1262489404 | R101: 0.126330178 | S101: 0.1264114155 | T101: 0.126492653 | U101: 0.1265738905 | V101: 0.126655128 | W101: 0.1267363655 | X101: 0.126817603 | Y101: 0.1268988405 | Z101: 0.126980078 | AA101: 0.1270613155 | AB101: 0.127142553 | AC101: 0.1272237905 | AD101: 0.127305028 | AE101: 0.1273862655 | AF101: 0.127467503 | AG101: 0.1275487405 | AH101: 0.127629978 | AI101: 0.1277112155 | AJ101: 0.127792453 | AK101: 0.1278736905 | AL101: 0.127954928 | AM101: 0.1280361655 | AN101: 0.128117403 | AO101: 0.1281986405 | AP101: 0.128279878 | AQ101: 0.1283611155 | AR101: 0.1284423531 | AS101: 0.1285235906
K102: Res PV - Seattle - Constant | L102: 0.1258427529 | M102: 0.1258427529 | N102: 0.1258427529 | O102: 0.1258427529 | P102: 0.1258427529 | Q102: 0.1258427529 | R102: 0.1258427529 | S102: 0.1258427529 | T102: 0.1258427529 | U102: 0.1258427529 | V102: 0.1258427529 | W102: 0.1258427529 | X102: 0.1258427529 | Y102: 0.1258427529 | Z102: 0.1258427529 | AA102: 0.1258427529 | AB102: 0.1258427529 | AC102: 0.1258427529 | AD102: 0.1258427529 | AE102: 0.1258427529 | AF102: 0.1258427529 | AG102: 0.1258427529 | AH102: 0.1258427529 | AI102: 0.1258427529 | AJ102: 0.1258427529 | AK102: 0.1258427529 | AL102: 0.1258427529 | AM102: 0.1258427529 | AN102: 0.1258427529 | AO102: 0.1258427529 | AP102: 0.1258427529 | AQ102: 0.1258427529 | AR102: 0.1258427529 | AS102: 0.1258427529
K103: Res PV - Chicago - Low | L103: 0.1478635223 | M103: 0.1480771503 | N103: 0.1482907782 | O103: 0.1485044062 | P103: 0.1487180341 | Q103: 0.1489316621 | R103: 0.14914529 | S103: 0.1493589179 | T103: 0.1495725459 | U103: 0.1497861738 | V103: 0.1499998018 | W103: 0.1502134297 | X103: 0.1504270577 | Y103: 0.1506406856 | Z103: 0.1508543136 | AA103: 0.1510679415 | AB103: 0.1512815695 | AC103: 0.1514951974 | AD103: 0.1517088254 | AE103: 0.1519224533 | AF103: 0.1521360813 | AG103: 0.1523497092 | AH103: 0.1525633372 | AI103: 0.1527769651 | AJ103: 0.1529905931 | AK103: 0.153204221 | AL103: 0.153417849 | AM103: 0.1536314769 | AN103: 0.1538451049 | AO103: 0.1540587328 | AP103: 0.1542723608 | AQ103: 0.1544859887 | AR103: 0.1546996167 | AS103: 0.1549132446
K104: Res PV - Chicago - Mid | L104: 0.1478635223 | M104: 0.1479589753 | N104: 0.1480544282 | O104: 0.1481498812 | P104: 0.1482453342 | Q104: 0.1483407871 | R104: 0.1484362401 | S104: 0.148531693 | T104: 0.148627146 | U104: 0.148722599 | V104: 0.1488180519 | W104: 0.1489135049 | X104: 0.1490089578 | Y104: 0.1491044108 | Z104: 0.1491998638 | AA104: 0.1492953167 | AB104: 0.1493907697 | AC104: 0.1494862227 | AD104: 0.1495816756 | AE104: 0.1496771286 | AF104: 0.1497725815 | AG104: 0.1498680345 | AH104: 0.1499634875 | AI104: 0.1500589404 | AJ104: 0.1501543934 | AK104: 0.1502498463 | AL104: 0.1503452993 | AM104: 0.1504407523 | AN104: 0.1505362052 | AO104: 0.1506316582 | AP104: 0.1507271112 | AQ104: 0.1508225641 | AR104: 0.1509180171 | AS104: 0.15101347
K105: Res PV - Chicago - Constant | L105: 0.1478635223 | M105: 0.1478635223 | N105: 0.1478635223 | O105: 0.1478635223 | P105: 0.1478635223 | Q105: 0.1478635223 | R105: 0.1478635223 | S105: 0.1478635223 | T105: 0.1478635223 | U105: 0.1478635223 | V105: 0.1478635223 | W105: 0.1478635223 | X105: 0.1478635223 | Y105: 0.1478635223 | Z105: 0.1478635223 | AA105: 0.1478635223 | AB105: 0.1478635223 | AC105: 0.1478635223 | AD105: 0.1478635223 | AE105: 0.1478635223 | AF105: 0.1478635223 | AG105: 0.1478635223 | AH105: 0.1478635223 | AI105: 0.1478635223 | AJ105: 0.1478635223 | AK105: 0.1478635223 | AL105: 0.1478635223 | AM105: 0.1478635223 | AN105: 0.1478635223 | AO105: 0.1478635223 | AP105: 0.1478635223 | AQ105: 0.1478635223 | AR105: 0.1478635223 | AS105: 0.1478635223
K106: Res PV - Kansas City - Low | L106: 0.1620739511 | M106: 0.1623081097 | N106: 0.1625422684 | O106: 0.1627764271 | P106: 0.1630105857 | Q106: 0.1632447444 | R106: 0.1634789031 | S106: 0.1637130617 | T106: 0.1639472204 | U106: 0.1641813791 | V106: 0.1644155378 | W106: 0.1646496964 | X106: 0.1648838551 | Y106: 0.1651180138 | Z106: 0.1653521724 | AA106: 0.1655863311 | AB106: 0.1658204898 | AC106: 0.1660546484 | AD106: 0.1662888071 | AE106: 0.1665229658 | AF106: 0.1667571244 | AG106: 0.1669912831 | AH106: 0.1672254418 | AI106: 0.1674596005 | AJ106: 0.1676937591 | AK106: 0.1679279178 | AL106: 0.1681620765 | AM106: 0.1683962351 | AN106: 0.1686303938 | AO106: 0.1688645525 | AP106: 0.1690987111 | AQ106: 0.1693328698 | AR106: 0.1695670285 | AS106: 0.1698011872
K107: Res PV - Kansas City - Mid | L107: 0.1620739511 | M107: 0.1621785775 | N107: 0.162283204 | O107: 0.1623878305 | P107: 0.1624924569 | Q107: 0.1625970834 | R107: 0.1627017099 | S107: 0.1628063364 | T107: 0.1629109628 | U107: 0.1630155893 | V107: 0.1631202158 | W107: 0.1632248422 | X107: 0.1633294687 | Y107: 0.1634340952 | Z107: 0.1635387217 | AA107: 0.1636433481 | AB107: 0.1637479746 | AC107: 0.1638526011 | AD107: 0.1639572275 | AE107: 0.164061854 | AF107: 0.1641664805 | AG107: 0.164271107 | AH107: 0.1643757334 | AI107: 0.1644803599 | AJ107: 0.1645849864 | AK107: 0.1646896128 | AL107: 0.1647942393 | AM107: 0.1648988658 | AN107: 0.1650034923 | AO107: 0.1651081187 | AP107: 0.1652127452 | AQ107: 0.1653173717 | AR107: 0.1654219981 | AS107: 0.1655266246
K108: Res PV - Kansas City - Constant | L108: 0.1620739511 | M108: 0.1620739511 | N108: 0.1620739511 | O108: 0.1620739511 | P108: 0.1620739511 | Q108: 0.1620739511 | R108: 0.1620739511 | S108: 0.1620739511 | T108: 0.1620739511 | U108: 0.1620739511 | V108: 0.1620739511 | W108: 0.1620739511 | X108: 0.1620739511 | Y108: 0.1620739511 | Z108: 0.1620739511 | AA108: 0.1620739511 | AB108: 0.1620739511 | AC108: 0.1620739511 | AD108: 0.1620739511 | AE108: 0.1620739511 | AF108: 0.1620739511 | AG108: 0.1620739511 | AH108: 0.1620739511 | AI108: 0.1620739511 | AJ108: 0.1620739511 | AK108: 0.1620739511 | AL108: 0.1620739511 | AM108: 0.1620739511 | AN108: 0.1620739511 | AO108: 0.1620739511 | AP108: 0.1620739511 | AQ108: 0.1620739511 | AR108: 0.1620739511 | AS108: 0.1620739511
K109: Res PV - Los Angeles - Low | L109: 0.1821083568 | M109: 0.1823714604 | N109: 0.1826345641 | O109: 0.1828976678 | P109: 0.1831607714 | Q109: 0.1834238751 | R109: 0.1836869788 | S109: 0.1839500824 | T109: 0.1842131861 | U109: 0.1844762898 | V109: 0.1847393934 | W109: 0.1850024971 | X109: 0.1852656008 | Y109: 0.1855287044 | Z109: 0.1857918081 | AA109: 0.1860549118 | AB109: 0.1863180154 | AC109: 0.1865811191 | AD109: 0.1868442227 | AE109: 0.1871073264 | AF109: 0.1873704301 | AG109: 0.1876335337 | AH109: 0.1878966374 | AI109: 0.1881597411 | AJ109: 0.1884228447 | AK109: 0.1886859484 | AL109: 0.1889490521 | AM109: 0.1892121557 | AN109: 0.1894752594 | AO109: 0.1897383631 | AP109: 0.1900014667 | AQ109: 0.1902645704 | AR109: 0.1905276741 | AS109: 0.1907907777
K110: Res PV - Los Angeles - Mid | L110: 0.1821083568 | M110: 0.1822259164 | N110: 0.182343476 | O110: 0.1824610357 | P110: 0.1825785953 | Q110: 0.182696155 | R110: 0.1828137146 | S110: 0.1829312742 | T110: 0.1830488339 | U110: 0.1831663935 | V110: 0.1832839531 | W110: 0.1834015128 | X110: 0.1835190724 | Y110: 0.1836366321 | Z110: 0.1837541917 | AA110: 0.1838717513 | AB110: 0.183989311 | AC110: 0.1841068706 | AD110: 0.1842244302 | AE110: 0.1843419899 | AF110: 0.1844595495 | AG110: 0.1845771091 | AH110: 0.1846946688 | AI110: 0.1848122284 | AJ110: 0.1849297881 | AK110: 0.1850473477 | AL110: 0.1851649073 | AM110: 0.185282467 | AN110: 0.1854000266 | AO110: 0.1855175862 | AP110: 0.1856351459 | AQ110: 0.1857527055 | AR110: 0.1858702652 | AS110: 0.1859878248
K111: Res PV - Los Angeles - Constant | L111: 0.1821083568 | M111: 0.1821083568 | N111: 0.1821083568 | O111: 0.1821083568 | P111: 0.1821083568 | Q111: 0.1821083568 | R111: 0.1821083568 | S111: 0.1821083568 | T111: 0.1821083568 | U111: 0.1821083568 | V111: 0.1821083568 | W111: 0.1821083568 | X111: 0.1821083568 | Y111: 0.1821083568 | Z111: 0.1821083568 | AA111: 0.1821083568 | AB111: 0.1821083568 | AC111: 0.1821083568 | AD111: 0.1821083568 | AE111: 0.1821083568 | AF111: 0.1821083568 | AG111: 0.1821083568 | AH111: 0.1821083568 | AI111: 0.1821083568 | AJ111: 0.1821083568 | AK111: 0.1821083568 | AL111: 0.1821083568 | AM111: 0.1821083568 | AN111: 0.1821083568 | AO111: 0.1821083568 | AP111: 0.1821083568 | AQ111: 0.1821083568 | AR111: 0.1821083568 | AS111: 0.1821083568
K112: Res PV - Daggett, CA - Low | L112: 0.2080802728 | M112: 0.2083808997 | N112: 0.2086815267 | O112: 0.2089821537 | P112: 0.2092827806 | Q112: 0.2095834076 | R112: 0.2098840345 | S112: 0.2101846615 | T112: 0.2104852885 | U112: 0.2107859154 | V112: 0.2110865424 | W112: 0.2113871694 | X112: 0.2116877963 | Y112: 0.2119884233 | Z112: 0.2122890503 | AA112: 0.2125896772 | AB112: 0.2128903042 | AC112: 0.2131909312 | AD112: 0.2134915581 | AE112: 0.2137921851 | AF112: 0.214092812 | AG112: 0.214393439 | AH112: 0.214694066 | AI112: 0.2149946929 | AJ112: 0.2152953199 | AK112: 0.2155959469 | AL112: 0.2158965738 | AM112: 0.2161972008 | AN112: 0.2164978278 | AO112: 0.2167984547 | AP112: 0.2170990817 | AQ112: 0.2173997086 | AR112: 0.2177003356 | AS112: 0.2180009626
K113: Res PV - Daggett, CA - Mid | L113: 0.2080802728 | M113: 0.2082145985 | N113: 0.2083489243 | O113: 0.20848325 | P113: 0.2086175758 | Q113: 0.2087519015 | R113: 0.2088862273 | S113: 0.209020553 | T113: 0.2091548788 | U113: 0.2092892045 | V113: 0.2094235302 | W113: 0.209557856 | X113: 0.2096921817 | Y113: 0.2098265075 | Z113: 0.2099608332 | AA113: 0.210095159 | AB113: 0.2102294847 | AC113: 0.2103638105 | AD113: 0.2104981362 | AE113: 0.210632462 | AF113: 0.2107667877 | AG113: 0.2109011135 | AH113: 0.2110354392 | AI113: 0.211169765 | AJ113: 0.2113040907 | AK113: 0.2114384165 | AL113: 0.2115727422 | AM113: 0.211707068 | AN113: 0.2118413937 | AO113: 0.2119757195 | AP113: 0.2121100452 | AQ113: 0.212244371 | AR113: 0.2123786967 | AS113: 0.2125130225
K114: Res PV - Daggett, CA - Constant | L114: 0.2080802728 | M114: 0.2080802728 | N114: 0.2080802728 | O114: 0.2080802728 | P114: 0.2080802728 | Q114: 0.2080802728 | R114: 0.2080802728 | S114: 0.2080802728 | T114: 0.2080802728 | U114: 0.2080802728 | V114: 0.2080802728 | W114: 0.2080802728 | X114: 0.2080802728 | Y114: 0.2080802728 | Z114: 0.2080802728 | AA114: 0.2080802728 | AB114: 0.2080802728 | AC114: 0.2080802728 | AD114: 0.2080802728 | AE114: 0.2080802728 | AF114: 0.2080802728 | AG114: 0.2080802728 | AH114: 0.2080802728 | AI114: 0.2080802728 | AJ114: 0.2080802728 | AK114: 0.2080802728 | AL114: 0.2080802728 | AM114: 0.2080802728 | AN114: 0.2080802728 | AO114: 0.2080802728 | AP114: 0.2080802728 | AQ114: 0.2080802728 | AR114: 0.2080802728 | AS114: 0.2080802728
L116: 2017 | M116: 2018 | N116: 2019 | O116: 2020 | P116: 2021 | Q116: 2022 | R116: 2023 | S116: 2024 | T116: 2025 | U116: 2026 | V116: 2027 | W116: 2028 | X116: 2029 | Y116: 2030 | Z116: 2031 | AA116: 2032 | AB116: 2033 | AC116: 2034 | AD116: 2035 | AE116: 2036 | AF116: 2037 | AG116: 2038 | AH116: 2039 | AI116: 2040 | AJ116: 2041 | AK116: 2042 | AL116: 2043 | AM116: 2044 | AN116: 2045 | AO116: 2046 | AP116: 2047 | AQ116: 2048 | AR116: 2049 | AS116: 2050
J117: Annual Energy Production (kWh/kW) | K117: Res PV - Seattle - Low | L117: =L100*8760 -> 1102.382516 | M117: 1103.975199 | N117: 1105.567882 | O117: 1107.160565 | P117: 1108.753248 | Q117: 1110.345931 | R117: 1111.938614 | S117: 1113.531297 | T117: 1115.123979 | U117: 1116.716662 | V117: 1118.309345 | W117: 1119.902028 | X117: 1121.494711 | Y117: 1123.087394 | Z117: 1124.680077 | AA117: 1126.27276 | AB117: 1127.865443 | AC117: 1129.458126 | AD117: 1131.050809 | AE117: 1132.643492 | AF117: 1134.236175 | AG117: 1135.828858 | AH117: 1137.421541 | AI117: 1139.014224 | AJ117: 1140.606907 | AK117: 1142.19959 | AL117: 1143.792273 | AM117: 1145.384956 | AN117: 1146.977639 | AO117: 1148.570322 | AP117: 1150.163005 | AQ117: 1151.755688 | AR117: 1153.348371 | AS117: 1154.941054
K118: Res PV - Seattle - Mid | L118: =L101*8760 -> 1102.382516 | M118: 1103.094156 | N118: 1103.805797 | O118: 1104.517437 | P118: 1105.229078 | Q118: 1105.940718 | R118: 1106.652359 | S118: 1107.363999 | T118: 1108.07564 | U118: 1108.78728 | V118: 1109.498921 | W118: 1110.210562 | X118: 1110.922202 | Y118: 1111.633843 | Z118: 1112.345483 | AA118: 1113.057124 | AB118: 1113.768764 | AC118: 1114.480405 | AD118: 1115.192045 | AE118: 1115.903686 | AF118: 1116.615326 | AG118: 1117.326967 | AH118: 1118.038607 | AI118: 1118.750248 | AJ118: 1119.461888 | AK118: 1120.173529 | AL118: 1120.88517 | AM118: 1121.59681 | AN118: 1122.308451 | AO118: 1123.020091 | AP118: 1123.731732 | AQ118: 1124.443372 | AR118: 1125.155013 | AS118: 1125.866653
K119: Res PV - Seattle - Constant | L119: =L102*8760 -> 1102.382516 | M119: 1102.382516 | N119: 1102.382516 | O119: 1102.382516 | P119: 1102.382516 | Q119: 1102.382516 | R119: 1102.382516 | S119: 1102.382516 | T119: 1102.382516 | U119: 1102.382516 | V119: 1102.382516 | W119: 1102.382516 | X119: 1102.382516 | Y119: 1102.382516 | Z119: 1102.382516 | AA119: 1102.382516 | AB119: 1102.382516 | AC119: 1102.382516 | AD119: 1102.382516 | AE119: 1102.382516 | AF119: 1102.382516 | AG119: 1102.382516 | AH119: 1102.382516 | AI119: 1102.382516 | AJ119: 1102.382516 | AK119: 1102.382516 | AL119: 1102.382516 | AM119: 1102.382516 | AN119: 1102.382516 | AO119: 1102.382516 | AP119: 1102.382516 | AQ119: 1102.382516 | AR119: 1102.382516 | AS119: 1102.382516
K120: Res PV - Chicago - Low | L120: =L103*8760 -> 1295.284455 | M120: 1297.155836 | N120: 1299.027217 | O120: 1300.898598 | P120: 1302.769979 | Q120: 1304.64136 | R120: 1306.51274 | S120: 1308.384121 | T120: 1310.255502 | U120: 1312.126883 | V120: 1313.998264 | W120: 1315.869645 | X120: 1317.741025 | Y120: 1319.612406 | Z120: 1321.483787 | AA120: 1323.355168 | AB120: 1325.226549 | AC120: 1327.09793 | AD120: 1328.96931 | AE120: 1330.840691 | AF120: 1332.712072 | AG120: 1334.583453 | AH120: 1336.454834 | AI120: 1338.326214 | AJ120: 1340.197595 | AK120: 1342.068976 | AL120: 1343.940357 | AM120: 1345.811738 | AN120: 1347.683119 | AO120: 1349.554499 | AP120: 1351.42588 | AQ120: 1353.297261 | AR120: 1355.168642 | AS120: 1357.040023
K121: Res PV - Chicago - Mid | L121: =L104*8760 -> 1295.284455 | M121: 1296.120623 | N121: 1296.956791 | O121: 1297.792959 | P121: 1298.629127 | Q121: 1299.465295 | R121: 1300.301463 | S121: 1301.137631 | T121: 1301.973799 | U121: 1302.809967 | V121: 1303.646135 | W121: 1304.482303 | X121: 1305.318471 | Y121: 1306.154639 | Z121: 1306.990807 | AA121: 1307.826975 | AB121: 1308.663143 | AC121: 1309.49931 | AD121: 1310.335478 | AE121: 1311.171646 | AF121: 1312.007814 | AG121: 1312.843982 | AH121: 1313.68015 | AI121: 1314.516318 | AJ121: 1315.352486 | AK121: 1316.188654 | AL121: 1317.024822 | AM121: 1317.86099 | AN121: 1318.697158 | AO121: 1319.533326 | AP121: 1320.369494 | AQ121: 1321.205662 | AR121: 1322.04183 | AS121: 1322.877998
K122: Res PV - Chicago - Constant | L122: =L105*8760 -> 1295.284455 | M122: 1295.284455 | N122: 1295.284455 | O122: 1295.284455 | P122: 1295.284455 | Q122: 1295.284455 | R122: 1295.284455 | S122: 1295.284455 | T122: 1295.284455 | U122: 1295.284455 | V122: 1295.284455 | W122: 1295.284455 | X122: 1295.284455 | Y122: 1295.284455 | Z122: 1295.284455 | AA122: 1295.284455 | AB122: 1295.284455 | AC122: 1295.284455 | AD122: 1295.284455 | AE122: 1295.284455 | AF122: 1295.284455 | AG122: 1295.284455 | AH122: 1295.284455 | AI122: 1295.284455 | AJ122: 1295.284455 | AK122: 1295.284455 | AL122: 1295.284455 | AM122: 1295.284455 | AN122: 1295.284455 | AO122: 1295.284455 | AP122: 1295.284455 | AQ122: 1295.284455 | AR122: 1295.284455 | AS122: 1295.284455
K123: Res PV - Kansas City - Low | L123: =L106*8760 -> 1419.767811 | M123: 1421.819041 | N123: 1423.870271 | O123: 1425.921501 | P123: 1427.972731 | Q123: 1430.023961 | R123: 1432.075191 | S123: 1434.126421 | T123: 1436.177651 | U123: 1438.228881 | V123: 1440.280111 | W123: 1442.331341 | X123: 1444.382571 | Y123: 1446.433801 | Z123: 1448.48503 | AA123: 1450.53626 | AB123: 1452.58749 | AC123: 1454.63872 | AD123: 1456.68995 | AE123: 1458.74118 | AF123: 1460.79241 | AG123: 1462.84364 | AH123: 1464.89487 | AI123: 1466.9461 | AJ123: 1468.99733 | AK123: 1471.04856 | AL123: 1473.09979 | AM123: 1475.15102 | AN123: 1477.20225 | AO123: 1479.25348 | AP123: 1481.30471 | AQ123: 1483.35594 | AR123: 1485.40717 | AS123: 1487.458399
K124: Res PV - Kansas City - Mid | L124: =L107*8760 -> 1419.767811 | M124: 1420.684339 | N124: 1421.600867 | O124: 1422.517395 | P124: 1423.433923 | Q124: 1424.350451 | R124: 1425.266979 | S124: 1426.183506 | T124: 1427.100034 | U124: 1428.016562 | V124: 1428.93309 | W124: 1429.849618 | X124: 1430.766146 | Y124: 1431.682674 | Z124: 1432.599202 | AA124: 1433.51573 | AB124: 1434.432258 | AC124: 1435.348785 | AD124: 1436.265313 | AE124: 1437.181841 | AF124: 1438.098369 | AG124: 1439.014897 | AH124: 1439.931425 | AI124: 1440.847953 | AJ124: 1441.764481 | AK124: 1442.681009 | AL124: 1443.597536 | AM124: 1444.514064 | AN124: 1445.430592 | AO124: 1446.34712 | AP124: 1447.263648 | AQ124: 1448.180176 | AR124: 1449.096704 | AS124: 1450.013232
K125: Res PV - Kansas City - Constant | L125: =L108*8760 -> 1419.767811 | M125: 1419.767811 | N125: 1419.767811 | O125: 1419.767811 | P125: 1419.767811 | Q125: 1419.767811 | R125: 1419.767811 | S125: 1419.767811 | T125: 1419.767811 | U125: 1419.767811 | V125: 1419.767811 | W125: 1419.767811 | X125: 1419.767811 | Y125: 1419.767811 | Z125: 1419.767811 | AA125: 1419.767811 | AB125: 1419.767811 | AC125: 1419.767811 | AD125: 1419.767811 | AE125: 1419.767811 | AF125: 1419.767811 | AG125: 1419.767811 | AH125: 1419.767811 | AI125: 1419.767811 | AJ125: 1419.767811 | AK125: 1419.767811 | AL125: 1419.767811 | AM125: 1419.767811 | AN125: 1419.767811 | AO125: 1419.767811 | AP125: 1419.767811 | AQ125: 1419.767811 | AR125: 1419.767811 | AS125: 1419.767811
K126: Res PV - Los Angeles - Low | L126: =L109*8760 -> 1595.269205 | M126: 1597.573993 | N126: 1599.878782 | O126: 1602.18357 | P126: 1604.488358 | Q126: 1606.793146 | R126: 1609.097934 | S126: 1611.402722 | T126: 1613.70751 | U126: 1616.012298 | V126: 1618.317086 | W126: 1620.621875 | X126: 1622.926663 | Y126: 1625.231451 | Z126: 1627.536239 | AA126: 1629.841027 | AB126: 1632.145815 | AC126: 1634.450603 | AD126: 1636.755391 | AE126: 1639.060179 | AF126: 1641.364967 | AG126: 1643.669756 | AH126: 1645.974544 | AI126: 1648.279332 | AJ126: 1650.58412 | AK126: 1652.888908 | AL126: 1655.193696 | AM126: 1657.498484 | AN126: 1659.803272 | AO126: 1662.10806 | AP126: 1664.412849 | AQ126: 1666.717637 | AR126: 1669.022425 | AS126: 1671.327213
K127: Res PV - Los Angeles - Mid | L127: =L110*8760 -> 1595.269205 | M127: 1596.299028 | N127: 1597.32885 | O127: 1598.358673 | P127: 1599.388495 | Q127: 1600.418317 | R127: 1601.44814 | S127: 1602.477962 | T127: 1603.507785 | U127: 1604.537607 | V127: 1605.56743 | W127: 1606.597252 | X127: 1607.627074 | Y127: 1608.656897 | Z127: 1609.686719 | AA127: 1610.716542 | AB127: 1611.746364 | AC127: 1612.776186 | AD127: 1613.806009 | AE127: 1614.835831 | AF127: 1615.865654 | AG127: 1616.895476 | AH127: 1617.925299 | AI127: 1618.955121 | AJ127: 1619.984943 | AK127: 1621.014766 | AL127: 1622.044588 | AM127: 1623.074411 | AN127: 1624.104233 | AO127: 1625.134055 | AP127: 1626.163878 | AQ127: 1627.1937 | AR127: 1628.223523 | AS127: 1629.253345
K128: Res PV - Los Angeles - Constant | L128: =L111*8760 -> 1595.269205 | M128: 1595.269205 | N128: 1595.269205 | O128: 1595.269205 | P128: 1595.269205 | Q128: 1595.269205 | R128: 1595.269205 | S128: 1595.269205 | T128: 1595.269205 | U128: 1595.269205 | V128: 1595.269205 | W128: 1595.269205 | X128: 1595.269205 | Y128: 1595.269205 | Z128: 1595.269205 | AA128: 1595.269205 | AB128: 1595.269205 | AC128: 1595.269205 | AD128: 1595.269205 | AE128: 1595.269205 | AF128: 1595.269205 | AG128: 1595.269205 | AH128: 1595.269205 | AI128: 1595.269205 | AJ128: 1595.269205 | AK128: 1595.269205 | AL128: 1595.269205 | AM128: 1595.269205 | AN128: 1595.269205 | AO128: 1595.269205 | AP128: 1595.269205 | AQ128: 1595.269205 | AR128: 1595.269205 | AS128: 1595.269205
K129: Res PV - Daggett, CA - Low | L129: =L112*8760 -> 1822.783189 | M129: 1825.416682 | N129: 1828.050174 | O129: 1830.683666 | P129: 1833.317158 | Q129: 1835.95065 | R129: 1838.584143 | S129: 1841.217635 | T129: 1843.851127 | U129: 1846.484619 | V129: 1849.118111 | W129: 1851.751604 | X129: 1854.385096 | Y129: 1857.018588 | Z129: 1859.65208 | AA129: 1862.285572 | AB129: 1864.919065 | AC129: 1867.552557 | AD129: 1870.186049 | AE129: 1872.819541 | AF129: 1875.453034 | AG129: 1878.086526 | AH129: 1880.720018 | AI129: 1883.35351 | AJ129: 1885.987002 | AK129: 1888.620495 | AL129: 1891.253987 | AM129: 1893.887479 | AN129: 1896.520971 | AO129: 1899.154463 | AP129: 1901.787956 | AQ129: 1904.421448 | AR129: 1907.05494 | AS129: 1909.688432
